Workbook

Sheet Overview
A1: test set 5; n=119 | B1: 1 tool, no filter (20, 50, 0.01)
B2: Mutations (TP) | C2: Polymorphisms (TP) | D2: Mutations (FN) | E2: Polymorphisms (FN) | F2: No Mutations (FP_M) | G2: No Mutations (FP_P) | H2: No Mutations (TN2) | I2: No Mutations (TN1) | J2: Variants | K2: Artifacts | L2: sens | M2: PPV
A3: GATK | B3: 443 | C3: 3561 | D3: 1 | E3: 0 | F3: 1 | G3: 0 | H3: 99 | I3: 175 | J3: =SUM(B3:E3) -> 4005 | K3: =SUM(F3:I3) -> 275 | L3: =J3/4370 -> 0.9164759725 | M3: =J3/(J3+K3) -> 0.9357476636
A4: Platypus | B4: 380 | C4: 3546 | D4: 2 | E4: 0 | F4: 3 | G4: 0 | H4: 78 | I4: 152 | J4: =SUM(B4:E4) -> 3928 | K4: =SUM(F4:I4) -> 233 | L4: =J4/4370 -> 0.8988558352 | M4: =J4/(J4+K4) -> 0.9440038452
A5: VarScan | B5: 302 | C5: 2798 | D5: 0 | E5: 0 | F5: 0 | G5: 0 | H5: 108 | I5: 80 | J5: =SUM(B5:E5) -> 3100 | K5: =SUM(F5:I5) -> 188 | L5: =J5/4370 -> 0.709382151 | M5: =J5/(J5+K5) -> 0.9428223844
A6: LoFreq | B6: 499 | C6: 2958 | D6: 3 | E6: 0 | F6: 5 | G6: 0 | H6: 278 | I6: 199 | J6: =SUM(B6:E6) -> 3460 | K6: =SUM(F6:I6) -> 482 | L6: =J6/4370 -> 0.7917620137 | M6: =J6/(J6+K6) -> 0.8777270421
A7: FreeBayes | B7: 546 | C7: 3628 | D7: 0 | E7: 0 | F7: 5 | G7: 0 | H7: 567 | I7: 12054 | J7: =SUM(B7:E7) -> 4174 | K7: =SUM(F7:I7) -> 12626 | L7: =J7/4370 -> 0.9551487414 | M7: =J7/(J7+K7) -> 0.248452381
A8: SNVer | B8: 460 | C8: 2706 | D8: 3 | E8: 0 | F8: 5 | G8: 0 | H8: 43 | I8: 13 | J8: =SUM(B8:E8) -> 3169 | K8: =SUM(F8:I8) -> 61 | L8: =J8/4370 -> 0.7251716247 | M8: =J8/(J8+K8) -> 0.9811145511
A9: SAMtools | B9: 263 | C9: 3477 | D9: 0 | E9: 0 | F9: 1 | G9: 0 | H9: 4 | I9: 20 | J9: =SUM(B9:E9) -> 3740 | K9: =SUM(F9:I9) -> 25 | L9: =J9/4370 -> 0.8558352403 | M9: =J9/(J9+K9) -> 0.9933598938
A10: VarDict | B10: 545 | C10: 3678 | D10: 0 | E10: 0 | F10: 5 | G10: 0 | H10: 884 | I10: 2 | J10: =SUM(B10:E10) -> 4223 | K10: =SUM(F10:I10) -> 891 | L10: =J10/4370 -> 0.9663615561 | M10: =J10/(J10+K10) -> 0.8257723895
B11: 561 | C11: 3810 | D11: 6 | E11: 0 | F11: 5 | G11: 0 | H11: 1145 | I11: 12062 | J11: =SUM(B11:E11) -> 4377 | K11: =SUM(F11:I11) -> 13212
B14: 8 tools, no filter (20, 50, 0.01)
B15: Variants | C15: Artifacts | D15: sens | E15: PPV
B16: =B11+C11+3+E11 -> 4374 | C16: =K11 -> 13212 | D16: =B16/B17 -> 0.999314599 | E16: =B16/(B16+C16) -> 0.2487205732
B17: =J11 -> 4377
B19: 8 tools, our filter; single sample info
B20: Mutations | C20: Artifacts | D20: sens | E20: PPV
B21: 4224 | C21: 144 | D21: =B21/B22 -> 0.9643835616 | E21: =B21/(B21+C21) -> 0.967032967
B22: 4380
B24: 8 tools our filter
B25: Variants | C25: Artifacts | D25: sens | E25: PPV
B26: =SUM(B11,C11) -> 4371 | C26: =F11 -> 5 | D26: =B26/B27 -> 0.9986291981 | E26: =B26/(B26+C26) -> 0.998857404
B27: =J11 -> 4377
A36: Mutations only | B36: 1 tool, no filter (20, 50, 0.01)
B37: Mutations (TP) | C37: Mutations (FN) | D37: No Mutations (FP_M) | E37: No Mutations (TN2) | F37: No Mutations (TN1) | G37: Variants | H37: Artifacts | I37: sens | J37: PPV
A38: GATK | B38: 432 | C38: 1 | D38: 12 | E38: 83 | F38: 175 | G38: =B38+C38 -> 433 | H38: =SUM(D38+E38+F38) -> 270 | I38: =G38/559 -> 0.7745974955 | J38: =G38/(G38+H38) -> 0.6159317212
A39: Platypus | B39: 369 | C39: 2 | D39: 14 | E39: 86 | F39: 152 | G39: =B39+C39 -> 371 | H39: =SUM(D39+E39+F39) -> 252 | I39: =G39/559 -> 0.6636851521 | J39: =G39/(G39+H39) -> 0.595505618
A40: VarScan | B40: 291 | C40: 0 | D40: 11 | E40: 116 | F40: 80 | G40: =B40+C40 -> 291 | H40: =SUM(D40+E40+F40) -> 207 | I40: =G40/559 -> 0.5205724508 | J40: =G40/(G40+H40) -> 0.5843373494
A41: LoFreq | B41: 491 | C41: 3 | D41: 13 | E41: 288 | F41: 199 | G41: =B41+C41 -> 494 | H41: =SUM(D41+E41+F41) -> 500 | I41: =G41/559 -> 0.8837209302 | J41: =G41/(G41+H41) -> 0.4969818913
A42: FreeBayes | B42: 535 | C42: 0 | D42: 16 | E42: 570 | F42: 12054 | G42: =B42+C42 -> 535 | H42: =SUM(D42+E42+F42) -> 12640 | I42: =G42/559 -> 0.9570661896 | J42: =G42/(G42+H42) -> 0.04060721063
A43: SNVer | B43: 454 | C43: 3 | D43: 11 | E43: 46 | F43: 13 | G43: =B43+C43 -> 457 | H43: =SUM(D43+E43+F43) -> 70 | I43: =G43/559 -> 0.8175313059 | J43: =G43/(G43+H43) -> 0.8671726755
A44: SAMtools | B44: 252 | C44: 0 | D44: 12 | E44: 13 | F44: 20 | G44: =B44+C44 -> 252 | H44: =SUM(D44+E44+F44) -> 45 | I44: =G44/559 -> 0.4508050089 | J44: =G44/(G44+H44) -> 0.8484848485
A45: VarDict | B45: 534 | C45: 0 | D45: 16 | E45: 966 | F45: 2 | G45: =B45+C45 -> 534 | H45: =SUM(D45+E45+F45) -> 984 | I45: =G45/559 -> 0.9552772809 | J45: =G45/(G45+H45) -> 0.3517786561
B46: 550 | C46: 6 | D46: 16 | E46: 1152 | F46: 12062 | G46: =B46+C46 -> 556 | H46: =SUM(D46+E46+F46) -> 13230
B49: 8 tools, no filter (20, 50, 0.01)
B50: Variants | C50: Artifacts | D50: sens | E50: PPV
B51: =B46+3 -> 553 | C51: =H46 -> 13230 | D51: =B51/B52 -> 0.9946043165 | E51: =B51/(B51+C51) -> 0.04012188928
B52: =G46 -> 556
B54: 8 tools, our filter; single sample info
B55: Mutations | C55: Artifacts | D55: sens | E55: PPV
B56: 544 | C56: 373 | D56: =B56/B57 -> 0.9766606822 | E56: =B56/(B56+C56) -> 0.5932388222
B57: 557
B59: 8 tools our filter
B60: Variants | C60: Artifacts | D60: sens | E60: PPV
B61: =B46 -> 550 | C61: =D46 -> 16 | D61: =B61/B62 -> 0.9892086331 | E61: =B61/(B61+C61) -> 0.9717314488
B62: =G46 -> 556

Sheet TP Mutations
A1: True because.. | B1: Sample | C1: Chr | D1: Pos | E1: Ref | F1: Alt | G1: Gene | H1: ENST | I1: Type | J1: Mutation | K1: Nr_Ref | L1: Nr_Alt | M1: DP | N1: VAF | O1: GATK | P1: Platypus | Q1: VarScan | R1: LoFreq | S1: FreeBayes | T1: SNVer | U1: SAMtools | V1: VarDict | W1: Called | X1: ESP6500 | Y1: G1000 | Z1: Cosmic | AA1: Cosmic_location | AB1: Cosmic_occurence | AC1: dbSNP_SNPs | AD1: dbSNP_SNVs | AE1: PM_flag | AF1: ExAC | AG1: ClinVar_clinical | AH1: ClinVar_noimpact | AI1: Provean_Prediction | AJ1: Provean_Score | AK1: BQ_Ref | AL1: BQ_Alt | AM1: Nr_Ref_fwd | AN1: Nr_Alt_fwd | AO1: DP_fwd | AP1: VAF_fwd | AQ1: Nr_Ref_rev | AR1: Nr_Alt_rev | AS1: DP_rev | AT1: VAF_rev | AU1: strandbias | AV1: nr_samples | AW1: nr_samples_similar | AX1: Category
A2: ESP6500, ExAC, VAF, likely SNP | B2: UPN_Te5_097 | C2: 1 | D2: 20931468 | E2: C | F2: T | G2: CDA | H2: ENST00000375071 | I2: missense_variant | J2: Cgg/Tgg|p.Arg68Trp/c.202C>T | K2: 4311 | L2: 3367 | M2: 7680 | N2: 0.4384114583 | O2: 1 | P2: 1 | Q2: 1 | R2: 1 | S2: 1 | T2: 1 | U2: 1 | V2: 1 | W2: 8 | X2: 0.0116 | Y2: 0 | Z2: COSM1687128 | AA2: skin | AB2: 1 | AC2: NO | AD2: rs201761717 | AE2: NO | AF2: 6.589e-05 | AG2: NO | AH2: NO | AI2: -7.69 | AJ2: Deleterious | AK2: 36.1 | AL2: 36.36 | AM2: 2117 | AN2: 1646 | AO2: 3765 | AP2: 0.437184595 | AQ2: 2194 | AR2: 1721 | AS2: 3915 | AT2: 0.4395913155 | AU2: 0.8540080937 | AV2: 2 | AW2: 2 | AX2: Probably True (-7)
A3: Expert, prediction, bq | B3: UPN_Te5_109 | C3: 1 | D3: 23384050 | E3: C | F3: G | G3: KDM1A,KDM1A,KDM1A | H3: ENST00000400181,ENST00000356634,ENST00000542151 | I3: missense_variant,missense_variant,missense_variant | J3: aCa/aGa|p.Thr355Arg/c.1064C>G,aCa/aGa|p.Thr335Arg/c.1004C>G,aCa/aGa|p.Thr355Arg/c.1064C>G | K3: 911 | L3: 368 | M3: 1279 | N3: 0.287724785 | O3: 1 | P3: 1 | Q3: 0 | R3: 0 | S3: 1 | T3: 0 | U3: 1 | V3: 1 | W3: 5 | X3: NO | Y3: NO | Z3: NO | AA3: NO | AB3: O | AC3: NO | AD3: NO | AE3: NO | AF3: NO | AG3: NO | AH3: NO | AI3: -5.29 | AJ3: Deleterious | AK3: 37.14 | AL3: 37.12 | AM3: 422 | AN3: 183 | AO3: 605 | AP3: 0.3024793388 | AQ3: 489 | AR3: 185 | AS3: 674 | AT3: 0.2744807122 | AU3: 0.2930114164 | AV3: 1 | AW3: 1 | AX3: Probably True (-3)
A4: Expert, bq | B4: UPN_Te5_035 | C4: 1 | D4: 24996717 | E4: G | F4: A | G4: SRRM1,SRRM1,SRRM1 | H4: ENST00000447431,ENST00000323848,ENST00000374389 | I4: missense_variant,missense_variant,missense_variant | J4: Gtc/Atc|p.Val783Ile/c.2347G>A,Gtc/Atc|p.Val771Ile/c.2311G>A,Gtc/Atc|p.Val780Ile/c.2338G>A | K4: 247 | L4: 241 | M4: 489 | N4: 0.4928425358 | O4: 1 | P4: 1 | Q4: 1 | R4: 1 | S4: 1 | T4: 1 | U4: 1 | V4: 1 | W4: 8 | X4: NO | Y4: NO | Z4: NO | AA4: NO | AB4: O | AC4: NO | AD4: NO | AE4: NO | AF4: 1.647e-05 | AG4: NO | AH4: NO | AI4: -0.25 | AJ4: Tolerated | AK4: 33.53 | AL4: 33.13 | AM4: 42 | AN4: 36 | AO4: 78 | AP4: 0.4615384615 | AQ4: 205 | AR4: 205 | AS4: 411 | AT4: 0.498783455 | AU4: 0.5398550209 | AV4: 1 | AW4: 1 | AX4: Probably True (-6)
A5: Expert, bq | B5: UPN_Te5_060 | C5: 1 | D5: 24996760 | E5: C | F5: T | G5: SRRM1,SRRM1,SRRM1 | H5: ENST00000447431,ENST00000323848,ENST00000374389 | I5: missense_variant,missense_variant,missense_variant | J5: cCg/cTg|p.Pro797Leu/c.2390C>T,cCg/cTg|p.Pro785Leu/c.2354C>T,cCg/cTg|p.Pro794Leu/c.2381C>T | K5: 348 | L5: 403 | M5: 754 | N5: 0.5344827586 | O5: 1 | P5: 1 | Q5: 1 | R5: 1 | S5: 1 | T5: 1 | U5: 1 | V5: 1 | W5: 8 | X5: NO | Y5: NO | Z5: NO | AA5: NO | AB5: O | AC5: NO | AD5: NO | AE5: NO | AF5: 4.118e-05 | AG5: NO | AH5: NO | AI5: -2.76 | AJ5: Deleterious | AK5: 38.2 | AL5: 38.42 | AM5: 187 | AN5: 211 | AO5: 400 | AP5: 0.5275 | AQ5: 161 | AR5: 192 | AS5: 354 | AT5: 0.5423728814 | AU5: 0.7145228792 | AV5: 1 | AW5: 1 | AX5: Probably True (-6)
A6: Expert, bq | B6: UPN_Te5_097 | C6: 1 | D6: 43806165 | E6: C | F6: T | G6: MPL,MPL | H6: ENST00000372470,ENST00000413998 | I6: missense_variant,missense_variant | J6: Cgg/Tgg|p.Arg321Trp/c.961C>T,Cgg/Tgg|p.Arg321Trp/c.961C>T | K6: 1123 | L6: 25 | M6: 1149 | N6: 0.02175805048 | O6: 0 | P6: 0 | Q6: 0 | R6: 1 | S6: 1 | T6: 0 | U6: 0 | V6: 1 | W6: 3 | X6: NO | Y6: 0 | Z6: COSM5020802, COSM5020803 | AA6: soft_tissue | AB6: 2 | AC6: NO | AD6: NO | AE6: NO | AF6: 5.765e-05 | AG6: NO | AH6: NO | AI6: -1.82 | AJ6: Tolerated | AK6: 33.99 | AL6: 36.84 | AM6: 291 | AN6: 12 | AO6: 303 | AP6: 0.0396039604 | AQ6: 832 | AR6: 13 | AS6: 846 | AT6: 0.01536643026 | AU6: 0.02002247356 | AV6: 1 | AW6: 1 | AX6: Probably True (-3)
A7: Expert, Cosmic, bq | B7: UPN_Te5_111 | C7: 1 | D7: 43815009 | E7: G | F7: T | G7: MPL,MPL | H7: ENST00000372470,ENST00000413998 | I7: missense_variant,missense_variant | J7: tGg/tTg|p.Trp515Leu/c.1544G>T,tGg/tTg|p.Trp515Leu/c.1544G>T | K7: 205 | L7: 483 | M7: 688 | N7: 0.7020348837 | O7: 1 | P7: 1 | Q7: 1 | R7: 0 | S7: 1 | T7: 0 | U7: 1 | V7: 1 | W7: 6 | X7: NO | Y7: NO | Z7: COSM18918, COSM3719407 | AA7: haematopoietic_and_lymphoid_tissue | AB7: 268 | AC7: NO | AD7: NO | AE7: NO | AF7: 1.647e-05 | AG7: NO | AH7: NO | AI7: -1.77 | AJ7: Tolerated | AK7: 34.87 | AL7: 35.72 | AM7: 126 | AN7: 360 | AO7: 486 | AP7: 0.7407407407 | AQ7: 79 | AR7: 123 | AS7: 202 | AT7: 0.6089108911 | AU7: 0.0007044142521 | AV7: 2 | AW7: 2 | AX7: Probably True (-3)
A8: Expert, Cosmic, bq | B8: UPN_Te5_112 | C8: 1 | D8: 43815009 | E8: G | F8: T | G8: MPL,MPL | H8: ENST00000372470,ENST00000413998 | I8: missense_variant,missense_variant | J8: tGg/tTg|p.Trp515Leu/c.1544G>T,tGg/tTg|p.Trp515Leu/c.1544G>T | K8: 18 | L8: 597 | M8: 615 | N8: 0.9707317073 | O8: 1 | P8: 1 | Q8: 1 | R8: 0 | S8: 1 | T8: 0 | U8: 1 | V8: 1 | W8: 6 | X8: NO | Y8: NO | Z8: COSM18918, COSM3719407 | AA8: haematopoietic_and_lymphoid_tissue | AB8: 268 | AC8: NO | AD8: NO | AE8: NO | AF8: 1.647e-05 | AG8: NO | AH8: NO | AI8: -1.77 | AJ8: Tolerated | AK8: 36 | AL8: 35.91 | AM8: 11 | AN8: 445 | AO8: 456 | AP8: 0.975877193 | AQ8: 7 | AR8: 152 | AS8: 159 | AT8: 0.9559748428 | AU8: 0.2711863283 | AV8: 2 | AW8: 2 | AX8: Probably True (-3)
A9: Expert, bq | B9: UPN_Te5_045 | C9: 1 | D9: 43818306 | E9: T | F9: G | G9: MPL | H9: ENST00000372470 | I9: missense_variant | J9: Tac/Gac|p.Tyr591Asp/c.1771T>G | K9: 958 | L9: 24 | M9: 983 | N9: 0.02441505595 | O9: 0 | P9: 0 | Q9: 0 | R9: 1 | S9: 1 | T9: 0 | U9: 0 | V9: 1 | W9: 3 | X9: NO | Y9: NO | Z9: COSM28997 | AA9: haematopoietic_and_lymphoid_tissue | AB9: 3 | AC9: NO | AD9: NO | AE9: NO | AF9: NO | AG9: NO | AH9: NO | AI9: -2.29 | AJ9: Tolerated | AK9: 37.11 | AL9: 36.54 | AM9: 584 | AN9: 16 | AO9: 601 | AP9: 0.02662229617 | AQ9: 374 | AR9: 8 | AS9: 382 | AT9: 0.02094240838 | AU9: 0.6742419228 | AV9: 2 | AW9: 2 | AX9: Probably True (-3)
A10: Hotspot, Expert, dbSNP, Cosmic, prediction, bq | B10: UPN_Te5_092 | C10: 1 | D10: 115256529 | E10: T | F10: C | G10: NRAS | H10: ENST00000369535 | I10: missense_variant | J10: cAa/cGa|p.Gln61Arg/c.182A>G | K10: 812 | L10: 722 | M10: 1534 | N10: 0.4706649283 | O10: 1 | P10: 1 | Q10: 1 | R10: 1 | S10: 1 | T10: 1 | U10: 1 | V10: 1 | W10: 8 | X10: NO | Y10: NO | Z10: COSM584 | AA10: adrenal_gland, biliary_tract, bone, breast, central_nervous_system, endometrium, eye, genital_tract, haematopoietic_and_lymphoid_tissue, large_intestine, liver, lung, meninges, NS, ovary, pancreas, skin, small_intestine, soft_tissue, stomach, testis, thymus, thyroid, upper_aerodigestive_tract, urinary_tract | AB10: 7, 4, 1, 7, 5, 4, 4, 1, 87, 51, 1, 12, 10, 1712, 3, 2, 531, 1, 4, 1, 3, 1, 343, 2, 7 | AC10: rs11554290 | AD10: rs11554290 | AE10: YES | AF10: NO | AG10: NO | AH10: NO | AI10: -3.38 | AJ10: Deleterious | AK10: 37.76 | AL10: 37.69 | AM10: 280 | AN10: 258 | AO10: 538 | AP10: 0.4795539033 | AQ10: 532 | AR10: 464 | AS10: 996 | AT10: 0.4658634538 | AU10: 0.6296474385 | AV10: 1 | AW10: 1 | AX10: Hotspot (-10)
A11: Hotspot, Expert, dbSNP, Cosmic, prediction, bq | B11: UPN_Te5_036 | C11: 1 | D11: 115256530 | E11: G | F11: T | G11: NRAS | H11: ENST00000369535 | I11: missense_variant | J11: Caa/Aaa|p.Gln61Lys/c.181C>A | K11: 1785 | L11: 316 | M11: 2103 | N11: 0.1502615311 | O11: 1 | P11: 1 | Q11: 0 | R11: 1 | S11: 1 | T11: 1 | U11: 0 | V11: 1 | W11: 6 | X11: NO | Y11: NO | Z11: COSM580 | AA11: autonomic_ganglia, biliary_tract, bone, breast, central_nervous_system, cervix, endometrium, eye, haematopoietic_and_lymphoid_tissue, kidney, large_intestine, liver, lung, meninges, NS, ovary, pancreas, pleura, prostate, skin, soft_tissue, stomach, thyroid, urinary_tract | AB11: 5, 2, 4, 2, 5, 2, 2, 2, 91, 1, 100, 3, 18, 3, 1322, 1, 2, 1, 1, 513, 24, 2, 71, 2 | AC11: NO | AD11: rs121913254 | AE11: YES | AF11: NO | AG11: NO | AH11: NO | AI11: -3.38 | AJ11: Deleterious | AK11: 37.17 | AL11: 37.51 | AM11: 701 | AN11: 152 | AO11: 854 | AP11: 0.1779859485 | AQ11: 1084 | AR11: 164 | AS11: 1249 | AT11: 0.131305044 | AU11: 0.003487703803 | AV11: 2 | AW11: 2 | AX11: Hotspot (-10)
A12: Hotspot, Expert, dbSNP, Cosmic, prediction, bq | B12: UPN_Te5_095 | C12: 1 | D12: 115256530 | E12: G | F12: T | G12: NRAS | H12: ENST00000369535 | I12: missense_variant | J12: Caa/Aaa|p.Gln61Lys/c.181C>A | K12: 807 | L12: 383 | M12: 1190 | N12: 0.3218487395 | O12: 1 | P12: 1 | Q12: 1 | R12: 1 | S12: 1 | T12: 1 | U12: 1 | V12: 1 | W12: 8 | X12: NO | Y12: NO | Z12: COSM580 | AA12: autonomic_ganglia, biliary_tract, bone, breast, central_nervous_system, cervix, endometrium, eye, haematopoietic_and_lymphoid_tissue, kidney, large_intestine, liver, lung, meninges, NS, ovary, pancreas, pleura, prostate, skin, soft_tissue, stomach, thyroid, urinary_tract | AB12: 5, 2, 4, 2, 5, 2, 2, 2, 91, 1, 100, 3, 18, 3, 1322, 1, 2, 1, 1, 513, 24, 2, 71, 2 | AC12: NO | AD12: rs121913254 | AE12: YES | AF12: NO | AG12: NO | AH12: NO | AI12: -3.38 | AJ12: Deleterious | AK12: 37.64 | AL12: 37.94 | AM12: 336 | AN12: 166 | AO12: 502 | AP12: 0.3306772908 | AQ12: 471 | AR12: 217 | AS12: 688 | AT12: 0.3154069767 | AU12: 0.6153002265 | AV12: 2 | AW12: 2 | AX12: Hotspot (-10)
A13: Hotspot, Expert, dbSNP, Cosmic, prediction, bq | B13: UPN_Te5_023 | C13: 1 | D13: 115258744 | E13: C | F13: A | G13: NRAS | H13: ENST00000369535 | I13: missense_variant | J13: gGt/gTt|p.Gly13Val/c.38G>T | K13: 793 | L13: 191 | M13: 1256 | N13: 0.1520700637 | O13: 0 | P13: 0 | Q13: 0 | R13: 1 | S13: 0 | T13: 0 | U13: 0 | V13: 1 | W13: 2 | X13: NO | Y13: NO | Z13: COSM574 | AA13: adrenal_gland, central_nervous_system, haematopoietic_and_lymphoid_tissue, large_intestine, skin, soft_tissue | AB13: 1, 1, 48, 4, 18, 1 | AC13: NO | AD13: rs121434596 | AE13: YES | AF13: NO | AG13: NO | AH13: NO | AI13: -7.65 | AJ13: Deleterious | AK13: 35.5 | AL13: 35.25 | AM13: 518 | AN13: 132 | AO13: 829 | AP13: 0.1592279855 | AQ13: 275 | AR13: 59 | AS13: 427 | AT13: 0.1381733021 | AU13: 0.3495329792 | AV13: 2 | AW13: 4 | AX13: Hotspot (-4)
A14: Hotspot, Expert, dbSNP, Cosmic, prediction, bq | B14: UPN_Te5_098 | C14: 1 | D14: 115258744 | E14: C | F14: A | G14: NRAS | H14: ENST00000369535 | I14: missense_variant | J14: gGt/gTt|p.Gly13Val/c.38G>T | K14: 700 | L14: 22 | M14: 724 | N14: 0.03038674033 | O14: 0 | P14: 0 | Q14: 0 | R14: 1 | S14: 1 | T14: 1 | U14: 0 | V14: 1 | W14: 4 | X14: NO | Y14: NO | Z14: COSM574 | AA14: adrenal_gland, central_nervous_system, haematopoietic_and_lymphoid_tissue, large_intestine, skin, soft_tissue | AB14: 1, 1, 48, 4, 18, 1 | AC14: NO | AD14: rs121434596 | AE14: YES | AF14: NO | AG14: NO | AH14: NO | AI14: -7.65 | AJ14: Deleterious | AK14: 35.99 | AL14: 35.91 | AM14: 439 | AN14: 16 | AO14: 456 | AP14: 0.0350877193 | AQ14: 261 | AR14: 6 | AS14: 268 | AT14: 0.0223880597 | AU14: 0.3794822585 | AV14: 2 | AW14: 4 | AX14: Hotspot (-8)
A15: Hotspot, Expert, dbSNP, Cosmic, prediction, bq | B15: UPN_Te5_023 | C15: 1 | D15: 115258744 | E15: C | F15: T | G15: NRAS | H15: ENST00000369535 | I15: missense_variant | J15: gGt/gAt|p.Gly13Asp/c.38G>A | K15: 793 | L15: 271 | M15: 1256 | N15: 0.2157643312 | O15: 1 | P15: 1 | Q15: 1 | R15: 1 | S15: 1 | T15: 1 | U15: 1 | V15: 1 | W15: 8 | X15: NO | Y15: NO | Z15: COSM573 | AA15: endometrium, haematopoietic_and_lymphoid_tissue, large_intestine, NS, skin, thyroid, upper_aerodigestive_tract | AB15: 1, 217, 10, 278, 26, 1, 2 | AC15: NO | AD15: rs121434596 | AE15: YES | AF15: 8.236e-06 | AG15: NO | AH15: NO | AI15: -5.48 | AJ15: Deleterious | AK15: 35.5 | AL15: 34.8 | AM15: 518 | AN15: 179 | AO15: 829 | AP15: 0.2159227986 | AQ15: 275 | AR15: 92 | AS15: 427 | AT15: 0.2154566745 | AU15: 0.8823536617 | AV15: 2 | AW15: 4 | AX15: Hotspot (-10)
A16: Hotspot, Expert, dbSNP, Cosmic, prediction, bq | B16: UPN_Te5_075 | C16: 1 | D16: 115258744 | E16: C | F16: T | G16: NRAS | H16: ENST00000369535 | I16: missense_variant | J16: gGt/gAt|p.Gly13Asp/c.38G>A | K16: 822 | L16: 43 | M16: 865 | N16: 0.04971098266 | O16: 0 | P16: 0 | Q16: 0 | R16: 1 | S16: 1 | T16: 1 | U16: 0 | V16: 1 | W16: 4 | X16: NO | Y16: NO | Z16: COSM573 | AA16: endometrium, haematopoietic_and_lymphoid_tissue, large_intestine, NS, skin, thyroid, upper_aerodigestive_tract | AB16: 1, 217, 10, 278, 26, 1, 2 | AC16: NO | AD16: rs121434596 | AE16: YES | AF16: 8.236e-06 | AG16: NO | AH16: NO | AI16: -5.48 | AJ16: Deleterious | AK16: 35.86 | AL16: 36.91 | AM16: 517 | AN16: 31 | AO16: 548 | AP16: 0.05656934307 | AQ16: 305 | AR16: 12 | AS16: 317 | AT16: 0.03785488959 | AU16: 0.2577408596 | AV16: 2 | AW16: 4 | AX16: Hotspot (-8)
A17: Hotspot, Expert, dbSNP, Cosmic, prediction, bq | B17: UPN_Te5_055 | C17: 1 | D17: 115258747 | E17: C | F17: A | G17: NRAS | H17: ENST00000369535 | I17: missense_variant | J17: gGt/gTt|p.Gly12Val/c.35G>T | K17: 709 | L17: 476 | M17: 1193 | N17: 0.3989941324 | O17: 1 | P17: 1 | Q17: 1 | R17: 1 | S17: 1 | T17: 1 | U17: 1 | V17: 1 | W17: 8 | X17: NO | Y17: NO | Z17: COSM566 | AA17: haematopoietic_and_lymphoid_tissue, large_intestine, ovary, prostate, skin, testis, thyroid | AB17: 66, 11, 1, 1, 8, 1, 2 | AC17: NO | AD17: rs121913237 | AE17: YES | AF17: NO | AG17: NO | AH17: NO | AI17: -7.05 | AJ17: Deleterious | AK17: 36.8 | AL17: 37 | AM17: 503 | AN17: 342 | AO17: 853 | AP17: 0.4009378664 | AQ17: 206 | AR17: 134 | AS17: 340 | AT17: 0.3941176471 | AU17: 0.7437742609 | AV17: 1 | AW17: 10 | AX17: Hotspot (-10)
A18: Hotspot, Expert, dbSNP, Cosmic, prediction, bq | B18: UPN_Te5_006 | C18: 1 | D18: 115258747 | E18: C | F18: T | G18: NRAS | H18: ENST00000369535 | I18: missense_variant | J18: gGt/gAt|p.Gly12Asp/c.35G>A | K18: 217 | L18: 55 | M18: 272 | N18: 0.2022058824 | O18: 1 | P18: 1 | Q18: 0 | R18: 1 | S18: 1 | T18: 1 | U18: 1 | V18: 1 | W18: 7 | X18: 0.0116 | Y18: NO | Z18: COSM564 | AA18: biliary_tract, central_nervous_system, endometrium, genital_tract, haematopoietic_and_lymphoid_tissue, kidney, large_intestine, lung, NS, ovary, pancreas, skin, soft_tissue, testis, thyroid, upper_aerodigestive_tract | AB18: 4, 5, 4, 2, 381, 1, 60, 1, 570, 1, 1, 61, 2, 3, 2, 1 | AC18: NO | AD18: rs121913237 | AE18: YES | AF18: 1.647e-05 | AG18: NO | AH18: NO | AI18: -5.35 | AJ18: Deleterious | AK18: 37.57 | AL18: 36.44 | AM18: 144 | AN18: 34 | AO18: 178 | AP18: 0.191011236 | AQ18: 73 | AR18: 21 | AS18: 94 | AT18: 0.2234042553 | AU18: 0.5294379948 | AV18: 9 | AW18: 10 | AX18: Hotspot (-8)
A19: Hotspot, Expert, dbSNP, Cosmic, prediction, bq | B19: UPN_Te5_010 | C19: 1 | D19: 115258747 | E19: C | F19: T | G19: NRAS | H19: ENST00000369535 | I19: missense_variant | J19: gGt/gAt|p.Gly12Asp/c.35G>A | K19: 136 | L19: 106 | M19: 242 | N19: 0.4380165289 | O19: 1 | P19: 1 | Q19: 1 | R19: 1 | S19: 1 | T19: 1 | U19: 1 | V19: 1 | W19: 8 | X19: 0.0116 | Y19: NO | Z19: COSM564 | AA19: biliary_tract, central_nervous_system, endometrium, genital_tract, haematopoietic_and_lymphoid_tissue, kidney, large_intestine, lung, NS, ovary, pancreas, skin, soft_tissue, testis, thyroid, upper_aerodigestive_tract | AB19: 4, 5, 4, 2, 381, 1, 60, 1, 570, 1, 1, 61, 2, 3, 2, 1 | AC19: NO | AD19: rs121913237 | AE19: YES | AF19: 1.647e-05 | AG19: NO | AH19: NO | AI19: -5.35 | AJ19: Deleterious | AK19: 37.1 | AL19: 37.89 | AM19: 76 | AN19: 67 | AO19: 143 | AP19: 0.4685314685 | AQ19: 60 | AR19: 39 | AS19: 99 | AT19: 0.3939393939 | AU19: 0.2921717812 | AV19: 9 | AW19: 10 | AX19: Hotspot (-8)
A20: Hotspot, Expert, dbSNP, Cosmic, prediction, bq | B20: UPN_Te5_035 | C20: 1 | D20: 115258747 | E20: C | F20: T | G20: NRAS | H20: ENST00000369535 | I20: missense_variant | J20: gGt/gAt|p.Gly12Asp/c.35G>A | K20: 761 | L20: 29 | M20: 791 | N20: 0.03666245259 | O20: 0 | P20: 0 | Q20: 0 | R20: 1 | S20: 1 | T20: 1 | U20: 0 | V20: 1 | W20: 4 | X20: 0.0116 | Y20: NO | Z20: COSM564 | AA20: biliary_tract, central_nervous_system, endometrium, genital_tract, haematopoietic_and_lymphoid_tissue, kidney, large_intestine, lung, NS, ovary, pancreas, skin, soft_tissue, testis, thyroid, upper_aerodigestive_tract | AB20: 4, 5, 4, 2, 381, 1, 60, 1, 570, 1, 1, 61, 2, 3, 2, 1 | AC20: NO | AD20: rs121913237 | AE20: YES | AF20: 1.647e-05 | AG20: NO | AH20: NO | AI20: -5.35 | AJ20: Deleterious | AK20: 37.93 | AL20: 36.52 | AM20: 669 | AN20: 24 | AO20: 694 | AP20: 0.03458213256 | AQ20: 92 | AR20: 5 | AS20: 97 | AT20: 0.05154639175 | AU20: 0.3867361795 | AV20: 9 | AW20: 10 | AX20: Hotspot (-6)
A21: Hotspot, Expert, dbSNP, Cosmic, prediction, bq | B21: UPN_Te5_048 | C21: 1 | D21: 115258747 | E21: C | F21: T | G21: NRAS | H21: ENST00000369535 | I21: missense_variant | J21: gGt/gAt|p.Gly12Asp/c.35G>A | K21: 941 | L21: 628 | M21: 1572 | N21: 0.3994910941 | O21: 1 | P21: 1 | Q21: 1 | R21: 1 | S21: 1 | T21: 1 | U21: 1 | V21: 1 | W21: 8 | X21: 0.0116 | Y21: NO | Z21: COSM564 | AA21: biliary_tract, central_nervous_system, endometrium, genital_tract, haematopoietic_and_lymphoid_tissue, kidney, large_intestine, lung, NS, ovary, pancreas, skin, soft_tissue, testis, thyroid, upper_aerodigestive_tract | AB21: 4, 5, 4, 2, 381, 1, 60, 1, 570, 1, 1, 61, 2, 3, 2, 1 | AC21: NO | AD21: rs121913237 | AE21: YES | AF21: 1.647e-05 | AG21: NO | AH21: NO | AI21: -5.35 | AJ21: Deleterious | AK21: 36.22 | AL21: 35.85 | AM21: 588 | AN21: 397 | AO21: 986 | AP21: 0.4026369168 | AQ21: 353 | AR21: 231 | AS21: 586 | AT21: 0.3941979522 | AU21: 0.7899674805 | AV21: 9 | AW21: 10 | AX21: Hotspot (-8)
A22: Hotspot, Expert, dbSNP, Cosmic, prediction, bq | B22: UPN_Te5_069 | C22: 1 | D22: 115258747 | E22: C | F22: T | G22: NRAS | H22: ENST00000369535 | I22: missense_variant | J22: gGt/gAt|p.Gly12Asp/c.35G>A | K22: 295 | L22: 237 | M22: 540 | N22: 0.4388888889 | O22: 1 | P22: 1 | Q22: 1 | R22: 1 | S22: 1 | T22: 1 | U22: 1 | V22: 1 | W22: 8 | X22: 0.0116 | Y22: NO | Z22: COSM564 | AA22: biliary_tract, central_nervous_system, endometrium, genital_tract, haematopoietic_and_lymphoid_tissue, kidney, large_intestine, lung, NS, ovary, pancreas, skin, soft_tissue, testis, thyroid, upper_aerodigestive_tract | AB22: 4, 5, 4, 2, 381, 1, 60, 1, 570, 1, 1, 61, 2, 3, 2, 1 | AC22: NO | AD22: rs121913237 | AE22: YES | AF22: 1.647e-05 | AG22: NO | AH22: NO | AI22: -5.35 | AJ22: Deleterious | AK22: 36.98 | AL22: 37.03 | AM22: 192 | AN22: 157 | AO22: 354 | AP22: 0.4435028249 | AQ22: 103 | AR22: 80 | AS22: 186 | AT22: 0.4301075269 | AU22: 0.7838801625 | AV22: 9 | AW22: 10 | AX22: Hotspot (-8)
A23: Hotspot, Expert, dbSNP, Cosmic, prediction, bq | B23: UPN_Te5_080 | C23: 1 | D23: 115258747 | E23: C | F23: T | G23: NRAS | H23: ENST00000369535 | I23: missense_variant | J23: gGt/gAt|p.Gly12Asp/c.35G>A | K23: 536 | L23: 403 | M23: 939 | N23: 0.4291799787 | O23: 1 | P23: 1 | Q23: 1 | R23: 1 | S23: 1 | T23: 1 | U23: 1 | V23: 1 | W23: 8 | X23: 0.0116 | Y23: NO | Z23: COSM564 | AA23: biliary_tract, central_nervous_system, endometrium, genital_tract, haematopoietic_and_lymphoid_tissue, kidney, large_intestine, lung, NS, ovary, pancreas, skin, soft_tissue, testis, thyroid, upper_aerodigestive_tract | AB23: 4, 5, 4, 2, 381, 1, 60, 1, 570, 1, 1, 61, 2, 3, 2, 1 | AC23: NO | AD23: rs121913237 | AE23: YES | AF23: 1.647e-05 | AG23: NO | AH23: NO | AI23: -5.35 | AJ23: Deleterious | AK23: 36.24 | AL23: 36.19 | AM23: 311 | AN23: 231 | AO23: 542 | AP23: 0.426199262 | AQ23: 225 | AR23: 172 | AS23: 397 | AT23: 0.4332493703 | AU23: 0.8415358496 | AV23: 9 | AW23: 10 | AX23: Hotspot (-8)
A24: Hotspot, Expert, dbSNP, Cosmic, prediction, bq | B24: UPN_Te5_085 | C24: 1 | D24: 115258747 | E24: C | F24: T | G24: NRAS | H24: ENST00000369535 | I24: missense_variant | J24: gGt/gAt|p.Gly12Asp/c.35G>A | K24: 741 | L24: 63 | M24: 806 | N24: 0.07816377171 | O24: 0 | P24: 0 | Q24: 0 | R24: 1 | S24: 1 | T24: 1 | U24: 0 | V24: 1 | W24: 4 | X24: 0.0116 | Y24: NO | Z24: COSM564 | AA24: biliary_tract, central_nervous_system, endometrium, genital_tract, haematopoietic_and_lymphoid_tissue, kidney, large_intestine, lung, NS, ovary, pancreas, skin, soft_tissue, testis, thyroid, upper_aerodigestive_tract | AB24: 4, 5, 4, 2, 381, 1, 60, 1, 570, 1, 1, 61, 2, 3, 2, 1 | AC24: NO | AD24: rs121913237 | AE24: YES | AF24: 1.647e-05 | AG24: NO | AH24: NO | AI24: -5.35 | AJ24: Deleterious | AK24: 36.16 | AL24: 36 | AM24: 468 | AN24: 41 | AO24: 511 | AP24: 0.08023483366 | AQ24: 273 | AR24: 22 | AS24: 295 | AT24: 0.07457627119 | AU24: 0.7874332714 | AV24: 9 | AW24: 10 | AX24: Hotspot (-6)
A25: Hotspot, Expert, dbSNP, Cosmic, prediction, bq | B25: UPN_Te5_091 | C25: 1 | D25: 115258747 | E25: C | F25: T | G25: NRAS | H25: ENST00000369535 | I25: missense_variant | J25: gGt/gAt|p.Gly12Asp/c.35G>A | K25: 582 | L25: 127 | M25: 715 | N25: 0.1776223776 | O25: 1 | P25: 1 | Q25: 0 | R25: 1 | S25: 1 | T25: 1 | U25: 1 | V25: 1 | W25: 7 | X25: 0.0116 | Y25: NO | Z25: COSM564 | AA25: biliary_tract, central_nervous_system, endometrium, genital_tract, haematopoietic_and_lymphoid_tissue, kidney, large_intestine, lung, NS, ovary, pancreas, skin, soft_tissue, testis, thyroid, upper_aerodigestive_tract | AB25: 4, 5, 4, 2, 381, 1, 60, 1, 570, 1, 1, 61, 2, 3, 2, 1 | AC25: NO | AD25: rs121913237 | AE25: YES | AF25: 1.647e-05 | AG25: NO | AH25: NO | AI25: -5.35 | AJ25: Deleterious | AK25: 36.08 | AL25: 35.93 | AM25: 353 | AN25: 87 | AO25: 443 | AP25: 0.1963882619 | AQ25: 229 | AR25: 40 | AS25: 272 | AT25: 0.1470588235 | AU25: 0.1068243916 | AV25: 9 | AW25: 10 | AX25: Hotspot (-8)
A26: Hotspot, Expert, dbSNP, Cosmic, prediction, bq | B26: UPN_Te5_098 | C26: 1 | D26: 115258747 | E26: C | F26: T | G26: NRAS | H26: ENST00000369535 | I26: missense_variant | J26: gGt/gAt|p.Gly12Asp/c.35G>A | K26: 686 | L26: 38 | M26: 724 | N26: 0.05248618785 | O26: 0 | P26: 0 | Q26: 0 | R26: 1 | S26: 1 | T26: 1 | U26: 0 | V26: 1 | W26: 4 | X26: 0.0116 | Y26: NO | Z26: COSM564 | AA26: biliary_tract, central_nervous_system, endometrium, genital_tract, haematopoietic_and_lymphoid_tissue, kidney, large_intestine, lung, NS, ovary, pancreas, skin, soft_tissue, testis, thyroid, upper_aerodigestive_tract | AB26: 4, 5, 4, 2, 381, 1, 60, 1, 570, 1, 1, 61, 2, 3, 2, 1 | AC26: NO | AD26: rs121913237 | AE26: YES | AF26: 1.647e-05 | AG26: NO | AH26: NO | AI26: -5.35 | AJ26: Deleterious | AK26: 36.55 | AL26: 36.05 | AM26: 432 | AN26: 24 | AO26: 456 | AP26: 0.05263157895 | AQ26: 254 | AR26: 14 | AS26: 268 | AT26: 0.05223880597 | AU26: 1 | AV26: 9 | AW26: 10 | AX26: Hotspot (-6)
A27: Hotspot, Expert, dbSNP, Cosmic, prediction, bq | B27: UPN_Te5_048 | C27: 1 | D27: 115258748 | E27: C | F27: T | G27: NRAS | H27: ENST00000369535 | I27: missense_variant | J27: Ggt/Agt|p.Gly12Ser/c.34G>A | K27: 1463 | L27: 107 | M27: 1571 | N27: 0.0681094844 | O27: 0 | P27: 0 | Q27: 0 | R27: 1 | S27: 1 | T27: 1 | U27: 0 | V27: 1 | W27: 4 | X27: NO | Y27: NO | Z27: COSM563 | AA27: haematopoietic_and_lymphoid_tissue, large_intestine, lung, ovary, prostate, skin, soft_tissue, upper_aerodigestive_tract | AB27: 110, 6, 3, 1, 6, 13, 1, 21 | AC27: NO | AD27: rs121913250 | AE27: YES | AF27: NO | AG27: NO | AH27: NO | AI27: -4.44 | AJ27: Deleterious | AK27: 36.15 | AL27: 36.54 | AM27: 909 | AN27: 75 | AO27: 985 | AP27: 0.07614213198 | AQ27: 554 | AR27: 32 | AS27: 586 | AT27: 0.05460750853 | AU27: 0.1200465421 | AV27: 1 | AW27: 1 | AX27: Hotspot (-8)
A28: Expert, bq | B28: UPN_Te5_107 | C28: 1 | D28: 243289768 | E28: C | F28: G | G28: CEP170,CEP170,CEP170,CEP170,CEP170,CEP170 | H28: ENST00000366542,ENST00000366543,ENST00000366544,ENST00000481987,ENST00000336415,ENST00000490813 | I28: missense_variant,missense_variant,missense_variant,missense_variant,missense_variant,missense_variant | J28: Gtt/Ctt|p.Val1580Leu/c.4738G>C,Gtt/Ctt|p.Val1456Leu/c.4366G>C,Gtt/Ctt|p.Val1482Leu/c.4444G>C,Gtt/Ctt|p.Val316Leu/c.946G>C,Gtt/Ctt|p.Val1553Leu/c.4657G>C,Gtt/Ctt|p.Val289Leu/c.865G>C | K28: 366 | L28: 363 | M28: 729 | N28: 0.4979423868 | O28: 1 | P28: 1 | Q28: 1 | R28: 1 | S28: 1 | T28: 0 | U28: 1 | V28: 1 | W28: 7 | X28: NO | Y28: NO | Z28: NO | AA28: NO | AB28: O | AC28: NO | AD28: NO | AE28: NO | AF28: 8.279e-06 | AG28: NO | AH28: NO | AI28: -0.62 | AJ28: Tolerated | AK28: 34.44 | AL28: 34.06 | AM28: 0 | AN28: 0 | AO28: 0 | AP28: NA | AQ28: 366 | AR28: 363 | AS28: 729 | AT28: 0.4979423868 | AU28: 1 | AV28: 1 | AW28: 1 | AX28: Probably True (-6)
A29: Expert, bq | B29: UPN_Te5_051 | C29: 1 | D29: 243349668 | E29: G | F29: A | G29: CEP170,CEP170,CEP170,CEP170,CEP170 | H29: ENST00000366542,ENST00000366543,ENST00000366544,ENST00000336415,ENST00000522895 | I29: missense_variant,missense_variant,missense_variant,missense_variant,missense_variant | J29: Cgc/Tgc|p.Arg389Cys/c.1165C>T,Cgc/Tgc|p.Arg389Cys/c.1165C>T,Cgc/Tgc|p.Arg389Cys/c.1165C>T,Cgc/Tgc|p.Arg290Cys/c.868C>T,Cgc/Tgc|p.Arg15Cys/c.43C>T | K29: 264 | L29: 254 | M29: 518 | N29: 0.4903474903 | O29: 1 | P29: 1 | Q29: 1 | R29: 1 | S29: 1 | T29: 1 | U29: 1 | V29: 1 | W29: 8 | X29: NO | Y29: NO | Z29: NO | AA29: NO | AB29: O | AC29: NO | AD29: NO | AE29: NO | AF29: 8.274e-06 | AG29: NO | AH29: NO | AI29: -2.97 | AJ29: Deleterious | AK29: 39.03 | AL29: 39.52 | AM29: 218 | AN29: 228 | AO29: 446 | AP29: 0.5112107623 | AQ29: 46 | AR29: 26 | AS29: 72 | AT29: 0.3611111111 | AU29: 0.02188536697 | AV29: 1 | AW29: 1 | AX29: Probably True (-6)
A30: Expert, prediction, bq | B30: UPN_Te5_002 | C30: 2 | D30: 25457192 | E30: G | F30: A | G30: DNMT3A,DNMT3A,DNMT3A,DNMT3A | H30: ENST00000264709,ENST00000380746,ENST00000321117,ENST00000402667 | I30: missense_variant,missense_variant,missense_variant,missense_variant | J30: Cgc/Tgc|p.Arg899Cys/c.2695C>T,Cgc/Tgc|p.Arg710Cys/c.2128C>T,Cgc/Tgc|p.Arg899Cys/c.2695C>T,Cgc/Tgc|p.Arg676Cys/c.2026C>T | K30: 1480 | L30: 733 | M30: 2214 | N30: 0.3310749774 | O30: 1 | P30: 1 | Q30: 1 | R30: 1 | S30: 1 | T30: 1 | U30: 1 | V30: 1 | W30: 8 | X30: NO | Y30: NO | Z30: COSM5075581 | AA30: kidney | AB30: 1 | AC30: NO | AD30: NO | AE30: NO | AF30: 1.647e-05 | AG30: NO | AH30: NO | AI30: -7.55 | AJ30: Deleterious | AK30: 35.27 | AL30: 35.6 | AM30: 802 | AN30: 414 | AO30: 1216 | AP30: 0.3404605263 | AQ30: 678 | AR30: 319 | AS30: 998 | AT30: 0.3196392786 | AU30: 0.3181715298 | AV30: 1 | AW30: 1 | AX30: Probably True (-7)
A31: Expert | B31: UPN_Te5_027 | C31: 2 | D31: 25457231 | E31: GC | F31: G | G31: DNMT3A,DNMT3A,DNMT3A,DNMT3A | H31: ENST00000264709,ENST00000380746,ENST00000321117,ENST00000402667 | I31: frameshift_variant,frameshift_variant,frameshift_variant,frameshift_variant | J31: agg/|p.Arg885fs/c.2655delG,agg/|p.Arg696fs/c.2088delG,agg/|p.Arg885fs/c.2655delG,agg/|p.Arg662fs/c.1986delG | K31: 848 | L31: 190 | M31: 1219 | N31: 0.1558654635 | O31: 0 | P31: 1 | Q31: 1 | R31: 1 | S31: 1 | T31: 1 | U31: 0 | V31: 1 | W31: 6 | X31: NO | Y31: NO | Z31: NO | AA31: NA | AB31: NA | AC31: NO | AD31: NO | AE31: NO | AF31: NO | AG31: NO | AH31: NO | AI31: NA | AJ31: NA | AK31: 34.94 | AL31: NA | AM31: 433 | AN31: 189 | AO31: 622 | AP31: 0.3038585209 | AQ31: 415 | AR31: 1 | AS31: 597 | AT31: 0.001675041876 | AU31: 1.412871168e-46 | AV31: 1 | AW31: 1 | AX31: Probably True (-5)
A32: Hotspot, Expert, prediction, bq | B32: UPN_Te5_107 | C32: 2 | D32: 25457242 | E32: C | F32: A | G32: DNMT3A,DNMT3A,DNMT3A,DNMT3A | H32: ENST00000264709,ENST00000380746,ENST00000321117,ENST00000402667 | I32: missense_variant,missense_variant,missense_variant,missense_variant | J32: cGc/cTc|p.Arg882Leu/c.2645G>T,cGc/cTc|p.Arg693Leu/c.2078G>T,cGc/cTc|p.Arg882Leu/c.2645G>T,cGc/cTc|p.Arg659Leu/c.1976G>T | K32: 1151 | L32: 591 | M32: 1743 | N32: 0.339070568 | O32: 1 | P32: 1 | Q32: 1 | R32: 1 | S32: 1 | T32: 1 | U32: 1 | V32: 1 | W32: 8 | X32: NO | Y32: NO | Z32: COSM1583129 | AA32: haematopoietic_and_lymphoid_tissue | AB32: 2 | AC32: NO | AD32: NO | AE32: NO | AF32: 0.000593 | AG32: NO | AH32: NO | AI32: -6.61 | AJ32: Deleterious | AK32: 33.52 | AL32: 35.01 | AM32: 578 | AN32: 296 | AO32: 875 | AP32: 0.3382857143 | AQ32: 573 | AR32: 295 | AS32: 868 | AT32: 0.3398617512 | AU32: 0.959690789 | AV32: 1 | AW32: 14 | AX32: Hotspot (-10)
A33: Hotspot, Expert, Cosmic, prediction, bq | B33: UPN_Te5_062 | C33: 2 | D33: 25457242 | E33: C | F33: G | G33: DNMT3A,DNMT3A,DNMT3A,DNMT3A | H33: ENST00000264709,ENST00000380746,ENST00000321117,ENST00000402667 | I33: missense_variant,missense_variant,missense_variant,missense_variant | J33: cGc/cCc|p.Arg882Pro/c.2645G>C,cGc/cCc|p.Arg693Pro/c.2078G>C,cGc/cCc|p.Arg882Pro/c.2645G>C,cGc/cCc|p.Arg659Pro/c.1976G>C | K33: 458 | L33: 370 | M33: 828 | N33: 0.4468599034 | O33: 1 | P33: 1 | Q33: 1 | R33: 1 | S33: 1 | T33: 1 | U33: 1 | V33: 1 | W33: 8 | X33: NO | Y33: NO | Z33: COSM99740 | AA33: haematopoietic_and_lymphoid_tissue | AB33: 14 | AC33: NO | AD33: NO | AE33: NO | AF33: 0.000593 | AG33: NO | AH33: NO | AI33: -6.61 | AJ33: Deleterious | AK33: 35.09 | AL33: 35.85 | AM33: 233 | AN33: 187 | AO33: 420 | AP33: 0.4452380952 | AQ33: 225 | AR33: 183 | AS33: 408 | AT33: 0.4485294118 | AU33: 0.9443276744 | AV33: 2 | AW33: 14 | AX33: Hotspot (-10)
A34: Hotspot, Expert, Cosmic, prediction, bq | B34: UPN_Te5_081 | C34: 2 | D34: 25457242 | E34: C | F34: G | G34: DNMT3A,DNMT3A,DNMT3A,DNMT3A | H34: ENST00000264709,ENST00000380746,ENST00000321117,ENST00000402667 | I34: missense_variant,missense_variant,missense_variant,missense_variant | J34: cGc/cCc|p.Arg882Pro/c.2645G>C,cGc/cCc|p.Arg693Pro/c.2078G>C,cGc/cCc|p.Arg882Pro/c.2645G>C,cGc/cCc|p.Arg659Pro/c.1976G>C | K34: 661 | L34: 356 | M34: 1018 | N34: 0.3497053045 | O34: 1 | P34: 1 | Q34: 1 | R34: 1 | S34: 1 | T34: 1 | U34: 1 | V34: 1 | W34: 8 | X34: NO | Y34: NO | Z34: COSM99740 | AA34: haematopoietic_and_lymphoid_tissue | AB34: 14 | AC34: NO | AD34: NO | AE34: NO | AF34: 0.000593 | AG34: NO | AH34: NO | AI34: -6.61 | AJ34: Deleterious | AK34: 33.91 | AL34: 36.09 | AM34: 330 | AN34: 180 | AO34: 510 | AP34: 0.3529411765 | AQ34: 331 | AR34: 176 | AS34: 508 | AT34: 0.3464566929 | AU34: 0.8954063053 | AV34: 2 | AW34: 14 | AX34: Hotspot (-10)
A35: Hotspot, Expert, Cosmic, prediction, bq | B35: UPN_Te5_008 | C35: 2 | D35: 25457242 | E35: C | F35: T | G35: DNMT3A,DNMT3A,DNMT3A,DNMT3A | H35: ENST00000264709,ENST00000380746,ENST00000321117,ENST00000402667 | I35: missense_variant,missense_variant,missense_variant,missense_variant | J35: cGc/cAc|p.Arg882His/c.2645G>A,cGc/cAc|p.Arg693His/c.2078G>A,cGc/cAc|p.Arg882His/c.2645G>A,cGc/cAc|p.Arg659His/c.1976G>A | K35: 195 | L35: 103 | M35: 298 | N35: 0.3456375839 | O35: 1 | P35: 1 | Q35: 1 | R35: 1 | S35: 1 | T35: 1 | U35: 1 | V35: 1 | W35: 8 | X35: 0.0581 | Y35: NO | Z35: COSM52944 | AA35: breast, haematopoietic_and_lymphoid_tissue | AB35: 1, 452 | AC35: NO | AD35: rs147001633 | AE35: NO | AF35: 0.000593 | AG35: NO | AH35: NO | AI35: -4.72 | AJ35: Deleterious | AK35: 34.12 | AL35: 35.81 | AM35: 97 | AN35: 45 | AO35: 142 | AP35: 0.3169014085 | AQ35: 98 | AR35: 58 | AS35: 156 | AT35: 0.3717948718 | AU35: 0.3318936769 | AV35: 11 | AW35: 14 | AX35: Hotspot (-8)
A36: Hotspot, Expert, Cosmic, prediction, bq | B36: UPN_Te5_031 | C36: 2 | D36: 25457242 | E36: C | F36: T | G36: DNMT3A,DNMT3A,DNMT3A,DNMT3A | H36: ENST00000264709,ENST00000380746,ENST00000321117,ENST00000402667 | I36: missense_variant,missense_variant,missense_variant,missense_variant | J36: cGc/cAc|p.Arg882His/c.2645G>A,cGc/cAc|p.Arg693His/c.2078G>A,cGc/cAc|p.Arg882His/c.2645G>A,cGc/cAc|p.Arg659His/c.1976G>A | K36: 432 | L36: 303 | M36: 736 | N36: 0.4116847826 | O36: 1 | P36: 1 | Q36: 1 | R36: 1 | S36: 1 | T36: 1 | U36: 1 | V36: 1 | W36: 8 | X36: 0.0581 | Y36: NO | Z36: COSM52944 | AA36: breast, haematopoietic_and_lymphoid_tissue | AB36: 1, 452 | AC36: NO | AD36: rs147001633 | AE36: NO | AF36: 0.000593 | AG36: NO | AH36: NO | AI36: -4.72 | AJ36: Deleterious | AK36: 33.6 | AL36: 34.08 | AM36: 214 | AN36: 134 | AO36: 348 | AP36: 0.3850574713 | AQ36: 218 | AR36: 169 | AS36: 388 | AT36: 0.4355670103 | AU36: 0.1767476385 | AV36: 11 | AW36: 14 | AX36: Hotspot (-8)
A37: Hotspot, Expert, Cosmic, prediction, bq | B37: UPN_Te5_037 | C37: 2 | D37: 25457242 | E37: C | F37: T | G37: DNMT3A,DNMT3A,DNMT3A,DNMT3A | H37: ENST00000264709,ENST00000380746,ENST00000321117,ENST00000402667 | I37: missense_variant,missense_variant,missense_variant,missense_variant | J37: cGc/cAc|p.Arg882His/c.2645G>A,cGc/cAc|p.Arg693His/c.2078G>A,cGc/cAc|p.Arg882His/c.2645G>A,cGc/cAc|p.Arg659His/c.1976G>A | K37: 243 | L37: 294 | M37: 537 | N37: 0.5474860335 | O37: 1 | P37: 1 | Q37: 1 | R37: 1 | S37: 1 | T37: 1 | U37: 1 | V37: 1 | W37: 8 | X37: 0.0581 | Y37: NO | Z37: COSM52944 | AA37: breast, haematopoietic_and_lymphoid_tissue | AB37: 1, 452 | AC37: NO | AD37: rs147001633 | AE37: NO | AF37: 0.000593 | AG37: NO | AH37: NO | AI37: -4.72 | AJ37: Deleterious | AK37: 34.47 | AL37: 34.91 | AM37: 122 | AN37: 142 | AO37: 264 | AP37: 0.5378787879 | AQ37: 121 | AR37: 152 | AS37: 273 | AT37: 0.5567765568 | AU37: 0.6656676168 | AV37: 11 | AW37: 14 | AX37: Hotspot (-8)
A38: Hotspot, Expert, Cosmic, prediction, bq | B38: UPN_Te5_063 | C38: 2 | D38: 25457242 | E38: C | F38: T | G38: DNMT3A,DNMT3A,DNMT3A,DNMT3A | H38: ENST00000264709,ENST00000380746,ENST00000321117,ENST00000402667 | I38: missense_variant,missense_variant,missense_variant,missense_variant | J38: cGc/cAc|p.Arg882His/c.2645G>A,cGc/cAc|p.Arg693His/c.2078G>A,cGc/cAc|p.Arg882His/c.2645G>A,cGc/cAc|p.Arg659His/c.1976G>A | K38: 1030 | L38: 823 | M38: 1854 | N38: 0.4439050701 | O38: 1 | P38: 1 | Q38: 1 | R38: 1 | S38: 1 | T38: 1 | U38: 1 | V38: 1 | W38: 8 | X38: 0.0581 | Y38: NO | Z38: COSM52944 | AA38: breast, haematopoietic_and_lymphoid_tissue | AB38: 1, 452 | AC38: NO | AD38: rs147001633 | AE38: NO | AF38: 0.000593 | AG38: NO | AH38: NO | AI38: -4.72 | AJ38: Deleterious | AK38: 35.7 | AL38: 35.23 | AM38: 515 | AN38: 407 | AO38: 923 | AP38: 0.4409534128 | AQ38: 515 | AR38: 416 | AS38: 931 | AT38: 0.4468313641 | AU38: 0.8153667021 | AV38: 11 | AW38: 14 | AX38: Hotspot (-8)
A39: Hotspot, Expert, Cosmic, prediction, bq | B39: UPN_Te5_074 | C39: 2 | D39: 25457242 | E39: C | F39: T | G39: DNMT3A,DNMT3A,DNMT3A,DNMT3A | H39: ENST00000264709,ENST00000380746,ENST00000321117,ENST00000402667 | I39: missense_variant,missense_variant,missense_variant,missense_variant | J39: cGc/cAc|p.Arg882His/c.2645G>A,cGc/cAc|p.Arg693His/c.2078G>A,cGc/cAc|p.Arg882His/c.2645G>A,cGc/cAc|p.Arg659His/c.1976G>A | K39: 919 | L39: 605 | M39: 1524 | N39: 0.3969816273 | O39: 1 | P39: 1 | Q39: 1 | R39: 1 | S39: 1 | T39: 1 | U39: 1 | V39: 1 | W39: 8 | X39: 0.0581 | Y39: NO | Z39: COSM52944 | AA39: breast, haematopoietic_and_lymphoid_tissue | AB39: 1, 452 | AC39: NO | AD39: rs147001633 | AE39: NO | AF39: 0.000593 | AG39: NO | AH39: NO | AI39: -4.72 | AJ39: Deleterious | AK39: 34.81 | AL39: 34.6 | AM39: 459 | AN39: 272 | AO39: 731 | AP39: 0.3720930233 | AQ39: 460 | AR39: 333 | AS39: 793 | AT39: 0.419924338 | AU39: 0.05933791347 | AV39: 11 | AW39: 14 | AX39: Hotspot (-8)
A40: Hotspot, Expert, Cosmic, prediction, bq | B40: UPN_Te5_080 | C40: 2 | D40: 25457242 | E40: C | F40: T | G40: DNMT3A,DNMT3A,DNMT3A,DNMT3A | H40: ENST00000264709,ENST00000380746,ENST00000321117,ENST00000402667 | I40: missense_variant,missense_variant,missense_variant,missense_variant | J40: cGc/cAc|p.Arg882His/c.2645G>A,cGc/cAc|p.Arg693His/c.2078G>A,cGc/cAc|p.Arg882His/c.2645G>A,cGc/cAc|p.Arg659His/c.1976G>A | K40: 739 | L40: 350 | M40: 1090 | N40: 0.3211009174 | O40: 1 | P40: 1 | Q40: 1 | R40: 1 | S40: 1 | T40: 1 | U40: 1 | V40: 1 | W40: 8 | X40: 0.0581 | Y40: NO | Z40: COSM52944 | AA40: breast, haematopoietic_and_lymphoid_tissue | AB40: 1, 452 | AC40: NO | AD40: rs147001633 | AE40: NO | AF40: 0.000593 | AG40: NO | AH40: NO | AI40: -4.72 | AJ40: Deleterious | AK40: 33.98 | AL40: 34.69 | AM40: 370 | AN40: 146 | AO40: 516 | AP40: 0.2829457364 | AQ40: 369 | AR40: 204 | AS40: 574 | AT40: 0.3554006969 | AU40: 0.01123590579 | AV40: 11 | AW40: 14 | AX40: Hotspot (-8)
A41: Hotspot, Expert, Cosmic, prediction, bq | B41: UPN_Te5_083 | C41: 2 | D41: 25457242 | E41: C | F41: T | G41: DNMT3A,DNMT3A,DNMT3A,DNMT3A | H41: ENST00000264709,ENST00000380746,ENST00000321117,ENST00000402667 | I41: missense_variant,missense_variant,missense_variant,missense_variant | J41: cGc/cAc|p.Arg882His/c.2645G>A,cGc/cAc|p.Arg693His/c.2078G>A,cGc/cAc|p.Arg882His/c.2645G>A,cGc/cAc|p.Arg659His/c.1976G>A | K41: 430 | L41: 248 | M41: 678 | N41: 0.3657817109 | O41: 1 | P41: 1 | Q41: 1 | R41: 1 | S41: 1 | T41: 1 | U41: 1 | V41: 1 | W41: 8 | X41: 0.0581 | Y41: NO | Z41: COSM52944 | AA41: breast, haematopoietic_and_lymphoid_tissue | AB41: 1, 452 | AC41: NO | AD41: rs147001633 | AE41: NO | AF41: 0.000593 | AG41: NO | AH41: NO | AI41: -4.72 | AJ41: Deleterious | AK41: 33.85 | AL41: 34.83 | AM41: 217 | AN41: 103 | AO41: 320 | AP41: 0.321875 | AQ41: 213 | AR41: 145 | AS41: 358 | AT41: 0.405027933 | AU41: 0.0256185169 | AV41: 11 | AW41: 14 | AX41: Hotspot (-8)
A42: Hotspot, Expert, Cosmic, prediction, bq | B42: UPN_Te5_087 | C42: 2 | D42: 25457242 | E42: C | F42: T | G42: DNMT3A,DNMT3A,DNMT3A,DNMT3A | H42: ENST00000264709,ENST00000380746,ENST00000321117,ENST00000402667 | I42: missense_variant,missense_variant,missense_variant,missense_variant | J42: cGc/cAc|p.Arg882His/c.2645G>A,cGc/cAc|p.Arg693His/c.2078G>A,cGc/cAc|p.Arg882His/c.2645G>A,cGc/cAc|p.Arg659His/c.1976G>A | K42: 1521 | L42: 847 | M42: 2369 | N42: 0.3575348248 | O42: 1 | P42: 1 | Q42: 1 | R42: 1 | S42: 1 | T42: 1 | U42: 1 | V42: 1 | W42: 8 | X42: 0.0581 | Y42: NO | Z42: COSM52944 | AA42: breast, haematopoietic_and_lymphoid_tissue | AB42: 1, 452 | AC42: NO | AD42: rs147001633 | AE42: NO | AF42: 0.000593 | AG42: NO | AH42: NO | AI42: -4.72 | AJ42: Deleterious | AK42: 33.68 | AL42: 33.78 | AM42: 760 | AN42: 329 | AO42: 1090 | AP42: 0.3018348624 | AQ42: 761 | AR42: 518 | AS42: 1279 | AT42: 0.4050039093 | AU42: 1.907228047e-07 | AV42: 11 | AW42: 14 | AX42: Hotspot (-8)
A43: Hotspot, Expert, Cosmic, prediction, bq | B43: UPN_Te5_089 | C43: 2 | D43: 25457242 | E43: C | F43: T | G43: DNMT3A,DNMT3A,DNMT3A,DNMT3A | H43: ENST00000264709,ENST00000380746,ENST00000321117,ENST00000402667 | I43: missense_variant,missense_variant,missense_variant,missense_variant | J43: cGc/cAc|p.Arg882His/c.2645G>A,cGc/cAc|p.Arg693His/c.2078G>A,cGc/cAc|p.Arg882His/c.2645G>A,cGc/cAc|p.Arg659His/c.1976G>A | K43: 488 | L43: 233 | M43: 721 | N43: 0.3231622746 | O43: 1 | P43: 1 | Q43: 1 | R43: 1 | S43: 1 | T43: 1 | U43: 1 | V43: 1 | W43: 8 | X43: 0.0581 | Y43: NO | Z43: COSM52944 | AA43: breast, haematopoietic_and_lymphoid_tissue | AB43: 1, 452 | AC43: NO | AD43: rs147001633 | AE43: NO | AF43: 0.000593 | AG43: NO | AH43: NO | AI43: -4.72 | AJ43: Deleterious | AK43: 34.5 | AL43: 34.45 | AM43: 243 | AN43: 94 | AO43: 337 | AP43: 0.2789317507 | AQ43: 245 | AR43: 139 | AS43: 384 | AT43: 0.3619791667 | AU43: 0.02056616895 | AV43: 11 | AW43: 14 | AX43: Hotspot (-8)
A44: Hotspot, Expert, Cosmic, prediction, bq | B44: UPN_Te5_096 | C44: 2 | D44: 25457242 | E44: C | F44: T | G44: DNMT3A,DNMT3A,DNMT3A,DNMT3A | H44: ENST00000264709,ENST00000380746,ENST00000321117,ENST00000402667 | I44: missense_variant,missense_variant,missense_variant,missense_variant | J44: cGc/cAc|p.Arg882His/c.2645G>A,cGc/cAc|p.Arg693His/c.2078G>A,cGc/cAc|p.Arg882His/c.2645G>A,cGc/cAc|p.Arg659His/c.1976G>A | K44: 195 | L44: 89 | M44: 284 | N44: 0.3133802817 | O44: 1 | P44: 1 | Q44: 1 | R44: 1 | S44: 1 | T44: 1 | U44: 1 | V44: 1 | W44: 8 | X44: 0.0581 | Y44: NO | Z44: COSM52944 | AA44: breast, haematopoietic_and_lymphoid_tissue | AB44: 1, 452 | AC44: NO | AD44: rs147001633 | AE44: NO | AF44: 0.000593 | AG44: NO | AH44: NO | AI44: -4.72 | AJ44: Deleterious | AK44: 33.92 | AL44: 35.43 | AM44: 98 | AN44: 42 | AO44: 140 | AP44: 0.3 | AQ44: 97 | AR44: 47 | AS44: 144 | AT44: 0.3263888889 | AU44: 0.7013987105 | AV44: 11 | AW44: 14 | AX44: Hotspot (-8)
A45: Hotspot, Expert, Cosmic, prediction, bq | B45: UPN_Te5_098 | C45: 2 | D45: 25457242 | E45: C | F45: T | G45: DNMT3A,DNMT3A,DNMT3A,DNMT3A | H45: ENST00000264709,ENST00000380746,ENST00000321117,ENST00000402667 | I45: missense_variant,missense_variant,missense_variant,missense_variant | J45: cGc/cAc|p.Arg882His/c.2645G>A,cGc/cAc|p.Arg693His/c.2078G>A,cGc/cAc|p.Arg882His/c.2645G>A,cGc/cAc|p.Arg659His/c.1976G>A | K45: 221 | L45: 208 | M45: 429 | N45: 0.4848484848 | O45: 1 | P45: 1 | Q45: 1 | R45: 1 | S45: 1 | T45: 1 | U45: 1 | V45: 1 | W45: 8 | X45: 0.0581 | Y45: NO | Z45: COSM52944 | AA45: breast, haematopoietic_and_lymphoid_tissue | AB45: 1, 452 | AC45: NO | AD45: rs147001633 | AE45: NO | AF45: 0.000593 | AG45: NO | AH45: NO | AI45: -4.72 | AJ45: Deleterious | AK45: 35.71 | AL45: 35.01 | AM45: 111 | AN45: 104 | AO45: 215 | AP45: 0.4837209302 | AQ45: 110 | AR45: 104 | AS45: 214 | AT45: 0.4859813084 | AU45: 1 | AV45: 11 | AW45: 14 | AX45: Hotspot (-8)
A46: Hotspot, Expert, Cosmic, prediction, bq | B46: UPN_Te5_004 | C46: 2 | D46: 25457243 | E46: G | F46: A | G46: DNMT3A,DNMT3A,DNMT3A,DNMT3A | H46: ENST00000264709,ENST00000380746,ENST00000321117,ENST00000402667 | I46: missense_variant,missense_variant,missense_variant,missense_variant | J46: Cgc/Tgc|p.Arg882Cys/c.2644C>T,Cgc/Tgc|p.Arg693Cys/c.2077C>T,Cgc/Tgc|p.Arg882Cys/c.2644C>T,Cgc/Tgc|p.Arg659Cys/c.1975C>T | K46: 54 | L46: 42 | M46: 96 | N46: 0.4375 | O46: 1 | P46: 1 | Q46: 1 | R46: 1 | S46: 1 | T46: 1 | U46: 1 | V46: 1 | W46: 8 | X46: 0.0465 | Y46: NO | Z46: COSM53042 | AA46: haematopoietic_and_lymphoid_tissue, prostate | AB46: 191, 1 | AC46: NO | AD46: rs377577594 | AE46: NO | AF46: 0.0003624 | AG46: NO | AH46: NO | AI46: -7.55 | AJ46: Deleterious | AK46: 37.63 | AL46: 36.98 | AM46: 27 | AN46: 21 | AO46: 48 | AP46: 0.4375 | AQ46: 27 | AR46: 21 | AS46: 48 | AT46: 0.4375 | AU46: 1 | AV46: 6 | AW46: 7 | AX46: Hotspot (-8)
A47: Hotspot, Expert, Cosmic, prediction, bq | B47: UPN_Te5_035 | C47: 2 | D47: 25457243 | E47: G | F47: A | G47: DNMT3A,DNMT3A,DNMT3A,DNMT3A | H47: ENST00000264709,ENST00000380746,ENST00000321117,ENST00000402667 | I47: missense_variant,missense_variant,missense_variant,missense_variant | J47: Cgc/Tgc|p.Arg882Cys/c.2644C>T,Cgc/Tgc|p.Arg693Cys/c.2077C>T,Cgc/Tgc|p.Arg882Cys/c.2644C>T,Cgc/Tgc|p.Arg659Cys/c.1975C>T | K47: 25 | L47: 32 | M47: 57 | N47: 0.5614035088 | O47: 1 | P47: 1 | Q47: 1 | R47: 1 | S47: 1 | T47: 1 | U47: 1 | V47: 1 | W47: 8 | X47: 0.0465 | Y47: NO | Z47: COSM53042 | AA47: haematopoietic_and_lymphoid_tissue, prostate | AB47: 191, 1 | AC47: NO | AD47: rs377577594 | AE47: NO | AF47: 0.0003624 | AG47: NO | AH47: NO | AI47: -7.55 | AJ47: Deleterious | AK47: 36 | AL47: 35.62 | AM47: 13 | AN47: 16 | AO47: 29 | AP47: 0.5517241379 | AQ47: 12 | AR47: 16 | AS47: 28 | AT47: 0.5714285714 | AU47: 1 | AV47: 6 | AW47: 7 | AX47: Hotspot (-8)
A48: Hotspot, Expert, Cosmic, prediction, bq | B48: UPN_Te5_066 | C48: 2 | D48: 25457243 | E48: G | F48: A | G48: DNMT3A,DNMT3A,DNMT3A,DNMT3A | H48: ENST00000264709,ENST00000380746,ENST00000321117,ENST00000402667 | I48: missense_variant,missense_variant,missense_variant,missense_variant | J48: Cgc/Tgc|p.Arg882Cys/c.2644C>T,Cgc/Tgc|p.Arg693Cys/c.2077C>T,Cgc/Tgc|p.Arg882Cys/c.2644C>T,Cgc/Tgc|p.Arg659Cys/c.1975C>T | K48: 425 | L48: 351 | M48: 776 | N48: 0.4523195876 | O48: 1 | P48: 1 | Q48: 1 | R48: 1 | S48: 1 | T48: 1 | U48: 1 | V48: 1 | W48: 8 | X48: 0.0465 | Y48: NO | Z48: COSM53042 | AA48: haematopoietic_and_lymphoid_tissue, prostate | AB48: 191, 1 | AC48: NO | AD48: rs377577594 | AE48: NO | AF48: 0.0003624 | AG48: NO | AH48: NO | AI48: -7.55 | AJ48: Deleterious | AK48: 35.76 | AL48: 35.84 | AM48: 217 | AN48: 176 | AO48: 393 | AP48: 0.4478371501 | AQ48: 208 | AR48: 175 | AS48: 383 | AT48: 0.4569190601 | AU48: 0.8287998135 | AV48: 6 | AW48: 7 | AX48: Hotspot (-8)
A49: Hotspot, Expert, Cosmic, prediction, bq | B49: UPN_Te5_086 | C49: 2 | D49: 25457243 | E49: G | F49: A | G49: DNMT3A,DNMT3A,DNMT3A,DNMT3A | H49: ENST00000264709,ENST00000380746,ENST00000321117,ENST00000402667 | I49: missense_variant,missense_variant,missense_variant,missense_variant | J49: Cgc/Tgc|p.Arg882Cys/c.2644C>T,Cgc/Tgc|p.Arg693Cys/c.2077C>T,Cgc/Tgc|p.Arg882Cys/c.2644C>T,Cgc/Tgc|p.Arg659Cys/c.1975C>T | K49: 283 | L49: 261 | M49: 544 | N49: 0.4797794118 | O49: 1 | P49: 1 | Q49: 1 | R49: 1 | S49: 1 | T49: 1 | U49: 1 | V49: 1 | W49: 8 | X49: 0.0465 | Y49: NO | Z49: COSM53042 | AA49: haematopoietic_and_lymphoid_tissue, prostate | AB49: 191, 1 | AC49: NO | AD49: rs377577594 | AE49: NO | AF49: 0.0003624 | AG49: NO | AH49: NO | AI49: -7.55 | AJ49: Deleterious | AK49: 36.02 | AL49: 36.45 | AM49: 142 | AN49: 131 | AO49: 273 | AP49: 0.4798534799 | AQ49: 141 | AR49: 130 | AS49: 271 | AT49: 0.479704797 | AU49: 1 | AV49: 6 | AW49: 7 | AX49: Hotspot (-8)
A50: Hotspot, Expert, Cosmic, prediction, bq | B50: UPN_Te5_088 | C50: 2 | D50: 25457243 | E50: G | F50: A | G50: DNMT3A,DNMT3A,DNMT3A,DNMT3A | H50: ENST00000264709,ENST00000380746,ENST00000321117,ENST00000402667 | I50: missense_variant,missense_variant,missense_variant,missense_variant | J50: Cgc/Tgc|p.Arg882Cys/c.2644C>T,Cgc/Tgc|p.Arg693Cys/c.2077C>T,Cgc/Tgc|p.Arg882Cys/c.2644C>T,Cgc/Tgc|p.Arg659Cys/c.1975C>T | K50: 239 | L50: 145 | M50: 384 | N50: 0.3776041667 | O50: 0 | P50: 1 | Q50: 1 | R50: 1 | S50: 1 | T50: 1 | U50: 1 | V50: 1 | W50: 7 | X50: 0.0465 | Y50: NO | Z50: COSM53042 | AA50: haematopoietic_and_lymphoid_tissue, prostate | AB50: 191, 1 | AC50: NO | AD50: rs377577594 | AE50: NO | AF50: 0.0003624 | AG50: NO | AH50: NO | AI50: -7.55 | AJ50: Deleterious | AK50: 36.75 | AL50: 37.17 | AM50: 121 | AN50: 73 | AO50: 194 | AP50: 0.3762886598 | AQ50: 118 | AR50: 72 | AS50: 190 | AT50: 0.3789473684 | AU50: 1 | AV50: 6 | AW50: 7 | AX50: Hotspot (-8)
A51: Hotspot, Expert, Cosmic, prediction, bq | B51: UPN_Te5_105 | C51: 2 | D51: 25457243 | E51: G | F51: A | G51: DNMT3A,DNMT3A,DNMT3A,DNMT3A | H51: ENST00000264709,ENST00000380746,ENST00000321117,ENST00000402667 | I51: missense_variant,missense_variant,missense_variant,missense_variant | J51: Cgc/Tgc|p.Arg882Cys/c.2644C>T,Cgc/Tgc|p.Arg693Cys/c.2077C>T,Cgc/Tgc|p.Arg882Cys/c.2644C>T,Cgc/Tgc|p.Arg659Cys/c.1975C>T | K51: 116 | L51: 147 | M51: 263 | N51: 0.5589353612 | O51: 1 | P51: 1 | Q51: 1 | R51: 1 | S51: 1 | T51: 1 | U51: 1 | V51: 1 | W51: 8 | X51: 0.0465 | Y51: NO | Z51: COSM53042 | AA51: haematopoietic_and_lymphoid_tissue, prostate | AB51: 191, 1 | AC51: NO | AD51: rs377577594 | AE51: NO | AF51: 0.0003624 | AG51: NO | AH51: NO | AI51: -7.55 | AJ51: Deleterious | AK51: 36.85 | AL51: 36.96 | AM51: 58 | AN51: 74 | AO51: 132 | AP51: 0.5606060606 | AQ51: 58 | AR51: 73 | AS51: 131 | AT51: 0.5572519084 | AU51: 1 | AV51: 6 | AW51: 7 | AX51: Hotspot (-8)
A52: Hotspot, Expert, Cosmic, prediction, bq | B52: UPN_Te5_001 | C52: 2 | D52: 25457243 | E52: G | F52: T | G52: DNMT3A,DNMT3A,DNMT3A,DNMT3A | H52: ENST00000264709,ENST00000380746,ENST00000321117,ENST00000402667 | I52: missense_variant,missense_variant,missense_variant,missense_variant | J52: Cgc/Agc|p.Arg882Ser/c.2644C>A,Cgc/Agc|p.Arg693Ser/c.2077C>A,Cgc/Agc|p.Arg882Ser/c.2644C>A,Cgc/Agc|p.Arg659Ser/c.1975C>A | K52: 289 | L52: 365 | M52: 654 | N52: 0.5581039755 | O52: 1 | P52: 1 | Q52: 1 | R52: 1 | S52: 1 | T52: 1 | U52: 1 | V52: 1 | W52: 8 | X52: NO | Y52: NO | Z52: COSM87001 | AA52: haematopoietic_and_lymphoid_tissue | AB52: 19 | AC52: NO | AD52: NO | AE52: NO | AF52: NO | AG52: NO | AH52: NO | AI52: -5.67 | AJ52: Deleterious | AK52: 36.24 | AL52: 36.69 | AM52: 145 | AN52: 182 | AO52: 327 | AP52: 0.5565749235 | AQ52: 144 | AR52: 183 | AS52: 327 | AT52: 0.5596330275 | AU52: 1 | AV52: 1 | AW52: 7 | AX52: Hotspot (-10)
A53: Expert | B53: UPN_Te5_060 | C53: 2 | D53: 25459819 | E53: CAT | F53: C | G53: DNMT3A,DNMT3A,DNMT3A,DNMT3A | H53: ENST00000264709,ENST00000380746,ENST00000321117,ENST00000402667 | I53: frameshift_variant,frameshift_variant,frameshift_variant,frameshift_variant | J53: cat/|p.His821fs/c.2462_2463delAT,cat/|p.His632fs/c.1895_1896delAT,cat/|p.His821fs/c.2462_2463delAT,cat/|p.His598fs/c.1793_1794delAT | K53: 1090 | L53: 532 | M53: 1626 | N53: 0.3271832718 | O53: 1 | P53: 1 | Q53: 1 | R53: 1 | S53: 1 | T53: 1 | U53: 0 | V53: 1 | W53: 7 | X53: NO | Y53: NO | Z53: NO | AA53: NA | AB53: NA | AC53: NO | AD53: NO | AE53: NO | AF53: NO | AG53: NO | AH53: NO | AI53: NA | AJ53: NA | AK53: 35.48 | AL53: NA | AM53: 468 | AN53: 277 | AO53: 747 | AP53: 0.3708165997 | AQ53: 622 | AR53: 255 | AS53: 879 | AT53: 0.2901023891 | AU53: 0.0005623157005 | AV53: 1 | AW53: 1 | AX53: Probably True (-6)
A54: Expert, prediction, bq | B54: UPN_Te5_006 | C54: 2 | D54: 25462018 | E54: T | F54: A | G54: DNMT3A,DNMT3A,DNMT3A,DNMT3A | H54: ENST00000264709,ENST00000380746,ENST00000321117,ENST00000402667 | I54: missense_variant,missense_variant,missense_variant,missense_variant | J54: Aac/Tac|p.Asn797Tyr/c.2389A>T,Aac/Tac|p.Asn608Tyr/c.1822A>T,Aac/Tac|p.Asn797Tyr/c.2389A>T,Aac/Tac|p.Asn574Tyr/c.1720A>T | K54: 277 | L54: 231 | M54: 508 | N54: 0.4547244094 | O54: 1 | P54: 1 | Q54: 1 | R54: 1 | S54: 1 | T54: 1 | U54: 1 | V54: 1 | W54: 8 | X54: NO | Y54: NO | Z54: COSM133717 | AA54: haematopoietic_and_lymphoid_tissue | AB54: 1 | AC54: NO | AD54: NO | AE54: NO | AF54: NO | AG54: NO | AH54: NO | AI54: -7.58 | AJ54: Deleterious | AK54: 34.69 | AL54: 35.26 | AM54: 105 | AN54: 79 | AO54: 184 | AP54: 0.4293478261 | AQ54: 172 | AR54: 152 | AS54: 324 | AT54: 0.4691358025 | AU54: 0.4051232288 | AV54: 1 | AW54: 1 | AX54: Probably True (-7)
A55: Expert, bq | B55: UPN_Te5_002 | C55: 2 | D55: 25463286 | E55: C | F55: T | G55: DNMT3A,DNMT3A,DNMT3A,DNMT3A,DNMT3A | H55: ENST00000264709,ENST00000380746,ENST00000321117,ENST00000380756,ENST00000402667 | I55: missense_variant,missense_variant,missense_variant,missense_variant,missense_variant | J55: cGc/cAc|p.Arg736His/c.2207G>A,cGc/cAc|p.Arg547His/c.1640G>A,cGc/cAc|p.Arg736His/c.2207G>A,cGc/cAc|p.Arg736His/c.2207G>A,cGc/cAc|p.Arg513His/c.1538G>A | K55: 967 | L55: 440 | M55: 1409 | N55: 0.3122782115 | O55: 1 | P55: 1 | Q55: 1 | R55: 1 | S55: 1 | T55: 1 | U55: 1 | V55: 1 | W55: 8 | X55: 0.0116 | Y55: NO | Z55: COSM133737 | AA55: haematopoietic_and_lymphoid_tissue | AB55: 11 | AC55: NO | AD55: rs139293773 | AE55: NO | AF55: 6.589e-05 | AG55: NO | AH55: NO | AI55: -1.03 | AJ55: Tolerated | AK55: 36.06 | AL55: 31.32 | AM55: 476 | AN55: 213 | AO55: 691 | AP55: 0.3082489146 | AQ55: 491 | AR55: 227 | AS55: 718 | AT55: 0.3161559889 | AU55: 0.8180558906 | AV55: 1 | AW55: 1 | AX55: Probably True (-5)
A56: Expert, prediction, bq | B56: UPN_Te5_060 | C56: 2 | D56: 25463287 | E56: G | F56: A | G56: DNMT3A,DNMT3A,DNMT3A,DNMT3A,DNMT3A | H56: ENST00000264709,ENST00000380746,ENST00000321117,ENST00000380756,ENST00000402667 | I56: missense_variant,missense_variant,missense_variant,missense_variant,missense_variant | J56: Cgc/Tgc|p.Arg736Cys/c.2206C>T,Cgc/Tgc|p.Arg547Cys/c.1639C>T,Cgc/Tgc|p.Arg736Cys/c.2206C>T,Cgc/Tgc|p.Arg736Cys/c.2206C>T,Cgc/Tgc|p.Arg513Cys/c.1537C>T | K56: 658 | L56: 395 | M56: 1054 | N56: 0.3747628083 | O56: 1 | P56: 1 | Q56: 1 | R56: 1 | S56: 1 | T56: 1 | U56: 1 | V56: 1 | W56: 8 | X56: NO | Y56: NO | Z56: COSM231560 | AA56: haematopoietic_and_lymphoid_tissue | AB56: 7 | AC56: NO | AD56: NO | AE56: NO | AF56: 4.942e-05 | AG56: NO | AH56: NO | AI56: -6.37 | AJ56: Deleterious | AK56: 35.45 | AL56: 35.78 | AM56: 326 | AN56: 196 | AO56: 522 | AP56: 0.3754789272 | AQ56: 332 | AR56: 199 | AS56: 532 | AT56: 0.3740601504 | AU56: 1 | AV56: 1 | AW56: 1 | AX56: Probably True (-7)
A57: Expert | B57: UPN_Te5_030 | C57: 2 | D57: 25463292 | E57: AACTC | F57: A | G57: DNMT3A,DNMT3A,DNMT3A,DNMT3A,DNMT3A | H57: ENST00000264709,ENST00000380746,ENST00000321117,ENST00000380756,ENST00000402667 | I57: frameshift_variant,frameshift_variant,frameshift_variant,frameshift_variant,frameshift_variant | J57: gagttc/|p.Glu733fs/c.2197_2200delGAGT,gagttc/|p.Glu544fs/c.1630_1633delGAGT,gagttc/|p.Glu733fs/c.2197_2200delGAGT,gagttc/|p.Glu733fs/c.2197_2200delGAGT,gagttc/|p.Glu510fs/c.1528_1531delGAGT | K57: 410 | L57: 325 | M57: 735 | N57: 0.4421768707 | O57: 1 | P57: 1 | Q57: 1 | R57: 1 | S57: 1 | T57: 1 | U57: 0 | V57: 1 | W57: 7 | X57: NO | Y57: NO | Z57: NO | AA57: NO | AB57: O | AC57: NO | AD57: NO | AE57: NO | AF57: NO | AG57: NO | AH57: NO | AI57: NA | AJ57: NA | AK57: 34.98 | AL57: NA | AM57: 190 | AN57: 147 | AO57: 337 | AP57: 0.4362017804 | AQ57: 220 | AR57: 178 | AS57: 398 | AT57: 0.4472361809 | AU57: 0.7662558415 | AV57: 1 | AW57: 1 | AX57: Probably True (-6)
A58: Expert, Cosmic, prediction, bq | B58: UPN_Te5_036 | C58: 2 | D58: 25463541 | E58: G | F58: C | G58: DNMT3A,DNMT3A,DNMT3A,DNMT3A,DNMT3A | H58: ENST00000264709,ENST00000380746,ENST00000321117,ENST00000380756,ENST00000402667 | I58: missense_variant,missense_variant,missense_variant,missense_variant,missense_variant | J58: tCc/tGc|p.Ser714Cys/c.2141C>G,tCc/tGc|p.Ser525Cys/c.1574C>G,tCc/tGc|p.Ser714Cys/c.2141C>G,tCc/tGc|p.Ser714Cys/c.2141C>G,tCc/tGc|p.Ser491Cys/c.1472C>G | K58: 812 | L58: 495 | M58: 1307 | N58: 0.3787299158 | O58: 1 | P58: 1 | Q58: 1 | R58: 1 | S58: 1 | T58: 1 | U58: 1 | V58: 1 | W58: 8 | X58: 0.0116 | Y58: NO | Z58: COSM87011 | AA58: breast, haematopoietic_and_lymphoid_tissue | AB58: 1, 13 | AC58: NO | AD58: rs367909007 | AE58: NO | AF58: 4.942e-05 | AG58: NO | AH58: NO | AI58: -4.61 | AJ58: Deleterious | AK58: 34.92 | AL58: 34.48 | AM58: 492 | AN58: 340 | AO58: 832 | AP58: 0.4086538462 | AQ58: 320 | AR58: 155 | AS58: 475 | AT58: 0.3263157895 | AU58: 0.003651462188 | AV58: 1 | AW58: 1 | AX58: Probably True (-7)
A59: Expert, prediction, bq | B59: UPN_Te5_102 | C59: 2 | D59: 25466790 | E59: G | F59: A | G59: DNMT3A,DNMT3A,DNMT3A,DNMT3A,DNMT3A | H59: ENST00000264709,ENST00000380746,ENST00000321117,ENST00000380756,ENST00000402667 | I59: missense_variant,missense_variant,missense_variant,missense_variant,missense_variant | J59: tCt/tTt|p.Ser638Phe/c.1913C>T,tCt/tTt|p.Ser449Phe/c.1346C>T,tCt/tTt|p.Ser638Phe/c.1913C>T,tCt/tTt|p.Ser638Phe/c.1913C>T,tCt/tTt|p.Ser415Phe/c.1244C>T | K59: 320 | L59: 191 | M59: 512 | N59: 0.373046875 | O59: 1 | P59: 1 | Q59: 1 | R59: 1 | S59: 1 | T59: 1 | U59: 1 | V59: 1 | W59: 8 | X59: NO | Y59: NO | Z59: NO | AA59: NO | AB59: O | AC59: NO | AD59: NO | AE59: NO | AF59: NO | AG59: NO | AH59: NO | AI59: -5.79 | AJ59: Deleterious | AK59: 37.26 | AL59: 37.49 | AM59: 134 | AN59: 76 | AO59: 210 | AP59: 0.3619047619 | AQ59: 186 | AR59: 115 | AS59: 302 | AT59: 0.380794702 | AU59: 0.7101840246 | AV59: 1 | AW59: 1 | AX59: Probably True (-7)
A60: Expert, prediction, bq | B60: UPN_Te5_085 | C60: 2 | D60: 25467086 | E60: G | F60: A | G60: DNMT3A,DNMT3A,DNMT3A,DNMT3A,DNMT3A | H60: ENST00000264709,ENST00000380746,ENST00000321117,ENST00000380756,ENST00000402667 | I60: missense_variant,missense_variant,missense_variant,missense_variant,missense_variant | J60: Cgg/Tgg|p.Arg597Trp/c.1789C>T,Cgg/Tgg|p.Arg408Trp/c.1222C>T,Cgg/Tgg|p.Arg597Trp/c.1789C>T,Cgg/Tgg|p.Arg597Trp/c.1789C>T,Cgg/Tgg|p.Arg374Trp/c.1120C>T | K60: 3050 | L60: 42 | M60: 3095 | N60: 0.01357027464 | O60: 0 | P60: 0 | Q60: 0 | R60: 1 | S60: 1 | T60: 0 | U60: 0 | V60: 1 | W60: 3 | X60: NO | Y60: NO | Z60: NO | AA60: NO | AB60: O | AC60: NO | AD60: NO | AE60: NO | AF60: 8.236e-06 | AG60: NO | AH60: NO | AI60: -6.09 | AJ60: Deleterious | AK60: 35.47 | AL60: 34.98 | AM60: 1532 | AN60: 22 | AO60: 1556 | AP60: 0.01413881748 | AQ60: 1518 | AR60: 20 | AS60: 1539 | AT60: 0.01299545159 | AU60: 0.8768448726 | AV60: 1 | AW60: 1 | AX60: Probably True (-2)
A61: Expert, prediction, bq | B61: UPN_Te5_078 | C61: 2 | D61: 25467436 | E61: A | F61: T | G61: DNMT3A,DNMT3A,DNMT3A,DNMT3A,DNMT3A | H61: ENST00000264709,ENST00000380746,ENST00000321117,ENST00000380756,ENST00000402667 | I61: missense_variant,missense_variant,missense_variant,missense_variant,missense_variant | J61: cTc/cAc|p.Leu547His/c.1640T>A,cTc/cAc|p.Leu358His/c.1073T>A,cTc/cAc|p.Leu547His/c.1640T>A,cTc/cAc|p.Leu547His/c.1640T>A,cTc/cAc|p.Leu324His/c.971T>A | K61: 110 | L61: 107 | M61: 218 | N61: 0.4908256881 | O61: 1 | P61: 1 | Q61: 1 | R61: 1 | S61: 1 | T61: 0 | U61: 1 | V61: 1 | W61: 7 | X61: NO | Y61: NO | Z61: COSM231556 | AA61: haematopoietic_and_lymphoid_tissue | AB61: 2 | AC61: NO | AD61: NO | AE61: NO | AF61: 1.647e-05 | AG61: NO | AH61: NO | AI61: -5.52 | AJ61: Deleterious | AK61: 37.82 | AL61: 36.45 | AM61: 107 | AN61: 107 | AO61: 215 | AP61: 0.4976744186 | AQ61: 3 | AR61: 0 | AS61: 3 | AT61: 0 | AU61: 0.246671787 | AV61: 1 | AW61: 1 | AX61: Probably True (-7)
A62: Expert, Cosmic, prediction, bq | B62: UPN_Te5_019 | C62: 2 | D62: 25467449 | E62: C | F62: A | G62: DNMT3A,DNMT3A,DNMT3A,DNMT3A,DNMT3A | H62: ENST00000264709,ENST00000380746,ENST00000321117,ENST00000380756,ENST00000402667 | I62: missense_variant,missense_variant,missense_variant,missense_variant,missense_variant | J62: Ggc/Tgc|p.Gly543Cys/c.1627G>T,Ggc/Tgc|p.Gly354Cys/c.1060G>T,Ggc/Tgc|p.Gly543Cys/c.1627G>T,Ggc/Tgc|p.Gly543Cys/c.1627G>T,Ggc/Tgc|p.Gly320Cys/c.958G>T | K62: 414 | L62: 104 | M62: 518 | N62: 0.2007722008 | O62: 1 | P62: 1 | Q62: 1 | R62: 1 | S62: 1 | T62: 1 | U62: 0 | V62: 1 | W62: 7 | X62: NO | Y62: NO | Z62: COSM87002 | AA62: haematopoietic_and_lymphoid_tissue | AB62: 13 | AC62: NO | AD62: NO | AE62: NO | AF62: 3.295e-05 | AG62: NO | AH62: NO | AI62: -8.42 | AJ62: Deleterious | AK62: 34.41 | AL62: 37.28 | AM62: 386 | AN62: 90 | AO62: 476 | AP62: 0.1890756303 | AQ62: 28 | AR62: 14 | AS62: 42 | AT62: 0.3333333333 | AU62: 0.04186713502 | AV62: 3 | AW62: 3 | AX62: Probably True (-7)
A63: Expert, Cosmic, prediction, bq | B63: UPN_Te5_048 | C63: 2 | D63: 25467449 | E63: C | F63: A | G63: DNMT3A,DNMT3A,DNMT3A,DNMT3A,DNMT3A | H63: ENST00000264709,ENST00000380746,ENST00000321117,ENST00000380756,ENST00000402667 | I63: missense_variant,missense_variant,missense_variant,missense_variant,missense_variant | J63: Ggc/Tgc|p.Gly543Cys/c.1627G>T,Ggc/Tgc|p.Gly354Cys/c.1060G>T,Ggc/Tgc|p.Gly543Cys/c.1627G>T,Ggc/Tgc|p.Gly543Cys/c.1627G>T,Ggc/Tgc|p.Gly320Cys/c.958G>T | K63: 799 | L63: 259 | M63: 1058 | N63: 0.2448015123 | O63: 1 | P63: 1 | Q63: 1 | R63: 1 | S63: 1 | T63: 1 | U63: 1 | V63: 1 | W63: 8 | X63: NO | Y63: NO | Z63: COSM87002 | AA63: haematopoietic_and_lymphoid_tissue | AB63: 13 | AC63: NO | AD63: NO | AE63: NO | AF63: 3.295e-05 | AG63: NO | AH63: NO | AI63: -8.42 | AJ63: Deleterious | AK63: 33.45 | AL63: 34.25 | AM63: 799 | AN63: 258 | AO63: 1057 | AP63: 0.2440870388 | AQ63: 0 | AR63: 1 | AS63: 1 | AT63: 1 | AU63: 0.2448015123 | AV63: 3 | AW63: 3 | AX63: Probably True (-7)
A64: Expert, Cosmic, prediction, bq | B64: UPN_Te5_069 | C64: 2 | D64: 25467449 | E64: C | F64: A | G64: DNMT3A,DNMT3A,DNMT3A,DNMT3A,DNMT3A | H64: ENST00000264709,ENST00000380746,ENST00000321117,ENST00000380756,ENST00000402667 | I64: missense_variant,missense_variant,missense_variant,missense_variant,missense_variant | J64: Ggc/Tgc|p.Gly543Cys/c.1627G>T,Ggc/Tgc|p.Gly354Cys/c.1060G>T,Ggc/Tgc|p.Gly543Cys/c.1627G>T,Ggc/Tgc|p.Gly543Cys/c.1627G>T,Ggc/Tgc|p.Gly320Cys/c.958G>T | K64: 420 | L64: 86 | M64: 506 | N64: 0.1699604743 | O64: 1 | P64: 1 | Q64: 0 | R64: 1 | S64: 1 | T64: 1 | U64: 0 | V64: 1 | W64: 6 | X64: NO | Y64: NO | Z64: COSM87002 | AA64: haematopoietic_and_lymphoid_tissue | AB64: 13 | AC64: NO | AD64: NO | AE64: NO | AF64: 3.295e-05 | AG64: NO | AH64: NO | AI64: -8.42 | AJ64: Deleterious | AK64: 34.77 | AL64: 37.51 | AM64: 411 | AN64: 80 | AO64: 491 | AP64: 0.1629327902 | AQ64: 9 | AR64: 6 | AS64: 15 | AT64: 0.4 | AU64: 0.0278723271 | AV64: 3 | AW64: 3 | AX64: Probably True (-7)
A65: Expert, bq | B65: UPN_Te5_079 | C65: 2 | D65: 25469510 | E65: T | F65: A | G65: DNMT3A,DNMT3A,DNMT3A,DNMT3A,DNMT3A | H65: ENST00000264709,ENST00000380746,ENST00000321117,ENST00000380756,ENST00000402667 | I65: stop_gained,stop_gained,stop_gained,stop_gained,stop_gained | J65: Aag/Tag|p.Lys420*/c.1258A>T,Aag/Tag|p.Lys231*/c.691A>T,Aag/Tag|p.Lys420*/c.1258A>T,Aag/Tag|p.Lys420*/c.1258A>T,Aag/Tag|p.Lys197*/c.589A>T | K65: 498 | L65: 279 | M65: 778 | N65: 0.3586118252 | O65: 1 | P65: 1 | Q65: 1 | R65: 1 | S65: 1 | T65: 1 | U65: 1 | V65: 1 | W65: 8 | X65: NO | Y65: NO | Z65: NO | AA65: NO | AB65: O | AC65: NO | AD65: NO | AE65: NO | AF65: NO | AG65: NO | AH65: NO | AI65: NA | AJ65: NA | AK65: 37.7 | AL65: 38.29 | AM65: 359 | AN65: 211 | AO65: 571 | AP65: 0.3695271454 | AQ65: 139 | AR65: 68 | AS65: 207 | AT65: 0.3285024155 | AU65: 0.3104257223 | AV65: 1 | AW65: 1 | AX65: Probably True (-6)
A66: Expert, prediction, bq | B66: UPN_Te5_070 | C66: 2 | D66: 25469924 | E66: A | F66: C | G66: DNMT3A,DNMT3A,DNMT3A,DNMT3A,DNMT3A | H66: ENST00000264709,ENST00000380746,ENST00000321117,ENST00000380756,ENST00000402667 | I66: missense_variant,missense_variant,missense_variant,missense_variant,missense_variant | J66: cTg/cGg|p.Leu373Arg/c.1118T>G,cTg/cGg|p.Leu184Arg/c.551T>G,cTg/cGg|p.Leu373Arg/c.1118T>G,cTg/cGg|p.Leu373Arg/c.1118T>G,cTg/cGg|p.Leu150Arg/c.449T>G | K66: 1756 | L66: 835 | M66: 2597 | N66: 0.3215248363 | O66: 1 | P66: 1 | Q66: 1 | R66: 1 | S66: 1 | T66: 1 | U66: 1 | V66: 1 | W66: 8 | X66: NO | Y66: NO | Z66: NO | AA66: NA | AB66: NA | AC66: NO | AD66: NO | AE66: NO | AF66: NO | AG66: NO | AH66: NO | AI66: -4.95 | AJ66: Deleterious | AK66: 37.06 | AL66: 36.65 | AM66: 572 | AN66: 219 | AO66: 792 | AP66: 0.2765151515 | AQ66: 1184 | AR66: 616 | AS66: 1805 | AT66: 0.3412742382 | AU66: 0.001015085596 | AV66: 1 | AW66: 1 | AX66: Probably True (-7)
A67: Expert, prediction, bq | B67: UPN_Te5_118 | C67: 2 | D67: 25469945 | E67: C | F67: T | G67: DNMT3A,DNMT3A,DNMT3A,DNMT3A,DNMT3A | H67: ENST00000264709,ENST00000380746,ENST00000321117,ENST00000380756,ENST00000402667 | I67: missense_variant,missense_variant,missense_variant,missense_variant,missense_variant | J67: cGc/cAc|p.Arg366His/c.1097G>A,cGc/cAc|p.Arg177His/c.530G>A,cGc/cAc|p.Arg366His/c.1097G>A,cGc/cAc|p.Arg366His/c.1097G>A,cGc/cAc|p.Arg143His/c.428G>A | K67: 1509 | L67: 146 | M67: 1656 | N67: 0.08816425121 | O67: 0 | P67: 0 | Q67: 0 | R67: 0 | S67: 1 | T67: 0 | U67: 0 | V67: 1 | W67: 2 | X67: NO | Y67: NO | Z67: NO | AA67: NA | AB67: NA | AC67: NO | AD67: NO | AE67: NO | AF67: 3.295e-05 | AG67: NO | AH67: NO | AI67: -3.46 | AJ67: Deleterious | AK67: 36.15 | AL67: 36.11 | AM67: 744 | AN67: 75 | AO67: 819 | AP67: 0.09157509158 | AQ67: 765 | AR67: 71 | AS67: 837 | AT67: 0.08482676225 | AU67: 0.6651458311 | AV67: 1 | AW67: 1 | AX67: Probably True (-1)
A68: ESP6500, ExAC, VAF, prediction, likely SNP | B68: UPN_Te5_070 | C68: 2 | D68: 48025785 | E68: A | F68: C | G68: MSH6,MSH6,MSH6 | H68: ENST00000234420,ENST00000540021,ENST00000411819 | I68: missense_variant,missense_variant,missense_variant | J68: gaA/gaC|p.Glu221Asp/c.663A>C,gaA/gaC|p.Glu91Asp/c.273A>C,gaA/gaC|p.Glu122Asp/c.366A>C | K68: 136 | L68: 129 | M68: 265 | N68: 0.4867924528 | O68: 1 | P68: 1 | Q68: 1 | R68: 1 | S68: 1 | T68: 0 | U68: 1 | V68: 1 | W68: 7 | X68: 0.1279 | Y68: NO | Z68: NO | AA68: NO | AB68: O | AC68: rs41557217 | AD68: rs41557217 | AE68: YES | AF68: 0.0006177 | AG68: NO | AH68: NO | AI68: -0.54 | AJ68: Tolerated | AK68: 38.15 | AL68: 38.93 | AM68: 136 | AN68: 129 | AO68: 265 | AP68: 0.4867924528 | AQ68: 0 | AR68: 0 | AS68: 0 | AT68: NA | AU68: 1 | AV68: 1 | AW68: 1 | AX68: Probably True (-7)
A69: Expert, bq | B69: UPN_Te5_087 | C69: 2 | D69: 48026740 | E69: C | F69: G | G69: MSH6,MSH6,MSH6 | H69: ENST00000234420,ENST00000540021,ENST00000538136 | I69: missense_variant,missense_variant,missense_variant | J69: Ctt/Gtt|p.Leu540Val/c.1618C>G,Ctt/Gtt|p.Leu410Val/c.1228C>G,Ctt/Gtt|p.Leu238Val/c.712C>G | K69: 1296 | L69: 1340 | M69: 2637 | N69: 0.5081532044 | O69: 1 | P69: 1 | Q69: 1 | R69: 1 | S69: 1 | T69: 1 | U69: 1 | V69: 1 | W69: 8 | X69: NO | Y69: NO | Z69: NO | AA69: NO | AB69: O | AC69: NO | AD69: NO | AE69: NO | AF69: 1.647e-05 | AG69: NO | AH69: NO | AI69: -2.23 | AJ69: Tolerated | AK69: 38.97 | AL69: 38.67 | AM69: 480 | AN69: 531 | AO69: 1011 | AP69: 0.5252225519 | AQ69: 816 | AR69: 809 | AS69: 1626 | AT69: 0.4975399754 | AU69: 0.1734165014 | AV69: 1 | AW69: 1 | AX69: Probably True (-6)
A70: Expert, bq | B70: UPN_Te5_022 | C70: 2 | D70: 48033636 | E70: A | F70: G | G70: MSH6,MSH6,MSH6 | H70: ENST00000234420,ENST00000540021,ENST00000538136 | I70: missense_variant,missense_variant,missense_variant | J70: Att/Gtt|p.Ile1283Val/c.3847A>G,Att/Gtt|p.Ile1153Val/c.3457A>G,Att/Gtt|p.Ile981Val/c.2941A>G | K70: 160 | L70: 124 | M70: 284 | N70: 0.4366197183 | O70: 1 | P70: 1 | Q70: 1 | R70: 1 | S70: 1 | T70: 1 | U70: 1 | V70: 1 | W70: 8 | X70: 0 | Y70: NO | Z70: NO | AA70: NO | AB70: O | AC70: NO | AD70: rs144714869 | AE70: NO | AF70: 1.647e-05 | AG70: NO | AH70: NO | AI70: -0.05 | AJ70: Tolerated | AK70: 40.04 | AL70: 39.82 | AM70: 80 | AN70: 62 | AO70: 142 | AP70: 0.4366197183 | AQ70: 80 | AR70: 62 | AS70: 142 | AT70: 0.4366197183 | AU70: 1 | AV70: 1 | AW70: 1 | AX70: Probably True (-6)
A71: Hotspot, Expert | B71: UPN_Te5_105 | C71: 2 | D71: 198266495 | E71: C | F71: CAGGAGACTGGAATTCTCGAATAAGGATTAACATCACTTCTCTAGTATAGTAGTTGGCATATTCTGCATAGATCGGAAGAGCACACGTCTGAACTCCAGTCACCCGTGAGAATCTCGTATGCCGTCTTCTGCTTGAAAAAAAAA | G71: SF3B1 | H71: ENST00000335508 | I71: frameshift_variant+stop_gained | J71: cct/cctTTTTTTTTTCAAGCAGAAGACGGCATACGAGATTCTCACGGGTGACTGGAGTTCAGACGTGTGCTCTTCCGATCTATGCAGAATATGCCAACTACTATACTAGAGAAGTGATGTTAATCCTTATTCGAGAATTCCAGTCTCCT|p.Asp781fs/c.2340_2341insTTTTTTTTTCAAGCAGAAGACGGCATACGAGATTCTCACGGGTGACTGGAGTTCAGACGTGTGCTCTTCCGATCTATGCAGAATATGCCAACTACTATACTAGAGAAGTGATGTTAATCCTTATTCGAGAATTCCAGTCTCCT | K71: 842 | L71: NA | M71: 842 | N71: NA | O71: 0 | P71: 0 | Q71: 0 | R71: 0 | S71: 0 | T71: 0 | U71: 0 | V71: 1 | W71: 1 | X71: NO | Y71: NO | Z71: NO | AA71: NO | AB71: O | AC71: NO | AD71: NO | AE71: NO | AF71: NO | AG71: NO | AH71: NO | AI71: NA | AJ71: NA | AK71: 37.06 | AL71: NA | AM71: 419 | AN71: NA | AO71: 419 | AP71: NA | AQ71: 423 | AR71: NA | AS71: 423 | AT71: NA | AU71: NA | AV71: 1 | AW71: 2 | AX71: Hotspot (-1)
A72: Hotspot, Expert, prediction, bq | B72: UPN_Te5_116 | C72: 2 | D72: 198267360 | E72: T | F72: A | G72: SF3B1 | H72: ENST00000335508 | I72: missense_variant | J72: aAg/aTg|p.Lys666Met/c.1997A>T | K72: 128 | L72: 36 | M72: 164 | N72: 0.2195121951 | O72: 1 | P72: 1 | Q72: 1 | R72: 0 | S72: 1 | T72: 0 | U72: 0 | V72: 1 | W72: 5 | X72: 0.0116 | Y72: NO | Z72: COSM110698 | AA72: haematopoietic_and_lymphoid_tissue | AB72: 9 | AC72: NO | AD72: rs374250186 | AE72: NO | AF72: NO | AG72: NO | AH72: NO | AI72: -5.86 | AJ72: Deleterious | AK72: 32.69 | AL72: 34.78 | AM72: 0 | AN72: 0 | AO72: 0 | AP72: NA | AQ72: 128 | AR72: 36 | AS72: 164 | AT72: 0.2195121951 | AU72: 1 | AV72: 2 | AW72: 2 | AX72: Hotspot (-6)
A73: Hotspot, Expert, prediction, bq | B73: UPN_Te5_117 | C73: 2 | D73: 198267360 | E73: T | F73: A | G73: SF3B1 | H73: ENST00000335508 | I73: missense_variant | J73: aAg/aTg|p.Lys666Met/c.1997A>T | K73: 129 | L73: 43 | M73: 172 | N73: 0.25 | O73: 1 | P73: 1 | Q73: 1 | R73: 0 | S73: 1 | T73: 0 | U73: 1 | V73: 1 | W73: 6 | X73: 0.0116 | Y73: NO | Z73: COSM110698 | AA73: haematopoietic_and_lymphoid_tissue | AB73: 9 | AC73: NO | AD73: rs374250186 | AE73: NO | AF73: NO | AG73: NO | AH73: NO | AI73: -5.86 | AJ73: Deleterious | AK73: 32.73 | AL73: 35.65 | AM73: 0 | AN73: 0 | AO73: 0 | AP73: NA | AQ73: 129 | AR73: 43 | AS73: 172 | AT73: 0.25 | AU73: 1 | AV73: 2 | AW73: 2 | AX73: Hotspot (-7)
A74: Hotspot, Expert, prediction, bq | B74: UPN_Te5_097 | C74: 2 | D74: 198267500 | E74: G | F74: T | G74: SF3B1 | H74: ENST00000335508 | I74: missense_variant | J74: aaC/aaA|p.Asn619Lys/c.1857C>A | K74: 2277 | L74: 24 | M74: 2302 | N74: 0.01042571677 | O74: 0 | P74: 0 | Q74: 0 | R74: 1 | S74: 1 | T74: 0 | U74: 0 | V74: 1 | W74: 3 | X74: NO | Y74: NO | Z74: NO | AA74: NA | AB74: NA | AC74: NO | AD74: NO | AE74: NO | AF74: NO | AG74: NO | AH74: NO | AI74: -4.66 | AJ74: Deleterious | AK74: 34.26 | AL74: 35.12 | AM74: 1142 | AN74: 12 | AO74: 1155 | AP74: 0.01038961039 | AQ74: 1135 | AR74: 12 | AS74: 1147 | AT74: 0.01046207498 | AU74: 1 | AV74: 1 | AW74: 1 | AX74: Hotspot (-4)
A75: Expert, bq | B75: UPN_Te5_003 | C75: 2 | D75: 198272801 | E75: C | F75: T | G75: SF3B1 | H75: ENST00000335508 | I75: missense_variant | J75: cGg/cAg|p.Arg387Gln/c.1160G>A | K75: 1801 | L75: 20 | M75: 1821 | N75: 0.01098297639 | O75: 0 | P75: 0 | Q75: 0 | R75: 1 | S75: 1 | T75: 0 | U75: 0 | V75: 1 | W75: 3 | X75: NO | Y75: NO | Z75: COSM257999 | AA75: large_intestine | AB75: 1 | AC75: NO | AD75: NO | AE75: NO | AF75: NO | AG75: NO | AH75: NO | AI75: -2.77 | AJ75: Deleterious | AK75: 40.27 | AL75: 39.35 | AM75: 853 | AN75: 10 | AO75: 863 | AP75: 0.01158748552 | AQ75: 948 | AR75: 10 | AS75: 958 | AT75: 0.01043841336 | AU75: 0.8260599753 | AV75: 1 | AW75: 1 | AX75: Probably True (-1)
A76: Hotspot, Expert, Cosmic, prediction, bq | B76: UPN_Te5_076 | C76: 2 | D76: 209113112 | E76: C | F76: A | G76: IDH1,IDH1,IDH1,IDH1 | H76: ENST00000345146,ENST00000446179,ENST00000415913,ENST00000415282 | I76: missense_variant,missense_variant,missense_variant,missense_variant | J76: cGt/cTt|p.Arg132Leu/c.395G>T,cGt/cTt|p.Arg132Leu/c.395G>T,cGt/cTt|p.Arg132Leu/c.395G>T,cGt/cTt|p.Arg132Leu/c.395G>T | K76: 925 | L76: 641 | M76: 1566 | N76: 0.4093231162 | O76: 1 | P76: 1 | Q76: 1 | R76: 1 | S76: 1 | T76: 1 | U76: 1 | V76: 1 | W76: 8 | X76: NO | Y76: NO | Z76: COSM28750 | AA76: biliary_tract, bone, central_nervous_system, haematopoietic_and_lymphoid_tissue, skin | AB76: 8, 19, 29, 30, 2 | AC76: NO | AD76: NO | AE76: NO | AF76: NO | AG76: NO | AH76: NO | AI76: -6.16 | AJ76: Deleterious | AK76: 37.06 | AL76: 37.38 | AM76: 580 | AN76: 393 | AO76: 973 | AP76: 0.4039054471 | AQ76: 345 | AR76: 248 | AS76: 593 | AT76: 0.4182124789 | AU76: 0.5963913534 | AV76: 1 | AW76: 4 | AX76: Hotspot (-10)
A77: Hotspot, Expert, dbSNP, Cosmic, prediction, bq | B77: UPN_Te5_069 | C77: 2 | D77: 209113112 | E77: C | F77: T | G77: IDH1,IDH1,IDH1,IDH1 | H77: ENST00000345146,ENST00000446179,ENST00000415913,ENST00000415282 | I77: missense_variant,missense_variant,missense_variant,missense_variant | J77: cGt/cAt|p.Arg132His/c.395G>A,cGt/cAt|p.Arg132His/c.395G>A,cGt/cAt|p.Arg132His/c.395G>A,cGt/cAt|p.Arg132His/c.395G>A | K77: 616 | L77: 280 | M77: 897 | N77: 0.3121516165 | O77: 1 | P77: 1 | Q77: 1 | R77: 1 | S77: 1 | T77: 1 | U77: 1 | V77: 1 | W77: 8 | X77: NO | Y77: NO | Z77: COSM28746 | AA77: bone, central_nervous_system, haematopoietic_and_lymphoid_tissue, lung, prostate, salivary_gland, skin, urinary_tract | AB77: 39, 3886, 236, 1, 5, 1, 1, 1 | AC77: NO | AD77: rs121913500 | AE77: YES | AF77: NO | AG77: NO | AH77: NO | AI77: -4.44 | AJ77: Deleterious | AK77: 37.55 | AL77: 37.26 | AM77: 342 | AN77: 151 | AO77: 493 | AP77: 0.3062880325 | AQ77: 274 | AR77: 129 | AS77: 404 | AT77: 0.3193069307 | AU77: 0.6644403412 | AV77: 3 | AW77: 4 | AX77: Hotspot (-10)
A78: Hotspot, Expert, dbSNP, Cosmic, prediction, bq | B78: UPN_Te5_070 | C78: 2 | D78: 209113112 | E78: C | F78: T | G78: IDH1,IDH1,IDH1,IDH1 | H78: ENST00000345146,ENST00000446179,ENST00000415913,ENST00000415282 | I78: missense_variant,missense_variant,missense_variant,missense_variant | J78: cGt/cAt|p.Arg132His/c.395G>A,cGt/cAt|p.Arg132His/c.395G>A,cGt/cAt|p.Arg132His/c.395G>A,cGt/cAt|p.Arg132His/c.395G>A | K78: 1508 | L78: 557 | M78: 2066 | N78: 0.2696030978 | O78: 1 | P78: 1 | Q78: 1 | R78: 1 | S78: 1 | T78: 1 | U78: 1 | V78: 1 | W78: 8 | X78: NO | Y78: NO | Z78: COSM28746 | AA78: bone, central_nervous_system, haematopoietic_and_lymphoid_tissue, lung, prostate, salivary_gland, skin, urinary_tract | AB78: 39, 3886, 236, 1, 5, 1, 1, 1 | AC78: NO | AD78: rs121913500 | AE78: YES | AF78: NO | AG78: NO | AH78: NO | AI78: -4.44 | AJ78: Deleterious | AK78: 36.6 | AL78: 36.39 | AM78: 936 | AN78: 327 | AO78: 1263 | AP78: 0.2589073634 | AQ78: 572 | AR78: 230 | AS78: 803 | AT78: 0.2864259029 | AU78: 0.1697969383 | AV78: 3 | AW78: 4 | AX78: Hotspot (-10)
A79: Hotspot, Expert, dbSNP, Cosmic, prediction, bq | B79: UPN_Te5_071 | C79: 2 | D79: 209113112 | E79: C | F79: T | G79: IDH1,IDH1,IDH1,IDH1 | H79: ENST00000345146,ENST00000446179,ENST00000415913,ENST00000415282 | I79: missense_variant,missense_variant,missense_variant,missense_variant | J79: cGt/cAt|p.Arg132His/c.395G>A,cGt/cAt|p.Arg132His/c.395G>A,cGt/cAt|p.Arg132His/c.395G>A,cGt/cAt|p.Arg132His/c.395G>A | K79: 985 | L79: 669 | M79: 1658 | N79: 0.4034981906 | O79: 1 | P79: 1 | Q79: 1 | R79: 1 | S79: 1 | T79: 1 | U79: 1 | V79: 1 | W79: 8 | X79: NO | Y79: NO | Z79: COSM28746 | AA79: bone, central_nervous_system, haematopoietic_and_lymphoid_tissue, lung, prostate, salivary_gland, skin, urinary_tract | AB79: 39, 3886, 236, 1, 5, 1, 1, 1 | AC79: NO | AD79: rs121913500 | AE79: YES | AF79: NO | AG79: NO | AH79: NO | AI79: -4.44 | AJ79: Deleterious | AK79: 36.47 | AL79: 36.85 | AM79: 568 | AN79: 348 | AO79: 919 | AP79: 0.3786724701 | AQ79: 417 | AR79: 321 | AS79: 739 | AT79: 0.4343707713 | AU79: 0.02656870798 | AV79: 3 | AW79: 4 | AX79: Hotspot (-10)
A80: Hotspot, Expert, dbSNP, Cosmic, prediction, bq | B80: UPN_Te5_006 | C80: 2 | D80: 209113113 | E80: G | F80: A | G80: IDH1,IDH1,IDH1,IDH1 | H80: ENST00000345146,ENST00000446179,ENST00000415913,ENST00000415282 | I80: missense_variant,missense_variant,missense_variant,missense_variant | J80: Cgt/Tgt|p.Arg132Cys/c.394C>T,Cgt/Tgt|p.Arg132Cys/c.394C>T,Cgt/Tgt|p.Arg132Cys/c.394C>T,Cgt/Tgt|p.Arg132Cys/c.394C>T | K80: 135 | L80: 104 | M80: 239 | N80: 0.4351464435 | O80: 1 | P80: 1 | Q80: 1 | R80: 1 | S80: 1 | T80: 1 | U80: 1 | V80: 1 | W80: 8 | X80: NO | Y80: NO | Z80: COSM28747 | AA80: autonomic_ganglia, biliary_tract, bone, breast, central_nervous_system, haematopoietic_and_lymphoid_tissue, large_intestine, liver, lung, prostate, skin, small_intestine, soft_tissue | AB80: 1, 33, 192, 1, 121, 235, 9, 6, 1, 6, 19, 3, 11 | AC80: NO | AD80: rs121913499 | AE80: YES | AF80: NO | AG80: NO | AH80: NO | AI80: -6.68 | AJ80: Deleterious | AK80: 36.4 | AL80: 36.1 | AM80: 79 | AN80: 65 | AO80: 144 | AP80: 0.4513888889 | AQ80: 56 | AR80: 39 | AS80: 95 | AT80: 0.4105263158 | AU80: 0.5943966161 | AV80: 3 | AW80: 7 | AX80: Hotspot (-10)
A81: Hotspot, Expert, dbSNP, Cosmic, prediction, bq | B81: UPN_Te5_025 | C81: 2 | D81: 209113113 | E81: G | F81: A | G81: IDH1,IDH1,IDH1,IDH1 | H81: ENST00000345146,ENST00000446179,ENST00000415913,ENST00000415282 | I81: missense_variant,missense_variant,missense_variant,missense_variant | J81: Cgt/Tgt|p.Arg132Cys/c.394C>T,Cgt/Tgt|p.Arg132Cys/c.394C>T,Cgt/Tgt|p.Arg132Cys/c.394C>T,Cgt/Tgt|p.Arg132Cys/c.394C>T | K81: 697 | L81: 470 | M81: 1170 | N81: 0.4017094017 | O81: 1 | P81: 1 | Q81: 1 | R81: 1 | S81: 1 | T81: 1 | U81: 1 | V81: 1 | W81: 8 | X81: NO | Y81: NO | Z81: COSM28747 | AA81: autonomic_ganglia, biliary_tract, bone, breast, central_nervous_system, haematopoietic_and_lymphoid_tissue, large_intestine, liver, lung, prostate, skin, small_intestine, soft_tissue | AB81: 1, 33, 192, 1, 121, 235, 9, 6, 1, 6, 19, 3, 11 | AC81: NO | AD81: rs121913499 | AE81: YES | AF81: NO | AG81: NO | AH81: NO | AI81: -6.68 | AJ81: Deleterious | AK81: 35.52 | AL81: 35.15 | AM81: 537 | AN81: 351 | AO81: 890 | AP81: 0.3943820225 | AQ81: 160 | AR81: 119 | AS81: 280 | AT81: 0.425 | AU81: 0.3635515366 | AV81: 3 | AW81: 7 | AX81: Hotspot (-10)
A82: Hotspot, Expert, dbSNP, Cosmic, prediction, bq | B82: UPN_Te5_041 | C82: 2 | D82: 209113113 | E82: G | F82: A | G82: IDH1,IDH1,IDH1,IDH1 | H82: ENST00000345146,ENST00000446179,ENST00000415913,ENST00000415282 | I82: missense_variant,missense_variant,missense_variant,missense_variant | J82: Cgt/Tgt|p.Arg132Cys/c.394C>T,Cgt/Tgt|p.Arg132Cys/c.394C>T,Cgt/Tgt|p.Arg132Cys/c.394C>T,Cgt/Tgt|p.Arg132Cys/c.394C>T | K82: 983 | L82: 201 | M82: 1185 | N82: 0.1696202532 | O82: 1 | P82: 1 | Q82: 0 | R82: 1 | S82: 1 | T82: 1 | U82: 1 | V82: 1 | W82: 7 | X82: NO | Y82: NO | Z82: COSM28747 | AA82: autonomic_ganglia, biliary_tract, bone, breast, central_nervous_system, haematopoietic_and_lymphoid_tissue, large_intestine, liver, lung, prostate, skin, small_intestine, soft_tissue | AB82: 1, 33, 192, 1, 121, 235, 9, 6, 1, 6, 19, 3, 11 | AC82: NO | AD82: rs121913499 | AE82: YES | AF82: NO | AG82: NO | AH82: NO | AI82: -6.68 | AJ82: Deleterious | AK82: 36.33 | AL82: 36.66 | AM82: 457 | AN82: 92 | AO82: 550 | AP82: 0.1672727273 | AQ82: 526 | AR82: 109 | AS82: 635 | AT82: 0.1716535433 | AU82: 0.8768271777 | AV82: 3 | AW82: 7 | AX82: Hotspot (-10)
A83: Hotspot, Expert, Cosmic, prediction, bq | B83: UPN_Te5_078 | C83: 2 | D83: 209113113 | E83: G | F83: C | G83: IDH1,IDH1,IDH1,IDH1 | H83: ENST00000345146,ENST00000446179,ENST00000415913,ENST00000415282 | I83: missense_variant,missense_variant,missense_variant,missense_variant | J83: Cgt/Ggt|p.Arg132Gly/c.394C>G,Cgt/Ggt|p.Arg132Gly/c.394C>G,Cgt/Ggt|p.Arg132Gly/c.394C>G,Cgt/Ggt|p.Arg132Gly/c.394C>G | K83: 665 | L83: 530 | M83: 1198 | N83: 0.4424040067 | O83: 1 | P83: 1 | Q83: 1 | R83: 1 | S83: 1 | T83: 1 | U83: 1 | V83: 1 | W83: 8 | X83: NO | Y83: NO | Z83: COSM28749 | AA83: biliary_tract, bone, breast, central_nervous_system, haematopoietic_and_lymphoid_tissue, large_intestine, liver, prostate | AB83: 11, 23, 2, 83, 53, 1, 2, 1 | AC83: NO | AD83: NO | AE83: NO | AF83: NO | AG83: NO | AH83: NO | AI83: -6.23 | AJ83: Deleterious | AK83: 35.36 | AL83: 34.85 | AM83: 391 | AN83: 287 | AO83: 679 | AP83: 0.4226804124 | AQ83: 274 | AR83: 243 | AS83: 519 | AT83: 0.4682080925 | AU83: 0.1127701393 | AV83: 1 | AW83: 7 | AX83: Hotspot (-10)
A84: Hotspot, Expert | B84: UPN_Te5_113 | C84: 2 | D84: 209113113 | E84: G | F84: GACCTATGATGATAGGTTTTACCCATCCACTCACAAGCCGGGGGATATTTTTGAGATCGGAAGAGCACACGTCTGAACTCCAGTCACATCATTCCATCTCGTATGCCGTCTTCTGCTTGAAAAAAAAA | G84: IDH1,IDH1,IDH1,IDH1 | H84: ENST00000345146,ENST00000446179,ENST00000415913,ENST00000415282 | I84: frameshift_variant+stop_gained,frameshift_variant+stop_gained,frameshift_variant+stop_gained,frameshift_variant+stop_gained | J84: ggt/ggtTTTTTTTTTCAAGCAGAAGACGGCATACGAGATGGAATGATGTGACTGGAGTTCAGACGTGTGCTCTTCCGATCTCAAAAATATCCCCCGGCTTGTGAGTGGATGGGTAAAACCTATCATCATAGGT|p.Arg132fs/c.393_394insTTTTTTTTTCAAGCAGAAGACGGCATACGAGATGGAATGATGTGACTGGAGTTCAGACGTGTGCTCTTCCGATCTCAAAAATATCCCCCGGCTTGTGAGTGGATGGGTAAAACCTATCATCATAGGT,ggt/ggtTTTTTTTTTCAAGCAGAAGACGGCATACGAGATGGAATGATGTGACTGGAGTTCAGACGTGTGCTCTTCCGATCTCAAAAATATCCCCCGGCTTGTGAGTGGATGGGTAAAACCTATCATCATAGGT|p.Arg132fs/c.393_394insTTTTTTTTTCAAGCAGAAGACGGCATACGAGATGGAATGATGTGACTGGAGTTCAGACGTGTGCTCTTCCGATCTCAAAAATATCCCCCGGCTTGTGAGTGGATGGGTAAAACCTATCATCATAGGT,ggt/ggtTTTTTTTTTCAAGCAGAAGACGGCATACGAGATGGAATGATGTGACTGGAGTTCAGACGTGTGCTCTTCCGATCTCAAAAATATCCCCCGGCTTGTGAGTGGATGGGTAAAACCTATCATCATAGGT|p.Arg132fs/c.393_394insTTTTTTTTTCAAGCAGAAGACGGCATACGAGATGGAATGATGTGACTGGAGTTCAGACGTGTGCTCTTCCGATCTCAAAAATATCCCCCGGCTTGTGAGTGGATGGGTAAAACCTATCATCATAGGT,ggt/ggtTTTTTTTTTCAAGCAGAAGACGGCATACGAGATGGAATGATGTGACTGGAGTTCAGACGTGTGCTCTTCCGATCTCAAAAATATCCCCCGGCTTGTGAGTGGATGGGTAAAACCTATCATCATAGGT|p.Arg132fs/c.393_394insTTTTTTTTTCAAGCAGAAGACGGCATACGAGATGGAATGATGTGACTGGAGTTCAGACGTGTGCTCTTCCGATCTCAAAAATATCCCCCGGCTTGTGAGTGGATGGGTAAAACCTATCATCATAGGT | K84: 1097 | L84: NA | M84: 1097 | N84: NA | O84: 0 | P84: 0 | Q84: 0 | R84: 0 | S84: 0 | T84: 0 | U84: 0 | V84: 1 | W84: 1 | X84: NO | Y84: NO | Z84: NO | AA84: NA | AB84: NA | AC84: NO | AD84: NO | AE84: NO | AF84: NO | AG84: NO | AH84: NO | AI84: NA | AJ84: NA | AK84: 35.18 | AL84: NA | AM84: 780 | AN84: NA | AO84: 780 | AP84: NA | AQ84: 317 | AR84: NA | AS84: 317 | AT84: NA | AU84: NA | AV84: 1 | AW84: 7 | AX84: Hotspot (-1)
A85: Hotspot, Expert | B85: UPN_Te5_109 | C85: 2 | D85: 209113113 | E85: G | F85: GACCTATGATGATAGGTTTTACCCATCCACTCACAAGCCGGGGGATATTTTTGAGATCGGAAGAGCACACGTCTGAACTCCAGTCACCCGTGAGAATCTCGTATGCCGTCTTCTGCTTGAAAAAAAAA | G85: IDH1,IDH1,IDH1,IDH1 | H85: ENST00000345146,ENST00000446179,ENST00000415913,ENST00000415282 | I85: frameshift_variant+stop_gained,frameshift_variant+stop_gained,frameshift_variant+stop_gained,frameshift_variant+stop_gained | J85: ggt/ggtTTTTTTTTTCAAGCAGAAGACGGCATACGAGATTCTCACGGGTGACTGGAGTTCAGACGTGTGCTCTTCCGATCTCAAAAATATCCCCCGGCTTGTGAGTGGATGGGTAAAACCTATCATCATAGGT|p.Arg132fs/c.393_394insTTTTTTTTTCAAGCAGAAGACGGCATACGAGATTCTCACGGGTGACTGGAGTTCAGACGTGTGCTCTTCCGATCTCAAAAATATCCCCCGGCTTGTGAGTGGATGGGTAAAACCTATCATCATAGGT,ggt/ggtTTTTTTTTTCAAGCAGAAGACGGCATACGAGATTCTCACGGGTGACTGGAGTTCAGACGTGTGCTCTTCCGATCTCAAAAATATCCCCCGGCTTGTGAGTGGATGGGTAAAACCTATCATCATAGGT|p.Arg132fs/c.393_394insTTTTTTTTTCAAGCAGAAGACGGCATACGAGATTCTCACGGGTGACTGGAGTTCAGACGTGTGCTCTTCCGATCTCAAAAATATCCCCCGGCTTGTGAGTGGATGGGTAAAACCTATCATCATAGGT,ggt/ggtTTTTTTTTTCAAGCAGAAGACGGCATACGAGATTCTCACGGGTGACTGGAGTTCAGACGTGTGCTCTTCCGATCTCAAAAATATCCCCCGGCTTGTGAGTGGATGGGTAAAACCTATCATCATAGGT|p.Arg132fs/c.393_394insTTTTTTTTTCAAGCAGAAGACGGCATACGAGATTCTCACGGGTGACTGGAGTTCAGACGTGTGCTCTTCCGATCTCAAAAATATCCCCCGGCTTGTGAGTGGATGGGTAAAACCTATCATCATAGGT,ggt/ggtTTTTTTTTTCAAGCAGAAGACGGCATACGAGATTCTCACGGGTGACTGGAGTTCAGACGTGTGCTCTTCCGATCTCAAAAATATCCCCCGGCTTGTGAGTGGATGGGTAAAACCTATCATCATAGGT|p.Arg132fs/c.393_394insTTTTTTTTTCAAGCAGAAGACGGCATACGAGATTCTCACGGGTGACTGGAGTTCAGACGTGTGCTCTTCCGATCTCAAAAATATCCCCCGGCTTGTGAGTGGATGGGTAAAACCTATCATCATAGGT | K85: 1549 | L85: NA | M85: 1549 | N85: NA | O85: 0 | P85: 0 | Q85: 0 | R85: 0 | S85: 0 | T85: 0 | U85: 0 | V85: 1 | W85: 1 | X85: NO | Y85: NO | Z85: NO | AA85: NA | AB85: NA | AC85: NO | AD85: NO | AE85: NO | AF85: NO | AG85: NO | AH85: NO | AI85: NA | AJ85: NA | AK85: 36.66 | AL85: NA | AM85: 779 | AN85: NA | AO85: 779 | AP85: NA | AQ85: 770 | AR85: NA | AS85: 770 | AT85: NA | AU85: NA | AV85: 1 | AW85: 7 | AX85: Hotspot (-1)
A86: Hotspot, Expert, dbSNP, Cosmic, prediction, bq | B86: UPN_Te5_085 | C86: 2 | D86: 209113113 | E86: G | F86: T | G86: IDH1,IDH1,IDH1,IDH1 | H86: ENST00000345146,ENST00000446179,ENST00000415913,ENST00000415282 | I86: missense_variant,missense_variant,missense_variant,missense_variant | J86: Cgt/Agt|p.Arg132Ser/c.394C>A,Cgt/Agt|p.Arg132Ser/c.394C>A,Cgt/Agt|p.Arg132Ser/c.394C>A,Cgt/Agt|p.Arg132Ser/c.394C>A | K86: 1028 | L86: 876 | M86: 1905 | N86: 0.4598425197 | O86: 1 | P86: 1 | Q86: 1 | R86: 1 | S86: 1 | T86: 1 | U86: 1 | V86: 1 | W86: 8 | X86: NO | Y86: NO | Z86: COSM28748 | AA86: biliary_tract, bone, central_nervous_system, endometrium, haematopoietic_and_lymphoid_tissue | AB86: 4, 10, 74, 1, 63 | AC86: NO | AD86: rs121913499 | AE86: YES | AF86: NO | AG86: NO | AH86: NO | AI86: -5.27 | AJ86: Deleterious | AK86: 35.37 | AL86: 34.73 | AM86: 639 | AN86: 508 | AO86: 1148 | AP86: 0.4425087108 | AQ86: 389 | AR86: 368 | AS86: 757 | AT86: 0.4861294584 | AU86: 0.06699547958 | AV86: 1 | AW86: 7 | AX86: Hotspot (-10)
A87: Expert, bq | B87: UPN_Te5_067 | C87: 3 | D87: 100948415 | E87: C | F87: T | G87: IMPG2 | H87: ENST00000193391 | I87: missense_variant | J87: Gac/Aac|p.Asp1148Asn/c.3442G>A | K87: 136 | L87: 127 | M87: 263 | N87: 0.4828897338 | O87: 1 | P87: 1 | Q87: 1 | R87: 1 | S87: 1 | T87: 0 | U87: 1 | V87: 1 | W87: 7 | X87: NO | Y87: NO | Z87: NO | AA87: NO | AB87: O | AC87: NO | AD87: NO | AE87: NO | AF87: 1.647e-05 | AG87: NO | AH87: NO | AI87: -2.72 | AJ87: Deleterious | AK87: 36.27 | AL87: 35.57 | AM87: 136 | AN87: 127 | AO87: 263 | AP87: 0.4828897338 | AQ87: 0 | AR87: 0 | AS87: 0 | AT87: NA | AU87: 1 | AV87: 1 | AW87: 1 | AX87: Probably True (-6)
A88: Expert, prediction, bq | B88: UPN_Te5_037 | C88: 3 | D88: 100951687 | E88: C | F88: G | G88: IMPG2 | H88: ENST00000193391 | I88: missense_variant | J88: caG/caC|p.Gln1057His/c.3171G>C | K88: 583 | L88: 359 | M88: 943 | N88: 0.380699894 | O88: 1 | P88: 1 | Q88: 1 | R88: 1 | S88: 1 | T88: 1 | U88: 1 | V88: 1 | W88: 8 | X88: NO | Y88: NO | Z88: NO | AA88: NO | AB88: O | AC88: NO | AD88: NO | AE88: NO | AF88: NO | AG88: NO | AH88: NO | AI88: -3.88 | AJ88: Deleterious | AK88: 36.71 | AL88: 38.63 | AM88: 251 | AN88: 205 | AO88: 456 | AP88: 0.4495614035 | AQ88: 332 | AR88: 154 | AS88: 487 | AT88: 0.3162217659 | AU88: 3.104495761e-05 | AV88: 1 | AW88: 1 | AX88: Probably True (-7)
A89: Expert, bq | B89: UPN_Te5_059 | C89: 3 | D89: 101039152 | E89: C | F89: T | G89: IMPG2 | H89: ENST00000193391 | I89: missense_variant | J89: gGa/gAa|p.Gly22Glu/c.65G>A | K89: 954 | L89: 838 | M89: 1792 | N89: 0.4676339286 | O89: 1 | P89: 1 | Q89: 1 | R89: 1 | S89: 1 | T89: 1 | U89: 1 | V89: 1 | W89: 8 | X89: NO | Y89: NO | Z89: NO | AA89: NO | AB89: O | AC89: NO | AD89: NO | AE89: NO | AF89: 8.243e-06 | AG89: NO | AH89: NO | AI89: -2.67 | AJ89: Deleterious | AK89: 38.85 | AL89: 38.59 | AM89: 520 | AN89: 450 | AO89: 970 | AP89: 0.4639175258 | AQ89: 434 | AR89: 388 | AS89: 822 | AT89: 0.4720194647 | AU89: 0.7396592788 | AV89: 1 | AW89: 1 | AX89: Probably True (-6)
A90: Expert, prediction | B90: UPN_Te5_026 | C90: 3 | D90: 128202760 | E90: G | F90: GCCA | G90: GATA2,GATA2,GATA2 | H90: ENST00000341105,ENST00000430265,ENST00000487848 | I90: disruptive_inframe_insertion,disruptive_inframe_insertion,disruptive_inframe_insertion | J90: ggc/ggTGGc|p.Gly320dup/c.957_959dupTGG,ggc/ggTGGc|p.Gly320dup/c.957_959dupTGG,ggc/ggTGGc|p.Gly320dup/c.957_959dupTGG | K90: 1722 | L90: 252 | M90: 1724 | N90: 0.1461716937 | O90: 1 | P90: 1 | Q90: 0 | R90: 1 | S90: 1 | T90: 1 | U90: 0 | V90: 1 | W90: 6 | X90: NO | Y90: NO | Z90: NO | AA90: NO | AB90: O | AC90: NO | AD90: NO | AE90: NO | AF90: NO | AG90: NO | AH90: NO | AI90: -9.32 | AJ90: Deleterious | AK90: 33.65 | AL90: NA | AM90: 104 | AN90: 41 | AO90: 105 | AP90: 0.3904761905 | AQ90: 1618 | AR90: 211 | AS90: 1619 | AT90: 0.1303273626 | AU90: 1.832594312e-07 | AV90: 1 | AW90: 1 | AX90: Probably True (-7)
A91: Expert, bq | B91: UPN_Te5_055 | C91: 4 | D91: 1385731 | E91: A | F91: T | G91: CRIPAK | H91: ENST00000324803 | I91: 5_prime_UTR_premature_start_codon_gain_variant | J91: |c.-2569A>T | K91: 465 | L91: 355 | M91: 820 | N91: 0.4329268293 | O91: 1 | P91: 1 | Q91: 1 | R91: 1 | S91: 1 | T91: 1 | U91: 1 | V91: 1 | W91: 8 | X91: NO | Y91: NO | Z91: NO | AA91: NO | AB91: O | AC91: NO | AD91: NO | AE91: NO | AF91: NO | AG91: NO | AH91: NO | AI91: NA | AJ91: NA | AK91: 35.68 | AL91: 36.02 | AM91: 302 | AN91: 189 | AO91: 491 | AP91: 0.3849287169 | AQ91: 163 | AR91: 166 | AS91: 329 | AT91: 0.5045592705 | AU91: 0.0007357385782 | AV91: 1 | AW91: 1 | AX91: Probably True (-6)
A92: Expert, bq | B92: UPN_Te5_073 | C92: 4 | D92: 1388324 | E92: A | F92: C | G92: CRIPAK | H92: ENST00000324803 | I92: missense_variant | J92: Aat/Cat|p.Asn9His/c.25A>C | K92: 722 | L92: 61 | M92: 783 | N92: 0.0779054917 | O92: 0 | P92: 0 | Q92: 0 | R92: 1 | S92: 1 | T92: 1 | U92: 0 | V92: 1 | W92: 4 | X92: NO | Y92: NO | Z92: COSM1427134 | AA92: upper_aerodigestive_tract | AB92: 5 | AC92: NO | AD92: rs74377230 | AE92: NO | AF92: NO | AG92: NO | AH92: NO | AI92: -0.54 | AJ92: Tolerated | AK92: 35.6 | AL92: 33.57 | AM92: 371 | AN92: 32 | AO92: 403 | AP92: 0.0794044665 | AQ92: 351 | AR92: 29 | AS92: 380 | AT92: 0.07631578947 | AU92: 0.8946230195 | AV92: 3 | AW92: 3 | AX92: Probably True (-3)
A93: Expert, bq | B93: UPN_Te5_105 | C93: 4 | D93: 1388324 | E93: A | F93: C | G93: CRIPAK | H93: ENST00000324803 | I93: missense_variant | J93: Aat/Cat|p.Asn9His/c.25A>C | K93: 1685 | L93: 123 | M93: 1808 | N93: 0.06803097345 | O93: 0 | P93: 0 | Q93: 0 | R93: 1 | S93: 1 | T93: 1 | U93: 0 | V93: 1 | W93: 4 | X93: NO | Y93: NO | Z93: COSM1427134 | AA93: upper_aerodigestive_tract | AB93: 5 | AC93: NO | AD93: rs74377230 | AE93: NO | AF93: NO | AG93: NO | AH93: NO | AI93: -0.54 | AJ93: Tolerated | AK93: 36.43 | AL93: 34.3 | AM93: 849 | AN93: 62 | AO93: 911 | AP93: 0.06805708013 | AQ93: 836 | AR93: 61 | AS93: 897 | AT93: 0.06800445931 | AU93: 1 | AV93: 3 | AW93: 3 | AX93: Probably True (-3)
A94: Expert, bq | B94: UPN_Te5_106 | C94: 4 | D94: 1388324 | E94: A | F94: C | G94: CRIPAK | H94: ENST00000324803 | I94: missense_variant | J94: Aat/Cat|p.Asn9His/c.25A>C | K94: 610 | L94: 23 | M94: 633 | N94: 0.03633491311 | O94: 0 | P94: 0 | Q94: 0 | R94: 1 | S94: 1 | T94: 1 | U94: 0 | V94: 1 | W94: 4 | X94: NO | Y94: NO | Z94: COSM1427134 | AA94: upper_aerodigestive_tract | AB94: 5 | AC94: NO | AD94: rs74377230 | AE94: NO | AF94: NO | AG94: NO | AH94: NO | AI94: -0.54 | AJ94: Tolerated | AK94: 36.34 | AL94: 30.83 | AM94: 306 | AN94: 12 | AO94: 318 | AP94: 0.03773584906 | AQ94: 304 | AR94: 11 | AS94: 315 | AT94: 0.03492063492 | AU94: 1 | AV94: 3 | AW94: 3 | AX94: Probably True (-3)
A95: Expert | B95: UPN_Te5_099 | C95: 4 | D95: 1388569 | E95: CGATGT | F95: C | G95: CRIPAK | H95: ENST00000324803 | I95: frameshift_variant | J95: gatgtg/|p.Asp91fs/c.272_276delATGTG | K95: 1027 | L95: 999 | M95: 2027 | N95: 0.4928465713 | O95: 0 | P95: 1 | Q95: 1 | R95: 0 | S95: 1 | T95: 1 | U95: 0 | V95: 1 | W95: 5 | X95: NO | Y95: NO | Z95: NO | AA95: NO | AB95: O | AC95: NO | AD95: NO | AE95: NO | AF95: NO | AG95: NO | AH95: NO | AI95: NA | AJ95: NA | AK95: 38.09 | AL95: NA | AM95: 514 | AN95: 499 | AO95: 1013 | AP95: 0.4925962488 | AQ95: 513 | AR95: 500 | AS95: 1014 | AT95: 0.4930966469 | AU95: 1 | AV95: 1 | AW95: 1 | AX95: Probably True (-2)
A96: Expert, dbSNP, prediction, bq | B96: UPN_Te5_087 | C96: 4 | D96: 55569954 | E96: C | F96: T | G96: KIT,KIT | H96: ENST00000288135,ENST00000412167 | I96: missense_variant,missense_variant | J96: aCg/aTg|p.Thr274Met/c.821C>T,aCg/aTg|p.Thr274Met/c.821C>T | K96: 486 | L96: 426 | M96: 912 | N96: 0.4671052632 | O96: 1 | P96: 1 | Q96: 1 | R96: 1 | S96: 1 | T96: 1 | U96: 1 | V96: 1 | W96: 8 | X96: 0.0581 | Y96: NO | Z96: COSM5482830 | AA96: Something is odd... | AB96: 0 | AC96: NO | AD96: rs138585275 | AE96: YES | AF96: 0.0004612 | AG96: NO | AH96: NO | AI96: -3.72 | AJ96: Deleterious | AK96: 39.26 | AL96: 38.88 | AM96: 286 | AN96: 250 | AO96: 536 | AP96: 0.4664179104 | AQ96: 200 | AR96: 176 | AS96: 376 | AT96: 0.4680851064 | AU96: 1 | AV96: 1 | AW96: 1 | AX96: Probably True (-8)
A97: Expert, dbSNP, Cosmic, prediction, bq | B97: UPN_Te5_001 | C97: 4 | D97: 55599321 | E97: A | F97: T | G97: KIT,KIT | H97: ENST00000288135,ENST00000412167 | I97: missense_variant,missense_variant | J97: gAc/gTc|p.Asp816Val/c.2447A>T,gAc/gTc|p.Asp812Val/c.2435A>T | K97: 301 | L97: 257 | M97: 558 | N97: 0.4605734767 | O97: 1 | P97: 1 | Q97: 1 | R97: 1 | S97: 1 | T97: 0 | U97: 1 | V97: 1 | W97: 7 | X97: NO | Y97: NO | Z97: COSM1314 | AA97: genital_tract, haematopoietic_and_lymphoid_tissue, ovary, skin, testis | AB97: 4, 811, 5, 3, 15 | AC97: NO | AD97: rs121913507 | AE97: YES | AF97: NO | AG97: NO | AH97: NO | AI97: -7.53 | AJ97: Deleterious | AK97: 39.07 | AL97: 39.07 | AM97: 0 | AN97: 0 | AO97: 0 | AP97: NA | AQ97: 301 | AR97: 257 | AS97: 558 | AT97: 0.4605734767 | AU97: 1 | AV97: 1 | AW97: 1 | AX97: Probably True (-8)
A98: Expert, bq | B98: UPN_Te5_056 | C98: 4 | D98: 57333826 | E98: G | F98: C | G98: SRP72,SRP72,SRP72 | H98: ENST00000342756,ENST00000510663,ENST00000504757 | I98: missense_variant,missense_variant,missense_variant | J98: Gtg/Ctg|p.Val9Leu/c.25G>C,Gtg/Ctg|p.Val9Leu/c.25G>C,Gtg/Ctg|p.Val9Leu/c.25G>C | K98: 375 | L98: 303 | M98: 678 | N98: 0.4469026549 | O98: 1 | P98: 1 | Q98: 1 | R98: 1 | S98: 1 | T98: 1 | U98: 1 | V98: 1 | W98: 8 | X98: NO | Y98: NO | Z98: NO | AA98: NO | AB98: O | AC98: NO | AD98: NO | AE98: NO | AF98: 3.298e-05 | AG98: NO | AH98: NO | AI98: -0.75 | AJ98: Tolerated | AK98: 35.76 | AL98: 35.83 | AM98: 101 | AN98: 58 | AO98: 159 | AP98: 0.3647798742 | AQ98: 274 | AR98: 245 | AS98: 519 | AT98: 0.472061657 | AU98: 0.017942607 | AV98: 1 | AW98: 1 | AX98: Probably True (-6)
A99: Expert | B99: UPN_Te5_093 | C99: 4 | D99: 106155473 | E99: TC | F99: T | G99: TET2,TET2,TET2,TET2,TET2,TET2,TET2,TET2 | H99: ENST00000513237,ENST00000305737,ENST00000540549,ENST00000545826,ENST00000394764,ENST00000265149,ENST00000380013,ENST00000413648 | I99: frameshift_variant,frameshift_variant,frameshift_variant,frameshift_variant,frameshift_variant,frameshift_variant,frameshift_variant,frameshift_variant | J99: ttc/|p.Phe146fs/c.438delC,ttc/|p.Phe125fs/c.375delC,ttc/|p.Phe125fs/c.375delC,ttc/|p.Phe125fs/c.375delC,ttc/|p.Phe125fs/c.375delC,ttc/|p.Phe125fs/c.375delC,ttc/|p.Phe125fs/c.375delC,ttc/|p.Phe125fs/c.375delC | K99: 637 | L99: 601 | M99: 1240 | N99: 0.4846774194 | O99: 1 | P99: 1 | Q99: 1 | R99: 1 | S99: 1 | T99: 1 | U99: 0 | V99: 1 | W99: 7 | X99: NO | Y99: NO | Z99: NO | AA99: NA | AB99: NA | AC99: NO | AD99: NO | AE99: NO | AF99: NO | AG99: NO | AH99: NO | AI99: NA | AJ99: NA | AK99: 34.31 | AL99: NA | AM99: 345 | AN99: 322 | AO99: 669 | AP99: 0.4813153961 | AQ99: 292 | AR99: 279 | AS99: 571 | AT99: 0.4886164623 | AU99: 0.8641774763 | AV99: 1 | AW99: 1 | AX99: Probably True (-6)
A100: Expert | B100: UPN_Te5_022 | C100: 4 | D100: 106155778 | E100: G | F100: GA | G100: TET2,TET2,TET2,TET2,TET2,TET2,TET2,TET2 | H100: ENST00000513237,ENST00000305737,ENST00000540549,ENST00000545826,ENST00000394764,ENST00000265149,ENST00000380013,ENST00000413648 | I100: frameshift_variant,frameshift_variant,frameshift_variant,frameshift_variant,frameshift_variant,frameshift_variant,frameshift_variant,frameshift_variant | J100: aca/aAca|p.Thr250fs/c.748dupA,aca/aAca|p.Thr229fs/c.685dupA,aca/aAca|p.Thr229fs/c.685dupA,aca/aAca|p.Thr229fs/c.685dupA,aca/aAca|p.Thr229fs/c.685dupA,aca/aAca|p.Thr229fs/c.685dupA,aca/aAca|p.Thr229fs/c.685dupA,aca/aAca|p.Thr229fs/c.685dupA | K100: 317 | L100: 178 | M100: 317 | N100: 0.5615141956 | O100: 1 | P100: 1 | Q100: 1 | R100: 1 | S100: 1 | T100: 1 | U100: 0 | V100: 1 | W100: 7 | X100: NO | Y100: NO | Z100: NO | AA100: NA | AB100: NA | AC100: NO | AD100: NO | AE100: NO | AF100: 1.647e-05 | AG100: NO | AH100: NO | AI100: NA | AJ100: NA | AK100: 37.06 | AL100: NA | AM100: 219 | AN100: 114 | AO100: 219 | AP100: 0.5205479452 | AQ100: 98 | AR100: 64 | AS100: 98 | AT100: 0.6530612245 | AU100: 0.2726987842 | AV100: 1 | AW100: 1 | AX100: Probably True (-6)
A101: Expert | B101: UPN_Te5_019 | C101: 4 | D101: 106156059 | E101: AC | F101: A | G101: TET2,TET2,TET2,TET2,TET2,TET2,TET2,TET2 | H101: ENST00000513237,ENST00000305737,ENST00000540549,ENST00000545826,ENST00000394764,ENST00000265149,ENST00000380013,ENST00000413648 | I101: frameshift_variant,frameshift_variant,frameshift_variant,frameshift_variant,frameshift_variant,frameshift_variant,frameshift_variant,frameshift_variant | J101: caa/|p.Gln342fs/c.1024delC,caa/|p.Gln321fs/c.961delC,caa/|p.Gln321fs/c.961delC,caa/|p.Gln321fs/c.961delC,caa/|p.Gln321fs/c.961delC,caa/|p.Gln321fs/c.961delC,caa/|p.Gln321fs/c.961delC,caa/|p.Gln321fs/c.961delC | K101: 948 | L101: 372 | M101: 1320 | N101: 0.2818181818 | O101: 1 | P101: 1 | Q101: 1 | R101: 1 | S101: 1 | T101: 1 | U101: 0 | V101: 1 | W101: 7 | X101: NO | Y101: NO | Z101: NO | AA101: NO | AB101: O | AC101: NO | AD101: NO | AE101: NO | AF101: NO | AG101: NO | AH101: NO | AI101: NA | AJ101: NA | AK101: 38.41 | AL101: NA | AM101: 493 | AN101: 191 | AO101: 684 | AP101: 0.2792397661 | AQ101: 455 | AR101: 181 | AS101: 636 | AT101: 0.284591195 | AU101: 0.8543519221 | AV101: 1 | AW101: 1 | AX101: Probably True (-6)
A102: Expert, bq | B102: UPN_Te5_072 | C102: 4 | D102: 106156306 | E102: C | F102: T | G102: TET2,TET2,TET2,TET2,TET2,TET2,TET2,TET2 | H102: ENST00000513237,ENST00000305737,ENST00000540549,ENST00000545826,ENST00000394764,ENST00000265149,ENST00000380013,ENST00000413648 | I102: stop_gained,stop_gained,stop_gained,stop_gained,stop_gained,stop_gained,stop_gained,stop_gained | J102: Caa/Taa|p.Gln424*/c.1270C>T,Caa/Taa|p.Gln403*/c.1207C>T,Caa/Taa|p.Gln403*/c.1207C>T,Caa/Taa|p.Gln403*/c.1207C>T,Caa/Taa|p.Gln403*/c.1207C>T,Caa/Taa|p.Gln403*/c.1207C>T,Caa/Taa|p.Gln403*/c.1207C>T,Caa/Taa|p.Gln403*/c.1207C>T | K102: 486 | L102: 6934 | M102: 7423 | N102: 0.9341236697 | O102: 1 | P102: 1 | Q102: 0 | R102: 1 | S102: 1 | T102: 1 | U102: 1 | V102: 1 | W102: 7 | X102: NO | Y102: NO | Z102: NO | AA102: NO | AB102: O | AC102: NO | AD102: NO | AE102: NO | AF102: NO | AG102: NO | AH102: NO | AI102: NA | AJ102: NA | AK102: 36.71 | AL102: 36.85 | AM102: 214 | AN102: 3503 | AO102: 3717 | AP102: 0.9424266882 | AQ102: 272 | AR102: 3431 | AS102: 3706 | AT102: 0.9257960065 | AU102: 0.006446134682 | AV102: 1 | AW102: 1 | AX102: Probably True (-6)
A103: Expert, bq | B103: UPN_Te5_048 | C103: 4 | D103: 106156478 | E103: C | F103: T | G103: TET2,TET2,TET2,TET2,TET2,TET2,TET2,TET2 | H103: ENST00000513237,ENST00000305737,ENST00000540549,ENST00000545826,ENST00000394764,ENST00000265149,ENST00000380013,ENST00000413648 | I103: missense_variant,missense_variant,missense_variant,missense_variant,missense_variant,missense_variant,missense_variant,missense_variant | J103: tCc/tTc|p.Ser481Phe/c.1442C>T,tCc/tTc|p.Ser460Phe/c.1379C>T,tCc/tTc|p.Ser460Phe/c.1379C>T,tCc/tTc|p.Ser460Phe/c.1379C>T,tCc/tTc|p.Ser460Phe/c.1379C>T,tCc/tTc|p.Ser460Phe/c.1379C>T,tCc/tTc|p.Ser460Phe/c.1379C>T,tCc/tTc|p.Ser460Phe/c.1379C>T | K103: 885 | L103: 1001 | M103: 1889 | N103: 0.5299100053 | O103: 1 | P103: 1 | Q103: 1 | R103: 1 | S103: 1 | T103: 1 | U103: 1 | V103: 1 | W103: 8 | X103: 0.0116 | Y103: NO | Z103: NO | AA103: NA | AB103: NA | AC103: NO | AD103: rs376570662 | AE103: NO | AF103: 0.0001071 | AG103: NO | AH103: NO | AI103: -2.12 | AJ103: Tolerated | AK103: 37.83 | AL103: 37.74 | AM103: 313 | AN103: 364 | AO103: 678 | AP103: 0.5368731563 | AQ103: 572 | AR103: 637 | AS103: 1211 | AT103: 0.5260115607 | AU103: 0.665301563 | AV103: 1 | AW103: 1 | AX103: Probably True (-6)
A104: Expert | B104: UPN_Te5_052 | C104: 4 | D104: 106156617 | E104: AC | F104: A | G104: TET2,TET2,TET2,TET2,TET2,TET2,TET2,TET2 | H104: ENST00000513237,ENST00000305737,ENST00000540549,ENST00000545826,ENST00000394764,ENST00000265149,ENST00000380013,ENST00000413648 | I104: frameshift_variant,frameshift_variant,frameshift_variant,frameshift_variant,frameshift_variant,frameshift_variant,frameshift_variant,frameshift_variant | J104: cca/|p.Pro528fs/c.1583delC,cca/|p.Pro507fs/c.1520delC,cca/|p.Pro507fs/c.1520delC,cca/|p.Pro507fs/c.1520delC,cca/|p.Pro507fs/c.1520delC,cca/|p.Pro507fs/c.1520delC,cca/|p.Pro507fs/c.1520delC,cca/|p.Pro507fs/c.1520delC | K104: 1329 | L104: 1100 | M104: 2433 | N104: 0.4521167283 | O104: 1 | P104: 1 | Q104: 1 | R104: 1 | S104: 1 | T104: 1 | U104: 0 | V104: 1 | W104: 7 | X104: NO | Y104: NO | Z104: NO | AA104: NO | AB104: O | AC104: NO | AD104: NO | AE104: NO | AF104: NO | AG104: NO | AH104: NO | AI104: NA | AJ104: NA | AK104: 37.78 | AL104: NA | AM104: 603 | AN104: 517 | AO104: 1123 | AP104: 0.4603739982 | AQ104: 726 | AR104: 583 | AS104: 1310 | AT104: 0.4450381679 | AU104: 0.437326754 | AV104: 1 | AW104: 1 | AX104: Probably True (-6)
A105: Expert | B105: UPN_Te5_104 | C105: 4 | D105: 106156763 | E105: C | F105: CA | G105: TET2,TET2,TET2,TET2,TET2,TET2,TET2,TET2 | H105: ENST00000513237,ENST00000305737,ENST00000540549,ENST00000545826,ENST00000394764,ENST00000265149,ENST00000380013,ENST00000413648 | I105: frameshift_variant,frameshift_variant,frameshift_variant,frameshift_variant,frameshift_variant,frameshift_variant,frameshift_variant,frameshift_variant | J105: aca/aAca|p.Thr577fs/c.1729dupA,aca/aAca|p.Thr556fs/c.1666dupA,aca/aAca|p.Thr556fs/c.1666dupA,aca/aAca|p.Thr556fs/c.1666dupA,aca/aAca|p.Thr556fs/c.1666dupA,aca/aAca|p.Thr556fs/c.1666dupA,aca/aAca|p.Thr556fs/c.1666dupA,aca/aAca|p.Thr556fs/c.1666dupA | K105: 87 | L105: 34 | M105: 88 | N105: 0.3863636364 | O105: 1 | P105: 1 | Q105: 1 | R105: 1 | S105: 1 | T105: 1 | U105: 1 | V105: 1 | W105: 8 | X105: NO | Y105: NO | Z105: NO | AA105: NA | AB105: NA | AC105: NO | AD105: NO | AE105: NO | AF105: NO | AG105: NO | AH105: NO | AI105: NA | AJ105: NA | AK105: 38.6 | AL105: NA | AM105: 20 | AN105: 5 | AO105: 20 | AP105: 0.25 | AQ105: 67 | AR105: 29 | AS105: 68 | AT105: 0.4264705882 | AU105: 0.454064147 | AV105: 1 | AW105: 1 | AX105: Probably True (-6)
A106: Expert | B106: UPN_Te5_052 | C106: 4 | D106: 106156815 | E106: TCA | F106: T | G106: TET2,TET2,TET2,TET2,TET2,TET2,TET2,TET2 | H106: ENST00000513237,ENST00000305737,ENST00000540549,ENST00000545826,ENST00000394764,ENST00000265149,ENST00000380013,ENST00000413648 | I106: frameshift_variant,frameshift_variant,frameshift_variant,frameshift_variant,frameshift_variant,frameshift_variant,frameshift_variant,frameshift_variant | J106: cac/|p.His594fs/c.1781_1782delAC,cac/|p.His573fs/c.1718_1719delAC,cac/|p.His573fs/c.1718_1719delAC,cac/|p.His573fs/c.1718_1719delAC,cac/|p.His573fs/c.1718_1719delAC,cac/|p.His573fs/c.1718_1719delAC,cac/|p.His573fs/c.1718_1719delAC,cac/|p.His573fs/c.1718_1719delAC | K106: 1145 | L106: 1292 | M106: 2437 | N106: 0.5301600328 | O106: 1 | P106: 1 | Q106: 1 | R106: 1 | S106: 1 | T106: 1 | U106: 0 | V106: 1 | W106: 7 | X106: NO | Y106: NO | Z106: NO | AA106: NO | AB106: O | AC106: NO | AD106: NO | AE106: NO | AF106: NO | AG106: NO | AH106: NO | AI106: NA | AJ106: NA | AK106: 37.24 | AL106: NA | AM106: 564 | AN106: 647 | AO106: 1211 | AP106: 0.534269199 | AQ106: 581 | AR106: 645 | AS106: 1226 | AT106: 0.5261011419 | AU106: 0.7148994688 | AV106: 1 | AW106: 1 | AX106: Probably True (-6)
A107: Expert, bq | B107: UPN_Te5_103 | C107: 4 | D107: 106157053 | E107: C | F107: T | G107: TET2,TET2,TET2,TET2,TET2,TET2,TET2,TET2 | H107: ENST00000513237,ENST00000305737,ENST00000540549,ENST00000545826,ENST00000394764,ENST00000265149,ENST00000380013,ENST00000413648 | I107: stop_gained,stop_gained,stop_gained,stop_gained,stop_gained,stop_gained,stop_gained,stop_gained | J107: Cag/Tag|p.Gln673*/c.2017C>T,Cag/Tag|p.Gln652*/c.1954C>T,Cag/Tag|p.Gln652*/c.1954C>T,Cag/Tag|p.Gln652*/c.1954C>T,Cag/Tag|p.Gln652*/c.1954C>T,Cag/Tag|p.Gln652*/c.1954C>T,Cag/Tag|p.Gln652*/c.1954C>T,Cag/Tag|p.Gln652*/c.1954C>T | K107: 575 | L107: 477 | M107: 1052 | N107: 0.4534220532 | O107: 1 | P107: 1 | Q107: 1 | R107: 1 | S107: 1 | T107: 1 | U107: 1 | V107: 1 | W107: 8 | X107: NO | Y107: NO | Z107: NO | AA107: NA | AB107: NA | AC107: NO | AD107: NO | AE107: NO | AF107: 8.237e-06 | AG107: NO | AH107: NO | AI107: NA | AJ107: NA | AK107: 38.81 | AL107: 38.65 | AM107: 273 | AN107: 232 | AO107: 505 | AP107: 0.4594059406 | AQ107: 302 | AR107: 245 | AS107: 547 | AT107: 0.4478976234 | AU107: 0.7104779948 | AV107: 1 | AW107: 1 | AX107: Probably True (-6)
A108: Expert | B108: UPN_Te5_027 | C108: 4 | D108: 106157839 | E108: C | F108: CT | G108: TET2,TET2,TET2,TET2,TET2,TET2,TET2,TET2 | H108: ENST00000513237,ENST00000305737,ENST00000540549,ENST00000545826,ENST00000394764,ENST00000265149,ENST00000380013,ENST00000413648 | I108: frameshift_variant,frameshift_variant,frameshift_variant,frameshift_variant,frameshift_variant,frameshift_variant,frameshift_variant,frameshift_variant | J108: gct/Tgct|p.Ala936fs/c.2805dupT,gct/Tgct|p.Ala915fs/c.2742dupT,gct/Tgct|p.Ala915fs/c.2742dupT,gct/Tgct|p.Ala915fs/c.2742dupT,gct/Tgct|p.Ala915fs/c.2742dupT,gct/Tgct|p.Ala915fs/c.2742dupT,gct/Tgct|p.Ala915fs/c.2742dupT,gct/Tgct|p.Ala915fs/c.2742dupT | K108: 574 | L108: 200 | M108: 575 | N108: 0.347826087 | O108: 1 | P108: 1 | Q108: 1 | R108: 1 | S108: 1 | T108: 1 | U108: 0 | V108: 1 | W108: 7 | X108: NO | Y108: NO | Z108: NO | AA108: NO | AB108: O | AC108: NO | AD108: NO | AE108: NO | AF108: NO | AG108: NO | AH108: NO | AI108: NA | AJ108: NA | AK108: 37.9 | AL108: NA | AM108: 0 | AN108: 0 | AO108: 0 | AP108: NA | AQ108: 574 | AR108: 200 | AS108: 575 | AT108: 0.347826087 | AU108: 1 | AV108: 1 | AW108: 1 | AX108: Probably True (-6)
A109: Expert | B109: UPN_Te5_083 | C109: 4 | D109: 106157857 | E109: T | F109: TTG | G109: TET2,TET2,TET2,TET2,TET2,TET2,TET2,TET2 | H109: ENST00000513237,ENST00000305737,ENST00000540549,ENST00000545826,ENST00000394764,ENST00000265149,ENST00000380013,ENST00000413648 | I109: frameshift_variant+stop_gained,frameshift_variant+stop_gained,frameshift_variant+stop_gained,frameshift_variant+stop_gained,frameshift_variant+stop_gained,frameshift_variant+stop_gained,frameshift_variant+stop_gained,frameshift_variant+stop_gained | J109: ata/TGata|p.Ile942fs/c.2822_2823dupTG,ata/TGata|p.Ile921fs/c.2759_2760dupTG,ata/TGata|p.Ile921fs/c.2759_2760dupTG,ata/TGata|p.Ile921fs/c.2759_2760dupTG,ata/TGata|p.Ile921fs/c.2759_2760dupTG,ata/TGata|p.Ile921fs/c.2759_2760dupTG,ata/TGata|p.Ile921fs/c.2759_2760dupTG,ata/TGata|p.Ile921fs/c.2759_2760dupTG | K109: 834 | L109: 27 | M109: 835 | N109: 0.03233532934 | O109: 0 | P109: 0 | Q109: 0 | R109: 1 | S109: 1 | T109: 0 | U109: 0 | V109: 1 | W109: 3 | X109: NO | Y109: NO | Z109: NO | AA109: NO | AB109: O | AC109: NO | AD109: NO | AE109: NO | AF109: NO | AG109: NO | AH109: NO | AI109: NA | AJ109: NA | AK109: 38.65 | AL109: NA | AM109: 219 | AN109: 6 | AO109: 219 | AP109: 0.02739726027 | AQ109: 615 | AR109: 21 | AS109: 616 | AT109: 0.03409090909 | AU109: 0.8243551954 | AV109: 1 | AW109: 1 | AX109: Probably True (-1)
A110: Expert | B110: UPN_Te5_019 | C110: 4 | D110: 106157885 | E110: C | F110: CTG | G110: TET2,TET2,TET2,TET2,TET2,TET2,TET2,TET2 | H110: ENST00000513237,ENST00000305737,ENST00000540549,ENST00000545826,ENST00000394764,ENST00000265149,ENST00000380013,ENST00000413648 | I110: frameshift_variant,frameshift_variant,frameshift_variant,frameshift_variant,frameshift_variant,frameshift_variant,frameshift_variant,frameshift_variant | J110: cct/TGcct|p.Pro952fs/c.2852_2853dupTG,cct/TGcct|p.Pro931fs/c.2789_2790dupTG,cct/TGcct|p.Pro931fs/c.2789_2790dupTG,cct/TGcct|p.Pro931fs/c.2789_2790dupTG,cct/TGcct|p.Pro931fs/c.2789_2790dupTG,cct/TGcct|p.Pro931fs/c.2789_2790dupTG,cct/TGcct|p.Pro931fs/c.2789_2790dupTG,cct/TGcct|p.Pro931fs/c.2789_2790dupTG | K110: 420 | L110: 41 | M110: 420 | N110: 0.09761904762 | O110: 1 | P110: 1 | Q110: 0 | R110: 1 | S110: 1 | T110: 1 | U110: 0 | V110: 1 | W110: 6 | X110: NO | Y110: NO | Z110: NO | AA110: NO | AB110: O | AC110: NO | AD110: NO | AE110: NO | AF110: NO | AG110: NO | AH110: NO | AI110: NA | AJ110: NA | AK110: 38.95 | AL110: NA | AM110: 216 | AN110: 28 | AO110: 216 | AP110: 0.1296296296 | AQ110: 204 | AR110: 13 | AS110: 204 | AT110: 0.0637254902 | AU110: 0.04854762697 | AV110: 1 | AW110: 1 | AX110: Probably True (-5)
A111: Expert | B111: UPN_Te5_027 | C111: 4 | D111: 106157934 | E111: CA | F111: C | G111: TET2,TET2,TET2,TET2,TET2,TET2,TET2,TET2 | H111: ENST00000513237,ENST00000305737,ENST00000540549,ENST00000545826,ENST00000394764,ENST00000265149,ENST00000380013,ENST00000413648 | I111: frameshift_variant,frameshift_variant,frameshift_variant,frameshift_variant,frameshift_variant,frameshift_variant,frameshift_variant,frameshift_variant | J111: act/|p.Thr967fs/c.2899delA,act/|p.Thr946fs/c.2836delA,act/|p.Thr946fs/c.2836delA,act/|p.Thr946fs/c.2836delA,act/|p.Thr946fs/c.2836delA,act/|p.Thr946fs/c.2836delA,act/|p.Thr946fs/c.2836delA,act/|p.Thr946fs/c.2836delA | K111: 438 | L111: 212 | M111: 651 | N111: 0.3256528418 | O111: 1 | P111: 1 | Q111: 1 | R111: 1 | S111: 1 | T111: 1 | U111: 0 | V111: 1 | W111: 7 | X111: NO | Y111: NO | Z111: NO | AA111: NO | AB111: O | AC111: NO | AD111: NO | AE111: NO | AF111: NO | AG111: NO | AH111: NO | AI111: NA | AJ111: NA | AK111: 33.64 | AL111: NA | AM111: 223 | AN111: 106 | AO111: 329 | AP111: 0.3221884498 | AQ111: 215 | AR111: 106 | AS111: 322 | AT111: 0.3291925466 | AU111: 0.8671925117 | AV111: 1 | AW111: 1 | AX111: Probably True (-6)
A112: Expert | B112: UPN_Te5_010 | C112: 4 | D112: 106157982 | E112: AC | F112: A | G112: TET2,TET2,TET2,TET2,TET2,TET2,TET2,TET2 | H112: ENST00000513237,ENST00000305737,ENST00000540549,ENST00000545826,ENST00000394764,ENST00000265149,ENST00000380013,ENST00000413648 | I112: frameshift_variant,frameshift_variant,frameshift_variant,frameshift_variant,frameshift_variant,frameshift_variant,frameshift_variant,frameshift_variant | J112: cag/|p.Gln983fs/c.2947delC,cag/|p.Gln962fs/c.2884delC,cag/|p.Gln962fs/c.2884delC,cag/|p.Gln962fs/c.2884delC,cag/|p.Gln962fs/c.2884delC,cag/|p.Gln962fs/c.2884delC,cag/|p.Gln962fs/c.2884delC,cag/|p.Gln962fs/c.2884delC | K112: 42 | L112: 37 | M112: 79 | N112: 0.4683544304 | O112: 1 | P112: 1 | Q112: 1 | R112: 1 | S112: 1 | T112: 1 | U112: 1 | V112: 1 | W112: 8 | X112: NO | Y112: NO | Z112: NO | AA112: NO | AB112: O | AC112: NO | AD112: NO | AE112: NO | AF112: NO | AG112: NO | AH112: NO | AI112: NA | AJ112: NA | AK112: 40.4 | AL112: NA | AM112: 0 | AN112: 0 | AO112: 0 | AP112: NA | AQ112: 42 | AR112: 37 | AS112: 79 | AT112: 0.4683544304 | AU112: 1 | AV112: 1 | AW112: 1 | AX112: Probably True (-6)
A113: Expert | B113: UPN_Te5_010 | C113: 4 | D113: 106158201 | E113: GT | F113: G | G113: TET2,TET2,TET2,TET2,TET2,TET2,TET2,TET2 | H113: ENST00000513237,ENST00000305737,ENST00000540549,ENST00000545826,ENST00000394764,ENST00000265149,ENST00000380013,ENST00000413648 | I113: frameshift_variant,frameshift_variant,frameshift_variant,frameshift_variant,frameshift_variant,frameshift_variant,frameshift_variant,frameshift_variant | J113: ttt/|p.His1057fs/c.3168delT,ttt/|p.His1036fs/c.3105delT,ttt/|p.His1036fs/c.3105delT,ttt/|p.His1036fs/c.3105delT,ttt/|p.His1036fs/c.3105delT,ttt/|p.His1036fs/c.3105delT,ttt/|p.His1036fs/c.3105delT,ttt/|p.His1036fs/c.3105delT | K113: 190 | L113: 148 | M113: 338 | N113: 0.4378698225 | O113: 1 | P113: 1 | Q113: 1 | R113: 1 | S113: 1 | T113: 1 | U113: 0 | V113: 1 | W113: 7 | X113: NO | Y113: NO | Z113: NO | AA113: NA | AB113: NA | AC113: NO | AD113: NO | AE113: NO | AF113: NO | AG113: NO | AH113: NO | AI113: NA | AJ113: NA | AK113: 37.55 | AL113: NA | AM113: 136 | AN113: 110 | AO113: 246 | AP113: 0.4471544715 | AQ113: 54 | AR113: 38 | AS113: 92 | AT113: 0.4130434783 | AU113: 0.6230142367 | AV113: 1 | AW113: 1 | AX113: Probably True (-6)
A114: Expert, bq | B114: UPN_Te5_093 | C114: 4 | D114: 106158478 | E114: C | F114: T | G114: TET2,TET2,TET2,TET2,TET2,TET2,TET2,TET2 | H114: ENST00000513237,ENST00000305737,ENST00000540549,ENST00000545826,ENST00000394764,ENST00000265149,ENST00000380013,ENST00000413648 | I114: stop_gained,stop_gained,stop_gained,stop_gained,stop_gained,stop_gained,stop_gained,stop_gained | J114: Caa/Taa|p.Gln1148*/c.3442C>T,Caa/Taa|p.Gln1127*/c.3379C>T,Caa/Taa|p.Gln1127*/c.3379C>T,Caa/Taa|p.Gln1127*/c.3379C>T,Caa/Taa|p.Gln1127*/c.3379C>T,Caa/Taa|p.Gln1127*/c.3379C>T,Caa/Taa|p.Gln1127*/c.3379C>T,Caa/Taa|p.Gln1127*/c.3379C>T | K114: 921 | L114: 635 | M114: 1558 | N114: 0.4075738126 | O114: 1 | P114: 1 | Q114: 1 | R114: 1 | S114: 1 | T114: 1 | U114: 1 | V114: 1 | W114: 8 | X114: NO | Y114: NO | Z114: NO | AA114: NA | AB114: NA | AC114: NO | AD114: NO | AE114: NO | AF114: NO | AG114: NO | AH114: NO | AI114: NA | AJ114: NA | AK114: 38.97 | AL114: 39.3 | AM114: 112 | AN114: 97 | AO114: 209 | AP114: 0.4641148325 | AQ114: 809 | AR114: 538 | AS114: 1349 | AT114: 0.3988139362 | AU114: 0.08203101487 | AV114: 1 | AW114: 1 | AX114: Probably True (-6)
A115: Expert, bq | B115: UPN_Te5_028 | C115: 4 | D115: 106162507 | E115: G | F115: T | G115: TET2,TET2,TET2,TET2 | H115: ENST00000513237,ENST00000540549,ENST00000380013,ENST00000413648 | I115: stop_gained,stop_gained,stop_gained,stop_gained | J115: Gaa/Taa|p.Glu1162*/c.3484G>T,Gaa/Taa|p.Glu1141*/c.3421G>T,Gaa/Taa|p.Glu1141*/c.3421G>T,Gaa/Taa|p.Glu1141*/c.3421G>T | K115: 402 | L115: 285 | M115: 687 | N115: 0.4148471616 | O115: 1 | P115: 1 | Q115: 1 | R115: 1 | S115: 1 | T115: 1 | U115: 1 | V115: 1 | W115: 8 | X115: NO | Y115: NO | Z115: NO | AA115: NO | AB115: O | AC115: NO | AD115: NO | AE115: NO | AF115: NO | AG115: NO | AH115: NO | AI115: NA | AJ115: NA | AK115: 39.09 | AL115: 39.91 | AM115: 180 | AN115: 118 | AO115: 298 | AP115: 0.3959731544 | AQ115: 222 | AR115: 167 | AS115: 389 | AT115: 0.4293059126 | AU115: 0.3910077724 | AV115: 1 | AW115: 1 | AX115: Probably True (-6)
A116: Expert, bq | B116: UPN_Te5_057 | C116: 4 | D116: 106164778 | E116: C | F116: T | G116: TET2,TET2,TET2 | H116: ENST00000513237,ENST00000540549,ENST00000380013 | I116: stop_gained,stop_gained,stop_gained | J116: Cga/Tga|p.Arg1237*/c.3709C>T,Cga/Tga|p.Arg1216*/c.3646C>T,Cga/Tga|p.Arg1216*/c.3646C>T | K116: 407 | L116: 42 | M116: 450 | N116: 0.09333333333 | O116: 0 | P116: 1 | Q116: 0 | R116: 1 | S116: 1 | T116: 0 | U116: 0 | V116: 1 | W116: 4 | X116: NO | Y116: NO | Z116: NO | AA116: NA | AB116: NA | AC116: NO | AD116: NO | AE116: NO | AF116: NO | AG116: NO | AH116: NO | AI116: NA | AJ116: NA | AK116: 36.07 | AL116: 34.76 | AM116: 0 | AN116: 0 | AO116: 0 | AP116: NA | AQ116: 407 | AR116: 42 | AS116: 450 | AT116: 0.09333333333 | AU116: 1 | AV116: 1 | AW116: 1 | AX116: Probably True (-3)
A117: Expert, prediction, bq | B117: UPN_Te5_017 | C117: 4 | D117: 106180796 | E117: G | F117: A | G117: TET2,TET2,TET2 | H117: ENST00000513237,ENST00000540549,ENST00000380013 | I117: missense_variant,missense_variant,missense_variant | J117: gGg/gAg|p.Gly1296Glu/c.3887G>A,gGg/gAg|p.Gly1275Glu/c.3824G>A,gGg/gAg|p.Gly1275Glu/c.3824G>A | K117: 222 | L117: 130 | M117: 352 | N117: 0.3693181818 | O117: 1 | P117: 1 | Q117: 1 | R117: 1 | S117: 1 | T117: 1 | U117: 1 | V117: 1 | W117: 8 | X117: NO | Y117: NO | Z117: NO | AA117: NA | AB117: NA | AC117: NO | AD117: NO | AE117: NO | AF117: NO | AG117: NO | AH117: NO | AI117: -7.23 | AJ117: Deleterious | AK117: 36.41 | AL117: 37.03 | AM117: 126 | AN117: 55 | AO117: 181 | AP117: 0.3038674033 | AQ117: 96 | AR117: 75 | AS117: 171 | AT117: 0.4385964912 | AU117: 0.01096364498 | AV117: 1 | AW117: 1 | AX117: Probably True (-7)
A118: Expert, prediction, bq | B118: UPN_Te5_025 | C118: 4 | D118: 106182926 | E118: T | F118: C | G118: TET2,TET2,TET2 | H118: ENST00000513237,ENST00000540549,ENST00000380013 | I118: missense_variant,missense_variant,missense_variant | J118: cTg/cCg|p.Leu1343Pro/c.4028T>C,cTg/cCg|p.Leu1322Pro/c.3965T>C,cTg/cCg|p.Leu1322Pro/c.3965T>C | K118: 185 | L118: 101 | M118: 287 | N118: 0.3519163763 | O118: 1 | P118: 1 | Q118: 1 | R118: 1 | S118: 1 | T118: 1 | U118: 1 | V118: 1 | W118: 8 | X118: NO | Y118: NO | Z118: NO | AA118: NA | AB118: NA | AC118: NO | AD118: NO | AE118: NO | AF118: NO | AG118: NO | AH118: NO | AI118: -6.58 | AJ118: Deleterious | AK118: 38.29 | AL118: 38.51 | AM118: 23 | AN118: 5 | AO118: 28 | AP118: 0.1785714286 | AQ118: 162 | AR118: 96 | AS118: 259 | AT118: 0.3706563707 | AU118: 0.05918604773 | AV118: 1 | AW118: 1 | AX118: Probably True (-7)
A119: Expert, bq | B119: UPN_Te5_042 | C119: 4 | D119: 106182931 | E119: T | F119: C | G119: TET2,TET2,TET2 | H119: ENST00000513237,ENST00000540549,ENST00000380013 | I119: missense_variant,missense_variant,missense_variant | J119: Tct/Cct|p.Ser1345Pro/c.4033T>C,Tct/Cct|p.Ser1324Pro/c.3970T>C,Tct/Cct|p.Ser1324Pro/c.3970T>C | K119: 105 | L119: 132 | M119: 237 | N119: 0.5569620253 | O119: 1 | P119: 1 | Q119: 1 | R119: 1 | S119: 1 | T119: 1 | U119: 1 | V119: 1 | W119: 8 | X119: NO | Y119: NO | Z119: NO | AA119: NO | AB119: O | AC119: NO | AD119: NO | AE119: NO | AF119: NO | AG119: NO | AH119: NO | AI119: -2.59 | AJ119: Deleterious | AK119: 37.82 | AL119: 38.84 | AM119: 16 | AN119: 34 | AO119: 50 | AP119: 0.68 | AQ119: 89 | AR119: 98 | AS119: 187 | AT119: 0.5240641711 | AU119: 0.05520991955 | AV119: 1 | AW119: 1 | AX119: Probably True (-6)
A120: Expert, bq | B120: UPN_Te5_028 | C120: 4 | D120: 106182972 | E120: T | F120: A | G120: TET2,TET2,TET2 | H120: ENST00000513237,ENST00000540549,ENST00000380013 | I120: stop_gained,stop_gained,stop_gained | J120: taT/taA|p.Tyr1358*/c.4074T>A,taT/taA|p.Tyr1337*/c.4011T>A,taT/taA|p.Tyr1337*/c.4011T>A | K120: 47 | L120: 63 | M120: 110 | N120: 0.5727272727 | O120: 1 | P120: 1 | Q120: 1 | R120: 1 | S120: 1 | T120: 1 | U120: 1 | V120: 1 | W120: 8 | X120: NO | Y120: NO | Z120: NO | AA120: NA | AB120: NA | AC120: NO | AD120: NO | AE120: NO | AF120: NO | AG120: NO | AH120: NO | AI120: NA | AJ120: NA | AK120: 38.7 | AL120: 38.37 | AM120: 23 | AN120: 31 | AO120: 54 | AP120: 0.5740740741 | AQ120: 24 | AR120: 32 | AS120: 56 | AT120: 0.5714285714 | AU120: 1 | AV120: 1 | AW120: 1 | AX120: Probably True (-6)
A121: Expert, prediction, bq | B121: UPN_Te5_104 | C121: 4 | D121: 106190868 | E121: C | F121: A | G121: TET2,TET2,TET2 | H121: ENST00000513237,ENST00000540549,ENST00000380013 | I121: missense_variant,missense_variant,missense_variant | J121: caC/caA|p.His1403Gln/c.4209C>A,caC/caA|p.His1382Gln/c.4146C>A,caC/caA|p.His1382Gln/c.4146C>A | K121: 121 | L121: 123 | M121: 244 | N121: 0.5040983607 | O121: 1 | P121: 1 | Q121: 1 | R121: 1 | S121: 1 | T121: 1 | U121: 1 | V121: 1 | W121: 8 | X121: NO | Y121: NO | Z121: NO | AA121: NO | AB121: O | AC121: NO | AD121: NO | AE121: NO | AF121: NO | AG121: NO | AH121: NO | AI121: -7.6 | AJ121: Deleterious | AK121: 38.83 | AL121: 38.41 | AM121: 113 | AN121: 112 | AO121: 225 | AP121: 0.4977777778 | AQ121: 8 | AR121: 11 | AS121: 19 | AT121: 0.5789473684 | AU121: 0.6341081298 | AV121: 1 | AW121: 1 | AX121: Probably True (-7)
A122: Expert, prediction, bq | B122: UPN_Te5_100 | C122: 4 | D122: 106190872 | E122: G | F122: C | G122: TET2,TET2,TET2 | H122: ENST00000513237,ENST00000540549,ENST00000380013 | I122: missense_variant,missense_variant,missense_variant | J122: Gac/Cac|p.Asp1405His/c.4213G>C,Gac/Cac|p.Asp1384His/c.4150G>C,Gac/Cac|p.Asp1384His/c.4150G>C | K122: 212 | L122: 212 | M122: 424 | N122: 0.5 | O122: 1 | P122: 1 | Q122: 1 | R122: 1 | S122: 1 | T122: 1 | U122: 1 | V122: 1 | W122: 8 | X122: NO | Y122: NO | Z122: NO | AA122: NA | AB122: NA | AC122: NO | AD122: NO | AE122: NO | AF122: NO | AG122: NO | AH122: NO | AI122: -6.74 | AJ122: Deleterious | AK122: 38.45 | AL122: 39.57 | AM122: 194 | AN122: 188 | AO122: 382 | AP122: 0.4921465969 | AQ122: 18 | AR122: 24 | AS122: 42 | AT122: 0.5714285714 | AU122: 0.4166037015 | AV122: 1 | AW122: 1 | AX122: Probably True (-7)
A123: Expert | B123: UPN_Te5_022 | C123: 4 | D123: 106193849 | E123: G | F123: GA | G123: TET2,TET2,TET2 | H123: ENST00000513237,ENST00000540549,ENST00000380013 | I123: frameshift_variant,frameshift_variant,frameshift_variant | J123: cgg/Acgg|p.Arg1461fs/c.4380dupA,cgg/Acgg|p.Arg1440fs/c.4317dupA,cgg/Acgg|p.Arg1440fs/c.4317dupA | K123: 160 | L123: 63 | M123: 160 | N123: 0.39375 | O123: 1 | P123: 1 | Q123: 1 | R123: 1 | S123: 1 | T123: 1 | U123: 0 | V123: 1 | W123: 7 | X123: NO | Y123: NO | Z123: NO | AA123: NA | AB123: NA | AC123: NO | AD123: NO | AE123: NO | AF123: 3.917e-05 | AG123: NO | AH123: NO | AI123: NA | AJ123: NA | AK123: 36.52 | AL123: NA | AM123: 160 | AN123: 63 | AO123: 160 | AP123: 0.39375 | AQ123: 0 | AR123: 0 | AS123: 0 | AT123: NA | AU123: 1 | AV123: 1 | AW123: 1 | AX123: Probably True (-6)
A124: Expert | B124: UPN_Te5_105 | C124: 4 | D124: 106193978 | E124: CTCCCT | F124: C | G124: TET2,TET2,TET2 | H124: ENST00000513237,ENST00000540549,ENST00000380013 | I124: frameshift_variant,frameshift_variant,frameshift_variant | J124: tccctg/|p.Ser1502fs/c.4504_4508delTCCCT,tccctg/|p.Ser1481fs/c.4441_4445delTCCCT,tccctg/|p.Ser1481fs/c.4441_4445delTCCCT | K124: 136 | L124: 133 | M124: 270 | N124: 0.4925925926 | O124: 0 | P124: 1 | Q124: 0 | R124: 1 | S124: 1 | T124: 1 | U124: 0 | V124: 1 | W124: 5 | X124: NO | Y124: NO | Z124: NO | AA124: NO | AB124: O | AC124: NO | AD124: NO | AE124: NO | AF124: NO | AG124: NO | AH124: NO | AI124: NA | AJ124: NA | AK124: 36.36 | AL124: NA | AM124: 66 | AN124: 69 | AO124: 135 | AP124: 0.5111111111 | AQ124: 70 | AR124: 64 | AS124: 135 | AT124: 0.4740740741 | AU124: 0.6264007575 | AV124: 1 | AW124: 1 | AX124: Probably True (-5)
A125: Expert, bq | B125: UPN_Te5_097 | C125: 4 | D125: 106194051 | E125: G | F125: A | G125: TET2,TET2,TET2 | H125: ENST00000513237,ENST00000540549,ENST00000380013 | I125: missense_variant,missense_variant,missense_variant | J125: Gca/Aca|p.Ala1526Thr/c.4576G>A,Gca/Aca|p.Ala1505Thr/c.4513G>A,Gca/Aca|p.Ala1505Thr/c.4513G>A | K125: 1701 | L125: 1522 | M125: 3226 | N125: 0.4717916925 | O125: 1 | P125: 1 | Q125: 1 | R125: 1 | S125: 1 | T125: 1 | U125: 1 | V125: 1 | W125: 8 | X125: NO | Y125: NO | Z125: NO | AA125: NA | AB125: NA | AC125: NO | AD125: NO | AE125: NO | AF125: 0.0001973 | AG125: NO | AH125: NO | AI125: -0.87 | AJ125: Tolerated | AK125: 35.86 | AL125: 34.99 | AM125: 848 | AN125: 771 | AO125: 1620 | AP125: 0.4759259259 | AQ125: 853 | AR125: 751 | AS125: 1606 | AT125: 0.4676214197 | AU125: 0.672007346 | AV125: 1 | AW125: 1 | AX125: Probably True (-6)
A126: Expert, bq | B126: UPN_Te5_042 | C126: 4 | D126: 106196324 | E126: C | F126: T | G126: TET2,TET2,TET2 | H126: ENST00000513237,ENST00000540549,ENST00000380013 | I126: stop_gained,stop_gained,stop_gained | J126: Cag/Tag|p.Gln1574*/c.4720C>T,Cag/Tag|p.Gln1553*/c.4657C>T,Cag/Tag|p.Gln1553*/c.4657C>T | K126: 371 | L126: 83 | M126: 456 | N126: 0.1820175439 | O126: 1 | P126: 1 | Q126: 0 | R126: 1 | S126: 1 | T126: 1 | U126: 1 | V126: 1 | W126: 7 | X126: NO | Y126: NO | Z126: NO | AA126: NA | AB126: NA | AC126: NO | AD126: NO | AE126: NO | AF126: NO | AG126: NO | AH126: NO | AI126: NA | AJ126: NA | AK126: 34.13 | AL126: 36.19 | AM126: 125 | AN126: 47 | AO126: 172 | AP126: 0.273255814 | AQ126: 246 | AR126: 36 | AS126: 284 | AT126: 0.1267605634 | AU126: 0.0001527616274 | AV126: 1 | AW126: 1 | AX126: Probably True (-6)
A127: Expert, prediction, bq | B127: UPN_Te5_064 | C127: 4 | D127: 106197246 | E127: G | F127: A | G127: TET2,TET2,TET2 | H127: ENST00000513237,ENST00000540549,ENST00000380013 | I127: missense_variant,missense_variant,missense_variant | J127: gGg/gAg|p.Gly1881Glu/c.5642G>A,gGg/gAg|p.Gly1860Glu/c.5579G>A,gGg/gAg|p.Gly1860Glu/c.5579G>A | K127: 1634 | L127: 1172 | M127: 2806 | N127: 0.4176764077 | O127: 1 | P127: 1 | Q127: 1 | R127: 1 | S127: 1 | T127: 1 | U127: 1 | V127: 1 | W127: 8 | X127: NO | Y127: NO | Z127: NO | AA127: NA | AB127: NA | AC127: NO | AD127: NO | AE127: NO | AF127: NO | AG127: NO | AH127: NO | AI127: -7.25 | AJ127: Deleterious | AK127: 38.13 | AL127: 37.36 | AM127: 410 | AN127: 346 | AO127: 756 | AP127: 0.4576719577 | AQ127: 1224 | AR127: 826 | AS127: 2050 | AT127: 0.4029268293 | AU127: 0.009641855831 | AV127: 1 | AW127: 1 | AX127: Probably True (-7)
A128: Expert, prediction, bq | B128: UPN_Te5_083 | C128: 4 | D128: 106197285 | E128: T | F128: C | G128: TET2,TET2,TET2 | H128: ENST00000513237,ENST00000540549,ENST00000380013 | I128: missense_variant,missense_variant,missense_variant | J128: aTt/aCt|p.Ile1894Thr/c.5681T>C,aTt/aCt|p.Ile1873Thr/c.5618T>C,aTt/aCt|p.Ile1873Thr/c.5618T>C | K128: 556 | L128: 435 | M128: 991 | N128: 0.438950555 | O128: 1 | P128: 1 | Q128: 1 | R128: 1 | S128: 1 | T128: 1 | U128: 1 | V128: 1 | W128: 8 | X128: NO | Y128: NO | Z128: NO | AA128: NA | AB128: NA | AC128: NO | AD128: rs116519313 | AE128: NO | AF128: NO | AG128: NO | AH128: NO | AI128: -4.53 | AJ128: Deleterious | AK128: 36.4 | AL128: 35.45 | AM128: 325 | AN128: 219 | AO128: 544 | AP128: 0.4025735294 | AQ128: 231 | AR128: 216 | AS128: 447 | AT128: 0.4832214765 | AU128: 0.01211689295 | AV128: 1 | AW128: 1 | AX128: Probably True (-7)
A129: Expert, prediction, bq | B129: UPN_Te5_025 | C129: 4 | D129: 106197302 | E129: G | F129: A | G129: TET2,TET2,TET2 | H129: ENST00000513237,ENST00000540549,ENST00000380013 | I129: missense_variant,missense_variant,missense_variant | J129: Gag/Aag|p.Glu1900Lys/c.5698G>A,Gag/Aag|p.Glu1879Lys/c.5635G>A,Gag/Aag|p.Glu1879Lys/c.5635G>A | K129: 222 | L129: 177 | M129: 399 | N129: 0.4436090226 | O129: 1 | P129: 1 | Q129: 1 | R129: 1 | S129: 1 | T129: 1 | U129: 1 | V129: 1 | W129: 8 | X129: NO | Y129: NO | Z129: NO | AA129: NO | AB129: O | AC129: NO | AD129: NO | AE129: NO | AF129: NO | AG129: NO | AH129: NO | AI129: -3.62 | AJ129: Deleterious | AK129: 38.5 | AL129: 38.14 | AM129: 99 | AN129: 63 | AO129: 162 | AP129: 0.3888888889 | AQ129: 123 | AR129: 114 | AS129: 237 | AT129: 0.4810126582 | AU129: 0.08109522353 | AV129: 1 | AW129: 1 | AX129: Probably True (-7)
A130: Expert, prediction, bq | B130: UPN_Te5_021 | C130: 4 | D130: 106197402 | E130: A | F130: G | G130: TET2,TET2,TET2 | H130: ENST00000513237,ENST00000540549,ENST00000380013 | I130: missense_variant,missense_variant,missense_variant | J130: cAt/cGt|p.His1933Arg/c.5798A>G,cAt/cGt|p.His1912Arg/c.5735A>G,cAt/cGt|p.His1912Arg/c.5735A>G | K130: 207 | L130: 748 | M130: 955 | N130: 0.7832460733 | O130: 1 | P130: 1 | Q130: 1 | R130: 1 | S130: 1 | T130: 1 | U130: 1 | V130: 1 | W130: 8 | X130: NO | Y130: NO | Z130: NO | AA130: NA | AB130: NA | AC130: NO | AD130: NO | AE130: NO | AF130: NO | AG130: NO | AH130: NO | AI130: -7.24 | AJ130: Deleterious | AK130: 34.48 | AL130: 34.54 | AM130: 99 | AN130: 426 | AO130: 525 | AP130: 0.8114285714 | AQ130: 108 | AR130: 322 | AS130: 430 | AT130: 0.7488372093 | AU130: 0.02202431851 | AV130: 1 | AW130: 1 | AX130: Probably True (-7)
A131: Expert | B131: UPN_Te5_094 | C131: 4 | D131: 106197403 | E131: T | F131: TG | G131: TET2,TET2,TET2 | H131: ENST00000513237,ENST00000540549,ENST00000380013 | I131: frameshift_variant,frameshift_variant,frameshift_variant | J131: ggc/ggGc|p.Ala1936fs/c.5801dupG,ggc/ggGc|p.Ala1915fs/c.5738dupG,ggc/ggGc|p.Ala1915fs/c.5738dupG | K131: 1528 | L131: 520 | M131: 1528 | N131: 0.3403141361 | O131: 1 | P131: 1 | Q131: 1 | R131: 1 | S131: 1 | T131: 1 | U131: 0 | V131: 1 | W131: 7 | X131: NO | Y131: NO | Z131: NO | AA131: NO | AB131: O | AC131: NO | AD131: NO | AE131: NO | AF131: NO | AG131: NO | AH131: NO | AI131: NA | AJ131: NA | AK131: 34.61 | AL131: NA | AM131: 928 | AN131: 216 | AO131: 928 | AP131: 0.2327586207 | AQ131: 600 | AR131: 304 | AS131: 600 | AT131: 0.5066666667 | AU131: 4.163585485e-14 | AV131: 1 | AW131: 1 | AX131: Probably True (-6)
A132: Expert, prediction, bq | B132: UPN_Te5_066 | C132: 4 | D132: 153244091 | E132: C | F132: A | G132: FBXW7,FBXW7,FBXW7,FBXW7,FBXW7,FBXW7 | H132: ENST00000281708,ENST00000296555,ENST00000263981,ENST00000603548,ENST00000393956,ENST00000603841 | I132: missense_variant,missense_variant,missense_variant,missense_variant,missense_variant,missense_variant | J132: cGg/cTg|p.Arg689Leu/c.2066G>T,cGg/cTg|p.Arg571Leu/c.1712G>T,cGg/cTg|p.Arg609Leu/c.1826G>T,cGg/cTg|p.Arg689Leu/c.2066G>T,cGg/cTg|p.Arg513Leu/c.1538G>T,cGg/cTg|p.Arg689Leu/c.2066G>T | K132: 1080 | L132: 68 | M132: 1148 | N132: 0.05923344948 | O132: 0 | P132: 0 | Q132: 0 | R132: 1 | S132: 1 | T132: 1 | U132: 0 | V132: 1 | W132: 4 | X132: NO | Y132: NO | Z132: NO | AA132: NA | AB132: NA | AC132: NO | AD132: NO | AE132: NO | AF132: NO | AG132: NO | AH132: NO | AI132: -6.88 | AJ132: Deleterious | AK132: 37.17 | AL132: 37.91 | AM132: 334 | AN132: 29 | AO132: 363 | AP132: 0.07988980716 | AQ132: 746 | AR132: 39 | AS132: 785 | AT132: 0.04968152866 | AU132: 0.05881792549 | AV132: 1 | AW132: 1 | AX132: Probably True (-4)
A133: Expert, bq | B133: UPN_Te5_076 | C133: 5 | D133: 140208448 | E133: G | F133: T | G133: PCDHA6,PCDHA6 | H133: ENST00000529310,ENST00000527624 | I133: stop_gained,stop_gained | J133: Gga/Tga|p.Gly258*/c.772G>T,Gga/Tga|p.Gly258*/c.772G>T | K133: 448 | L133: 428 | M133: 877 | N133: 0.488027366 | O133: 1 | P133: 1 | Q133: 1 | R133: 1 | S133: 1 | T133: 0 | U133: 1 | V133: 1 | W133: 7 | X133: NO | Y133: NO | Z133: NO | AA133: NA | AB133: NA | AC133: NO | AD133: NO | AE133: NO | AF133: NO | AG133: NO | AH133: NO | AI133: NA | AJ133: NA | AK133: 38.22 | AL133: 37.65 | AM133: 0 | AN133: 0 | AO133: 0 | AP133: NA | AQ133: 448 | AR133: 428 | AS133: 877 | AT133: 0.488027366 | AU133: 1 | AV133: 1 | AW133: 1 | AX133: Probably True (-6)
A134: Expert, prediction, bq | B134: UPN_Te5_091 | C134: 5 | D134: 140480481 | E134: A | F134: G | G134: PCDHB3 | H134: ENST00000231130 | I134: missense_variant | J134: gAt/gGt|p.Asp83Gly/c.248A>G | K134: 475 | L134: 430 | M134: 906 | N134: 0.4746136865 | O134: 1 | P134: 1 | Q134: 1 | R134: 1 | S134: 1 | T134: 1 | U134: 1 | V134: 1 | W134: 8 | X134: NO | Y134: NO | Z134: COSM3715011 | AA134: upper_aerodigestive_tract | AB134: 2 | AC134: NO | AD134: NO | AE134: NO | AF134: NO | AG134: NO | AH134: NO | AI134: -4.79 | AJ134: Deleterious | AK134: 38.21 | AL134: 38.47 | AM134: 211 | AN134: 194 | AO134: 405 | AP134: 0.4790123457 | AQ134: 264 | AR134: 236 | AS134: 501 | AT134: 0.4710578842 | AU134: 0.8411249752 | AV134: 1 | AW134: 1 | AX134: Probably True (-7)
A135: Expert, bq | B135: UPN_Te5_109 | C135: 5 | D135: 140480966 | E135: C | F135: T | G135: PCDHB3 | H135: ENST00000231130 | I135: missense_variant | J135: Ccg/Tcg|p.Pro245Ser/c.733C>T | K135: 802 | L135: 650 | M135: 1454 | N135: 0.447042641 | O135: 1 | P135: 1 | Q135: 1 | R135: 0 | S135: 1 | T135: 0 | U135: 1 | V135: 1 | W135: 6 | X135: NO | Y135: NO | Z135: NO | AA135: NO | AB135: O | AC135: NO | AD135: rs200158755 | AE135: NO | AF135: 9.884e-05 | AG135: NO | AH135: NO | AI135: -0.24 | AJ135: Tolerated | AK135: 37.65 | AL135: 37.44 | AM135: 314 | AN135: 214 | AO135: 529 | AP135: 0.404536862 | AQ135: 488 | AR135: 436 | AS135: 925 | AT135: 0.4713513514 | AU135: 0.01576302132 | AV135: 1 | AW135: 1 | AX135: Probably True (-3)
A136: ESP6500, ExAC, VAF, likely SNP | B136: UPN_Te5_043 | C136: 5 | D136: 149459839 | E136: G | F136: C | G136: CSF1R,CSF1R,CSF1R | H136: ENST00000286301,ENST00000504875,ENST00000543093 | I136: missense_variant,missense_variant,missense_variant | J136: gCa/gGa|p.Ala123Gly/c.368C>G,gCa/gGa|p.Ala123Gly/c.368C>G,gCa/gGa|p.Ala123Gly/c.368C>G | K136: 748 | L136: 867 | M136: 1615 | N136: 0.5368421053 | O136: 1 | P136: 1 | Q136: 1 | R136: 1 | S136: 1 | T136: 1 | U136: 1 | V136: 1 | W136: 8 | X136: 0.0116 | Y136: NO | Z136: NO | AA136: NO | AB136: O | AC136: NO | AD136: rs140924076 | AE136: NO | AF136: 0.001095 | AG136: NO | AH136: NO | AI136: -2.63 | AJ136: Deleterious | AK136: 36.07 | AL136: 36.15 | AM136: 342 | AN136: 406 | AO136: 748 | AP136: 0.5427807487 | AQ136: 406 | AR136: 461 | AS136: 867 | AT136: 0.5317185698 | AU136: 0.6889458791 | AV136: 1 | AW136: 1 | AX136: Probably True (-6)
A137: Hotspot, Expert, Validated different approach | B137: UPN_Te5_002 | C137: 5 | D137: 170837543 | E137: C | F137: CTCTG | G137: NPM1,NPM1,NPM1 | H137: ENST00000296930,ENST00000517671,ENST00000351986 | I137: frameshift_variant,frameshift_variant,frameshift_variant | J137: tgg/tgTCTGg|p.Trp288fs/c.860_863dupTCTG,tgg/tgTCTGg|p.Trp288fs/c.860_863dupTCTG,tgg/tgTCTGg|p.Trp259fs/c.773_776dupTCTG | K137: 1111 | L137: 296 | M137: 1114 | N137: 0.2657091562 | O137: 1 | P137: 1 | Q137: 1 | R137: 1 | S137: 1 | T137: 1 | U137: 0 | V137: 1 | W137: 7 | X137: NO | Y137: NO | Z137: NO | AA137: NA | AB137: NA | AC137: NO | AD137: NO | AE137: NO | AF137: 8.286e-06 | AG137: NO | AH137: NO | AI137: NA | AJ137: NA | AK137: 32.83 | AL137: NA | AM137: 435 | AN137: 98 | AO137: 437 | AP137: 0.2242562929 | AQ137: 676 | AR137: 198 | AS137: 677 | AT137: 0.2924667651 | AU137: 0.05921279683 | AV137: 36 | AW137: 36 | AX137: Hotspot (-7)
A138: Hotspot, Expert, Validated different approach | B138: UPN_Te5_003 | C138: 5 | D138: 170837543 | E138: C | F138: CTCTG | G138: NPM1,NPM1,NPM1 | H138: ENST00000296930,ENST00000517671,ENST00000351986 | I138: frameshift_variant,frameshift_variant,frameshift_variant | J138: tgg/tgTCTGg|p.Trp288fs/c.860_863dupTCTG,tgg/tgTCTGg|p.Trp288fs/c.860_863dupTCTG,tgg/tgTCTGg|p.Trp259fs/c.773_776dupTCTG | K138: 176 | L138: 71 | M138: 178 | N138: 0.3988764045 | O138: 1 | P138: 1 | Q138: 1 | R138: 1 | S138: 0 | T138: 1 | U138: 1 | V138: 1 | W138: 7 | X138: NO | Y138: NO | Z138: NO | AA138: NA | AB138: NA | AC138: NO | AD138: NO | AE138: NO | AF138: 8.286e-06 | AG138: NO | AH138: NO | AI138: NA | AJ138: NA | AK138: 33.7 | AL138: NA | AM138: 68 | AN138: 26 | AO138: 70 | AP138: 0.3714285714 | AQ138: 108 | AR138: 45 | AS138: 108 | AT138: 0.4166666667 | AU138: 0.8849608288 | AV138: 36 | AW138: 36 | AX138: Hotspot (-4)
A139: Hotspot, Expert, Validated different approach | B139: UPN_Te5_004 | C139: 5 | D139: 170837543 | E139: C | F139: CTCTG | G139: NPM1,NPM1,NPM1 | H139: ENST00000296930,ENST00000517671,ENST00000351986 | I139: frameshift_variant,frameshift_variant,frameshift_variant | J139: tgg/tgTCTGg|p.Trp288fs/c.860_863dupTCTG,tgg/tgTCTGg|p.Trp288fs/c.860_863dupTCTG,tgg/tgTCTGg|p.Trp259fs/c.773_776dupTCTG | K139: 96 | L139: 24 | M139: 96 | N139: 0.25 | O139: 1 | P139: 1 | Q139: 1 | R139: 1 | S139: 1 | T139: 1 | U139: 1 | V139: 1 | W139: 8 | X139: NO | Y139: NO | Z139: NO | AA139: NA | AB139: NA | AC139: NO | AD139: NO | AE139: NO | AF139: 8.286e-06 | AG139: NO | AH139: NO | AI139: NA | AJ139: NA | AK139: 29.33 | AL139: NA | AM139: 59 | AN139: 8 | AO139: 59 | AP139: 0.1355932203 | AQ139: 37 | AR139: 16 | AS139: 37 | AT139: 0.4324324324 | AU139: 0.02045685601 | AV139: 36 | AW139: 36 | AX139: Hotspot (-7)
A140: Hotspot, Expert, Validated different approach | B140: UPN_Te5_016 | C140: 5 | D140: 170837543 | E140: C | F140: CTCTG | G140: NPM1,NPM1,NPM1 | H140: ENST00000296930,ENST00000517671,ENST00000351986 | I140: frameshift_variant,frameshift_variant,frameshift_variant | J140: tgg/tgTCTGg|p.Trp288fs/c.860_863dupTCTG,tgg/tgTCTGg|p.Trp288fs/c.860_863dupTCTG,tgg/tgTCTGg|p.Trp259fs/c.773_776dupTCTG | K140: 179 | L140: 63 | M140: 179 | N140: 0.3519553073 | O140: 1 | P140: 1 | Q140: 1 | R140: 1 | S140: 1 | T140: 1 | U140: 1 | V140: 1 | W140: 8 | X140: NO | Y140: NO | Z140: NO | AA140: NA | AB140: NA | AC140: NO | AD140: NO | AE140: NO | AF140: 8.286e-06 | AG140: NO | AH140: NO | AI140: NA | AJ140: NA | AK140: 31.07 | AL140: NA | AM140: 101 | AN140: 24 | AO140: 101 | AP140: 0.2376237624 | AQ140: 78 | AR140: 39 | AS140: 78 | AT140: 0.5 | AU140: 0.01320028317 | AV140: 36 | AW140: 36 | AX140: Hotspot (-7)
A141: Hotspot, Expert, Validated different approach | B141: UPN_Te5_019 | C141: 5 | D141: 170837543 | E141: C | F141: CTCTG | G141: NPM1,NPM1,NPM1 | H141: ENST00000296930,ENST00000517671,ENST00000351986 | I141: frameshift_variant,frameshift_variant,frameshift_variant | J141: tgg/tgTCTGg|p.Trp288fs/c.860_863dupTCTG,tgg/tgTCTGg|p.Trp288fs/c.860_863dupTCTG,tgg/tgTCTGg|p.Trp259fs/c.773_776dupTCTG | K141: 472 | L141: 70 | M141: 473 | N141: 0.1479915433 | O141: 1 | P141: 1 | Q141: 0 | R141: 1 | S141: 1 | T141: 1 | U141: 0 | V141: 1 | W141: 6 | X141: NO | Y141: NO | Z141: NO | AA141: NA | AB141: NA | AC141: NO | AD141: NO | AE141: NO | AF141: 8.286e-06 | AG141: NO | AH141: NO | AI141: NA | AJ141: NA | AK141: 29.4 | AL141: NA | AM141: 352 | AN141: 24 | AO141: 353 | AP141: 0.06798866856 | AQ141: 120 | AR141: 46 | AS141: 120 | AT141: 0.3833333333 | AU141: 1.084105238e-10 | AV141: 36 | AW141: 36 | AX141: Hotspot (-7)
A142: Hotspot, Expert, Validated different approach | B142: UPN_Te5_027 | C142: 5 | D142: 170837543 | E142: C | F142: CTCTG | G142: NPM1,NPM1,NPM1 | H142: ENST00000296930,ENST00000517671,ENST00000351986 | I142: frameshift_variant,frameshift_variant,frameshift_variant | J142: tgg/tgTCTGg|p.Trp288fs/c.860_863dupTCTG,tgg/tgTCTGg|p.Trp288fs/c.860_863dupTCTG,tgg/tgTCTGg|p.Trp259fs/c.773_776dupTCTG | K142: 413 | L142: 106 | M142: 413 | N142: 0.2566585956 | O142: 1 | P142: 1 | Q142: 1 | R142: 1 | S142: 1 | T142: 1 | U142: 0 | V142: 1 | W142: 7 | X142: NO | Y142: NO | Z142: NO | AA142: NA | AB142: NA | AC142: NO | AD142: NO | AE142: NO | AF142: 8.286e-06 | AG142: NO | AH142: NO | AI142: NA | AJ142: NA | AK142: 31.35 | AL142: NA | AM142: 216 | AN142: 35 | AO142: 216 | AP142: 0.162037037 | AQ142: 197 | AR142: 71 | AS142: 197 | AT142: 0.3604060914 | AU142: 0.0004602917623 | AV142: 36 | AW142: 36 | AX142: Hotspot (-7)
A143: Hotspot, Expert, Validated different approach | B143: UPN_Te5_030 | C143: 5 | D143: 170837543 | E143: C | F143: CTCTG | G143: NPM1,NPM1,NPM1 | H143: ENST00000296930,ENST00000517671,ENST00000351986 | I143: frameshift_variant,frameshift_variant,frameshift_variant | J143: tgg/tgTCTGg|p.Trp288fs/c.860_863dupTCTG,tgg/tgTCTGg|p.Trp288fs/c.860_863dupTCTG,tgg/tgTCTGg|p.Trp259fs/c.773_776dupTCTG | K143: 477 | L143: 143 | M143: 477 | N143: 0.2997903564 | O143: 1 | P143: 1 | Q143: 1 | R143: 1 | S143: 1 | T143: 1 | U143: 0 | V143: 1 | W143: 7 | X143: NO | Y143: NO | Z143: NO | AA143: NA | AB143: NA | AC143: NO | AD143: NO | AE143: NO | AF143: 8.286e-06 | AG143: NO | AH143: NO | AI143: NA | AJ143: NA | AK143: 30.78 | AL143: NA | AM143: 256 | AN143: 40 | AO143: 256 | AP143: 0.15625 | AQ143: 221 | AR143: 103 | AS143: 221 | AT143: 0.4660633484 | AU143: 6.720431175e-08 | AV143: 36 | AW143: 36 | AX143: Hotspot (-7)
A144: Hotspot, Expert, Validated different approach | B144: UPN_Te5_035 | C144: 5 | D144: 170837543 | E144: C | F144: CTCTG | G144: NPM1,NPM1,NPM1 | H144: ENST00000296930,ENST00000517671,ENST00000351986 | I144: frameshift_variant,frameshift_variant,frameshift_variant | J144: tgg/tgTCTGg|p.Trp288fs/c.860_863dupTCTG,tgg/tgTCTGg|p.Trp288fs/c.860_863dupTCTG,tgg/tgTCTGg|p.Trp259fs/c.773_776dupTCTG | K144: 416 | L144: 144 | M144: 417 | N144: 0.345323741 | O144: 1 | P144: 1 | Q144: 1 | R144: 1 | S144: 1 | T144: 1 | U144: 0 | V144: 1 | W144: 7 | X144: NO | Y144: NO | Z144: NO | AA144: NA | AB144: NA | AC144: NO | AD144: NO | AE144: NO | AF144: 8.286e-06 | AG144: NO | AH144: NO | AI144: NA | AJ144: NA | AK144: 32.47 | AL144: NA | AM144: 162 | AN144: 44 | AO144: 163 | AP144: 0.2699386503 | AQ144: 254 | AR144: 100 | AS144: 254 | AT144: 0.3937007874 | AU144: 0.08808265786 | AV144: 36 | AW144: 36 | AX144: Hotspot (-7)
A145: Hotspot, Expert, Validated different approach | B145: UPN_Te5_036 | C145: 5 | D145: 170837543 | E145: C | F145: CTCTG | G145: NPM1,NPM1,NPM1 | H145: ENST00000296930,ENST00000517671,ENST00000351986 | I145: frameshift_variant,frameshift_variant,frameshift_variant | J145: tgg/tgTCTGg|p.Trp288fs/c.860_863dupTCTG,tgg/tgTCTGg|p.Trp288fs/c.860_863dupTCTG,tgg/tgTCTGg|p.Trp259fs/c.773_776dupTCTG | K145: 487 | L145: 174 | M145: 490 | N145: 0.3551020408 | O145: 1 | P145: 1 | Q145: 1 | R145: 1 | S145: 1 | T145: 1 | U145: 0 | V145: 1 | W145: 7 | X145: NO | Y145: NO | Z145: NO | AA145: NA | AB145: NA | AC145: NO | AD145: NO | AE145: NO | AF145: 8.286e-06 | AG145: NO | AH145: NO | AI145: NA | AJ145: NA | AK145: 31.02 | AL145: NA | AM145: 262 | AN145: 52 | AO145: 265 | AP145: 0.1962264151 | AQ145: 225 | AR145: 122 | AS145: 225 | AT145: 0.5422222222 | AU145: 5.548692452e-08 | AV145: 36 | AW145: 36 | AX145: Hotspot (-7)
A146: Hotspot, Expert, Validated different approach | B146: UPN_Te5_037 | C146: 5 | D146: 170837543 | E146: C | F146: CTCTG | G146: NPM1,NPM1,NPM1 | H146: ENST00000296930,ENST00000517671,ENST00000351986 | I146: frameshift_variant,frameshift_variant,frameshift_variant | J146: tgg/tgTCTGg|p.Trp288fs/c.860_863dupTCTG,tgg/tgTCTGg|p.Trp288fs/c.860_863dupTCTG,tgg/tgTCTGg|p.Trp259fs/c.773_776dupTCTG | K146: 586 | L146: 200 | M146: 593 | N146: 0.3372681282 | O146: 1 | P146: 1 | Q146: 1 | R146: 1 | S146: 1 | T146: 1 | U146: 0 | V146: 1 | W146: 7 | X146: NO | Y146: NO | Z146: NO | AA146: NA | AB146: NA | AC146: NO | AD146: NO | AE146: NO | AF146: 8.286e-06 | AG146: NO | AH146: NO | AI146: NA | AJ146: NA | AK146: 30.95 | AL146: NA | AM146: 309 | AN146: 61 | AO146: 314 | AP146: 0.1942675159 | AQ146: 277 | AR146: 139 | AS146: 279 | AT146: 0.4982078853 | AU146: 5.057785432e-08 | AV146: 36 | AW146: 36 | AX146: Hotspot (-7)
A147: Hotspot, Expert, Validated different approach | B147: UPN_Te5_048 | C147: 5 | D147: 170837543 | E147: C | F147: CTCTG | G147: NPM1,NPM1,NPM1 | H147: ENST00000296930,ENST00000517671,ENST00000351986 | I147: frameshift_variant,frameshift_variant,frameshift_variant | J147: tgg/tgTCTGg|p.Trp288fs/c.860_863dupTCTG,tgg/tgTCTGg|p.Trp288fs/c.860_863dupTCTG,tgg/tgTCTGg|p.Trp259fs/c.773_776dupTCTG | K147: 327 | L147: 73 | M147: 328 | N147: 0.2225609756 | O147: 1 | P147: 1 | Q147: 1 | R147: 1 | S147: 1 | T147: 1 | U147: 0 | V147: 1 | W147: 7 | X147: NO | Y147: NO | Z147: NO | AA147: NA | AB147: NA | AC147: NO | AD147: NO | AE147: NO | AF147: 8.286e-06 | AG147: NO | AH147: NO | AI147: NA | AJ147: NA | AK147: 31.83 | AL147: NA | AM147: 158 | AN147: 15 | AO147: 159 | AP147: 0.09433962264 | AQ147: 169 | AR147: 58 | AS147: 169 | AT147: 0.3431952663 | AU147: 1.234808553e-05 | AV147: 36 | AW147: 36 | AX147: Hotspot (-7)
A148: Hotspot, Expert, Validated different approach | B148: UPN_Te5_052 | C148: 5 | D148: 170837543 | E148: C | F148: CTCTG | G148: NPM1,NPM1,NPM1 | H148: ENST00000296930,ENST00000517671,ENST00000351986 | I148: frameshift_variant,frameshift_variant,frameshift_variant | J148: tgg/tgTCTGg|p.Trp288fs/c.860_863dupTCTG,tgg/tgTCTGg|p.Trp288fs/c.860_863dupTCTG,tgg/tgTCTGg|p.Trp259fs/c.773_776dupTCTG | K148: 408 | L148: 99 | M148: 411 | N148: 0.2408759124 | O148: 1 | P148: 1 | Q148: 1 | R148: 1 | S148: 1 | T148: 1 | U148: 0 | V148: 1 | W148: 7 | X148: NO | Y148: NO | Z148: NO | AA148: NA | AB148: NA | AC148: NO | AD148: NO | AE148: NO | AF148: 8.286e-06 | AG148: NO | AH148: NO | AI148: NA | AJ148: NA | AK148: 30.54 | AL148: NA | AM148: 218 | AN148: 28 | AO148: 221 | AP148: 0.1266968326 | AQ148: 190 | AR148: 71 | AS148: 190 | AT148: 0.3736842105 | AU148: 6.361299018e-06 | AV148: 36 | AW148: 36 | AX148: Hotspot (-7)
A149: Hotspot, Expert, Validated different approach | B149: UPN_Te5_062 | C149: 5 | D149: 170837543 | E149: C | F149: CTCTG | G149: NPM1,NPM1,NPM1 | H149: ENST00000296930,ENST00000517671,ENST00000351986 | I149: frameshift_variant,frameshift_variant,frameshift_variant | J149: tgg/tgTCTGg|p.Trp288fs/c.860_863dupTCTG,tgg/tgTCTGg|p.Trp288fs/c.860_863dupTCTG,tgg/tgTCTGg|p.Trp259fs/c.773_776dupTCTG | K149: 593 | L149: 159 | M149: 594 | N149: 0.2676767677 | O149: 1 | P149: 1 | Q149: 1 | R149: 1 | S149: 1 | T149: 1 | U149: 0 | V149: 1 | W149: 7 | X149: NO | Y149: NO | Z149: NO | AA149: NA | AB149: NA | AC149: NO | AD149: NO | AE149: NO | AF149: 8.286e-06 | AG149: NO | AH149: NO | AI149: NA | AJ149: NA | AK149: 30.4 | AL149: NA | AM149: 358 | AN149: 45 | AO149: 359 | AP149: 0.1253481894 | AQ149: 235 | AR149: 114 | AS149: 235 | AT149: 0.485106383 | AU149: 6.064736477e-13 | AV149: 36 | AW149: 36 | AX149: Hotspot (-7)
A150: Hotspot, Expert, Validated different approach | B150: UPN_Te5_063 | C150: 5 | D150: 170837543 | E150: C | F150: CTCTG | G150: NPM1,NPM1,NPM1 | H150: ENST00000296930,ENST00000517671,ENST00000351986 | I150: frameshift_variant,frameshift_variant,frameshift_variant | J150: tgg/tgTCTGg|p.Trp288fs/c.860_863dupTCTG,tgg/tgTCTGg|p.Trp288fs/c.860_863dupTCTG,tgg/tgTCTGg|p.Trp259fs/c.773_776dupTCTG | K150: 418 | L150: 146 | M150: 418 | N150: 0.3492822967 | O150: 1 | P150: 1 | Q150: 1 | R150: 1 | S150: 1 | T150: 1 | U150: 0 | V150: 1 | W150: 7 | X150: NO | Y150: NO | Z150: NO | AA150: NA | AB150: NA | AC150: NO | AD150: NO | AE150: NO | AF150: 8.286e-06 | AG150: NO | AH150: NO | AI150: NA | AJ150: NA | AK150: 32.3 | AL150: NA | AM150: 209 | AN150: 58 | AO150: 209 | AP150: 0.2775119617 | AQ150: 209 | AR150: 88 | AS150: 209 | AT150: 0.4210526316 | AU150: 0.03444708834 | AV150: 36 | AW150: 36 | AX150: Hotspot (-7)
A151: Hotspot, Expert, Validated different approach | B151: UPN_Te5_064 | C151: 5 | D151: 170837543 | E151: C | F151: CTCTG | G151: NPM1,NPM1,NPM1 | H151: ENST00000296930,ENST00000517671,ENST00000351986 | I151: frameshift_variant,frameshift_variant,frameshift_variant | J151: tgg/tgTCTGg|p.Trp288fs/c.860_863dupTCTG,tgg/tgTCTGg|p.Trp288fs/c.860_863dupTCTG,tgg/tgTCTGg|p.Trp259fs/c.773_776dupTCTG | K151: 398 | L151: 87 | M151: 399 | N151: 0.2180451128 | O151: 1 | P151: 1 | Q151: 1 | R151: 1 | S151: 1 | T151: 1 | U151: 0 | V151: 1 | W151: 7 | X151: NO | Y151: NO | Z151: NO | AA151: NA | AB151: NA | AC151: NO | AD151: NO | AE151: NO | AF151: 8.286e-06 | AG151: NO | AH151: NO | AI151: NA | AJ151: NA | AK151: 30.5 | AL151: NA | AM151: 246 | AN151: 33 | AO151: 247 | AP151: 0.1336032389 | AQ151: 152 | AR151: 54 | AS151: 152 | AT151: 0.3552631579 | AU151: 6.642626773e-05 | AV151: 36 | AW151: 36 | AX151: Hotspot (-7)
A152: Hotspot, Expert, Validated different approach | B152: UPN_Te5_065 | C152: 5 | D152: 170837543 | E152: C | F152: CTCTG | G152: NPM1,NPM1,NPM1 | H152: ENST00000296930,ENST00000517671,ENST00000351986 | I152: frameshift_variant,frameshift_variant,frameshift_variant | J152: tgg/tgTCTGg|p.Trp288fs/c.860_863dupTCTG,tgg/tgTCTGg|p.Trp288fs/c.860_863dupTCTG,tgg/tgTCTGg|p.Trp259fs/c.773_776dupTCTG | K152: 507 | L152: 139 | M152: 508 | N152: 0.2736220472 | O152: 1 | P152: 1 | Q152: 1 | R152: 1 | S152: 1 | T152: 1 | U152: 0 | V152: 1 | W152: 7 | X152: NO | Y152: NO | Z152: NO | AA152: NA | AB152: NA | AC152: NO | AD152: NO | AE152: NO | AF152: 8.286e-06 | AG152: NO | AH152: NO | AI152: NA | AJ152: NA | AK152: 30.71 | AL152: NA | AM152: 298 | AN152: 52 | AO152: 299 | AP152: 0.1739130435 | AQ152: 209 | AR152: 87 | AS152: 209 | AT152: 0.4162679426 | AU152: 8.862997746e-06 | AV152: 36 | AW152: 36 | AX152: Hotspot (-7)
A153: Hotspot, Expert, Validated different approach | B153: UPN_Te5_069 | C153: 5 | D153: 170837543 | E153: C | F153: CTCTG | G153: NPM1,NPM1,NPM1 | H153: ENST00000296930,ENST00000517671,ENST00000351986 | I153: frameshift_variant,frameshift_variant,frameshift_variant | J153: tgg/tgTCTGg|p.Trp288fs/c.860_863dupTCTG,tgg/tgTCTGg|p.Trp288fs/c.860_863dupTCTG,tgg/tgTCTGg|p.Trp259fs/c.773_776dupTCTG | K153: 424 | L153: 105 | M153: 427 | N153: 0.2459016393 | O153: 1 | P153: 1 | Q153: 1 | R153: 1 | S153: 1 | T153: 1 | U153: 0 | V153: 1 | W153: 7 | X153: NO | Y153: NO | Z153: NO | AA153: NA | AB153: NA | AC153: NO | AD153: NO | AE153: NO | AF153: 8.286e-06 | AG153: NO | AH153: NO | AI153: NA | AJ153: NA | AK153: 30.89 | AL153: NA | AM153: 242 | AN153: 39 | AO153: 245 | AP153: 0.1591836735 | AQ153: 182 | AR153: 66 | AS153: 182 | AT153: 0.3626373626 | AU153: 0.0002944637206 | AV153: 36 | AW153: 36 | AX153: Hotspot (-7)
A154: Hotspot, Expert, Validated different approach | B154: UPN_Te5_070 | C154: 5 | D154: 170837543 | E154: C | F154: CTCTG | G154: NPM1,NPM1,NPM1 | H154: ENST00000296930,ENST00000517671,ENST00000351986 | I154: frameshift_variant,frameshift_variant,frameshift_variant | J154: tgg/tgTCTGg|p.Trp288fs/c.860_863dupTCTG,tgg/tgTCTGg|p.Trp288fs/c.860_863dupTCTG,tgg/tgTCTGg|p.Trp259fs/c.773_776dupTCTG | K154: 549 | L154: 40 | M154: 553 | N154: 0.07233273056 | O154: 1 | P154: 1 | Q154: 0 | R154: 1 | S154: 1 | T154: 1 | U154: 0 | V154: 1 | W154: 6 | X154: NO | Y154: NO | Z154: NO | AA154: NA | AB154: NA | AC154: NO | AD154: NO | AE154: NO | AF154: 8.286e-06 | AG154: NO | AH154: NO | AI154: NA | AJ154: NA | AK154: 30.52 | AL154: NA | AM154: 311 | AN154: 10 | AO154: 315 | AP154: 0.03174603175 | AQ154: 238 | AR154: 30 | AS154: 238 | AT154: 0.1260504202 | AU154: 0.0001150774158 | AV154: 36 | AW154: 36 | AX154: Hotspot (-7)
A155: Hotspot, Expert, Validated different approach | B155: UPN_Te5_072 | C155: 5 | D155: 170837543 | E155: C | F155: CTCTG | G155: NPM1,NPM1,NPM1 | H155: ENST00000296930,ENST00000517671,ENST00000351986 | I155: frameshift_variant,frameshift_variant,frameshift_variant | J155: tgg/tgTCTGg|p.Trp288fs/c.860_863dupTCTG,tgg/tgTCTGg|p.Trp288fs/c.860_863dupTCTG,tgg/tgTCTGg|p.Trp259fs/c.773_776dupTCTG | K155: 1317 | L155: 26 | M155: 1323 | N155: 0.01965230537 | O155: 0 | P155: 0 | Q155: 0 | R155: 1 | S155: 1 | T155: 0 | U155: 0 | V155: 1 | W155: 3 | X155: NO | Y155: NO | Z155: NO | AA155: NA | AB155: NA | AC155: NO | AD155: NO | AE155: NO | AF155: 8.286e-06 | AG155: NO | AH155: NO | AI155: NA | AJ155: NA | AK155: 30.12 | AL155: NA | AM155: 786 | AN155: 7 | AO155: 791 | AP155: 0.008849557522 | AQ155: 531 | AR155: 19 | AS155: 532 | AT155: 0.03571428571 | AU155: 0.001004035929 | AV155: 36 | AW155: 36 | AX155: Hotspot (-1)
A156: Hotspot, Expert, Validated different approach | B156: UPN_Te5_074 | C156: 5 | D156: 170837543 | E156: C | F156: CTCTG | G156: NPM1,NPM1,NPM1 | H156: ENST00000296930,ENST00000517671,ENST00000351986 | I156: frameshift_variant,frameshift_variant,frameshift_variant | J156: tgg/tgTCTGg|p.Trp288fs/c.860_863dupTCTG,tgg/tgTCTGg|p.Trp288fs/c.860_863dupTCTG,tgg/tgTCTGg|p.Trp259fs/c.773_776dupTCTG | K156: 510 | L156: 181 | M156: 510 | N156: 0.3549019608 | O156: 1 | P156: 1 | Q156: 1 | R156: 1 | S156: 1 | T156: 1 | U156: 0 | V156: 1 | W156: 7 | X156: NO | Y156: NO | Z156: NO | AA156: NA | AB156: NA | AC156: NO | AD156: NO | AE156: NO | AF156: 8.286e-06 | AG156: NO | AH156: NO | AI156: NA | AJ156: NA | AK156: 33.13 | AL156: NA | AM156: 212 | AN156: 60 | AO156: 212 | AP156: 0.2830188679 | AQ156: 298 | AR156: 121 | AS156: 298 | AT156: 0.4060402685 | AU156: 0.05142586769 | AV156: 36 | AW156: 36 | AX156: Hotspot (-7)
A157: Hotspot, Expert, Validated different approach | B157: UPN_Te5_078 | C157: 5 | D157: 170837543 | E157: C | F157: CTCTG | G157: NPM1,NPM1,NPM1 | H157: ENST00000296930,ENST00000517671,ENST00000351986 | I157: frameshift_variant,frameshift_variant,frameshift_variant | J157: tgg/tgTCTGg|p.Trp288fs/c.860_863dupTCTG,tgg/tgTCTGg|p.Trp288fs/c.860_863dupTCTG,tgg/tgTCTGg|p.Trp259fs/c.773_776dupTCTG | K157: 375 | L157: 130 | M157: 375 | N157: 0.3466666667 | O157: 1 | P157: 1 | Q157: 1 | R157: 1 | S157: 1 | T157: 1 | U157: 0 | V157: 1 | W157: 7 | X157: NO | Y157: NO | Z157: NO | AA157: NA | AB157: NA | AC157: NO | AD157: NO | AE157: NO | AF157: 8.286e-06 | AG157: NO | AH157: NO | AI157: NA | AJ157: NA | AK157: 32.07 | AL157: NA | AM157: 174 | AN157: 50 | AO157: 174 | AP157: 0.2873563218 | AQ157: 201 | AR157: 80 | AS157: 201 | AT157: 0.3980099502 | AU157: 0.125146378 | AV157: 36 | AW157: 36 | AX157: Hotspot (-7)
A158: Hotspot, Expert | B158: UPN_Te5_079 | C158: 5 | D158: 170837543 | E158: C | F158: CTCTG | G158: NPM1,NPM1,NPM1 | H158: ENST00000296930,ENST00000517671,ENST00000351986 | I158: frameshift_variant,frameshift_variant,frameshift_variant | J158: tgg/tgTCTGg|p.Trp288fs/c.860_863dupTCTG,tgg/tgTCTGg|p.Trp288fs/c.860_863dupTCTG,tgg/tgTCTGg|p.Trp259fs/c.773_776dupTCTG | K158: 349 | L158: 75 | M158: 349 | N158: 0.2148997135 | O158: 1 | P158: 1 | Q158: 1 | R158: 1 | S158: 1 | T158: 1 | U158: 0 | V158: 1 | W158: 7 | X158: NO | Y158: NO | Z158: NO | AA158: NA | AB158: NA | AC158: NO | AD158: NO | AE158: NO | AF158: 8.286e-06 | AG158: NO | AH158: NO | AI158: NA | AJ158: NA | AK158: 30.54 | AL158: NA | AM158: 195 | AN158: 20 | AO158: 195 | AP158: 0.1025641026 | AQ158: 154 | AR158: 55 | AS158: 154 | AT158: 0.3571428571 | AU158: 3.844103245e-06 | AV158: 36 | AW158: 36 | AX158: Hotspot (-7)
A159: Hotspot, Expert, Validated different approach | B159: UPN_Te5_080 | C159: 5 | D159: 170837543 | E159: C | F159: CTCTG | G159: NPM1,NPM1,NPM1 | H159: ENST00000296930,ENST00000517671,ENST00000351986 | I159: frameshift_variant,frameshift_variant,frameshift_variant | J159: tgg/tgTCTGg|p.Trp288fs/c.860_863dupTCTG,tgg/tgTCTGg|p.Trp288fs/c.860_863dupTCTG,tgg/tgTCTGg|p.Trp259fs/c.773_776dupTCTG | K159: 219 | L159: 42 | M159: 220 | N159: 0.1909090909 | O159: 1 | P159: 1 | Q159: 0 | R159: 1 | S159: 1 | T159: 1 | U159: 1 | V159: 1 | W159: 7 | X159: NO | Y159: NO | Z159: NO | AA159: NA | AB159: NA | AC159: NO | AD159: NO | AE159: NO | AF159: 8.286e-06 | AG159: NO | AH159: NO | AI159: NA | AJ159: NA | AK159: 30.06 | AL159: NA | AM159: 148 | AN159: 15 | AO159: 149 | AP159: 0.1006711409 | AQ159: 71 | AR159: 27 | AS159: 71 | AT159: 0.3802816901 | AU159: 0.0001912825544 | AV159: 36 | AW159: 36 | AX159: Hotspot (-7)
A160: Hotspot, Expert, Validated different approach | B160: UPN_Te5_081 | C160: 5 | D160: 170837543 | E160: C | F160: CTCTG | G160: NPM1,NPM1,NPM1 | H160: ENST00000296930,ENST00000517671,ENST00000351986 | I160: frameshift_variant,frameshift_variant,frameshift_variant | J160: tgg/tgTCTGg|p.Trp288fs/c.860_863dupTCTG,tgg/tgTCTGg|p.Trp288fs/c.860_863dupTCTG,tgg/tgTCTGg|p.Trp259fs/c.773_776dupTCTG | K160: 289 | L160: 111 | M160: 292 | N160: 0.3801369863 | O160: 1 | P160: 1 | Q160: 1 | R160: 1 | S160: 1 | T160: 1 | U160: 0 | V160: 1 | W160: 7 | X160: NO | Y160: NO | Z160: NO | AA160: NA | AB160: NA | AC160: NO | AD160: NO | AE160: NO | AF160: 8.286e-06 | AG160: NO | AH160: NO | AI160: NA | AJ160: NA | AK160: 31.53 | AL160: NA | AM160: 156 | AN160: 39 | AO160: 157 | AP160: 0.2484076433 | AQ160: 133 | AR160: 72 | AS160: 135 | AT160: 0.5333333333 | AU160: 0.0007969378129 | AV160: 36 | AW160: 36 | AX160: Hotspot (-7)
A161: Hotspot, Expert, Validated different approach | B161: UPN_Te5_082 | C161: 5 | D161: 170837543 | E161: C | F161: CTCTG | G161: NPM1,NPM1,NPM1 | H161: ENST00000296930,ENST00000517671,ENST00000351986 | I161: frameshift_variant,frameshift_variant,frameshift_variant | J161: tgg/tgTCTGg|p.Trp288fs/c.860_863dupTCTG,tgg/tgTCTGg|p.Trp288fs/c.860_863dupTCTG,tgg/tgTCTGg|p.Trp259fs/c.773_776dupTCTG | K161: 273 | L161: 71 | M161: 275 | N161: 0.2581818182 | O161: 1 | P161: 1 | Q161: 1 | R161: 1 | S161: 1 | T161: 1 | U161: 0 | V161: 1 | W161: 7 | X161: NO | Y161: NO | Z161: NO | AA161: NA | AB161: NA | AC161: NO | AD161: NO | AE161: NO | AF161: 8.286e-06 | AG161: NO | AH161: NO | AI161: NA | AJ161: NA | AK161: 31.9 | AL161: NA | AM161: 139 | AN161: 25 | AO161: 140 | AP161: 0.1785714286 | AQ161: 134 | AR161: 46 | AS161: 135 | AT161: 0.3407407407 | AU161: 0.02304065432 | AV161: 36 | AW161: 36 | AX161: Hotspot (-7)
A162: Hotspot, Expert | B162: UPN_Te5_085 | C162: 5 | D162: 170837543 | E162: C | F162: CTCTG | G162: NPM1,NPM1,NPM1 | H162: ENST00000296930,ENST00000517671,ENST00000351986 | I162: frameshift_variant,frameshift_variant,frameshift_variant | J162: tgg/tgTCTGg|p.Trp288fs/c.860_863dupTCTG,tgg/tgTCTGg|p.Trp288fs/c.860_863dupTCTG,tgg/tgTCTGg|p.Trp259fs/c.773_776dupTCTG | K162: 364 | L162: 159 | M162: 365 | N162: 0.4356164384 | O162: 1 | P162: 1 | Q162: 1 | R162: 1 | S162: 1 | T162: 1 | U162: 0 | V162: 1 | W162: 7 | X162: NO | Y162: NO | Z162: NO | AA162: NA | AB162: NA | AC162: NO | AD162: NO | AE162: NO | AF162: 8.286e-06 | AG162: NO | AH162: NO | AI162: NA | AJ162: NA | AK162: 32.79 | AL162: NA | AM162: 150 | AN162: 56 | AO162: 151 | AP162: 0.3708609272 | AQ162: 214 | AR162: 103 | AS162: 214 | AT162: 0.4813084112 | AU162: 0.2072426771 | AV162: 36 | AW162: 36 | AX162: Hotspot (-7)
A163: Hotspot, Expert | B163: UPN_Te5_086 | C163: 5 | D163: 170837543 | E163: C | F163: CTCTG | G163: NPM1,NPM1,NPM1 | H163: ENST00000296930,ENST00000517671,ENST00000351986 | I163: frameshift_variant,frameshift_variant,frameshift_variant | J163: tgg/tgTCTGg|p.Trp288fs/c.860_863dupTCTG,tgg/tgTCTGg|p.Trp288fs/c.860_863dupTCTG,tgg/tgTCTGg|p.Trp259fs/c.773_776dupTCTG | K163: 303 | L163: 90 | M163: 304 | N163: 0.2960526316 | O163: 1 | P163: 1 | Q163: 1 | R163: 1 | S163: 1 | T163: 1 | U163: 0 | V163: 1 | W163: 7 | X163: NO | Y163: NO | Z163: NO | AA163: NA | AB163: NA | AC163: NO | AD163: NO | AE163: NO | AF163: 8.286e-06 | AG163: NO | AH163: NO | AI163: NA | AJ163: NA | AK163: 31.47 | AL163: NA | AM163: 170 | AN163: 30 | AO163: 171 | AP163: 0.1754385965 | AQ163: 133 | AR163: 60 | AS163: 133 | AT163: 0.4511278195 | AU163: 0.0001803708702 | AV163: 36 | AW163: 36 | AX163: Hotspot (-7)
A164: Hotspot, Expert, Validated different approach | B164: UPN_Te5_087 | C164: 5 | D164: 170837543 | E164: C | F164: CTCTG | G164: NPM1,NPM1,NPM1 | H164: ENST00000296930,ENST00000517671,ENST00000351986 | I164: frameshift_variant,frameshift_variant,frameshift_variant | J164: tgg/tgTCTGg|p.Trp288fs/c.860_863dupTCTG,tgg/tgTCTGg|p.Trp288fs/c.860_863dupTCTG,tgg/tgTCTGg|p.Trp259fs/c.773_776dupTCTG | K164: 795 | L164: 203 | M164: 799 | N164: 0.2540675845 | O164: 1 | P164: 1 | Q164: 1 | R164: 1 | S164: 1 | T164: 1 | U164: 0 | V164: 1 | W164: 7 | X164: NO | Y164: NO | Z164: NO | AA164: NA | AB164: NA | AC164: NO | AD164: NO | AE164: NO | AF164: 8.286e-06 | AG164: NO | AH164: NO | AI164: NA | AJ164: NA | AK164: 30.18 | AL164: NA | AM164: 480 | AN164: 64 | AO164: 483 | AP164: 0.132505176 | AQ164: 315 | AR164: 139 | AS164: 316 | AT164: 0.4398734177 | AU164: 1.792137574e-13 | AV164: 36 | AW164: 36 | AX164: Hotspot (-7)
A165: Hotspot, Expert, Validated different approach | B165: UPN_Te5_088 | C165: 5 | D165: 170837543 | E165: C | F165: CTCTG | G165: NPM1,NPM1,NPM1 | H165: ENST00000296930,ENST00000517671,ENST00000351986 | I165: frameshift_variant,frameshift_variant,frameshift_variant | J165: tgg/tgTCTGg|p.Trp288fs/c.860_863dupTCTG,tgg/tgTCTGg|p.Trp288fs/c.860_863dupTCTG,tgg/tgTCTGg|p.Trp259fs/c.773_776dupTCTG | K165: 169 | L165: 46 | M165: 169 | N165: 0.2721893491 | O165: 1 | P165: 1 | Q165: 1 | R165: 1 | S165: 1 | T165: 1 | U165: 1 | V165: 1 | W165: 8 | X165: NO | Y165: NO | Z165: NO | AA165: NA | AB165: NA | AC165: NO | AD165: NO | AE165: NO | AF165: 8.286e-06 | AG165: NO | AH165: NO | AI165: NA | AJ165: NA | AK165: 32.19 | AL165: NA | AM165: 87 | AN165: 16 | AO165: 87 | AP165: 0.183908046 | AQ165: 82 | AR165: 30 | AS165: 82 | AT165: 0.3658536585 | AU165: 0.04759366927 | AV165: 36 | AW165: 36 | AX165: Hotspot (-7)
A166: Hotspot, Expert, Validated different approach | B166: UPN_Te5_090 | C166: 5 | D166: 170837543 | E166: C | F166: CTCTG | G166: NPM1,NPM1,NPM1 | H166: ENST00000296930,ENST00000517671,ENST00000351986 | I166: frameshift_variant,frameshift_variant,frameshift_variant | J166: tgg/tgTCTGg|p.Trp288fs/c.860_863dupTCTG,tgg/tgTCTGg|p.Trp288fs/c.860_863dupTCTG,tgg/tgTCTGg|p.Trp259fs/c.773_776dupTCTG | K166: 350 | L166: 89 | M166: 352 | N166: 0.2528409091 | O166: 1 | P166: 1 | Q166: 1 | R166: 1 | S166: 1 | T166: 1 | U166: 0 | V166: 1 | W166: 7 | X166: NO | Y166: NO | Z166: NO | AA166: NA | AB166: NA | AC166: NO | AD166: NO | AE166: NO | AF166: 8.286e-06 | AG166: NO | AH166: NO | AI166: NA | AJ166: NA | AK166: 32.16 | AL166: NA | AM166: 187 | AN166: 30 | AO166: 189 | AP166: 0.1587301587 | AQ166: 163 | AR166: 59 | AS166: 163 | AT166: 0.3619631902 | AU166: 0.0008948460877 | AV166: 36 | AW166: 36 | AX166: Hotspot (-7)
A167: Hotspot, Expert, Validated different approach | B167: UPN_Te5_093 | C167: 5 | D167: 170837543 | E167: C | F167: CTCTG | G167: NPM1,NPM1,NPM1 | H167: ENST00000296930,ENST00000517671,ENST00000351986 | I167: frameshift_variant,frameshift_variant,frameshift_variant | J167: tgg/tgTCTGg|p.Trp288fs/c.860_863dupTCTG,tgg/tgTCTGg|p.Trp288fs/c.860_863dupTCTG,tgg/tgTCTGg|p.Trp259fs/c.773_776dupTCTG | K167: 128 | L167: 33 | M167: 130 | N167: 0.2538461538 | O167: 1 | P167: 1 | Q167: 1 | R167: 1 | S167: 1 | T167: 1 | U167: 1 | V167: 1 | W167: 8 | X167: NO | Y167: NO | Z167: NO | AA167: NA | AB167: NA | AC167: NO | AD167: NO | AE167: NO | AF167: 8.286e-06 | AG167: NO | AH167: NO | AI167: NA | AJ167: NA | AK167: 30.9 | AL167: NA | AM167: 79 | AN167: 13 | AO167: 81 | AP167: 0.1604938272 | AQ167: 49 | AR167: 20 | AS167: 49 | AT167: 0.4081632653 | AU167: 0.02932352427 | AV167: 36 | AW167: 36 | AX167: Hotspot (-7)
A168: Hotspot, Expert, Validated different approach | B168: UPN_Te5_096 | C168: 5 | D168: 170837543 | E168: C | F168: CTCTG | G168: NPM1,NPM1,NPM1 | H168: ENST00000296930,ENST00000517671,ENST00000351986 | I168: frameshift_variant,frameshift_variant,frameshift_variant | J168: tgg/tgTCTGg|p.Trp288fs/c.860_863dupTCTG,tgg/tgTCTGg|p.Trp288fs/c.860_863dupTCTG,tgg/tgTCTGg|p.Trp259fs/c.773_776dupTCTG | K168: 151 | L168: 67 | M168: 151 | N168: 0.4437086093 | O168: 1 | P168: 1 | Q168: 1 | R168: 1 | S168: 1 | T168: 1 | U168: 1 | V168: 1 | W168: 8 | X168: NO | Y168: NO | Z168: NO | AA168: NA | AB168: NA | AC168: NO | AD168: NO | AE168: NO | AF168: 8.286e-06 | AG168: NO | AH168: NO | AI168: NA | AJ168: NA | AK168: 33.34 | AL168: NA | AM168: 57 | AN168: 20 | AO168: 57 | AP168: 0.350877193 | AQ168: 94 | AR168: 47 | AS168: 94 | AT168: 0.5 | AU168: 0.2854143684 | AV168: 36 | AW168: 36 | AX168: Hotspot (-7)
A169: Hotspot, Expert, Validated different approach | B169: UPN_Te5_098 | C169: 5 | D169: 170837543 | E169: C | F169: CTCTG | G169: NPM1,NPM1,NPM1 | H169: ENST00000296930,ENST00000517671,ENST00000351986 | I169: frameshift_variant,frameshift_variant,frameshift_variant | J169: tgg/tgTCTGg|p.Trp288fs/c.860_863dupTCTG,tgg/tgTCTGg|p.Trp288fs/c.860_863dupTCTG,tgg/tgTCTGg|p.Trp259fs/c.773_776dupTCTG | K169: 564 | L169: 151 | M169: 565 | N169: 0.2672566372 | O169: 1 | P169: 1 | Q169: 1 | R169: 1 | S169: 1 | T169: 1 | U169: 0 | V169: 1 | W169: 7 | X169: NO | Y169: NO | Z169: NO | AA169: NA | AB169: NA | AC169: NO | AD169: NO | AE169: NO | AF169: 8.286e-06 | AG169: NO | AH169: NO | AI169: NA | AJ169: NA | AK169: 30.2 | AL169: NA | AM169: 336 | AN169: 55 | AO169: 337 | AP169: 0.1632047478 | AQ169: 228 | AR169: 96 | AS169: 228 | AT169: 0.4210526316 | AU169: 5.37951626e-07 | AV169: 36 | AW169: 36 | AX169: Hotspot (-7)
A170: Hotspot, Expert | B170: UPN_Te5_102 | C170: 5 | D170: 170837543 | E170: C | F170: CTCTG | G170: NPM1,NPM1,NPM1 | H170: ENST00000296930,ENST00000517671,ENST00000351986 | I170: frameshift_variant,frameshift_variant,frameshift_variant | J170: tgg/tgTCTGg|p.Trp288fs/c.860_863dupTCTG,tgg/tgTCTGg|p.Trp288fs/c.860_863dupTCTG,tgg/tgTCTGg|p.Trp259fs/c.773_776dupTCTG | K170: 132 | L170: 27 | M170: 132 | N170: 0.2045454545 | O170: 1 | P170: 1 | Q170: 0 | R170: 1 | S170: 1 | T170: 1 | U170: 1 | V170: 1 | W170: 7 | X170: NO | Y170: NO | Z170: NO | AA170: NA | AB170: NA | AC170: NO | AD170: NO | AE170: NO | AF170: 8.286e-06 | AG170: NO | AH170: NO | AI170: NA | AJ170: NA | AK170: 31.26 | AL170: NA | AM170: 83 | AN170: 8 | AO170: 83 | AP170: 0.09638554217 | AQ170: 49 | AR170: 19 | AS170: 49 | AT170: 0.387755102 | AU170: 0.002361695892 | AV170: 36 | AW170: 36 | AX170: Hotspot (-7)
A171: Hotspot, Expert, Validated different approach | B171: UPN_Te5_104 | C171: 5 | D171: 170837543 | E171: C | F171: CTCTG | G171: NPM1,NPM1,NPM1 | H171: ENST00000296930,ENST00000517671,ENST00000351986 | I171: frameshift_variant,frameshift_variant,frameshift_variant | J171: tgg/tgTCTGg|p.Trp288fs/c.860_863dupTCTG,tgg/tgTCTGg|p.Trp288fs/c.860_863dupTCTG,tgg/tgTCTGg|p.Trp259fs/c.773_776dupTCTG | K171: 140 | L171: 36 | M171: 142 | N171: 0.2535211268 | O171: 1 | P171: 1 | Q171: 1 | R171: 1 | S171: 1 | T171: 1 | U171: 1 | V171: 1 | W171: 8 | X171: NO | Y171: NO | Z171: NO | AA171: NA | AB171: NA | AC171: NO | AD171: NO | AE171: NO | AF171: 8.286e-06 | AG171: NO | AH171: NO | AI171: NA | AJ171: NA | AK171: 32.01 | AL171: NA | AM171: 82 | AN171: 14 | AO171: 84 | AP171: 0.1666666667 | AQ171: 58 | AR171: 22 | AS171: 58 | AT171: 0.3793103448 | AU171: 0.03998392095 | AV171: 36 | AW171: 36 | AX171: Hotspot (-7)
A172: Hotspot, Expert, Validated different approach | B172: UPN_Te5_106 | C172: 5 | D172: 170837543 | E172: C | F172: CTCTG | G172: NPM1,NPM1,NPM1 | H172: ENST00000296930,ENST00000517671,ENST00000351986 | I172: frameshift_variant,frameshift_variant,frameshift_variant | J172: tgg/tgTCTGg|p.Trp288fs/c.860_863dupTCTG,tgg/tgTCTGg|p.Trp288fs/c.860_863dupTCTG,tgg/tgTCTGg|p.Trp259fs/c.773_776dupTCTG | K172: 435 | L172: 127 | M172: 435 | N172: 0.291954023 | O172: 1 | P172: 1 | Q172: 1 | R172: 1 | S172: 1 | T172: 1 | U172: 0 | V172: 1 | W172: 7 | X172: NO | Y172: NO | Z172: NO | AA172: NA | AB172: NA | AC172: NO | AD172: NO | AE172: NO | AF172: 8.286e-06 | AG172: NO | AH172: NO | AI172: NA | AJ172: NA | AK172: 33.83 | AL172: NA | AM172: 176 | AN172: 44 | AO172: 176 | AP172: 0.25 | AQ172: 259 | AR172: 83 | AS172: 259 | AT172: 0.3204633205 | AU172: 0.2566633559 | AV172: 36 | AW172: 36 | AX172: Hotspot (-7)
A173: Hotspot, Expert, Validated different approach | B173: UPN_Te5_066 | C173: 5 | D173: 170837544 | E173: T | F173: TCTGC | G173: NPM1,NPM1,NPM1 | H173: ENST00000296930,ENST00000517671,ENST00000351986 | I173: frameshift_variant,frameshift_variant,frameshift_variant | J173: tgg/tgCCTGg|p.Trp288fs/c.863_864insCCTG,tgg/tgCCTGg|p.Trp288fs/c.863_864insCCTG,tgg/tgCCTGg|p.Trp259fs/c.776_777insCCTG | K173: 452 | L173: 154 | M173: 454 | N173: 0.3392070485 | O173: 1 | P173: 1 | Q173: 1 | R173: 1 | S173: 1 | T173: 1 | U173: 0 | V173: 1 | W173: 7 | X173: NO | Y173: NO | Z173: NO | AA173: NA | AB173: NA | AC173: NO | AD173: NO | AE173: NO | AF173: NO | AG173: NO | AH173: NO | AI173: NA | AJ173: NA | AK173: 30.85 | AL173: NA | AM173: 234 | AN173: 52 | AO173: 235 | AP173: 0.2212765957 | AQ173: 218 | AR173: 102 | AS173: 219 | AT173: 0.4657534247 | AU173: 0.0001211944 | AV173: 2 | AW173: 2 | AX173: Hotspot (-9)
A174: Hotspot, Expert, Validated different approach | B174: UPN_Te5_067 | C174: 5 | D174: 170837544 | E174: T | F174: TCTGC | G174: NPM1,NPM1,NPM1 | H174: ENST00000296930,ENST00000517671,ENST00000351986 | I174: frameshift_variant,frameshift_variant,frameshift_variant | J174: tgg/tgCCTGg|p.Trp288fs/c.863_864insCCTG,tgg/tgCCTGg|p.Trp288fs/c.863_864insCCTG,tgg/tgCCTGg|p.Trp259fs/c.776_777insCCTG | K174: 357 | L174: 75 | M174: 357 | N174: 0.2100840336 | O174: 1 | P174: 1 | Q174: 0 | R174: 1 | S174: 1 | T174: 1 | U174: 0 | V174: 1 | W174: 6 | X174: NO | Y174: NO | Z174: NO | AA174: NA | AB174: NA | AC174: NO | AD174: NO | AE174: NO | AF174: NO | AG174: NO | AH174: NO | AI174: NA | AJ174: NA | AK174: 30.35 | AL174: NA | AM174: 224 | AN174: 20 | AO174: 224 | AP174: 0.08928571429 | AQ174: 133 | AR174: 55 | AS174: 133 | AT174: 0.4135338346 | AU174: 1.568330282e-08 | AV174: 2 | AW174: 2 | AX174: Hotspot (-9)
A175: Hotspot, Expert, Validated different approach | B175: UPN_Te5_039 | C175: 5 | D175: 170837545 | E175: C | F175: CTGCA | G175: NPM1,NPM1,NPM1 | H175: ENST00000296930,ENST00000517671,ENST00000351986 | I175: frameshift_variant,frameshift_variant,frameshift_variant | J175: tgg/tgCATGg|p.Trp288fs/c.863_864insCATG,tgg/tgCATGg|p.Trp288fs/c.863_864insCATG,tgg/tgCATGg|p.Trp259fs/c.776_777insCATG | K175: 379 | L175: 150 | M175: 379 | N175: 0.3957783641 | O175: 1 | P175: 1 | Q175: 1 | R175: 1 | S175: 1 | T175: 1 | U175: 0 | V175: 1 | W175: 7 | X175: NO | Y175: NO | Z175: NO | AA175: NA | AB175: NA | AC175: NO | AD175: NO | AE175: NO | AF175: NO | AG175: NO | AH175: NO | AI175: NA | AJ175: NA | AK175: 30.51 | AL175: NA | AM175: 191 | AN175: 53 | AO175: 191 | AP175: 0.277486911 | AQ175: 188 | AR175: 97 | AS175: 188 | AT175: 0.5159574468 | AU175: 0.001935247946 | AV175: 5 | AW175: 6 | AX175: Hotspot (-6)
A176: Hotspot, Expert, Validated different approach | B176: UPN_Te5_068 | C176: 5 | D176: 170837545 | E176: C | F176: CTGCA | G176: NPM1,NPM1,NPM1 | H176: ENST00000296930,ENST00000517671,ENST00000351986 | I176: frameshift_variant,frameshift_variant,frameshift_variant | J176: tgg/tgCATGg|p.Trp288fs/c.863_864insCATG,tgg/tgCATGg|p.Trp288fs/c.863_864insCATG,tgg/tgCATGg|p.Trp259fs/c.776_777insCATG | K176: 194 | L176: 73 | M176: 194 | N176: 0.3762886598 | O176: 1 | P176: 1 | Q176: 1 | R176: 1 | S176: 1 | T176: 1 | U176: 1 | V176: 1 | W176: 8 | X176: NO | Y176: NO | Z176: NO | AA176: NA | AB176: NA | AC176: NO | AD176: NO | AE176: NO | AF176: NO | AG176: NO | AH176: NO | AI176: NA | AJ176: NA | AK176: 32.75 | AL176: NA | AM176: 76 | AN176: 24 | AO176: 76 | AP176: 0.3157894737 | AQ176: 118 | AR176: 49 | AS176: 118 | AT176: 0.4152542373 | AU176: 0.3955665784 | AV176: 5 | AW176: 6 | AX176: Hotspot (-6)
A177: Hotspot, Expert | B177: UPN_Te5_083 | C177: 5 | D177: 170837545 | E177: C | F177: CTGCA | G177: NPM1,NPM1,NPM1 | H177: ENST00000296930,ENST00000517671,ENST00000351986 | I177: frameshift_variant,frameshift_variant,frameshift_variant | J177: tgg/tgCATGg|p.Trp288fs/c.863_864insCATG,tgg/tgCATGg|p.Trp288fs/c.863_864insCATG,tgg/tgCATGg|p.Trp259fs/c.776_777insCATG | K177: 251 | L177: 64 | M177: 252 | N177: 0.253968254 | O177: 1 | P177: 1 | Q177: 1 | R177: 1 | S177: 1 | T177: 1 | U177: 0 | V177: 1 | W177: 7 | X177: NO | Y177: NO | Z177: NO | AA177: NA | AB177: NA | AC177: NO | AD177: NO | AE177: NO | AF177: NO | AG177: NO | AH177: NO | AI177: NA | AJ177: NA | AK177: 30.39 | AL177: NA | AM177: 127 | AN177: 22 | AO177: 127 | AP177: 0.1732283465 | AQ177: 124 | AR177: 42 | AS177: 125 | AT177: 0.336 | AU177: 0.02461524351 | AV177: 5 | AW177: 6 | AX177: Hotspot (-6)
A178: Hotspot, Expert, Validated different approach | B178: UPN_Te5_089 | C178: 5 | D178: 170837545 | E178: C | F178: CTGCA | G178: NPM1,NPM1,NPM1 | H178: ENST00000296930,ENST00000517671,ENST00000351986 | I178: frameshift_variant,frameshift_variant,frameshift_variant | J178: tgg/tgCATGg|p.Trp288fs/c.863_864insCATG,tgg/tgCATGg|p.Trp288fs/c.863_864insCATG,tgg/tgCATGg|p.Trp259fs/c.776_777insCATG | K178: 285 | L178: 65 | M178: 285 | N178: 0.2280701754 | O178: 1 | P178: 1 | Q178: 1 | R178: 1 | S178: 1 | T178: 1 | U178: 0 | V178: 1 | W178: 7 | X178: NO | Y178: NO | Z178: NO | AA178: NA | AB178: NA | AC178: NO | AD178: NO | AE178: NO | AF178: NO | AG178: NO | AH178: NO | AI178: NA | AJ178: NA | AK178: 30.31 | AL178: NA | AM178: 140 | AN178: 21 | AO178: 140 | AP178: 0.15 | AQ178: 145 | AR178: 44 | AS178: 145 | AT178: 0.3034482759 | AU178: 0.01862030168 | AV178: 5 | AW178: 6 | AX178: Hotspot (-6)
A179: Hotspot, Expert, Validated different approach | B179: UPN_Te5_099 | C179: 5 | D179: 170837545 | E179: C | F179: CTGCA | G179: NPM1,NPM1,NPM1 | H179: ENST00000296930,ENST00000517671,ENST00000351986 | I179: frameshift_variant,frameshift_variant,frameshift_variant | J179: tgg/tgCATGg|p.Trp288fs/c.863_864insCATG,tgg/tgCATGg|p.Trp288fs/c.863_864insCATG,tgg/tgCATGg|p.Trp259fs/c.776_777insCATG | K179: 527 | L179: 94 | M179: 527 | N179: 0.1783681214 | O179: 1 | P179: 1 | Q179: 0 | R179: 1 | S179: 1 | T179: 1 | U179: 0 | V179: 1 | W179: 6 | X179: NO | Y179: NO | Z179: NO | AA179: NA | AB179: NA | AC179: NO | AD179: NO | AE179: NO | AF179: NO | AG179: NO | AH179: NO | AI179: NA | AJ179: NA | AK179: 31.4 | AL179: NA | AM179: 255 | AN179: 32 | AO179: 255 | AP179: 0.1254901961 | AQ179: 272 | AR179: 62 | AS179: 272 | AT179: 0.2279411765 | AU179: 0.01319115079 | AV179: 5 | AW179: 6 | AX179: Hotspot (-6)
A180: Hotspot, Expert, Validated different approach | B180: UPN_Te5_031 | C180: 5 | D180: 170837545 | E180: C | F180: CTGCT | G180: NPM1,NPM1,NPM1 | H180: ENST00000296930,ENST00000517671,ENST00000351986 | I180: frameshift_variant,frameshift_variant,frameshift_variant | J180: tgg/tgCTTGg|p.Trp288fs/c.863_864insCTTG,tgg/tgCTTGg|p.Trp288fs/c.863_864insCTTG,tgg/tgCTTGg|p.Trp259fs/c.776_777insCTTG | K180: 564 | L180: 156 | M180: 565 | N180: 0.2761061947 | O180: 1 | P180: 1 | Q180: 1 | R180: 1 | S180: 1 | T180: 1 | U180: 0 | V180: 1 | W180: 7 | X180: NO | Y180: NO | Z180: NO | AA180: NA | AB180: NA | AC180: NO | AD180: NO | AE180: NO | AF180: NO | AG180: NO | AH180: NO | AI180: NA | AJ180: NA | AK180: 29.2 | AL180: NA | AM180: 312 | AN180: 52 | AO180: 313 | AP180: 0.1661341853 | AQ180: 252 | AR180: 104 | AS180: 252 | AT180: 0.4126984127 | AU180: 1.367894741e-06 | AV180: 1 | AW180: 6 | AX180: Hotspot (-8)
A181: Hotspot, Expert, Validated different approach | B181: UPN_Te5_075 | C181: 5 | D181: 170837551 | E181: G | F181: GCGGA | G181: NPM1,NPM1,NPM1 | H181: ENST00000296930,ENST00000517671,ENST00000351986 | I181: frameshift_variant,frameshift_variant,frameshift_variant | J181: tgg/CGGAtgg|p.Trp290fs/c.867_868insCGGA,tgg/CGGAtgg|p.Trp290fs/c.867_868insCGGA,tgg/CGGAtgg|p.Trp261fs/c.780_781insCGGA | K181: 356 | L181: 63 | M181: 356 | N181: 0.1769662921 | O181: 1 | P181: 1 | Q181: 0 | R181: 1 | S181: 1 | T181: 1 | U181: 0 | V181: 0 | W181: 5 | X181: NO | Y181: NO | Z181: NO | AA181: NA | AB181: NA | AC181: NO | AD181: NO | AE181: NO | AF181: NO | AG181: NO | AH181: NO | AI181: NA | AJ181: NA | AK181: 33.03 | AL181: NA | AM181: 223 | AN181: 12 | AO181: 223 | AP181: 0.05381165919 | AQ181: 133 | AR181: 51 | AS181: 133 | AT181: 0.3834586466 | AU181: 1.045204576e-10 | AV181: 1 | AW181: 1 | AX181: Hotspot (-5)
A182: Hotspot, Expert | B182: UPN_Te5_075 | C182: 5 | D182: 170837552 | E182: TGGA | F182: CGGATGGC | G182: NPM1,NPM1,NPM1 | H182: ENST00000296930,ENST00000517671,ENST00000351986 | I182: frameshift_variant+missense_variant,frameshift_variant+missense_variant,frameshift_variant+missense_variant | J182: tggagg/CGGATGGCgg|p.Trp290fs/c.868_871delTGGAinsCGGATGGC,tggagg/CGGATGGCgg|p.Trp290fs/c.868_871delTGGAinsCGGATGGC,tggagg/CGGATGGCgg|p.Trp261fs/c.781_784delTGGAinsCGGATGGC | K182: 129 | L182: 67 | M182: 194 | N182: 0.3453608247 | O182: 0 | P182: 0 | Q182: 0 | R182: 0 | S182: 0 | T182: 0 | U182: 0 | V182: 1 | W182: 1 | X182: NO | Y182: NO | Z182: NO | AA182: NA | AB182: NA | AC182: NO | AD182: NO | AE182: NO | AF182: NO | AG182: NO | AH182: NO | AI182: NA | AJ182: NA | AK182: 32.675 | AL182: NA | AM182: NA | AN182: NA | AO182: NA | AP182: NA | AQ182: NA | AR182: NA | AS182: NA | AT182: NA | AU182: NA | AV182: 1 | AW182: 1 | AX182: Hotspot (-2)
A183: Expert, bq | B183: UPN_Te5_105 | C183: 5 | D183: 176662891 | E183: A | F183: G | G183: NSD1,NSD1,NSD1,NSD1 | H183: ENST00000439151,ENST00000354179,ENST00000347982,ENST00000361032 | I183: missense_variant,missense_variant,missense_variant,missense_variant | J183: gAt/gGt|p.Asp1289Gly/c.3866A>G,gAt/gGt|p.Asp1020Gly/c.3059A>G,gAt/gGt|p.Asp1020Gly/c.3059A>G,gAt/gGt|p.Asp1186Gly/c.3557A>G | K183: 102 | L183: 79 | M183: 181 | N183: 0.4364640884 | O183: 1 | P183: 1 | Q183: 1 | R183: 1 | S183: 1 | T183: 1 | U183: 1 | V183: 1 | W183: 8 | X183: NO | Y183: NO | Z183: NO | AA183: NO | AB183: O | AC183: NO | AD183: NO | AE183: NO | AF183: NO | AG183: NO | AH183: NO | AI183: -1.55 | AJ183: Tolerated | AK183: 36.9 | AL183: 35.91 | AM183: 58 | AN183: 53 | AO183: 111 | AP183: 0.4774774775 | AQ183: 44 | AR183: 26 | AS183: 70 | AT183: 0.3714285714 | AU183: 0.1699833864 | AV183: 1 | AW183: 1 | AX183: Probably True (-6)
A184: Expert, prediction, bq | B184: UPN_Te5_086 | C184: 7 | D184: 2962385 | E184: A | F184: G | G184: CARD11,CARD11 | H184: ENST00000396946,ENST00000355508 | I184: missense_variant,missense_variant | J184: Tgc/Cgc|p.Cys718Arg/c.2152T>C,Tgc/Cgc|p.Cys189Arg/c.565T>C | K184: 539 | L184: 199 | M184: 738 | N184: 0.2696476965 | O184: 1 | P184: 1 | Q184: 1 | R184: 1 | S184: 1 | T184: 1 | U184: 1 | V184: 1 | W184: 8 | X184: NO | Y184: NO | Z184: NO | AA184: NA | AB184: NA | AC184: NO | AD184: NO | AE184: NO | AF184: NO | AG184: NO | AH184: NO | AI184: -3.52 | AJ184: Deleterious | AK184: 35.58 | AL184: 36.56 | AM184: 207 | AN184: 48 | AO184: 255 | AP184: 0.1882352941 | AQ184: 332 | AR184: 151 | AS184: 483 | AT184: 0.3126293996 | AU184: 0.0002489044622 | AV184: 1 | AW184: 1 | AX184: Probably True (-7)
A185: Expert, bq | B185: UPN_Te5_050 | C185: 7 | D185: 2962914 | E185: G | F185: A | G185: CARD11,CARD11 | H185: ENST00000396946,ENST00000355508 | I185: missense_variant,missense_variant | J185: tCg/tTg|p.Ser665Leu/c.1994C>T,tCg/tTg|p.Ser136Leu/c.407C>T | K185: 1087 | L185: 821 | M185: 1908 | N185: 0.430293501 | O185: 1 | P185: 1 | Q185: 1 | R185: 1 | S185: 1 | T185: 1 | U185: 1 | V185: 1 | W185: 8 | X185: 0 | Y185: NO | Z185: NO | AA185: NO | AB185: O | AC185: NO | AD185: rs147823569 | AE185: NO | AF185: 5.769e-05 | AG185: NO | AH185: NO | AI185: -0.65 | AJ185: Tolerated | AK185: 35.94 | AL185: 36.42 | AM185: 170 | AN185: 179 | AO185: 349 | AP185: 0.5128939828 | AQ185: 917 | AR185: 642 | AS185: 1559 | AT185: 0.4118024375 | AU185: 0.0006434532929 | AV185: 1 | AW185: 1 | AX185: Probably True (-6)
A186: Expert, bq | B186: UPN_Te5_046 | C186: 7 | D186: 2974208 | E186: C | F186: T | G186: CARD11 | H186: ENST00000396946 | I186: missense_variant | J186: aGc/aAc|p.Ser466Asn/c.1397G>A | K186: 281 | L186: 336 | M186: 617 | N186: 0.5445705024 | O186: 1 | P186: 1 | Q186: 1 | R186: 1 | S186: 1 | T186: 1 | U186: 1 | V186: 1 | W186: 8 | X186: NO | Y186: NO | Z186: NO | AA186: NA | AB186: NA | AC186: NO | AD186: NO | AE186: NO | AF186: NO | AG186: NO | AH186: NO | AI186: -0.7 | AJ186: Tolerated | AK186: 38.73 | AL186: 36.72 | AM186: 174 | AN186: 194 | AO186: 368 | AP186: 0.527173913 | AQ186: 107 | AR186: 142 | AS186: 249 | AT186: 0.5702811245 | AU186: 0.3229186549 | AV186: 1 | AW186: 1 | AX186: Probably True (-6)
A187: Expert, prediction, bq | B187: UPN_Te5_107 | C187: 7 | D187: 50450292 | E187: A | F187: G | G187: IKZF1,IKZF1,IKZF1,IKZF1,IKZF1,IKZF1,IKZF1 | H187: ENST00000331340,ENST00000359197,ENST00000440768,ENST00000343574,ENST00000357364,ENST00000438033,ENST00000439701 | I187: missense_variant,missense_variant,missense_variant,missense_variant,missense_variant,missense_variant,missense_variant | J187: aAc/aGc|p.Asn159Ser/c.476A>G,aAc/aGc|p.Asn159Ser/c.476A>G,aAc/aGc|p.Asn159Ser/c.476A>G,aAc/aGc|p.Asn72Ser/c.215A>G,aAc/aGc|p.Asn159Ser/c.476A>G,aAc/aGc|p.Asn72Ser/c.215A>G,aAc/aGc|p.Asn159Ser/c.476A>G | K187: 1706 | L187: 97 | M187: 1804 | N187: 0.05376940133 | O187: 0 | P187: 0 | Q187: 0 | R187: 1 | S187: 1 | T187: 1 | U187: 0 | V187: 1 | W187: 4 | X187: 0.0117 | Y187: NO | Z187: COSM5487593 | AA187: Something is odd... | AB187: 0 | AC187: NO | AD187: rs374333820 | AE187: NO | AF187: 8.25e-06 | AG187: NO | AH187: NO | AI187: -4.4 | AJ187: Deleterious | AK187: 34.14 | AL187: 35.16 | AM187: 884 | AN187: 48 | AO187: 932 | AP187: 0.05150214592 | AQ187: 822 | AR187: 49 | AS187: 872 | AT187: 0.05619266055 | AU187: 0.6771031733 | AV187: 1 | AW187: 1 | AX187: Probably True (-5)
A188: Expert, bq | B188: UPN_Te5_075 | C188: 7 | D188: 140624443 | E188: C | F188: T | G188: BRAF,BRAF | H188: ENST00000288602,ENST00000497784 | I188: missense_variant,missense_variant | J188: Ggg/Agg|p.Gly21Arg/c.61G>A,Ggg/Agg|p.Gly6Arg/c.16G>A | K188: 139 | L188: 45 | M188: 184 | N188: 0.2445652174 | O188: 1 | P188: 1 | Q188: 1 | R188: 1 | S188: 1 | T188: 1 | U188: 1 | V188: 1 | W188: 8 | X188: NO | Y188: NO | Z188: NO | AA188: NO | AB188: O | AC188: NO | AD188: NO | AE188: NO | AF188: NO | AG188: NO | AH188: NO | AI188: -0.82 | AJ188: Tolerated | AK188: 35.35 | AL188: 36.44 | AM188: 72 | AN188: 23 | AO188: 95 | AP188: 0.2421052632 | AQ188: 67 | AR188: 22 | AS188: 89 | AT188: 0.2471910112 | AU188: 1 | AV188: 1 | AW188: 1 | AX188: Probably True (-5)
A189: Expert, Validated different approach | B189: UPN_Te5_017 | C189: 7 | D189: 148506209 | E189: CA | F189: C | G189: EZH2,EZH2,EZH2,EZH2,EZH2,EZH2,EZH2 | H189: ENST00000320356,ENST00000478654,ENST00000460911,ENST00000350995,ENST00000541220,ENST00000476773,ENST00000483967 | I189: frameshift_variant,frameshift_variant,frameshift_variant,frameshift_variant,frameshift_variant,frameshift_variant,frameshift_variant | J189: ttt/|p.Phe716fs/c.2148delT,ttt/|p.Phe660fs/c.1980delT,ttt/|p.Phe711fs/c.2133delT,ttt/|p.Phe672fs/c.2016delT,ttt/|p.Phe660fs/c.1980delT,ttt/|p.Phe660fs/c.1980delT,ttt/|p.Phe702fs/c.2106delT | K189: 278 | L189: 147 | M189: 425 | N189: 0.3458823529 | O189: 1 | P189: 1 | Q189: 1 | R189: 1 | S189: 1 | T189: 1 | U189: 0 | V189: 1 | W189: 7 | X189: NO | Y189: NO | Z189: NO | AA189: NO | AB189: O | AC189: NO | AD189: NO | AE189: NO | AF189: NO | AG189: NO | AH189: NO | AI189: NA | AJ189: NA | AK189: 36.58 | AL189: NA | AM189: 107 | AN189: 55 | AO189: 162 | AP189: 0.3395061728 | AQ189: 171 | AR189: 92 | AS189: 263 | AT189: 0.3498098859 | AU189: 0.9164115595 | AV189: 1 | AW189: 1 | AX189: Probably True (-6)
A190: Expert, Validated different approach, prediction, bq | B190: UPN_Te5_094 | C190: 7 | D190: 148511152 | E190: C | F190: T | G190: EZH2,EZH2,EZH2,EZH2,EZH2,EZH2,EZH2 | H190: ENST00000320356,ENST00000478654,ENST00000460911,ENST00000350995,ENST00000541220,ENST00000476773,ENST00000483967 | I190: missense_variant,missense_variant,missense_variant,missense_variant,missense_variant,missense_variant,missense_variant | J190: Gag/Aag|p.Glu584Lys/c.1750G>A,Gag/Aag|p.Glu528Lys/c.1582G>A,Gag/Aag|p.Glu579Lys/c.1735G>A,Gag/Aag|p.Glu540Lys/c.1618G>A,Gag/Aag|p.Glu528Lys/c.1582G>A,Gag/Aag|p.Glu528Lys/c.1582G>A,Gag/Aag|p.Glu570Lys/c.1708G>A | K190: 53 | L190: 2040 | M190: 2093 | N190: 0.9746774964 | O190: 1 | P190: 1 | Q190: 1 | R190: 1 | S190: 1 | T190: 1 | U190: 1 | V190: 1 | W190: 8 | X190: NO | Y190: NO | Z190: NO | AA190: NO | AB190: O | AC190: NO | AD190: NO | AE190: NO | AF190: NO | AG190: NO | AH190: NO | AI190: -3.77 | AJ190: Deleterious | AK190: 36.43 | AL190: 36.52 | AM190: 27 | AN190: 1011 | AO190: 1038 | AP190: 0.9739884393 | AQ190: 26 | AR190: 1029 | AS190: 1055 | AT190: 0.9753554502 | AU190: 0.8898375386 | AV190: 1 | AW190: 1 | AX190: Probably True (-7)
A191: Expert, Validated different approach, prediction, bq | B191: UPN_Te5_017 | C191: 7 | D191: 148511190 | E191: C | F191: A | G191: EZH2,EZH2,EZH2,EZH2,EZH2,EZH2,EZH2 | H191: ENST00000320356,ENST00000478654,ENST00000460911,ENST00000350995,ENST00000541220,ENST00000476773,ENST00000483967 | I191: missense_variant,missense_variant,missense_variant,missense_variant,missense_variant,missense_variant,missense_variant | J191: tGc/tTc|p.Cys571Phe/c.1712G>T,tGc/tTc|p.Cys515Phe/c.1544G>T,tGc/tTc|p.Cys566Phe/c.1697G>T,tGc/tTc|p.Cys527Phe/c.1580G>T,tGc/tTc|p.Cys515Phe/c.1544G>T,tGc/tTc|p.Cys515Phe/c.1544G>T,tGc/tTc|p.Cys557Phe/c.1670G>T | K191: 122 | L191: 88 | M191: 210 | N191: 0.419047619 | O191: 1 | P191: 1 | Q191: 1 | R191: 1 | S191: 1 | T191: 1 | U191: 1 | V191: 1 | W191: 8 | X191: NO | Y191: NO | Z191: NO | AA191: NA | AB191: NA | AC191: NO | AD191: NO | AE191: NO | AF191: NO | AG191: NO | AH191: NO | AI191: -9.98 | AJ191: Deleterious | AK191: 37.94 | AL191: 37 | AM191: 62 | AN191: 44 | AO191: 106 | AP191: 0.4150943396 | AQ191: 60 | AR191: 44 | AS191: 104 | AT191: 0.4230769231 | AU191: 1 | AV191: 1 | AW191: 1 | AX191: Probably True (-7)
A192: Expert, prediction, bq | B192: UPN_Te5_010 | C192: 7 | D192: 148512035 | E192: C | F192: T | G192: EZH2,EZH2,EZH2,EZH2 | H192: ENST00000320356,ENST00000460911,ENST00000350995,ENST00000483967 | I192: missense_variant,missense_variant,missense_variant,missense_variant | J192: tGt/tAt|p.Cys548Tyr/c.1643G>A,tGt/tAt|p.Cys543Tyr/c.1628G>A,tGt/tAt|p.Cys504Tyr/c.1511G>A,tGt/tAt|p.Cys534Tyr/c.1601G>A | K192: 190 | L192: 158 | M192: 348 | N192: 0.4540229885 | O192: 1 | P192: 1 | Q192: 1 | R192: 1 | S192: 1 | T192: 1 | U192: 1 | V192: 1 | W192: 8 | X192: NO | Y192: NO | Z192: NO | AA192: NA | AB192: NA | AC192: NO | AD192: NO | AE192: NO | AF192: NO | AG192: NO | AH192: NO | AI192: -9.69 | AJ192: Deleterious | AK192: 35.63 | AL192: 35.63 | AM192: 142 | AN192: 114 | AO192: 256 | AP192: 0.4453125 | AQ192: 48 | AR192: 44 | AS192: 92 | AT192: 0.4782608696 | AU192: 0.6261230284 | AV192: 1 | AW192: 1 | AX192: Probably True (-7)
A193: Expert, prediction, bq | B193: UPN_Te5_105 | C193: 7 | D193: 151833934 | E193: G | F193: A | G193: KMT2C,KMT2C,KMT2C,KMT2C | H193: ENST00000355193,ENST00000262189,ENST00000485655,ENST00000424877 | I193: missense_variant,missense_variant,missense_variant,missense_variant | J193: Cgg/Tgg|p.Arg4964Trp/c.14890C>T,Cgg/Tgg|p.Arg4907Trp/c.14719C>T,Cgg/Tgg|p.Arg112Trp/c.334C>T,Cgg/Tgg|p.Arg1520Trp/c.4558C>T | K193: 1100 | L193: 22 | M193: 1122 | N193: 0.01960784314 | O193: 0 | P193: 0 | Q193: 0 | R193: 1 | S193: 1 | T193: 0 | U193: 0 | V193: 1 | W193: 3 | X193: NO | Y193: NO | Z193: COSM4649784 | AA193: large_intestine | AB193: 1 | AC193: NO | AD193: NO | AE193: NO | AF193: NO | AG193: NO | AH193: NO | AI193: -7.59 | AJ193: Deleterious | AK193: 37.25 | AL193: 38.36 | AM193: 764 | AN193: 11 | AO193: 775 | AP193: 0.01419354839 | AQ193: 336 | AR193: 11 | AS193: 347 | AT193: 0.03170028818 | AU193: 0.06207913129 | AV193: 1 | AW193: 1 | AX193: Probably True (-2)
A194: Expert, bq | B194: UPN_Te5_078 | C194: 7 | D194: 151843692 | E194: C | F194: T | G194: KMT2C,KMT2C,KMT2C,KMT2C | H194: ENST00000355193,ENST00000360104,ENST00000262189,ENST00000424877 | I194: missense_variant,missense_variant,missense_variant,missense_variant | J194: Gcg/Acg|p.Ala4732Thr/c.14194G>A,Gcg/Acg|p.Ala2235Thr/c.6703G>A,Gcg/Acg|p.Ala4675Thr/c.14023G>A,Gcg/Acg|p.Ala1292Thr/c.3874G>A | K194: 295 | L194: 276 | M194: 573 | N194: 0.4816753927 | O194: 1 | P194: 1 | Q194: 1 | R194: 1 | S194: 1 | T194: 1 | U194: 1 | V194: 1 | W194: 8 | X194: NO | Y194: NO | Z194: NO | AA194: NO | AB194: O | AC194: NO | AD194: NO | AE194: NO | AF194: NO | AG194: NO | AH194: NO | AI194: -2.07 | AJ194: Tolerated | AK194: 38.98 | AL194: 38.76 | AM194: 107 | AN194: 92 | AO194: 200 | AP194: 0.46 | AQ194: 188 | AR194: 184 | AS194: 373 | AT194: 0.4932975871 | AU194: 0.482777691 | AV194: 1 | AW194: 1 | AX194: Probably True (-6)
A195: ESP6500, ExAC, VAF, likely SNP | B195: UPN_Te5_060 | C195: 7 | D195: 151843784 | E195: A | F195: C | G195: KMT2C,KMT2C,KMT2C,KMT2C | H195: ENST00000355193,ENST00000360104,ENST00000262189,ENST00000424877 | I195: missense_variant,missense_variant,missense_variant,missense_variant | J195: gTg/gGg|p.Val4701Gly/c.14102T>G,gTg/gGg|p.Val2204Gly/c.6611T>G,gTg/gGg|p.Val4644Gly/c.13931T>G,gTg/gGg|p.Val1261Gly/c.3782T>G | K195: 479 | L195: 557 | M195: 1037 | N195: 0.5371263259 | O195: 1 | P195: 1 | Q195: 1 | R195: 1 | S195: 1 | T195: 1 | U195: 1 | V195: 1 | W195: 8 | X195: 0.0581 | Y195: NO | Z195: NO | AA195: NO | AB195: O | AC195: NO | AD195: rs142657994 | AE195: NO | AF195: 0.0003624 | AG195: NO | AH195: NO | AI195: -4.68 | AJ195: Deleterious | AK195: 36.95 | AL195: 37.08 | AM195: 293 | AN195: 339 | AO195: 632 | AP195: 0.5363924051 | AQ195: 186 | AR195: 218 | AS195: 405 | AT195: 0.5382716049 | AU195: 0.94909026 | AV195: 1 | AW195: 1 | AX195: Probably True (-7)
A196: Expert, prediction, bq | B196: UPN_Te5_013 | C196: 7 | D196: 151845429 | E196: T | F196: A | G196: KMT2C,KMT2C,KMT2C,KMT2C | H196: ENST00000355193,ENST00000360104,ENST00000262189,ENST00000424877 | I196: missense_variant,missense_variant,missense_variant,missense_variant | J196: cAg/cTg|p.Gln4585Leu/c.13754A>T,cAg/cTg|p.Gln2088Leu/c.6263A>T,cAg/cTg|p.Gln4528Leu/c.13583A>T,cAg/cTg|p.Gln1145Leu/c.3434A>T | K196: 1980 | L196: 1856 | M196: 3836 | N196: 0.4838373306 | O196: 1 | P196: 1 | Q196: 1 | R196: 1 | S196: 1 | T196: 1 | U196: 1 | V196: 1 | W196: 8 | X196: NO | Y196: NO | Z196: NO | AA196: NO | AB196: O | AC196: NO | AD196: NO | AE196: NO | AF196: NO | AG196: NO | AH196: NO | AI196: -5.92 | AJ196: Deleterious | AK196: 37.56 | AL196: 37.68 | AM196: 986 | AN196: 923 | AO196: 1909 | AP196: 0.4834992142 | AQ196: 994 | AR196: 933 | AS196: 1927 | AT196: 0.4841722885 | AU196: 0.9742330169 | AV196: 1 | AW196: 1 | AX196: Probably True (-7)
A197: ESP6500, ExAC, VAF, likely SNP | B197: UPN_Te5_004 | C197: 7 | D197: 151859899 | E197: G | F197: A | G197: KMT2C,KMT2C,KMT2C,KMT2C | H197: ENST00000355193,ENST00000360104,ENST00000262189,ENST00000424877 | I197: missense_variant,missense_variant,missense_variant,missense_variant | J197: tCg/tTg|p.Ser3588Leu/c.10763C>T,tCg/tTg|p.Ser1093Leu/c.3278C>T,tCg/tTg|p.Ser3588Leu/c.10763C>T,tCg/tTg|p.Ser174Leu/c.521C>T | K197: 157 | L197: 146 | M197: 303 | N197: 0.4818481848 | O197: 1 | P197: 1 | Q197: 1 | R197: 1 | S197: 1 | T197: 1 | U197: 1 | V197: 1 | W197: 8 | X197: 0.3837 | Y197: NO | Z197: COSM1581233, COSM1581234 | AA197: haematopoietic_and_lymphoid_tissue, soft_tissue | AB197: 4, 2 | AC197: NO | AD197: rs148585727 | AE197: NO | AF197: 0.002529 | AG197: NO | AH197: NO | AI197: -3.31 | AJ197: Deleterious | AK197: 38.54 | AL197: 38.47 | AM197: 35 | AN197: 32 | AO197: 67 | AP197: 0.4776119403 | AQ197: 122 | AR197: 114 | AS197: 236 | AT197: 0.4830508475 | AU197: 1 | AV197: 1 | AW197: 1 | AX197: Probably True (-7)
A198: Expert, bq | B198: UPN_Te5_003 | C198: 7 | D198: 151860142 | E198: C | F198: T | G198: KMT2C,KMT2C,KMT2C,KMT2C | H198: ENST00000355193,ENST00000360104,ENST00000262189,ENST00000424877 | I198: missense_variant,missense_variant,missense_variant,missense_variant | J198: cGa/cAa|p.Arg3507Gln/c.10520G>A,cGa/cAa|p.Arg1012Gln/c.3035G>A,cGa/cAa|p.Arg3507Gln/c.10520G>A,cGa/cAa|p.Arg93Gln/c.278G>A | K198: 622 | L198: 24 | M198: 646 | N198: 0.03715170279 | O198: 0 | P198: 0 | Q198: 0 | R198: 1 | S198: 1 | T198: 1 | U198: 0 | V198: 1 | W198: 4 | X198: NO | Y198: NO | Z198: NO | AA198: NO | AB198: O | AC198: NO | AD198: NO | AE198: NO | AF198: 3.295e-05 | AG198: NO | AH198: NO | AI198: -0.45 | AJ198: Tolerated | AK198: 39.15 | AL198: 38.67 | AM198: 308 | AN198: 12 | AO198: 320 | AP198: 0.0375 | AQ198: 314 | AR198: 12 | AS198: 326 | AT198: 0.03680981595 | AU198: 1 | AV198: 1 | AW198: 1 | AX198: Probably True (-3)
A199: Expert, bq | B199: UPN_Te5_020 | C199: 7 | D199: 151860331 | E199: C | F199: G | G199: KMT2C,KMT2C,KMT2C,KMT2C | H199: ENST00000355193,ENST00000360104,ENST00000262189,ENST00000424877 | I199: missense_variant,missense_variant,missense_variant,missense_variant | J199: aGt/aCt|p.Ser3444Thr/c.10331G>C,aGt/aCt|p.Ser949Thr/c.2846G>C,aGt/aCt|p.Ser3444Thr/c.10331G>C,aGt/aCt|p.Ser30Thr/c.89G>C | K199: 1044 | L199: 1072 | M199: 2118 | N199: 0.5061378659 | O199: 1 | P199: 1 | Q199: 1 | R199: 1 | S199: 1 | T199: 1 | U199: 1 | V199: 1 | W199: 8 | X199: NO | Y199: NO | Z199: NO | AA199: NO | AB199: O | AC199: NO | AD199: NO | AE199: NO | AF199: NO | AG199: NO | AH199: NO | AI199: -0.79 | AJ199: Tolerated | AK199: 39.15 | AL199: 39.22 | AM199: 436 | AN199: 442 | AO199: 879 | AP199: 0.5028441411 | AQ199: 608 | AR199: 630 | AS199: 1239 | AT199: 0.5084745763 | AU199: 0.825414355 | AV199: 1 | AW199: 1 | AX199: Probably True (-6)
A200: Expert, prediction, bq | B200: UPN_Te5_014 | C200: 7 | D200: 151873293 | E200: G | F200: A | G200: KMT2C,KMT2C,KMT2C | H200: ENST00000355193,ENST00000360104,ENST00000262189 | I200: missense_variant,missense_variant,missense_variant | J200: cCg/cTg|p.Pro3082Leu/c.9245C>T,cCg/cTg|p.Pro587Leu/c.1760C>T,cCg/cTg|p.Pro3082Leu/c.9245C>T | K200: 136 | L200: 41 | M200: 177 | N200: 0.2316384181 | O200: 1 | P200: 1 | Q200: 0 | R200: 1 | S200: 1 | T200: 0 | U200: 0 | V200: 1 | W200: 5 | X200: 0.0349 | Y200: NO | Z200: NO | AA200: NO | AB200: O | AC200: rs61730545 | AD200: rs61730545 | AE200: NO | AF200: 0.004398 | AG200: NO | AH200: YES | AI200: -5.25 | AJ200: Deleterious | AK200: 33.29 | AL200: 36.05 | AM200: 0 | AN200: 0 | AO200: 0 | AP200: NA | AQ200: 136 | AR200: 41 | AS200: 177 | AT200: 0.2316384181 | AU200: 1 | AV200: 1 | AW200: 1 | AX200: Probably True (-6)
... 363 more rows

Sheet TP Polymorphisms
A1: Polymorphism because... | B1: Sample | C1: Chr | D1: Pos | E1: Ref | F1: Alt | G1: Gene | H1: ENST | I1: Type | J1: Mutation | K1: Nr_Ref | L1: Nr_Alt | M1: DP | N1: VAF | O1: GATK | P1: Platypus | Q1: VarScan | R1: LoFreq | S1: FreeBayes | T1: SNVer | U1: SAMtools | V1: VarDict | W1: Called | X1: ESP6500 | Y1: G1000 | Z1: Cosmic | AA1: Cosmic_location | AB1: Cosmic_occurence | AC1: dbSNP_SNPs | AD1: dbSNP_SNVs | AE1: PM_flag | AF1: ExAC | AG1: ClinVar_clinical | AH1: ClinVar_noimpact | AI1: Provean_Prediction | AJ1: Provean_Score | AK1: BQ_Ref | AL1: BQ_Alt | AM1: Nr_Ref_fwd | AN1: Nr_Alt_fwd | AO1: DP_fwd | AP1: VAF_fwd | AQ1: Nr_Ref_rev | AR1: Nr_Alt_rev | AS1: DP_rev | AT1: VAF_rev | AU1: strandbias | AV1: nr_samples | AW1: nr_samples_similar | AX1: Category
A2: 1000 Genomes, ClinVar, prediction, VAF | B2: UPN_Te5_013 | C2: 1 | D2: 20915507 | E2: G | F2: T | G2: CDA | H2: ENST00000375071 | I2: 5_prime_UTR_premature_start_codon_gain_variant | J2: |c.-116G>T | K2: 332 | L2: 297 | M2: 629 | N2: 0.4721780604 | O2: 1 | P2: 1 | Q2: 1 | R2: 1 | S2: 1 | T2: 1 | U2: 1 | V2: 1 | W2: 8 | X2: NO | Y2: 0.0119 | Z2: NO | AA2: NO | AB2: O | AC2: NO | AD2: rs67820925 | AE2: NO | AF2: NO | AG2: NO | AH2: YES | AI2: NA | AJ2: NA | AK2: 37.54 | AL2: 37.89 | AM2: 312 | AN2: 291 | AO2: 603 | AP2: 0.4825870647 | AQ2: 20 | AR2: 6 | AS2: 26 | AT2: 0.2307692308 | AU2: 0.0148575499 | AV2: 2 | AW2: 2 | AX2: Polymorphism
A3: 1000 Genomes, ClinVar, prediction, VAF | B3: UPN_Te5_102 | C3: 1 | D3: 20915507 | E3: G | F3: T | G3: CDA | H3: ENST00000375071 | I3: 5_prime_UTR_premature_start_codon_gain_variant | J3: |c.-116G>T | K3: 63 | L3: 57 | M3: 120 | N3: 0.475 | O3: 1 | P3: 1 | Q3: 1 | R3: 1 | S3: 1 | T3: 0 | U3: 1 | V3: 1 | W3: 7 | X3: NO | Y3: 0.0119 | Z3: NO | AA3: NO | AB3: O | AC3: NO | AD3: rs67820925 | AE3: NO | AF3: NO | AG3: NO | AH3: YES | AI3: NA | AJ3: NA | AK3: 38.71 | AL3: 38.49 | AM3: 63 | AN3: 57 | AO3: 120 | AP3: 0.475 | AQ3: 0 | AR3: 0 | AS3: 0 | AT3: NA | AU3: 1 | AV3: 2 | AW3: 2 | AX3: Polymorphism
A4: ESP6500, 1000 Genomes, dbSNP, ClinVar, prediction, many samples, VAF | B4: UPN_Te5_002 | C4: 1 | D4: 20915701 | E4: A | F4: C | G4: CDA | H4: ENST00000375071 | I4: missense_variant | J4: Aag/Cag|p.Lys27Gln/c.79A>C | K4: 145 | L4: 183 | M4: 328 | N4: 0.5579268293 | O4: 1 | P4: 1 | Q4: 1 | R4: 1 | S4: 1 | T4: 1 | U4: 1 | V4: 1 | W4: 8 | X4: 34.6279 | Y4: 0.3141 | Z4: COSM3750847 | AA4: haematopoietic_and_lymphoid_tissue, soft_tissue | AB4: 2, 7 | AC4: rs2072671 | AD4: rs2072671 | AE4: NO | AF4: NO | AG4: NO | AH4: YES | AI4: -0.29 | AJ4: Tolerated | AK4: 36.54 | AL4: 37.29 | AM4: 142 | AN4: 181 | AO4: 323 | AP4: 0.560371517 | AQ4: 3 | AR4: 2 | AS4: 5 | AT4: 0.4 | AU4: 0.6581276484 | AV4: 58 | AW4: 58 | AX4: Polymorphism
A5: ESP6500, 1000 Genomes, dbSNP, ClinVar, prediction, many samples, VAF | B5: UPN_Te5_008 | C5: 1 | D5: 20915701 | E5: A | F5: C | G5: CDA | H5: ENST00000375071 | I5: missense_variant | J5: Aag/Cag|p.Lys27Gln/c.79A>C | K5: 59 | L5: 83 | M5: 142 | N5: 0.5845070423 | O5: 1 | P5: 1 | Q5: 1 | R5: 1 | S5: 1 | T5: 1 | U5: 1 | V5: 1 | W5: 8 | X5: 34.6279 | Y5: 0.3141 | Z5: COSM3750847 | AA5: haematopoietic_and_lymphoid_tissue, soft_tissue | AB5: 2, 7 | AC5: rs2072671 | AD5: rs2072671 | AE5: NO | AF5: NO | AG5: NO | AH5: YES | AI5: -0.29 | AJ5: Tolerated | AK5: 37.8 | AL5: 38.25 | AM5: 56 | AN5: 77 | AO5: 133 | AP5: 0.5789473684 | AQ5: 3 | AR5: 6 | AS5: 9 | AT5: 0.6666666667 | AU5: 0.7354059626 | AV5: 58 | AW5: 58 | AX5: Polymorphism
A6: ESP6500, 1000 Genomes, dbSNP, ClinVar, prediction, many samples, VAF | B6: UPN_Te5_009 | C6: 1 | D6: 20915701 | E6: A | F6: C | G6: CDA | H6: ENST00000375071 | I6: missense_variant | J6: Aag/Cag|p.Lys27Gln/c.79A>C | K6: 41 | L6: 40 | M6: 81 | N6: 0.4938271605 | O6: 1 | P6: 1 | Q6: 1 | R6: 1 | S6: 1 | T6: 1 | U6: 1 | V6: 1 | W6: 8 | X6: 34.6279 | Y6: 0.3141 | Z6: COSM3750847 | AA6: haematopoietic_and_lymphoid_tissue, soft_tissue | AB6: 2, 7 | AC6: rs2072671 | AD6: rs2072671 | AE6: NO | AF6: NO | AG6: NO | AH6: YES | AI6: -0.29 | AJ6: Tolerated | AK6: 38 | AL6: 38.67 | AM6: 41 | AN6: 35 | AO6: 76 | AP6: 0.4605263158 | AQ6: 0 | AR6: 5 | AS6: 5 | AT6: 1 | AU6: 0.02568177252 | AV6: 58 | AW6: 58 | AX6: Polymorphism
A7: ESP6500, 1000 Genomes, dbSNP, ClinVar, prediction, many samples, VAF | B7: UPN_Te5_013 | C7: 1 | D7: 20915701 | E7: A | F7: C | G7: CDA | H7: ENST00000375071 | I7: missense_variant | J7: Aag/Cag|p.Lys27Gln/c.79A>C | K7: 263 | L7: 245 | M7: 508 | N7: 0.4822834646 | O7: 1 | P7: 1 | Q7: 1 | R7: 1 | S7: 1 | T7: 1 | U7: 1 | V7: 1 | W7: 8 | X7: 34.6279 | Y7: 0.3141 | Z7: COSM3750847 | AA7: haematopoietic_and_lymphoid_tissue, soft_tissue | AB7: 2, 7 | AC7: rs2072671 | AD7: rs2072671 | AE7: NO | AF7: NO | AG7: NO | AH7: YES | AI7: -0.29 | AJ7: Tolerated | AK7: 36.84 | AL7: 36.58 | AM7: 244 | AN7: 237 | AO7: 481 | AP7: 0.4927234927 | AQ7: 19 | AR7: 8 | AS7: 27 | AT7: 0.2962962963 | AU7: 0.04998053569 | AV7: 58 | AW7: 58 | AX7: Polymorphism
A8: ESP6500, 1000 Genomes, dbSNP, ClinVar, prediction, many samples, VAF | B8: UPN_Te5_015 | C8: 1 | D8: 20915701 | E8: A | F8: C | G8: CDA | H8: ENST00000375071 | I8: missense_variant | J8: Aag/Cag|p.Lys27Gln/c.79A>C | K8: 247 | L8: 194 | M8: 441 | N8: 0.4399092971 | O8: 1 | P8: 1 | Q8: 1 | R8: 1 | S8: 1 | T8: 1 | U8: 1 | V8: 1 | W8: 8 | X8: 34.6279 | Y8: 0.3141 | Z8: COSM3750847 | AA8: haematopoietic_and_lymphoid_tissue, soft_tissue | AB8: 2, 7 | AC8: rs2072671 | AD8: rs2072671 | AE8: NO | AF8: NO | AG8: NO | AH8: YES | AI8: -0.29 | AJ8: Tolerated | AK8: 36.88 | AL8: 37.06 | AM8: 234 | AN8: 181 | AO8: 415 | AP8: 0.4361445783 | AQ8: 13 | AR8: 13 | AS8: 26 | AT8: 0.5 | AU8: 0.5469682423 | AV8: 58 | AW8: 58 | AX8: Polymorphism
A9: ESP6500, 1000 Genomes, dbSNP, ClinVar, prediction, many samples, VAF | B9: UPN_Te5_016 | C9: 1 | D9: 20915701 | E9: A | F9: C | G9: CDA | H9: ENST00000375071 | I9: missense_variant | J9: Aag/Cag|p.Lys27Gln/c.79A>C | K9: 54 | L9: 47 | M9: 101 | N9: 0.4653465347 | O9: 1 | P9: 1 | Q9: 1 | R9: 1 | S9: 1 | T9: 0 | U9: 1 | V9: 1 | W9: 7 | X9: 34.6279 | Y9: 0.3141 | Z9: COSM3750847 | AA9: haematopoietic_and_lymphoid_tissue, soft_tissue | AB9: 2, 7 | AC9: rs2072671 | AD9: rs2072671 | AE9: NO | AF9: NO | AG9: NO | AH9: YES | AI9: -0.29 | AJ9: Tolerated | AK9: 38.04 | AL9: 37.17 | AM9: 52 | AN9: 46 | AO9: 98 | AP9: 0.4693877551 | AQ9: 2 | AR9: 1 | AS9: 3 | AT9: 0.3333333333 | AU9: 1 | AV9: 58 | AW9: 58 | AX9: Polymorphism
A10: ESP6500, 1000 Genomes, dbSNP, ClinVar, prediction, many samples, VAF | B10: UPN_Te5_018 | C10: 1 | D10: 20915701 | E10: A | F10: C | G10: CDA | H10: ENST00000375071 | I10: missense_variant | J10: Aag/Cag|p.Lys27Gln/c.79A>C | K10: 0 | L10: 313 | M10: 313 | N10: 1 | O10: 1 | P10: 1 | Q10: 0 | R10: 1 | S10: 1 | T10: 1 | U10: 1 | V10: 1 | W10: 7 | X10: 34.6279 | Y10: 0.3141 | Z10: COSM3750847 | AA10: haematopoietic_and_lymphoid_tissue, soft_tissue | AB10: 2, 7 | AC10: rs2072671 | AD10: rs2072671 | AE10: NO | AF10: NO | AG10: NO | AH10: YES | AI10: -0.29 | AJ10: Tolerated | AK10: 0 | AL10: 36.8 | AM10: 0 | AN10: 301 | AO10: 301 | AP10: 1 | AQ10: 0 | AR10: 12 | AS10: 12 | AT10: 1 | AU10: 1 | AV10: 58 | AW10: 58 | AX10: Polymorphism
A11: ESP6500, 1000 Genomes, dbSNP, ClinVar, prediction, many samples, VAF | B11: UPN_Te5_019 | C11: 1 | D11: 20915701 | E11: A | F11: C | G11: CDA | H11: ENST00000375071 | I11: missense_variant | J11: Aag/Cag|p.Lys27Gln/c.79A>C | K11: 102 | L11: 51 | M11: 153 | N11: 0.3333333333 | O11: 1 | P11: 1 | Q11: 1 | R11: 1 | S11: 1 | T11: 1 | U11: 1 | V11: 1 | W11: 8 | X11: 34.6279 | Y11: 0.3141 | Z11: COSM3750847 | AA11: haematopoietic_and_lymphoid_tissue, soft_tissue | AB11: 2, 7 | AC11: rs2072671 | AD11: rs2072671 | AE11: NO | AF11: NO | AG11: NO | AH11: YES | AI11: -0.29 | AJ11: Tolerated | AK11: 38.07 | AL11: 38.31 | AM11: 98 | AN11: 50 | AO11: 148 | AP11: 0.3378378378 | AQ11: 4 | AR11: 1 | AS11: 5 | AT11: 0.2 | AU11: 0.6652872681 | AV11: 58 | AW11: 58 | AX11: Polymorphism
A12: ESP6500, 1000 Genomes, dbSNP, ClinVar, prediction, many samples, VAF | B12: UPN_Te5_021 | C12: 1 | D12: 20915701 | E12: A | F12: C | G12: CDA | H12: ENST00000375071 | I12: missense_variant | J12: Aag/Cag|p.Lys27Gln/c.79A>C | K12: 146 | L12: 160 | M12: 306 | N12: 0.522875817 | O12: 1 | P12: 1 | Q12: 1 | R12: 1 | S12: 1 | T12: 1 | U12: 1 | V12: 1 | W12: 8 | X12: 34.6279 | Y12: 0.3141 | Z12: COSM3750847 | AA12: haematopoietic_and_lymphoid_tissue, soft_tissue | AB12: 2, 7 | AC12: rs2072671 | AD12: rs2072671 | AE12: NO | AF12: NO | AG12: NO | AH12: YES | AI12: -0.29 | AJ12: Tolerated | AK12: 38.03 | AL12: 38.24 | AM12: 136 | AN12: 152 | AO12: 288 | AP12: 0.5277777778 | AQ12: 10 | AR12: 8 | AS12: 18 | AT12: 0.4444444444 | AU12: 0.6280486683 | AV12: 58 | AW12: 58 | AX12: Polymorphism
A13: ESP6500, 1000 Genomes, dbSNP, ClinVar, prediction, many samples, VAF | B13: UPN_Te5_022 | C13: 1 | D13: 20915701 | E13: A | F13: C | G13: CDA | H13: ENST00000375071 | I13: missense_variant | J13: Aag/Cag|p.Lys27Gln/c.79A>C | K13: 0 | L13: 111 | M13: 111 | N13: 1 | O13: 1 | P13: 1 | Q13: 0 | R13: 1 | S13: 1 | T13: 1 | U13: 1 | V13: 1 | W13: 7 | X13: 34.6279 | Y13: 0.3141 | Z13: COSM3750847 | AA13: haematopoietic_and_lymphoid_tissue, soft_tissue | AB13: 2, 7 | AC13: rs2072671 | AD13: rs2072671 | AE13: NO | AF13: NO | AG13: NO | AH13: YES | AI13: -0.29 | AJ13: Tolerated | AK13: 0 | AL13: 38.16 | AM13: 0 | AN13: 110 | AO13: 110 | AP13: 1 | AQ13: 0 | AR13: 1 | AS13: 1 | AT13: 1 | AU13: 1 | AV13: 58 | AW13: 58 | AX13: Polymorphism
A14: ESP6500, 1000 Genomes, dbSNP, ClinVar, prediction, many samples, VAF | B14: UPN_Te5_024 | C14: 1 | D14: 20915701 | E14: A | F14: C | G14: CDA | H14: ENST00000375071 | I14: missense_variant | J14: Aag/Cag|p.Lys27Gln/c.79A>C | K14: 44 | L14: 63 | M14: 107 | N14: 0.5887850467 | O14: 1 | P14: 1 | Q14: 1 | R14: 1 | S14: 1 | T14: 1 | U14: 1 | V14: 1 | W14: 8 | X14: 34.6279 | Y14: 0.3141 | Z14: COSM3750847 | AA14: haematopoietic_and_lymphoid_tissue, soft_tissue | AB14: 2, 7 | AC14: rs2072671 | AD14: rs2072671 | AE14: NO | AF14: NO | AG14: NO | AH14: YES | AI14: -0.29 | AJ14: Tolerated | AK14: 38 | AL14: 38.48 | AM14: 44 | AN14: 61 | AO14: 105 | AP14: 0.580952381 | AQ14: 0 | AR14: 2 | AS14: 2 | AT14: 1 | AU14: 0.5111973197 | AV14: 58 | AW14: 58 | AX14: Polymorphism
A15: ESP6500, 1000 Genomes, dbSNP, ClinVar, prediction, many samples, VAF | B15: UPN_Te5_027 | C15: 1 | D15: 20915701 | E15: A | F15: C | G15: CDA | H15: ENST00000375071 | I15: missense_variant | J15: Aag/Cag|p.Lys27Gln/c.79A>C | K15: 152 | L15: 189 | M15: 341 | N15: 0.5542521994 | O15: 1 | P15: 1 | Q15: 1 | R15: 1 | S15: 1 | T15: 1 | U15: 1 | V15: 1 | W15: 8 | X15: 34.6279 | Y15: 0.3141 | Z15: COSM3750847 | AA15: haematopoietic_and_lymphoid_tissue, soft_tissue | AB15: 2, 7 | AC15: rs2072671 | AD15: rs2072671 | AE15: NO | AF15: NO | AG15: NO | AH15: YES | AI15: -0.29 | AJ15: Tolerated | AK15: 36.31 | AL15: 36.44 | AM15: 152 | AN15: 178 | AO15: 330 | AP15: 0.5393939394 | AQ15: 0 | AR15: 11 | AS15: 11 | AT15: 1 | AU15: 0.001438858131 | AV15: 58 | AW15: 58 | AX15: Polymorphism
A16: ESP6500, 1000 Genomes, dbSNP, ClinVar, prediction, many samples, VAF | B16: UPN_Te5_030 | C16: 1 | D16: 20915701 | E16: A | F16: C | G16: CDA | H16: ENST00000375071 | I16: missense_variant | J16: Aag/Cag|p.Lys27Gln/c.79A>C | K16: 228 | L16: 190 | M16: 418 | N16: 0.4545454545 | O16: 1 | P16: 1 | Q16: 1 | R16: 1 | S16: 1 | T16: 1 | U16: 1 | V16: 1 | W16: 8 | X16: 34.6279 | Y16: 0.3141 | Z16: COSM3750847 | AA16: haematopoietic_and_lymphoid_tissue, soft_tissue | AB16: 2, 7 | AC16: rs2072671 | AD16: rs2072671 | AE16: NO | AF16: NO | AG16: NO | AH16: YES | AI16: -0.29 | AJ16: Tolerated | AK16: 36.65 | AL16: 36.89 | AM16: 216 | AN16: 180 | AO16: 396 | AP16: 0.4545454545 | AQ16: 12 | AR16: 10 | AS16: 22 | AT16: 0.4545454545 | AU16: 1 | AV16: 58 | AW16: 58 | AX16: Polymorphism
A17: ESP6500, 1000 Genomes, dbSNP, ClinVar, prediction, many samples, VAF | B17: UPN_Te5_031 | C17: 1 | D17: 20915701 | E17: A | F17: C | G17: CDA | H17: ENST00000375071 | I17: missense_variant | J17: Aag/Cag|p.Lys27Gln/c.79A>C | K17: 247 | L17: 237 | M17: 484 | N17: 0.4896694215 | O17: 1 | P17: 1 | Q17: 1 | R17: 1 | S17: 1 | T17: 1 | U17: 1 | V17: 1 | W17: 8 | X17: 34.6279 | Y17: 0.3141 | Z17: COSM3750847 | AA17: haematopoietic_and_lymphoid_tissue, soft_tissue | AB17: 2, 7 | AC17: rs2072671 | AD17: rs2072671 | AE17: NO | AF17: NO | AG17: NO | AH17: YES | AI17: -0.29 | AJ17: Tolerated | AK17: 36.81 | AL17: 36.8 | AM17: 228 | AN17: 222 | AO17: 450 | AP17: 0.4933333333 | AQ17: 19 | AR17: 15 | AS17: 34 | AT17: 0.4411764706 | AU17: 0.5971142708 | AV17: 58 | AW17: 58 | AX17: Polymorphism
A18: ESP6500, 1000 Genomes, dbSNP, ClinVar, prediction, many samples, VAF | B18: UPN_Te5_034 | C18: 1 | D18: 20915701 | E18: A | F18: C | G18: CDA | H18: ENST00000375071 | I18: missense_variant | J18: Aag/Cag|p.Lys27Gln/c.79A>C | K18: 92 | L18: 99 | M18: 191 | N18: 0.5183246073 | O18: 1 | P18: 1 | Q18: 1 | R18: 1 | S18: 1 | T18: 0 | U18: 1 | V18: 1 | W18: 7 | X18: 34.6279 | Y18: 0.3141 | Z18: COSM3750847 | AA18: haematopoietic_and_lymphoid_tissue, soft_tissue | AB18: 2, 7 | AC18: rs2072671 | AD18: rs2072671 | AE18: NO | AF18: NO | AG18: NO | AH18: YES | AI18: -0.29 | AJ18: Tolerated | AK18: 38.21 | AL18: 37.53 | AM18: 83 | AN18: 99 | AO18: 182 | AP18: 0.543956044 | AQ18: 9 | AR18: 0 | AS18: 9 | AT18: 0 | AU18: 0.001128388133 | AV18: 58 | AW18: 58 | AX18: Polymorphism
A19: ESP6500, 1000 Genomes, dbSNP, ClinVar, prediction, many samples, VAF | B19: UPN_Te5_035 | C19: 1 | D19: 20915701 | E19: A | F19: C | G19: CDA | H19: ENST00000375071 | I19: missense_variant | J19: Aag/Cag|p.Lys27Gln/c.79A>C | K19: 73 | L19: 56 | M19: 129 | N19: 0.4341085271 | O19: 1 | P19: 1 | Q19: 1 | R19: 1 | S19: 1 | T19: 1 | U19: 1 | V19: 1 | W19: 8 | X19: 34.6279 | Y19: 0.3141 | Z19: COSM3750847 | AA19: haematopoietic_and_lymphoid_tissue, soft_tissue | AB19: 2, 7 | AC19: rs2072671 | AD19: rs2072671 | AE19: NO | AF19: NO | AG19: NO | AH19: YES | AI19: -0.29 | AJ19: Tolerated | AK19: 37.04 | AL19: 35.95 | AM19: 71 | AN19: 53 | AO19: 124 | AP19: 0.4274193548 | AQ19: 2 | AR19: 3 | AS19: 5 | AT19: 0.6 | AU19: 0.6519990234 | AV19: 58 | AW19: 58 | AX19: Polymorphism
A20: ESP6500, 1000 Genomes, dbSNP, ClinVar, prediction, many samples, VAF | B20: UPN_Te5_039 | C20: 1 | D20: 20915701 | E20: A | F20: C | G20: CDA | H20: ENST00000375071 | I20: missense_variant | J20: Aag/Cag|p.Lys27Gln/c.79A>C | K20: 0 | L20: 518 | M20: 518 | N20: 1 | O20: 1 | P20: 1 | Q20: 0 | R20: 1 | S20: 1 | T20: 1 | U20: 1 | V20: 1 | W20: 7 | X20: 34.6279 | Y20: 0.3141 | Z20: COSM3750847 | AA20: haematopoietic_and_lymphoid_tissue, soft_tissue | AB20: 2, 7 | AC20: rs2072671 | AD20: rs2072671 | AE20: NO | AF20: NO | AG20: NO | AH20: YES | AI20: -0.29 | AJ20: Tolerated | AK20: 0 | AL20: 36.54 | AM20: 0 | AN20: 480 | AO20: 480 | AP20: 1 | AQ20: 0 | AR20: 38 | AS20: 38 | AT20: 1 | AU20: 1 | AV20: 58 | AW20: 58 | AX20: Polymorphism
A21: ESP6500, 1000 Genomes, dbSNP, ClinVar, prediction, many samples, VAF | B21: UPN_Te5_040 | C21: 1 | D21: 20915701 | E21: A | F21: C | G21: CDA | H21: ENST00000375071 | I21: missense_variant | J21: Aag/Cag|p.Lys27Gln/c.79A>C | K21: 65 | L21: 80 | M21: 145 | N21: 0.5517241379 | O21: 1 | P21: 1 | Q21: 1 | R21: 1 | S21: 1 | T21: 1 | U21: 1 | V21: 1 | W21: 8 | X21: 34.6279 | Y21: 0.3141 | Z21: COSM3750847 | AA21: haematopoietic_and_lymphoid_tissue, soft_tissue | AB21: 2, 7 | AC21: rs2072671 | AD21: rs2072671 | AE21: NO | AF21: NO | AG21: NO | AH21: YES | AI21: -0.29 | AJ21: Tolerated | AK21: 37.14 | AL21: 36.64 | AM21: 57 | AN21: 72 | AO21: 129 | AP21: 0.5581395349 | AQ21: 8 | AR21: 8 | AS21: 16 | AT21: 0.5 | AU21: 0.7912075187 | AV21: 58 | AW21: 58 | AX21: Polymorphism
A22: ESP6500, 1000 Genomes, dbSNP, ClinVar, prediction, many samples, VAF | B22: UPN_Te5_042 | C22: 1 | D22: 20915701 | E22: A | F22: C | G22: CDA | H22: ENST00000375071 | I22: missense_variant | J22: Aag/Cag|p.Lys27Gln/c.79A>C | K22: 0 | L22: 218 | M22: 218 | N22: 1 | O22: 1 | P22: 1 | Q22: 0 | R22: 0 | S22: 1 | T22: 0 | U22: 1 | V22: 1 | W22: 5 | X22: 34.6279 | Y22: 0.3141 | Z22: COSM3750847 | AA22: haematopoietic_and_lymphoid_tissue, soft_tissue | AB22: 2, 7 | AC22: rs2072671 | AD22: rs2072671 | AE22: NO | AF22: NO | AG22: NO | AH22: YES | AI22: -0.29 | AJ22: Tolerated | AK22: 0 | AL22: 36.85 | AM22: 0 | AN22: 218 | AO22: 218 | AP22: 1 | AQ22: 0 | AR22: 0 | AS22: 0 | AT22: NA | AU22: 1 | AV22: 58 | AW22: 58 | AX22: Polymorphism
A23: ESP6500, 1000 Genomes, dbSNP, ClinVar, prediction, many samples, VAF | B23: UPN_Te5_043 | C23: 1 | D23: 20915701 | E23: A | F23: C | G23: CDA | H23: ENST00000375071 | I23: missense_variant | J23: Aag/Cag|p.Lys27Gln/c.79A>C | K23: 0 | L23: 149 | M23: 149 | N23: 1 | O23: 1 | P23: 1 | Q23: 0 | R23: 1 | S23: 1 | T23: 1 | U23: 1 | V23: 1 | W23: 7 | X23: 34.6279 | Y23: 0.3141 | Z23: COSM3750847 | AA23: haematopoietic_and_lymphoid_tissue, soft_tissue | AB23: 2, 7 | AC23: rs2072671 | AD23: rs2072671 | AE23: NO | AF23: NO | AG23: NO | AH23: YES | AI23: -0.29 | AJ23: Tolerated | AK23: 0 | AL23: 37.28 | AM23: 0 | AN23: 146 | AO23: 146 | AP23: 1 | AQ23: 0 | AR23: 3 | AS23: 3 | AT23: 1 | AU23: 1 | AV23: 58 | AW23: 58 | AX23: Polymorphism
A24: ESP6500, 1000 Genomes, dbSNP, ClinVar, prediction, many samples, VAF | B24: UPN_Te5_044 | C24: 1 | D24: 20915701 | E24: A | F24: C | G24: CDA | H24: ENST00000375071 | I24: missense_variant | J24: Aag/Cag|p.Lys27Gln/c.79A>C | K24: 44 | L24: 60 | M24: 104 | N24: 0.5769230769 | O24: 1 | P24: 1 | Q24: 1 | R24: 1 | S24: 1 | T24: 0 | U24: 1 | V24: 1 | W24: 7 | X24: 34.6279 | Y24: 0.3141 | Z24: COSM3750847 | AA24: haematopoietic_and_lymphoid_tissue, soft_tissue | AB24: 2, 7 | AC24: rs2072671 | AD24: rs2072671 | AE24: NO | AF24: NO | AG24: NO | AH24: YES | AI24: -0.29 | AJ24: Tolerated | AK24: 36.73 | AL24: 36.57 | AM24: 42 | AN24: 60 | AO24: 102 | AP24: 0.5882352941 | AQ24: 2 | AR24: 0 | AS24: 2 | AT24: 0 | AU24: 0.1766243465 | AV24: 58 | AW24: 58 | AX24: Polymorphism
A25: ESP6500, 1000 Genomes, dbSNP, ClinVar, prediction, many samples, VAF | B25: UPN_Te5_045 | C25: 1 | D25: 20915701 | E25: A | F25: C | G25: CDA | H25: ENST00000375071 | I25: missense_variant | J25: Aag/Cag|p.Lys27Gln/c.79A>C | K25: 224 | L25: 274 | M25: 498 | N25: 0.5502008032 | O25: 1 | P25: 1 | Q25: 1 | R25: 1 | S25: 1 | T25: 1 | U25: 1 | V25: 1 | W25: 8 | X25: 34.6279 | Y25: 0.3141 | Z25: COSM3750847 | AA25: haematopoietic_and_lymphoid_tissue, soft_tissue | AB25: 2, 7 | AC25: rs2072671 | AD25: rs2072671 | AE25: NO | AF25: NO | AG25: NO | AH25: YES | AI25: -0.29 | AJ25: Tolerated | AK25: 36.94 | AL25: 36.73 | AM25: 211 | AN25: 259 | AO25: 470 | AP25: 0.5510638298 | AQ25: 13 | AR25: 15 | AS25: 28 | AT25: 0.5357142857 | AU25: 1 | AV25: 58 | AW25: 58 | AX25: Polymorphism
A26: ESP6500, 1000 Genomes, dbSNP, ClinVar, prediction, many samples, VAF | B26: UPN_Te5_046 | C26: 1 | D26: 20915701 | E26: A | F26: C | G26: CDA | H26: ENST00000375071 | I26: missense_variant | J26: Aag/Cag|p.Lys27Gln/c.79A>C | K26: 2 | L26: 135 | M26: 137 | N26: 0.9854014599 | O26: 1 | P26: 1 | Q26: 1 | R26: 1 | S26: 1 | T26: 1 | U26: 1 | V26: 1 | W26: 8 | X26: 34.6279 | Y26: 0.3141 | Z26: COSM3750847 | AA26: haematopoietic_and_lymphoid_tissue, soft_tissue | AB26: 2, 7 | AC26: rs2072671 | AD26: rs2072671 | AE26: NO | AF26: NO | AG26: NO | AH26: YES | AI26: -0.29 | AJ26: Tolerated | AK26: 39 | AL26: 37.38 | AM26: 2 | AN26: 129 | AO26: 131 | AP26: 0.9847328244 | AQ26: 0 | AR26: 6 | AS26: 6 | AT26: 1 | AU26: 1 | AV26: 58 | AW26: 58 | AX26: Polymorphism
A27: ESP6500, 1000 Genomes, dbSNP, ClinVar, prediction, many samples, VAF | B27: UPN_Te5_048 | C27: 1 | D27: 20915701 | E27: A | F27: C | G27: CDA | H27: ENST00000375071 | I27: missense_variant | J27: Aag/Cag|p.Lys27Gln/c.79A>C | K27: 285 | L27: 286 | M27: 571 | N27: 0.5008756567 | O27: 1 | P27: 1 | Q27: 1 | R27: 1 | S27: 1 | T27: 1 | U27: 1 | V27: 1 | W27: 8 | X27: 34.6279 | Y27: 0.3141 | Z27: COSM3750847 | AA27: haematopoietic_and_lymphoid_tissue, soft_tissue | AB27: 2, 7 | AC27: rs2072671 | AD27: rs2072671 | AE27: NO | AF27: NO | AG27: NO | AH27: YES | AI27: -0.29 | AJ27: Tolerated | AK27: 36.78 | AL27: 36.73 | AM27: 282 | AN27: 274 | AO27: 556 | AP27: 0.4928057554 | AQ27: 3 | AR27: 12 | AS27: 15 | AT27: 0.8 | AU27: 0.0328467504 | AV27: 58 | AW27: 58 | AX27: Polymorphism
A28: ESP6500, 1000 Genomes, dbSNP, ClinVar, prediction, many samples, VAF | B28: UPN_Te5_054 | C28: 1 | D28: 20915701 | E28: A | F28: C | G28: CDA | H28: ENST00000375071 | I28: missense_variant | J28: Aag/Cag|p.Lys27Gln/c.79A>C | K28: 2 | L28: 217 | M28: 219 | N28: 0.9908675799 | O28: 1 | P28: 1 | Q28: 1 | R28: 1 | S28: 1 | T28: 1 | U28: 1 | V28: 1 | W28: 8 | X28: 34.6279 | Y28: 0.3141 | Z28: COSM3750847 | AA28: haematopoietic_and_lymphoid_tissue, soft_tissue | AB28: 2, 7 | AC28: rs2072671 | AD28: rs2072671 | AE28: NO | AF28: NO | AG28: NO | AH28: YES | AI28: -0.29 | AJ28: Tolerated | AK28: 37 | AL28: 37.71 | AM28: 2 | AN28: 215 | AO28: 217 | AP28: 0.9907834101 | AQ28: 0 | AR28: 2 | AS28: 2 | AT28: 1 | AU28: 1 | AV28: 58 | AW28: 58 | AX28: Polymorphism
A29: ESP6500, 1000 Genomes, dbSNP, ClinVar, prediction, many samples, VAF | B29: UPN_Te5_056 | C29: 1 | D29: 20915701 | E29: A | F29: C | G29: CDA | H29: ENST00000375071 | I29: missense_variant | J29: Aag/Cag|p.Lys27Gln/c.79A>C | K29: 311 | L29: 248 | M29: 559 | N29: 0.4436493739 | O29: 1 | P29: 1 | Q29: 1 | R29: 1 | S29: 1 | T29: 1 | U29: 1 | V29: 1 | W29: 8 | X29: 34.6279 | Y29: 0.3141 | Z29: COSM3750847 | AA29: haematopoietic_and_lymphoid_tissue, soft_tissue | AB29: 2, 7 | AC29: rs2072671 | AD29: rs2072671 | AE29: NO | AF29: NO | AG29: NO | AH29: YES | AI29: -0.29 | AJ29: Tolerated | AK29: 36.68 | AL29: 36.5 | AM29: 299 | AN29: 235 | AO29: 534 | AP29: 0.4400749064 | AQ29: 12 | AR29: 13 | AS29: 25 | AT29: 0.52 | AU29: 0.5375451609 | AV29: 58 | AW29: 58 | AX29: Polymorphism
A30: ESP6500, 1000 Genomes, dbSNP, ClinVar, prediction, many samples, VAF | B30: UPN_Te5_057 | C30: 1 | D30: 20915701 | E30: A | F30: C | G30: CDA | H30: ENST00000375071 | I30: missense_variant | J30: Aag/Cag|p.Lys27Gln/c.79A>C | K30: 204 | L30: 176 | M30: 380 | N30: 0.4631578947 | O30: 1 | P30: 1 | Q30: 1 | R30: 1 | S30: 1 | T30: 1 | U30: 1 | V30: 1 | W30: 8 | X30: 34.6279 | Y30: 0.3141 | Z30: COSM3750847 | AA30: haematopoietic_and_lymphoid_tissue, soft_tissue | AB30: 2, 7 | AC30: rs2072671 | AD30: rs2072671 | AE30: NO | AF30: NO | AG30: NO | AH30: YES | AI30: -0.29 | AJ30: Tolerated | AK30: 36.92 | AL30: 36.73 | AM30: 188 | AN30: 173 | AO30: 361 | AP30: 0.4792243767 | AQ30: 16 | AR30: 3 | AS30: 19 | AT30: 0.1578947368 | AU30: 0.007912049964 | AV30: 58 | AW30: 58 | AX30: Polymorphism
A31: ESP6500, 1000 Genomes, dbSNP, ClinVar, prediction, many samples, VAF | B31: UPN_Te5_061 | C31: 1 | D31: 20915701 | E31: A | F31: C | G31: CDA | H31: ENST00000375071 | I31: missense_variant | J31: Aag/Cag|p.Lys27Gln/c.79A>C | K31: 0 | L31: 200 | M31: 200 | N31: 1 | O31: 1 | P31: 1 | Q31: 0 | R31: 1 | S31: 1 | T31: 1 | U31: 1 | V31: 1 | W31: 7 | X31: 34.6279 | Y31: 0.3141 | Z31: COSM3750847 | AA31: haematopoietic_and_lymphoid_tissue, soft_tissue | AB31: 2, 7 | AC31: rs2072671 | AD31: rs2072671 | AE31: NO | AF31: NO | AG31: NO | AH31: YES | AI31: -0.29 | AJ31: Tolerated | AK31: 0 | AL31: 37.61 | AM31: 0 | AN31: 192 | AO31: 192 | AP31: 1 | AQ31: 0 | AR31: 8 | AS31: 8 | AT31: 1 | AU31: 1 | AV31: 58 | AW31: 58 | AX31: Polymorphism
A32: ESP6500, 1000 Genomes, dbSNP, ClinVar, prediction, many samples, VAF | B32: UPN_Te5_062 | C32: 1 | D32: 20915701 | E32: A | F32: C | G32: CDA | H32: ENST00000375071 | I32: missense_variant | J32: Aag/Cag|p.Lys27Gln/c.79A>C | K32: 210 | L32: 207 | M32: 417 | N32: 0.4964028777 | O32: 1 | P32: 1 | Q32: 1 | R32: 1 | S32: 1 | T32: 1 | U32: 1 | V32: 1 | W32: 8 | X32: 34.6279 | Y32: 0.3141 | Z32: COSM3750847 | AA32: haematopoietic_and_lymphoid_tissue, soft_tissue | AB32: 2, 7 | AC32: rs2072671 | AD32: rs2072671 | AE32: NO | AF32: NO | AG32: NO | AH32: YES | AI32: -0.29 | AJ32: Tolerated | AK32: 36.4 | AL32: 36.59 | AM32: 208 | AN32: 202 | AO32: 410 | AP32: 0.4926829268 | AQ32: 2 | AR32: 5 | AS32: 7 | AT32: 0.7142857143 | AU32: 0.2819925872 | AV32: 58 | AW32: 58 | AX32: Polymorphism
A33: ESP6500, 1000 Genomes, dbSNP, ClinVar, prediction, many samples, VAF | B33: UPN_Te5_063 | C33: 1 | D33: 20915701 | E33: A | F33: C | G33: CDA | H33: ENST00000375071 | I33: missense_variant | J33: Aag/Cag|p.Lys27Gln/c.79A>C | K33: 116 | L33: 121 | M33: 237 | N33: 0.5105485232 | O33: 1 | P33: 1 | Q33: 1 | R33: 1 | S33: 1 | T33: 1 | U33: 1 | V33: 1 | W33: 8 | X33: 34.6279 | Y33: 0.3141 | Z33: COSM3750847 | AA33: haematopoietic_and_lymphoid_tissue, soft_tissue | AB33: 2, 7 | AC33: rs2072671 | AD33: rs2072671 | AE33: NO | AF33: NO | AG33: NO | AH33: YES | AI33: -0.29 | AJ33: Tolerated | AK33: 37.49 | AL33: 37.11 | AM33: 113 | AN33: 120 | AO33: 233 | AP33: 0.5150214592 | AQ33: 3 | AR33: 1 | AS33: 4 | AT33: 0.25 | AU33: 0.3614732627 | AV33: 58 | AW33: 58 | AX33: Polymorphism
A34: ESP6500, 1000 Genomes, dbSNP, ClinVar, prediction, many samples, VAF | B34: UPN_Te5_064 | C34: 1 | D34: 20915701 | E34: A | F34: C | G34: CDA | H34: ENST00000375071 | I34: missense_variant | J34: Aag/Cag|p.Lys27Gln/c.79A>C | K34: 193 | L34: 253 | M34: 446 | N34: 0.567264574 | O34: 1 | P34: 1 | Q34: 1 | R34: 1 | S34: 1 | T34: 1 | U34: 1 | V34: 1 | W34: 8 | X34: 34.6279 | Y34: 0.3141 | Z34: COSM3750847 | AA34: haematopoietic_and_lymphoid_tissue, soft_tissue | AB34: 2, 7 | AC34: rs2072671 | AD34: rs2072671 | AE34: NO | AF34: NO | AG34: NO | AH34: YES | AI34: -0.29 | AJ34: Tolerated | AK34: 36.94 | AL34: 36.42 | AM34: 187 | AN34: 244 | AO34: 431 | AP34: 0.56612529 | AQ34: 6 | AR34: 9 | AS34: 15 | AT34: 0.6 | AU34: 1 | AV34: 58 | AW34: 58 | AX34: Polymorphism
A35: ESP6500, 1000 Genomes, dbSNP, ClinVar, prediction, many samples, VAF | B35: UPN_Te5_067 | C35: 1 | D35: 20915701 | E35: A | F35: C | G35: CDA | H35: ENST00000375071 | I35: missense_variant | J35: Aag/Cag|p.Lys27Gln/c.79A>C | K35: 175 | L35: 191 | M35: 366 | N35: 0.5218579235 | O35: 1 | P35: 1 | Q35: 1 | R35: 1 | S35: 1 | T35: 1 | U35: 1 | V35: 1 | W35: 8 | X35: 34.6279 | Y35: 0.3141 | Z35: COSM3750847 | AA35: haematopoietic_and_lymphoid_tissue, soft_tissue | AB35: 2, 7 | AC35: rs2072671 | AD35: rs2072671 | AE35: NO | AF35: NO | AG35: NO | AH35: YES | AI35: -0.29 | AJ35: Tolerated | AK35: 37.08 | AL35: 36.84 | AM35: 166 | AN35: 176 | AO35: 342 | AP35: 0.514619883 | AQ35: 9 | AR35: 15 | AS35: 24 | AT35: 0.625 | AU35: 0.398405816 | AV35: 58 | AW35: 58 | AX35: Polymorphism
A36: ESP6500, 1000 Genomes, dbSNP, ClinVar, prediction, many samples, VAF | B36: UPN_Te5_068 | C36: 1 | D36: 20915701 | E36: A | F36: C | G36: CDA | H36: ENST00000375071 | I36: missense_variant | J36: Aag/Cag|p.Lys27Gln/c.79A>C | K36: 1 | L36: 389 | M36: 390 | N36: 0.9974358974 | O36: 1 | P36: 1 | Q36: 1 | R36: 1 | S36: 1 | T36: 1 | U36: 1 | V36: 1 | W36: 8 | X36: 34.6279 | Y36: 0.3141 | Z36: COSM3750847 | AA36: haematopoietic_and_lymphoid_tissue, soft_tissue | AB36: 2, 7 | AC36: rs2072671 | AD36: rs2072671 | AE36: NO | AF36: NO | AG36: NO | AH36: YES | AI36: -0.29 | AJ36: Tolerated | AK36: 7 | AL36: 36.79 | AM36: 1 | AN36: 344 | AO36: 345 | AP36: 0.9971014493 | AQ36: 0 | AR36: 45 | AS36: 45 | AT36: 1 | AU36: 1 | AV36: 58 | AW36: 58 | AX36: Polymorphism
A37: ESP6500, 1000 Genomes, dbSNP, ClinVar, prediction, many samples, VAF | B37: UPN_Te5_069 | C37: 1 | D37: 20915701 | E37: A | F37: C | G37: CDA | H37: ENST00000375071 | I37: missense_variant | J37: Aag/Cag|p.Lys27Gln/c.79A>C | K37: 40 | L37: 102 | M37: 142 | N37: 0.7183098592 | O37: 1 | P37: 1 | Q37: 1 | R37: 1 | S37: 1 | T37: 1 | U37: 1 | V37: 1 | W37: 8 | X37: 34.6279 | Y37: 0.3141 | Z37: COSM3750847 | AA37: haematopoietic_and_lymphoid_tissue, soft_tissue | AB37: 2, 7 | AC37: rs2072671 | AD37: rs2072671 | AE37: NO | AF37: NO | AG37: NO | AH37: YES | AI37: -0.29 | AJ37: Tolerated | AK37: 36.83 | AL37: 37.8 | AM37: 39 | AN37: 95 | AO37: 134 | AP37: 0.7089552239 | AQ37: 1 | AR37: 7 | AS37: 8 | AT37: 0.875 | AU37: 0.4415440464 | AV37: 58 | AW37: 58 | AX37: Polymorphism
A38: ESP6500, 1000 Genomes, dbSNP, ClinVar, prediction, many samples, VAF | B38: UPN_Te5_070 | C38: 1 | D38: 20915701 | E38: A | F38: C | G38: CDA | H38: ENST00000375071 | I38: missense_variant | J38: Aag/Cag|p.Lys27Gln/c.79A>C | K38: 0 | L38: 414 | M38: 414 | N38: 1 | O38: 1 | P38: 1 | Q38: 0 | R38: 1 | S38: 1 | T38: 1 | U38: 1 | V38: 1 | W38: 7 | X38: 34.6279 | Y38: 0.3141 | Z38: COSM3750847 | AA38: haematopoietic_and_lymphoid_tissue, soft_tissue | AB38: 2, 7 | AC38: rs2072671 | AD38: rs2072671 | AE38: NO | AF38: NO | AG38: NO | AH38: YES | AI38: -0.29 | AJ38: Tolerated | AK38: 0 | AL38: 37.27 | AM38: 0 | AN38: 404 | AO38: 404 | AP38: 1 | AQ38: 0 | AR38: 10 | AS38: 10 | AT38: 1 | AU38: 1 | AV38: 58 | AW38: 58 | AX38: Polymorphism
A39: ESP6500, 1000 Genomes, dbSNP, ClinVar, prediction, many samples, VAF | B39: UPN_Te5_073 | C39: 1 | D39: 20915701 | E39: A | F39: C | G39: CDA | H39: ENST00000375071 | I39: missense_variant | J39: Aag/Cag|p.Lys27Gln/c.79A>C | K39: 87 | L39: 99 | M39: 186 | N39: 0.5322580645 | O39: 1 | P39: 1 | Q39: 1 | R39: 1 | S39: 1 | T39: 1 | U39: 1 | V39: 0 | W39: 7 | X39: 34.6279 | Y39: 0.3141 | Z39: COSM3750847 | AA39: haematopoietic_and_lymphoid_tissue, soft_tissue | AB39: 2, 7 | AC39: rs2072671 | AD39: rs2072671 | AE39: NO | AF39: NO | AG39: NO | AH39: YES | AI39: -0.29 | AJ39: Tolerated | AK39: 37.72 | AL39: 37.01 | AM39: 86 | AN39: 98 | AO39: 184 | AP39: 0.5326086957 | AQ39: 1 | AR39: 1 | AS39: 2 | AT39: 0.5 | AU39: 1 | AV39: 58 | AW39: 58 | AX39: Polymorphism
A40: ESP6500, 1000 Genomes, dbSNP, ClinVar, prediction, many samples, VAF | B40: UPN_Te5_076 | C40: 1 | D40: 20915701 | E40: A | F40: C | G40: CDA | H40: ENST00000375071 | I40: missense_variant | J40: Aag/Cag|p.Lys27Gln/c.79A>C | K40: 0 | L40: 228 | M40: 229 | N40: 0.9956331878 | O40: 1 | P40: 1 | Q40: 0 | R40: 0 | S40: 1 | T40: 0 | U40: 1 | V40: 1 | W40: 5 | X40: 34.6279 | Y40: 0.3141 | Z40: COSM3750847 | AA40: haematopoietic_and_lymphoid_tissue, soft_tissue | AB40: 2, 7 | AC40: rs2072671 | AD40: rs2072671 | AE40: NO | AF40: NO | AG40: NO | AH40: YES | AI40: -0.29 | AJ40: Tolerated | AK40: 0 | AL40: 37.41 | AM40: 0 | AN40: 228 | AO40: 229 | AP40: 0.9956331878 | AQ40: 0 | AR40: 0 | AS40: 0 | AT40: NA | AU40: 1 | AV40: 58 | AW40: 58 | AX40: Polymorphism
A41: ESP6500, 1000 Genomes, dbSNP, ClinVar, prediction, many samples, VAF | B41: UPN_Te5_077 | C41: 1 | D41: 20915701 | E41: A | F41: C | G41: CDA | H41: ENST00000375071 | I41: missense_variant | J41: Aag/Cag|p.Lys27Gln/c.79A>C | K41: 172 | L41: 156 | M41: 328 | N41: 0.4756097561 | O41: 1 | P41: 1 | Q41: 1 | R41: 1 | S41: 1 | T41: 1 | U41: 1 | V41: 1 | W41: 8 | X41: 34.6279 | Y41: 0.3141 | Z41: COSM3750847 | AA41: haematopoietic_and_lymphoid_tissue, soft_tissue | AB41: 2, 7 | AC41: rs2072671 | AD41: rs2072671 | AE41: NO | AF41: NO | AG41: NO | AH41: YES | AI41: -0.29 | AJ41: Tolerated | AK41: 36.62 | AL41: 37.54 | AM41: 161 | AN41: 150 | AO41: 311 | AP41: 0.4823151125 | AQ41: 11 | AR41: 6 | AS41: 17 | AT41: 0.3529411765 | AU41: 0.3296267446 | AV41: 58 | AW41: 58 | AX41: Polymorphism
A42: ESP6500, 1000 Genomes, dbSNP, ClinVar, prediction, many samples, VAF | B42: UPN_Te5_079 | C42: 1 | D42: 20915701 | E42: A | F42: C | G42: CDA | H42: ENST00000375071 | I42: missense_variant | J42: Aag/Cag|p.Lys27Gln/c.79A>C | K42: 95 | L42: 136 | M42: 231 | N42: 0.5887445887 | O42: 1 | P42: 1 | Q42: 1 | R42: 1 | S42: 1 | T42: 1 | U42: 1 | V42: 1 | W42: 8 | X42: 34.6279 | Y42: 0.3141 | Z42: COSM3750847 | AA42: haematopoietic_and_lymphoid_tissue, soft_tissue | AB42: 2, 7 | AC42: rs2072671 | AD42: rs2072671 | AE42: NO | AF42: NO | AG42: NO | AH42: YES | AI42: -0.29 | AJ42: Tolerated | AK42: 37.18 | AL42: 36.95 | AM42: 95 | AN42: 133 | AO42: 228 | AP42: 0.5833333333 | AQ42: 0 | AR42: 3 | AS42: 3 | AT42: 1 | AU42: 0.2704686618 | AV42: 58 | AW42: 58 | AX42: Polymorphism
A43: ESP6500, 1000 Genomes, dbSNP, ClinVar, prediction, many samples, VAF | B43: UPN_Te5_080 | C43: 1 | D43: 20915701 | E43: A | F43: C | G43: CDA | H43: ENST00000375071 | I43: missense_variant | J43: Aag/Cag|p.Lys27Gln/c.79A>C | K43: 181 | L43: 152 | M43: 333 | N43: 0.4564564565 | O43: 1 | P43: 1 | Q43: 1 | R43: 1 | S43: 1 | T43: 0 | U43: 1 | V43: 1 | W43: 7 | X43: 34.6279 | Y43: 0.3141 | Z43: COSM3750847 | AA43: haematopoietic_and_lymphoid_tissue, soft_tissue | AB43: 2, 7 | AC43: rs2072671 | AD43: rs2072671 | AE43: NO | AF43: NO | AG43: NO | AH43: YES | AI43: -0.29 | AJ43: Tolerated | AK43: 37.04 | AL43: 37.03 | AM43: 176 | AN43: 152 | AO43: 328 | AP43: 0.4634146341 | AQ43: 5 | AR43: 0 | AS43: 5 | AT43: 0 | AU43: 0.06535539885 | AV43: 58 | AW43: 58 | AX43: Polymorphism
A44: ESP6500, 1000 Genomes, dbSNP, ClinVar, prediction, many samples, VAF | B44: UPN_Te5_081 | C44: 1 | D44: 20915701 | E44: A | F44: C | G44: CDA | H44: ENST00000375071 | I44: missense_variant | J44: Aag/Cag|p.Lys27Gln/c.79A>C | K44: 19 | L44: 217 | M44: 236 | N44: 0.9194915254 | O44: 1 | P44: 1 | Q44: 1 | R44: 1 | S44: 1 | T44: 1 | U44: 1 | V44: 1 | W44: 8 | X44: 34.6279 | Y44: 0.3141 | Z44: COSM3750847 | AA44: haematopoietic_and_lymphoid_tissue, soft_tissue | AB44: 2, 7 | AC44: rs2072671 | AD44: rs2072671 | AE44: NO | AF44: NO | AG44: NO | AH44: YES | AI44: -0.29 | AJ44: Tolerated | AK44: 37.05 | AL44: 37.22 | AM44: 19 | AN44: 211 | AO44: 230 | AP44: 0.9173913043 | AQ44: 0 | AR44: 6 | AS44: 6 | AT44: 1 | AU44: 1 | AV44: 58 | AW44: 58 | AX44: Polymorphism
A45: ESP6500, 1000 Genomes, dbSNP, ClinVar, prediction, many samples, VAF | B45: UPN_Te5_083 | C45: 1 | D45: 20915701 | E45: A | F45: C | G45: CDA | H45: ENST00000375071 | I45: missense_variant | J45: Aag/Cag|p.Lys27Gln/c.79A>C | K45: 147 | L45: 125 | M45: 272 | N45: 0.4595588235 | O45: 1 | P45: 1 | Q45: 1 | R45: 1 | S45: 1 | T45: 1 | U45: 1 | V45: 1 | W45: 8 | X45: 34.6279 | Y45: 0.3141 | Z45: COSM3750847 | AA45: haematopoietic_and_lymphoid_tissue, soft_tissue | AB45: 2, 7 | AC45: rs2072671 | AD45: rs2072671 | AE45: NO | AF45: NO | AG45: NO | AH45: YES | AI45: -0.29 | AJ45: Tolerated | AK45: 37.47 | AL45: 36.87 | AM45: 131 | AN45: 116 | AO45: 247 | AP45: 0.4696356275 | AQ45: 16 | AR45: 9 | AS45: 25 | AT45: 0.36 | AU45: 0.4001237814 | AV45: 58 | AW45: 58 | AX45: Polymorphism
A46: ESP6500, 1000 Genomes, dbSNP, ClinVar, prediction, many samples, VAF | B46: UPN_Te5_084 | C46: 1 | D46: 20915701 | E46: A | F46: C | G46: CDA | H46: ENST00000375071 | I46: missense_variant | J46: Aag/Cag|p.Lys27Gln/c.79A>C | K46: 188 | L46: 175 | M46: 363 | N46: 0.4820936639 | O46: 1 | P46: 1 | Q46: 1 | R46: 1 | S46: 1 | T46: 1 | U46: 1 | V46: 1 | W46: 8 | X46: 34.6279 | Y46: 0.3141 | Z46: COSM3750847 | AA46: haematopoietic_and_lymphoid_tissue, soft_tissue | AB46: 2, 7 | AC46: rs2072671 | AD46: rs2072671 | AE46: NO | AF46: NO | AG46: NO | AH46: YES | AI46: -0.29 | AJ46: Tolerated | AK46: 37.03 | AL46: 37.1 | AM46: 177 | AN46: 160 | AO46: 337 | AP46: 0.4747774481 | AQ46: 11 | AR46: 15 | AS46: 26 | AT46: 0.5769230769 | AU46: 0.4157769446 | AV46: 58 | AW46: 58 | AX46: Polymorphism
A47: ESP6500, 1000 Genomes, dbSNP, ClinVar, prediction, many samples, VAF | B47: UPN_Te5_088 | C47: 1 | D47: 20915701 | E47: A | F47: C | G47: CDA | H47: ENST00000375071 | I47: missense_variant | J47: Aag/Cag|p.Lys27Gln/c.79A>C | K47: 94 | L47: 82 | M47: 176 | N47: 0.4659090909 | O47: 1 | P47: 1 | Q47: 1 | R47: 1 | S47: 1 | T47: 1 | U47: 1 | V47: 1 | W47: 8 | X47: 34.6279 | Y47: 0.3141 | Z47: COSM3750847 | AA47: haematopoietic_and_lymphoid_tissue, soft_tissue | AB47: 2, 7 | AC47: rs2072671 | AD47: rs2072671 | AE47: NO | AF47: NO | AG47: NO | AH47: YES | AI47: -0.29 | AJ47: Tolerated | AK47: 37.38 | AL47: 36.94 | AM47: 85 | AN47: 80 | AO47: 165 | AP47: 0.4848484848 | AQ47: 9 | AR47: 2 | AS47: 11 | AT47: 0.1818181818 | AU47: 0.06387757033 | AV47: 58 | AW47: 58 | AX47: Polymorphism
A48: ESP6500, 1000 Genomes, dbSNP, ClinVar, prediction, many samples, VAF | B48: UPN_Te5_089 | C48: 1 | D48: 20915701 | E48: A | F48: C | G48: CDA | H48: ENST00000375071 | I48: missense_variant | J48: Aag/Cag|p.Lys27Gln/c.79A>C | K48: 64 | L48: 58 | M48: 122 | N48: 0.4754098361 | O48: 1 | P48: 1 | Q48: 1 | R48: 1 | S48: 1 | T48: 1 | U48: 1 | V48: 1 | W48: 8 | X48: 34.6279 | Y48: 0.3141 | Z48: COSM3750847 | AA48: haematopoietic_and_lymphoid_tissue, soft_tissue | AB48: 2, 7 | AC48: rs2072671 | AD48: rs2072671 | AE48: NO | AF48: NO | AG48: NO | AH48: YES | AI48: -0.29 | AJ48: Tolerated | AK48: 36.11 | AL48: 37.02 | AM48: 60 | AN48: 54 | AO48: 114 | AP48: 0.4736842105 | AQ48: 4 | AR48: 4 | AS48: 8 | AT48: 0.5 | AU48: 1 | AV48: 58 | AW48: 58 | AX48: Polymorphism
A49: ESP6500, 1000 Genomes, dbSNP, ClinVar, prediction, many samples, VAF | B49: UPN_Te5_090 | C49: 1 | D49: 20915701 | E49: A | F49: C | G49: CDA | H49: ENST00000375071 | I49: missense_variant | J49: Aag/Cag|p.Lys27Gln/c.79A>C | K49: 42 | L49: 47 | M49: 89 | N49: 0.5280898876 | O49: 1 | P49: 1 | Q49: 1 | R49: 1 | S49: 1 | T49: 1 | U49: 1 | V49: 1 | W49: 8 | X49: 34.6279 | Y49: 0.3141 | Z49: COSM3750847 | AA49: haematopoietic_and_lymphoid_tissue, soft_tissue | AB49: 2, 7 | AC49: rs2072671 | AD49: rs2072671 | AE49: NO | AF49: NO | AG49: NO | AH49: YES | AI49: -0.29 | AJ49: Tolerated | AK49: 35.83 | AL49: 37.04 | AM49: 41 | AN49: 45 | AO49: 86 | AP49: 0.523255814 | AQ49: 1 | AR49: 2 | AS49: 3 | AT49: 0.6666666667 | AU49: 1 | AV49: 58 | AW49: 58 | AX49: Polymorphism
A50: ESP6500, 1000 Genomes, dbSNP, ClinVar, prediction, many samples, VAF | B50: UPN_Te5_091 | C50: 1 | D50: 20915701 | E50: A | F50: C | G50: CDA | H50: ENST00000375071 | I50: missense_variant | J50: Aag/Cag|p.Lys27Gln/c.79A>C | K50: 2 | L50: 259 | M50: 261 | N50: 0.9923371648 | O50: 1 | P50: 1 | Q50: 1 | R50: 1 | S50: 1 | T50: 1 | U50: 1 | V50: 1 | W50: 8 | X50: 34.6279 | Y50: 0.3141 | Z50: COSM3750847 | AA50: haematopoietic_and_lymphoid_tissue, soft_tissue | AB50: 2, 7 | AC50: rs2072671 | AD50: rs2072671 | AE50: NO | AF50: NO | AG50: NO | AH50: YES | AI50: -0.29 | AJ50: Tolerated | AK50: 36 | AL50: 36.8 | AM50: 2 | AN50: 246 | AO50: 248 | AP50: 0.9919354839 | AQ50: 0 | AR50: 13 | AS50: 13 | AT50: 1 | AU50: 1 | AV50: 58 | AW50: 58 | AX50: Polymorphism
A51: ESP6500, 1000 Genomes, dbSNP, ClinVar, prediction, many samples, VAF | B51: UPN_Te5_092 | C51: 1 | D51: 20915701 | E51: A | F51: C | G51: CDA | H51: ENST00000375071 | I51: missense_variant | J51: Aag/Cag|p.Lys27Gln/c.79A>C | K51: 202 | L51: 181 | M51: 383 | N51: 0.4725848564 | O51: 1 | P51: 1 | Q51: 1 | R51: 1 | S51: 1 | T51: 1 | U51: 1 | V51: 1 | W51: 8 | X51: 34.6279 | Y51: 0.3141 | Z51: COSM3750847 | AA51: haematopoietic_and_lymphoid_tissue, soft_tissue | AB51: 2, 7 | AC51: rs2072671 | AD51: rs2072671 | AE51: NO | AF51: NO | AG51: NO | AH51: YES | AI51: -0.29 | AJ51: Tolerated | AK51: 37.15 | AL51: 36.77 | AM51: 190 | AN51: 172 | AO51: 362 | AP51: 0.4751381215 | AQ51: 12 | AR51: 9 | AS51: 21 | AT51: 0.4285714286 | AU51: 0.8229375277 | AV51: 58 | AW51: 58 | AX51: Polymorphism
A52: ESP6500, 1000 Genomes, dbSNP, ClinVar, prediction, many samples, VAF | B52: UPN_Te5_093 | C52: 1 | D52: 20915701 | E52: A | F52: C | G52: CDA | H52: ENST00000375071 | I52: missense_variant | J52: Aag/Cag|p.Lys27Gln/c.79A>C | K52: 1 | L52: 771 | M52: 772 | N52: 0.9987046632 | O52: 1 | P52: 1 | Q52: 0 | R52: 1 | S52: 1 | T52: 1 | U52: 1 | V52: 1 | W52: 7 | X52: 34.6279 | Y52: 0.3141 | Z52: COSM3750847 | AA52: haematopoietic_and_lymphoid_tissue, soft_tissue | AB52: 2, 7 | AC52: rs2072671 | AD52: rs2072671 | AE52: NO | AF52: NO | AG52: NO | AH52: YES | AI52: -0.29 | AJ52: Tolerated | AK52: 37 | AL52: 37.07 | AM52: 1 | AN52: 743 | AO52: 744 | AP52: 0.998655914 | AQ52: 0 | AR52: 28 | AS52: 28 | AT52: 1 | AU52: 1 | AV52: 58 | AW52: 58 | AX52: Polymorphism
A53: ESP6500, 1000 Genomes, dbSNP, ClinVar, prediction, many samples, VAF | B53: UPN_Te5_094 | C53: 1 | D53: 20915701 | E53: A | F53: C | G53: CDA | H53: ENST00000375071 | I53: missense_variant | J53: Aag/Cag|p.Lys27Gln/c.79A>C | K53: 135 | L53: 103 | M53: 238 | N53: 0.4327731092 | O53: 1 | P53: 1 | Q53: 1 | R53: 1 | S53: 1 | T53: 1 | U53: 1 | V53: 1 | W53: 8 | X53: 34.6279 | Y53: 0.3141 | Z53: COSM3750847 | AA53: haematopoietic_and_lymphoid_tissue, soft_tissue | AB53: 2, 7 | AC53: rs2072671 | AD53: rs2072671 | AE53: NO | AF53: NO | AG53: NO | AH53: YES | AI53: -0.29 | AJ53: Tolerated | AK53: 36.39 | AL53: 37.39 | AM53: 127 | AN53: 96 | AO53: 223 | AP53: 0.4304932735 | AQ53: 8 | AR53: 7 | AS53: 15 | AT53: 0.4666666667 | AU53: 0.7940952333 | AV53: 58 | AW53: 58 | AX53: Polymorphism
A54: ESP6500, 1000 Genomes, dbSNP, ClinVar, prediction, many samples, VAF | B54: UPN_Te5_095 | C54: 1 | D54: 20915701 | E54: A | F54: C | G54: CDA | H54: ENST00000375071 | I54: missense_variant | J54: Aag/Cag|p.Lys27Gln/c.79A>C | K54: 147 | L54: 116 | M54: 263 | N54: 0.4410646388 | O54: 1 | P54: 1 | Q54: 1 | R54: 1 | S54: 1 | T54: 1 | U54: 1 | V54: 1 | W54: 8 | X54: 34.6279 | Y54: 0.3141 | Z54: COSM3750847 | AA54: haematopoietic_and_lymphoid_tissue, soft_tissue | AB54: 2, 7 | AC54: rs2072671 | AD54: rs2072671 | AE54: NO | AF54: NO | AG54: NO | AH54: YES | AI54: -0.29 | AJ54: Tolerated | AK54: 36.86 | AL54: 37.36 | AM54: 147 | AN54: 110 | AO54: 257 | AP54: 0.4280155642 | AQ54: 0 | AR54: 6 | AS54: 6 | AT54: 1 | AU54: 0.006837380683 | AV54: 58 | AW54: 58 | AX54: Polymorphism
A55: ESP6500, 1000 Genomes, dbSNP, ClinVar, prediction, many samples, VAF | B55: UPN_Te5_096 | C55: 1 | D55: 20915701 | E55: A | F55: C | G55: CDA | H55: ENST00000375071 | I55: missense_variant | J55: Aag/Cag|p.Lys27Gln/c.79A>C | K55: 30 | L55: 29 | M55: 59 | N55: 0.4915254237 | O55: 1 | P55: 1 | Q55: 1 | R55: 1 | S55: 1 | T55: 0 | U55: 1 | V55: 1 | W55: 7 | X55: 34.6279 | Y55: 0.3141 | Z55: COSM3750847 | AA55: haematopoietic_and_lymphoid_tissue, soft_tissue | AB55: 2, 7 | AC55: rs2072671 | AD55: rs2072671 | AE55: NO | AF55: NO | AG55: NO | AH55: YES | AI55: -0.29 | AJ55: Tolerated | AK55: 36.6 | AL55: 35.24 | AM55: 30 | AN55: 27 | AO55: 57 | AP55: 0.4736842105 | AQ55: 0 | AR55: 2 | AS55: 2 | AT55: 1 | AU55: 0.2372881356 | AV55: 58 | AW55: 58 | AX55: Polymorphism
A56: ESP6500, 1000 Genomes, dbSNP, ClinVar, prediction, many samples, VAF | B56: UPN_Te5_098 | C56: 1 | D56: 20915701 | E56: A | F56: C | G56: CDA | H56: ENST00000375071 | I56: missense_variant | J56: Aag/Cag|p.Lys27Gln/c.79A>C | K56: 0 | L56: 200 | M56: 200 | N56: 1 | O56: 1 | P56: 1 | Q56: 0 | R56: 1 | S56: 1 | T56: 1 | U56: 1 | V56: 1 | W56: 7 | X56: 34.6279 | Y56: 0.3141 | Z56: COSM3750847 | AA56: haematopoietic_and_lymphoid_tissue, soft_tissue | AB56: 2, 7 | AC56: rs2072671 | AD56: rs2072671 | AE56: NO | AF56: NO | AG56: NO | AH56: YES | AI56: -0.29 | AJ56: Tolerated | AK56: 0 | AL56: 37.17 | AM56: 0 | AN56: 196 | AO56: 196 | AP56: 1 | AQ56: 0 | AR56: 4 | AS56: 4 | AT56: 1 | AU56: 1 | AV56: 58 | AW56: 58 | AX56: Polymorphism
A57: ESP6500, 1000 Genomes, dbSNP, ClinVar, prediction, many samples, VAF | B57: UPN_Te5_100 | C57: 1 | D57: 20915701 | E57: A | F57: C | G57: CDA | H57: ENST00000375071 | I57: missense_variant | J57: Aag/Cag|p.Lys27Gln/c.79A>C | K57: 57 | L57: 57 | M57: 114 | N57: 0.5 | O57: 1 | P57: 1 | Q57: 1 | R57: 1 | S57: 1 | T57: 1 | U57: 1 | V57: 1 | W57: 8 | X57: 34.6279 | Y57: 0.3141 | Z57: COSM3750847 | AA57: haematopoietic_and_lymphoid_tissue, soft_tissue | AB57: 2, 7 | AC57: rs2072671 | AD57: rs2072671 | AE57: NO | AF57: NO | AG57: NO | AH57: YES | AI57: -0.29 | AJ57: Tolerated | AK57: 37.19 | AL57: 37.72 | AM57: 56 | AN57: 52 | AO57: 108 | AP57: 0.4814814815 | AQ57: 1 | AR57: 5 | AS57: 6 | AT57: 0.8333333333 | AU57: 0.2061949097 | AV57: 58 | AW57: 58 | AX57: Polymorphism
A58: ESP6500, 1000 Genomes, dbSNP, ClinVar, prediction, many samples, VAF | B58: UPN_Te5_102 | C58: 1 | D58: 20915701 | E58: A | F58: C | G58: CDA | H58: ENST00000375071 | I58: missense_variant | J58: Aag/Cag|p.Lys27Gln/c.79A>C | K58: 33 | L58: 36 | M58: 69 | N58: 0.5217391304 | O58: 1 | P58: 1 | Q58: 1 | R58: 1 | S58: 1 | T58: 1 | U58: 1 | V58: 1 | W58: 8 | X58: 34.6279 | Y58: 0.3141 | Z58: COSM3750847 | AA58: haematopoietic_and_lymphoid_tissue, soft_tissue | AB58: 2, 7 | AC58: rs2072671 | AD58: rs2072671 | AE58: NO | AF58: NO | AG58: NO | AH58: YES | AI58: -0.29 | AJ58: Tolerated | AK58: 37.7 | AL58: 37.58 | AM58: 33 | AN58: 35 | AO58: 68 | AP58: 0.5147058824 | AQ58: 0 | AR58: 1 | AS58: 1 | AT58: 1 | AU58: 1 | AV58: 58 | AW58: 58 | AX58: Polymorphism
A59: ESP6500, 1000 Genomes, dbSNP, ClinVar, prediction, many samples, VAF | B59: UPN_Te5_103 | C59: 1 | D59: 20915701 | E59: A | F59: C | G59: CDA | H59: ENST00000375071 | I59: missense_variant | J59: Aag/Cag|p.Lys27Gln/c.79A>C | K59: 65 | L59: 32 | M59: 97 | N59: 0.3298969072 | O59: 1 | P59: 1 | Q59: 1 | R59: 1 | S59: 1 | T59: 0 | U59: 1 | V59: 1 | W59: 7 | X59: 34.6279 | Y59: 0.3141 | Z59: COSM3750847 | AA59: haematopoietic_and_lymphoid_tissue, soft_tissue | AB59: 2, 7 | AC59: rs2072671 | AD59: rs2072671 | AE59: NO | AF59: NO | AG59: NO | AH59: YES | AI59: -0.29 | AJ59: Tolerated | AK59: 37.63 | AL59: 37.59 | AM59: 65 | AN59: 32 | AO59: 97 | AP59: 0.3298969072 | AQ59: 0 | AR59: 0 | AS59: 0 | AT59: NA | AU59: 1 | AV59: 58 | AW59: 58 | AX59: Polymorphism
A60: ESP6500, 1000 Genomes, dbSNP, ClinVar, prediction, many samples, VAF | B60: UPN_Te5_116 | C60: 1 | D60: 20915701 | E60: A | F60: C | G60: CDA | H60: ENST00000375071 | I60: missense_variant | J60: Aag/Cag|p.Lys27Gln/c.79A>C | K60: 2 | L60: 449 | M60: 451 | N60: 0.9955654102 | O60: 1 | P60: 1 | Q60: 1 | R60: 0 | S60: 1 | T60: 0 | U60: 1 | V60: 1 | W60: 6 | X60: 34.6279 | Y60: 0.3141 | Z60: COSM3750847 | AA60: haematopoietic_and_lymphoid_tissue, soft_tissue | AB60: 2, 7 | AC60: rs2072671 | AD60: rs2072671 | AE60: NO | AF60: NO | AG60: NO | AH60: YES | AI60: -0.29 | AJ60: Tolerated | AK60: 40.5 | AL60: 37.19 | AM60: 0 | AN60: 430 | AO60: 430 | AP60: 1 | AQ60: 2 | AR60: 19 | AS60: 21 | AT60: 0.9047619048 | AU60: 0.00206947524 | AV60: 58 | AW60: 58 | AX60: Polymorphism
A61: ESP6500, 1000 Genomes, dbSNP, ClinVar, prediction, many samples, VAF | B61: UPN_Te5_117 | C61: 1 | D61: 20915701 | E61: A | F61: C | G61: CDA | H61: ENST00000375071 | I61: missense_variant | J61: Aag/Cag|p.Lys27Gln/c.79A>C | K61: 0 | L61: 367 | M61: 368 | N61: 0.9972826087 | O61: 1 | P61: 1 | Q61: 0 | R61: 0 | S61: 1 | T61: 0 | U61: 1 | V61: 1 | W61: 5 | X61: 34.6279 | Y61: 0.3141 | Z61: COSM3750847 | AA61: haematopoietic_and_lymphoid_tissue, soft_tissue | AB61: 2, 7 | AC61: rs2072671 | AD61: rs2072671 | AE61: NO | AF61: NO | AG61: NO | AH61: YES | AI61: -0.29 | AJ61: Tolerated | AK61: 0 | AL61: 36.7 | AM61: 0 | AN61: 346 | AO61: 347 | AP61: 0.9971181556 | AQ61: 0 | AR61: 21 | AS61: 21 | AT61: 1 | AU61: 1 | AV61: 58 | AW61: 58 | AX61: Polymorphism
A62: 1000 Genomes, ClinVar, prediction, many samples, VAF | B62: UPN_Te5_036 | C62: 1 | D62: 22405202 | E62: T | F62: A | G62: CDC42 | H62: ENST00000421089 | I62: missense_variant | J62: cTt/cAt|p.Leu20His/c.59T>A | K62: 119 | L62: 130 | M62: 249 | N62: 0.5220883534 | O62: 1 | P62: 1 | Q62: 1 | R62: 1 | S62: 1 | T62: 0 | U62: 1 | V62: 1 | W62: 7 | X62: NO | Y62: 0.008 | Z62: NO | AA62: NO | AB62: O | AC62: NO | AD62: rs75284716 | AE62: NO | AF62: 0.004027 | AG62: NO | AH62: YES | AI62: 0.19 | AJ62: Tolerated | AK62: 36.67 | AL62: 36.73 | AM62: 0 | AN62: 0 | AO62: 0 | AP62: NA | AQ62: 119 | AR62: 130 | AS62: 249 | AT62: 0.5220883534 | AU62: 1 | AV62: 4 | AW62: 4 | AX62: Polymorphism
A63: 1000 Genomes, ClinVar, prediction, many samples, VAF | B63: UPN_Te5_054 | C63: 1 | D63: 22405202 | E63: T | F63: A | G63: CDC42 | H63: ENST00000421089 | I63: missense_variant | J63: cTt/cAt|p.Leu20His/c.59T>A | K63: 53 | L63: 53 | M63: 106 | N63: 0.5 | O63: 1 | P63: 1 | Q63: 1 | R63: 1 | S63: 1 | T63: 0 | U63: 1 | V63: 1 | W63: 7 | X63: NO | Y63: 0.008 | Z63: NO | AA63: NO | AB63: O | AC63: NO | AD63: rs75284716 | AE63: NO | AF63: 0.004027 | AG63: NO | AH63: YES | AI63: 0.19 | AJ63: Tolerated | AK63: 37.81 | AL63: 38.3 | AM63: 0 | AN63: 0 | AO63: 0 | AP63: NA | AQ63: 53 | AR63: 53 | AS63: 106 | AT63: 0.5 | AU63: 1 | AV63: 4 | AW63: 4 | AX63: Polymorphism
A64: 1000 Genomes, ClinVar, prediction, many samples, VAF | B64: UPN_Te5_065 | C64: 1 | D64: 22405202 | E64: T | F64: A | G64: CDC42 | H64: ENST00000421089 | I64: missense_variant | J64: cTt/cAt|p.Leu20His/c.59T>A | K64: 95 | L64: 107 | M64: 202 | N64: 0.5297029703 | O64: 1 | P64: 1 | Q64: 1 | R64: 1 | S64: 1 | T64: 0 | U64: 1 | V64: 1 | W64: 7 | X64: NO | Y64: 0.008 | Z64: NO | AA64: NO | AB64: O | AC64: NO | AD64: rs75284716 | AE64: NO | AF64: 0.004027 | AG64: NO | AH64: YES | AI64: 0.19 | AJ64: Tolerated | AK64: 35.47 | AL64: 36.93 | AM64: 0 | AN64: 0 | AO64: 0 | AP64: NA | AQ64: 95 | AR64: 107 | AS64: 202 | AT64: 0.5297029703 | AU64: 1 | AV64: 4 | AW64: 4 | AX64: Polymorphism
A65: 1000 Genomes, ClinVar, prediction, many samples, VAF | B65: UPN_Te5_093 | C65: 1 | D65: 22405202 | E65: T | F65: A | G65: CDC42 | H65: ENST00000421089 | I65: missense_variant | J65: cTt/cAt|p.Leu20His/c.59T>A | K65: 137 | L65: 146 | M65: 283 | N65: 0.5159010601 | O65: 1 | P65: 1 | Q65: 1 | R65: 1 | S65: 1 | T65: 0 | U65: 1 | V65: 1 | W65: 7 | X65: NO | Y65: 0.008 | Z65: NO | AA65: NO | AB65: O | AC65: NO | AD65: rs75284716 | AE65: NO | AF65: 0.004027 | AG65: NO | AH65: YES | AI65: 0.19 | AJ65: Tolerated | AK65: 37.57 | AL65: 37.05 | AM65: 0 | AN65: 0 | AO65: 0 | AP65: NA | AQ65: 137 | AR65: 146 | AS65: 283 | AT65: 0.5159010601 | AU65: 1 | AV65: 4 | AW65: 4 | AX65: Polymorphism
A66: 1000 Genomes, ClinVar, prediction, many samples, VAF | B66: UPN_Te5_009 | C66: 1 | D66: 24972370 | E66: A | F66: G | G66: SRRM1.SRRM1 | H66: ENST00000380982.ENST00000241453.ENST00000380987.ENST00000537084 | J66: |c.22-105A>G.|c.22-105A>G | K66: 64 | L66: 64 | M66: 128 | N66: 0.5 | O66: 1 | P66: 1 | Q66: 1 | R66: 1 | S66: 1 | T66: 0 | U66: 1 | V66: 1 | W66: 7 | X66: NO | Y66: 0.0229 | Z66: NO | AA66: NO | AB66: O | AC66: NO | AD66: rs114675408 | AE66: NO | AF66: NO | AG66: NO | AH66: YES | AI66: NA | AJ66: NA | AK66: 34.55 | AL66: 33.61 | AM66: 64 | AN66: 64 | AO66: 128 | AP66: 0.5 | AQ66: 0 | AR66: 0 | AS66: 0 | AT66: NA | AU66: 1 | AV66: 3 | AW66: 3 | AX66: Polymorphism
A67: 1000 Genomes, ClinVar, prediction, many samples, VAF | B67: UPN_Te5_085 | C67: 1 | D67: 24972370 | E67: A | F67: G | G67: SRRM1.SRRM1 | H67: ENST00000380982.ENST00000241453.ENST00000380987.ENST00000537084 | I67: 0 | J67: |c.22-105A>G | K67: 217 | L67: 234 | M67: 453 | N67: 0.5165562914 | O67: 1 | P67: 1 | Q67: 1 | R67: 1 | S67: 1 | T67: 0 | U67: 1 | V67: 1 | W67: 7 | X67: NO | Y67: 0.0229 | Z67: NO | AA67: NO | AB67: O | AC67: NO | AD67: rs114675408 | AE67: NO | AF67: NO | AG67: NO | AH67: YES | AI67: NA | AJ67: NA | AK67: 33.66 | AL67: 33.18 | AM67: 217 | AN67: 234 | AO67: 453 | AP67: 0.5165562914 | AQ67: 0 | AR67: 0 | AS67: 0 | AT67: NA | AU67: 1 | AV67: 3 | AW67: 3 | AX67: Polymorphism
A68: 1000 Genomes, ClinVar, prediction, many samples, VAF | B68: UPN_Te5_099 | C68: 1 | D68: 24972370 | E68: A | F68: G | G68: SRRM1.SRRM1 | H68: ENST00000380982.ENST00000241453.ENST00000380987.ENST00000537084 | J68: |c.22-105A>G.|c.22-105A>G | K68: 7 | L68: 208 | M68: 215 | N68: 0.9674418605 | O68: 1 | P68: 1 | Q68: 1 | R68: 1 | S68: 1 | T68: 0 | U68: 1 | V68: 1 | W68: 7 | X68: NO | Y68: 0.0229 | Z68: NO | AA68: NO | AB68: O | AC68: NO | AD68: rs114675408 | AE68: NO | AF68: NO | AG68: NO | AH68: YES | AI68: NA | AJ68: NA | AK68: 34 | AL68: 32.5 | AM68: 7 | AN68: 208 | AO68: 215 | AP68: 0.9674418605 | AQ68: 0 | AR68: 0 | AS68: 0 | AT68: NA | AU68: 1 | AV68: 3 | AW68: 3 | AX68: Polymorphism
A69: 1000 Genomes, ClinVar, prediction, many samples, VAF | B69: UPN_Te5_060 | C69: 1 | D69: 24973106 | E69: A | F69: AT | G69: SRRM1.SRRM1.SRRM1 | I69: 0 | J69: |c.112-52_112-51insT.|c.112-52_112-51insT.|c.112-52_112-51insT.|c.112-52_112-51insT.|c.112-52_112-51insT | K69: 219 | L69: 103 | M69: 220 | N69: 0.4681818182 | O69: 1 | P69: 1 | Q69: 1 | R69: 1 | S69: 1 | T69: 1 | U69: 0 | V69: 1 | W69: 7 | X69: NO | Y69: 0.0268 | Z69: NO | AA69: NA | AB69: NA | AC69: NO | AD69: NO | AE69: NO | AF69: NO | AG69: NO | AH69: YES | AI69: NA | AJ69: NA | AK69: 36.96 | AL69: NA | AM69: 173 | AN69: 79 | AO69: 174 | AP69: 0.4540229885 | AQ69: 46 | AR69: 24 | AS69: 46 | AT69: 0.5217391304 | AU69: 0.665219931 | AV69: 6 | AW69: 6 | AX69: Polymorphism
A70: 1000 Genomes, ClinVar, prediction, many samples, VAF | B70: UPN_Te5_065 | C70: 1 | D70: 24973106 | E70: A | F70: AT | G70: SRRM1.SRRM1.SRRM1 | I70: .... | J70: |c.112-52_112-51insT.|c.112-52_112-51insT | K70: 282 | L70: 133 | M70: 282 | N70: 0.4716312057 | O70: 1 | P70: 1 | Q70: 1 | R70: 1 | S70: 1 | T70: 1 | U70: 0 | V70: 1 | W70: 7 | X70: NO | Y70: 0.0268 | Z70: NO | AA70: NA | AB70: NA | AC70: NO | AD70: NO | AE70: NO | AF70: NO | AG70: NO | AH70: YES | AI70: NA | AJ70: NA | AK70: 36.97 | AL70: NA | AM70: 240 | AN70: 112 | AO70: 240 | AP70: 0.4666666667 | AQ70: 42 | AR70: 21 | AS70: 42 | AT70: 0.5 | AU70: 1 | AV70: 6 | AW70: 6 | AX70: Polymorphism
A71: 1000 Genomes, ClinVar, prediction, many samples, VAF | B71: UPN_Te5_072 | C71: 1 | D71: 24973106 | E71: A | F71: AT | G71: SRRM1.SRRM1.SRRM1 | I71: 0 | J71: |c.112-52_112-51insT.|c.112-52_112-51insT.|c.112-52_112-51insT.|c.112-52_112-51insT.|c.112-52_112-51insT | K71: 680 | L71: 304 | M71: 681 | N71: 0.4464023495 | O71: 1 | P71: 1 | Q71: 1 | R71: 1 | S71: 1 | T71: 1 | U71: 0 | V71: 1 | W71: 7 | X71: NO | Y71: 0.0268 | Z71: NO | AA71: NA | AB71: NA | AC71: NO | AD71: NO | AE71: NO | AF71: NO | AG71: NO | AH71: YES | AI71: NA | AJ71: NA | AK71: 37.66 | AL71: NA | AM71: 616 | AN71: 279 | AO71: 617 | AP71: 0.4521880065 | AQ71: 64 | AR71: 25 | AS71: 64 | AT71: 0.390625 | AU71: 0.6307323983 | AV71: 6 | AW71: 6 | AX71: Polymorphism
A72: 1000 Genomes, ClinVar, prediction, many samples, VAF | B72: UPN_Te5_074 | C72: 1 | D72: 24973106 | E72: A | F72: AT | G72: SRRM1.SRRM1.SRRM1 | I72: .... | J72: |c.112-52_112-51insT.|c.112-52_112-51insT | K72: 164 | L72: 84 | M72: 164 | N72: 0.512195122 | O72: 1 | P72: 1 | Q72: 1 | R72: 1 | S72: 1 | T72: 1 | U72: 0 | V72: 1 | W72: 7 | X72: NO | Y72: 0.0268 | Z72: NO | AA72: NA | AB72: NA | AC72: NO | AD72: NO | AE72: NO | AF72: NO | AG72: NO | AH72: YES | AI72: NA | AJ72: NA | AK72: 37.49 | AL72: NA | AM72: 134 | AN72: 69 | AO72: 134 | AP72: 0.5149253731 | AQ72: 30 | AR72: 15 | AS72: 30 | AT72: 0.5 | AU72: 1 | AV72: 6 | AW72: 6 | AX72: Polymorphism
A73: 1000 Genomes, ClinVar, prediction, many samples, VAF | B73: UPN_Te5_084 | C73: 1 | D73: 24973106 | E73: A | F73: AT | G73: SRRM1.SRRM1.SRRM1 | I73: 0 | J73: |c.112-52_112-51insT.|c.112-52_112-51insT.|c.112-52_112-51insT.|c.112-52_112-51insT.|c.112-52_112-51insT | K73: 193 | L73: 88 | M73: 194 | N73: 0.4536082474 | O73: 1 | P73: 1 | Q73: 1 | R73: 1 | S73: 1 | T73: 1 | U73: 0 | V73: 1 | W73: 7 | X73: NO | Y73: 0.0268 | Z73: NO | AA73: NA | AB73: NA | AC73: NO | AD73: NO | AE73: NO | AF73: NO | AG73: NO | AH73: YES | AI73: NA | AJ73: NA | AK73: 37.42 | AL73: NA | AM73: 161 | AN73: 71 | AO73: 161 | AP73: 0.4409937888 | AQ73: 32 | AR73: 17 | AS73: 33 | AT73: 0.5151515152 | AU73: 0.6123766233 | AV73: 6 | AW73: 6 | AX73: Polymorphism
A74: ESP6500, prediction, VAF | B74: UPN_Te5_070 | C74: 1 | D74: 24979076 | E74: CCTT | F74: C | G74: SRRM1,SRRM1,SRRM1,SRRM1,SRRM1 | H74: ENST00000447431,ENST00000323848,ENST00000374389,ENST00000596378,ENST00000537199 | I74: inframe_deletion,inframe_deletion,inframe_deletion,inframe_deletion,inframe_deletion | J74: tct/|p.Ser294del/c.880_882delTCT,tct/|p.Ser294del/c.880_882delTCT,tct/|p.Ser294del/c.880_882delTCT,tct/|p.Ser255del/c.763_765delTCT,tct/|p.Ser163del/c.487_489delTCT | K74: 128 | L74: 121 | M74: 249 | N74: 0.4859437751 | O74: 1 | P74: 1 | Q74: 1 | R74: 1 | S74: 1 | T74: 1 | U74: 1 | V74: 1 | W74: 8 | X74: 0.0121 | Y74: NO | Z74: NO | AA74: NO | AB74: O | AC74: NO | AD74: NO | AE74: NO | AF74: 2.471e-05 | AG74: NO | AH74: NO | AI74: -1.3 | AJ74: Tolerated | AK74: 34.01 | AL74: NA | AM74: 111 | AN74: 104 | AO74: 215 | AP74: 0.4837209302 | AQ74: 17 | AR74: 17 | AS74: 34 | AT74: 0.5 | AU74: 1 | AV74: 1 | AW74: 1 | AX74: Polymorphism
A75: ESP6500, 1000 Genomes, dbSNP, ClinVar, prediction, many samples, VAF | B75: UPN_Te5_009 | C75: 1 | D75: 24981439 | E75: A | F75: G | G75: SRRM1 | H75: ENST00000537199 | I75: missense_variant | J75: cAt/cGt|p.His260Arg/c.779A>G | K75: 0 | L75: 229 | M75: 229 | N75: 1 | O75: 1 | P75: 1 | Q75: 1 | R75: 1 | S75: 1 | T75: 1 | U75: 1 | V75: 1 | W75: 8 | X75: 3.0233 | Y75: 0.0398 | Z75: NO | AA75: NO | AB75: O | AC75: rs56097146 | AD75: rs56097146 | AE75: NO | AF75: 0.028 | AG75: NO | AH75: YES | AI75: 0 | AJ75: Tolerated | AK75: 0 | AL75: 36.98 | AM75: 0 | AN75: 117 | AO75: 117 | AP75: 1 | AQ75: 0 | AR75: 112 | AS75: 112 | AT75: 1 | AU75: 1 | AV75: 5 | AW75: 5 | AX75: Polymorphism
A76: ESP6500, 1000 Genomes, dbSNP, ClinVar, prediction, many samples, VAF | B76: UPN_Te5_036 | C76: 1 | D76: 24981439 | E76: A | F76: G | G76: SRRM1 | H76: ENST00000537199 | I76: missense_variant | J76: cAt/cGt|p.His260Arg/c.779A>G | K76: 498 | L76: 393 | M76: 891 | N76: 0.4410774411 | O76: 1 | P76: 1 | Q76: 1 | R76: 1 | S76: 1 | T76: 1 | U76: 1 | V76: 1 | W76: 8 | X76: 3.0233 | Y76: 0.0398 | Z76: NO | AA76: NO | AB76: O | AC76: rs56097146 | AD76: rs56097146 | AE76: NO | AF76: 0.028 | AG76: NO | AH76: YES | AI76: 0 | AJ76: Tolerated | AK76: 35.82 | AL76: 35.06 | AM76: 253 | AN76: 191 | AO76: 444 | AP76: 0.4301801802 | AQ76: 245 | AR76: 202 | AS76: 447 | AT76: 0.451901566 | AU76: 0.5438014795 | AV76: 5 | AW76: 5 | AX76: Polymorphism
A77: ESP6500, 1000 Genomes, dbSNP, ClinVar, prediction, many samples, VAF | B77: UPN_Te5_052 | C77: 1 | D77: 24981439 | E77: A | F77: G | G77: SRRM1 | H77: ENST00000537199 | I77: missense_variant | J77: cAt/cGt|p.His260Arg/c.779A>G | K77: 355 | L77: 336 | M77: 693 | N77: 0.4848484848 | O77: 1 | P77: 1 | Q77: 1 | R77: 1 | S77: 1 | T77: 1 | U77: 1 | V77: 1 | W77: 8 | X77: 3.0233 | Y77: 0.0398 | Z77: NO | AA77: NO | AB77: O | AC77: rs56097146 | AD77: rs56097146 | AE77: NO | AF77: 0.028 | AG77: NO | AH77: YES | AI77: 0 | AJ77: Tolerated | AK77: 34.66 | AL77: 34.11 | AM77: 125 | AN77: 115 | AO77: 240 | AP77: 0.4791666667 | AQ77: 230 | AR77: 221 | AS77: 453 | AT77: 0.4878587196 | AU77: 0.8107420844 | AV77: 5 | AW77: 5 | AX77: Polymorphism
A78: ESP6500, 1000 Genomes, dbSNP, ClinVar, prediction, many samples, VAF | B78: UPN_Te5_085 | C78: 1 | D78: 24981439 | E78: A | F78: G | G78: SRRM1 | H78: ENST00000537199 | I78: missense_variant | J78: cAt/cGt|p.His260Arg/c.779A>G | K78: 297 | L78: 329 | M78: 628 | N78: 0.5238853503 | O78: 1 | P78: 1 | Q78: 1 | R78: 1 | S78: 1 | T78: 1 | U78: 1 | V78: 1 | W78: 8 | X78: 3.0233 | Y78: 0.0398 | Z78: NO | AA78: NO | AB78: O | AC78: rs56097146 | AD78: rs56097146 | AE78: NO | AF78: 0.028 | AG78: NO | AH78: YES | AI78: 0 | AJ78: Tolerated | AK78: 36.12 | AL78: 35.44 | AM78: 149 | AN78: 156 | AO78: 306 | AP78: 0.5098039216 | AQ78: 148 | AR78: 173 | AS78: 322 | AT78: 0.5372670807 | AU78: 0.5220802935 | AV78: 5 | AW78: 5 | AX78: Polymorphism
A79: ESP6500, 1000 Genomes, dbSNP, ClinVar, prediction, many samples, VAF | B79: UPN_Te5_099 | C79: 1 | D79: 24981439 | E79: A | F79: G | G79: SRRM1 | H79: ENST00000537199 | I79: missense_variant | J79: cAt/cGt|p.His260Arg/c.779A>G | K79: 18 | L79: 757 | M79: 775 | N79: 0.9767741935 | O79: 1 | P79: 1 | Q79: 1 | R79: 1 | S79: 1 | T79: 1 | U79: 1 | V79: 1 | W79: 8 | X79: 3.0233 | Y79: 0.0398 | Z79: NO | AA79: NO | AB79: O | AC79: rs56097146 | AD79: rs56097146 | AE79: NO | AF79: 0.028 | AG79: NO | AH79: YES | AI79: 0 | AJ79: Tolerated | AK79: 36.83 | AL79: 36.88 | AM79: 10 | AN79: 496 | AO79: 506 | AP79: 0.9802371542 | AQ79: 8 | AR79: 261 | AS79: 269 | AT79: 0.970260223 | AU79: 0.453406009 | AV79: 5 | AW79: 5 | AX79: Polymorphism
A80: ESP6500, 1000 Genomes, ClinVar, prediction, many samples, VAF | B80: UPN_Te5_016 | C80: 1 | D80: 24981520 | E80: A | F80: C | G80: SRRM1 | H80: ENST00000537199 | I80: missense_variant | J80: cAa/cCa|p.Gln287Pro/c.860A>C | K80: 77 | L80: 69 | M80: 146 | N80: 0.4726027397 | O80: 1 | P80: 1 | Q80: 1 | R80: 1 | S80: 1 | T80: 1 | U80: 1 | V80: 1 | W80: 8 | X80: 0.1279 | Y80: 0.002 | Z80: NO | AA80: NO | AB80: O | AC80: NO | AD80: rs140610717 | AE80: NO | AF80: 0.0009554 | AG80: NO | AH80: YES | AI80: 0 | AJ80: Tolerated | AK80: 37.69 | AL80: 35.97 | AM80: 36 | AN80: 19 | AO80: 55 | AP80: 0.3454545455 | AQ80: 41 | AR80: 50 | AS80: 91 | AT80: 0.5494505495 | AU80: 0.02574186594 | AV80: 3 | AW80: 3 | AX80: Polymorphism
A81: ESP6500, 1000 Genomes, ClinVar, prediction, many samples, VAF | B81: UPN_Te5_093 | C81: 1 | D81: 24981520 | E81: A | F81: C | G81: SRRM1 | H81: ENST00000537199 | I81: missense_variant | J81: cAa/cCa|p.Gln287Pro/c.860A>C | K81: 484 | L81: 322 | M81: 806 | N81: 0.3995037221 | O81: 1 | P81: 1 | Q81: 1 | R81: 1 | S81: 1 | T81: 1 | U81: 1 | V81: 1 | W81: 8 | X81: 0.1279 | Y81: 0.002 | Z81: NO | AA81: NO | AB81: O | AC81: NO | AD81: rs140610717 | AE81: NO | AF81: 0.0009554 | AG81: NO | AH81: YES | AI81: 0 | AJ81: Tolerated | AK81: 35.88 | AL81: 34.05 | AM81: 198 | AN81: 62 | AO81: 260 | AP81: 0.2384615385 | AQ81: 286 | AR81: 260 | AS81: 546 | AT81: 0.4761904762 | AU81: 7.522200673e-11 | AV81: 3 | AW81: 3 | AX81: Polymorphism
A82: ESP6500, 1000 Genomes, ClinVar, prediction, many samples, VAF | B82: UPN_Te5_104 | C82: 1 | D82: 24981520 | E82: A | F82: C | G82: SRRM1 | H82: ENST00000537199 | I82: missense_variant | J82: cAa/cCa|p.Gln287Pro/c.860A>C | K82: 46 | L82: 62 | M82: 108 | N82: 0.5740740741 | O82: 1 | P82: 1 | Q82: 1 | R82: 1 | S82: 1 | T82: 1 | U82: 1 | V82: 1 | W82: 8 | X82: 0.1279 | Y82: 0.002 | Z82: NO | AA82: NO | AB82: O | AC82: NO | AD82: rs140610717 | AE82: NO | AF82: 0.0009554 | AG82: NO | AH82: YES | AI82: 0 | AJ82: Tolerated | AK82: 37.93 | AL82: 37.48 | AM82: 21 | AN82: 30 | AO82: 51 | AP82: 0.5882352941 | AQ82: 25 | AR82: 32 | AS82: 57 | AT82: 0.5614035088 | AU82: 0.8465172834 | AV82: 3 | AW82: 3 | AX82: Polymorphism
A83: ESP6500, prediction, VAF | B83: UPN_Te5_079 | C83: 1 | D83: 25229017 | E83: C | F83: T | G83: RUNX3,RUNX3,RUNX3,RUNX3 | H83: ENST00000338888,ENST00000399916,ENST00000308873,ENST00000540420 | I83: missense_variant,missense_variant,missense_variant,missense_variant | J83: Gcc/Acc|p.Ala296Thr/c.886G>A,Gcc/Acc|p.Ala296Thr/c.886G>A,Gcc/Acc|p.Ala282Thr/c.844G>A,Gcc/Acc|p.Ala189Thr/c.565G>A | K83: 119 | L83: 223 | M83: 345 | N83: 0.6463768116 | O83: 1 | P83: 1 | Q83: 1 | R83: 1 | S83: 1 | T83: 1 | U83: 1 | V83: 1 | W83: 8 | X83: 0.0116 | Y83: NO | Z83: COSM3741192 | AA83: liver | AB83: 1 | AC83: NO | AD83: rs149811022 | AE83: NO | AF83: 2.472e-05 | AG83: NO | AH83: NO | AI83: -0.91 | AJ83: Tolerated | AK83: 37.16 | AL83: 35.7 | AM83: 106 | AN83: 164 | AO83: 272 | AP83: 0.6029411765 | AQ83: 13 | AR83: 59 | AS83: 73 | AT83: 0.8082191781 | AU83: 0.0007561877606 | AV83: 1 | AW83: 1 | AX83: Polymorphism
A84: ESP6500, 1000 Genomes, dbSNP, ClinVar, prediction, many samples, VAF | B84: UPN_Te5_003 | C84: 1 | D84: 25291010 | E84: A | F84: T | G84: RUNX3,RUNX3 | H84: ENST00000338888,ENST00000399916 | I84: missense_variant,missense_variant | J84: aTc/aAc|p.Ile18Asn/c.53T>A,aTc/aAc|p.Ile18Asn/c.53T>A | K84: 0 | L84: 71 | M84: 72 | N84: 0.9861111111 | O84: 1 | P84: 1 | Q84: 0 | R84: 1 | S84: 1 | T84: 1 | U84: 1 | V84: 1 | W84: 7 | X84: 48.3953 | Y84: 0.5209 | Z84: COSM3751117 | AA84: thyroid | AB84: 1 | AC84: rs6672420 | AD84: rs6672420 | AE84: NO | AF84: 0.543 | AG84: NO | AH84: YES | AI84: -2.02 | AJ84: Tolerated | AK84: 0 | AL84: 35.42 | AM84: 0 | AN84: 35 | AO84: 36 | AP84: 0.9722222222 | AQ84: 0 | AR84: 36 | AS84: 36 | AT84: 1 | AU84: 1 | AV84: 79 | AW84: 79 | AX84: Polymorphism
A85: ESP6500, 1000 Genomes, dbSNP, ClinVar, prediction, many samples, VAF | B85: UPN_Te5_004 | C85: 1 | D85: 25291010 | E85: A | F85: T | G85: RUNX3,RUNX3 | H85: ENST00000338888,ENST00000399916 | I85: missense_variant,missense_variant | J85: aTc/aAc|p.Ile18Asn/c.53T>A,aTc/aAc|p.Ile18Asn/c.53T>A | K85: 35 | L85: 43 | M85: 78 | N85: 0.5512820513 | O85: 1 | P85: 1 | Q85: 1 | R85: 1 | S85: 1 | T85: 1 | U85: 1 | V85: 1 | W85: 8 | X85: 48.3953 | Y85: 0.5209 | Z85: COSM3751117 | AA85: thyroid | AB85: 1 | AC85: rs6672420 | AD85: rs6672420 | AE85: NO | AF85: 0.543 | AG85: NO | AH85: YES | AI85: -2.02 | AJ85: Tolerated | AK85: 37 | AL85: 34.16 | AM85: 16 | AN85: 28 | AO85: 44 | AP85: 0.6363636364 | AQ85: 19 | AR85: 15 | AS85: 34 | AT85: 0.4411764706 | AU85: 0.1098903463 | AV85: 79 | AW85: 79 | AX85: Polymorphism
A86: ESP6500, 1000 Genomes, dbSNP, ClinVar, prediction, many samples, VAF | B86: UPN_Te5_005 | C86: 1 | D86: 25291010 | E86: A | F86: T | G86: RUNX3,RUNX3 | H86: ENST00000338888,ENST00000399916 | I86: missense_variant,missense_variant | J86: aTc/aAc|p.Ile18Asn/c.53T>A,aTc/aAc|p.Ile18Asn/c.53T>A | K86: 0 | L86: 318 | M86: 319 | N86: 0.9968652038 | O86: 1 | P86: 1 | Q86: 0 | R86: 1 | S86: 1 | T86: 1 | U86: 1 | V86: 1 | W86: 7 | X86: 48.3953 | Y86: 0.5209 | Z86: COSM3751117 | AA86: thyroid | AB86: 1 | AC86: rs6672420 | AD86: rs6672420 | AE86: NO | AF86: 0.543 | AG86: NO | AH86: YES | AI86: -2.02 | AJ86: Tolerated | AK86: 0 | AL86: 32.93 | AM86: 0 | AN86: 216 | AO86: 216 | AP86: 1 | AQ86: 0 | AR86: 102 | AS86: 103 | AT86: 0.9902912621 | AU86: 1 | AV86: 79 | AW86: 79 | AX86: Polymorphism
A87: ESP6500, 1000 Genomes, dbSNP, ClinVar, prediction, many samples, VAF | B87: UPN_Te5_008 | C87: 1 | D87: 25291010 | E87: A | F87: T | G87: RUNX3,RUNX3 | H87: ENST00000338888,ENST00000399916 | I87: missense_variant,missense_variant | J87: aTc/aAc|p.Ile18Asn/c.53T>A,aTc/aAc|p.Ile18Asn/c.53T>A | K87: 57 | L87: 57 | M87: 115 | N87: 0.4956521739 | O87: 1 | P87: 1 | Q87: 1 | R87: 1 | S87: 1 | T87: 1 | U87: 1 | V87: 1 | W87: 8 | X87: 48.3953 | Y87: 0.5209 | Z87: COSM3751117 | AA87: thyroid | AB87: 1 | AC87: rs6672420 | AD87: rs6672420 | AE87: NO | AF87: 0.543 | AG87: NO | AH87: YES | AI87: -2.02 | AJ87: Tolerated | AK87: 35.82 | AL87: 35.02 | AM87: 29 | AN87: 28 | AO87: 57 | AP87: 0.4912280702 | AQ87: 28 | AR87: 29 | AS87: 58 | AT87: 0.5 | AU87: 1 | AV87: 79 | AW87: 79 | AX87: Polymorphism
A88: ESP6500, 1000 Genomes, dbSNP, ClinVar, prediction, many samples, VAF | B88: UPN_Te5_009 | C88: 1 | D88: 25291010 | E88: A | F88: T | G88: RUNX3,RUNX3 | H88: ENST00000338888,ENST00000399916 | I88: missense_variant,missense_variant | J88: aTc/aAc|p.Ile18Asn/c.53T>A,aTc/aAc|p.Ile18Asn/c.53T>A | K88: 57 | L88: 71 | M88: 128 | N88: 0.5546875 | O88: 1 | P88: 1 | Q88: 1 | R88: 1 | S88: 1 | T88: 1 | U88: 1 | V88: 1 | W88: 8 | X88: 48.3953 | Y88: 0.5209 | Z88: COSM3751117 | AA88: thyroid | AB88: 1 | AC88: rs6672420 | AD88: rs6672420 | AE88: NO | AF88: 0.543 | AG88: NO | AH88: YES | AI88: -2.02 | AJ88: Tolerated | AK88: 37.91 | AL88: 35.85 | AM88: 16 | AN88: 21 | AO88: 37 | AP88: 0.5675675676 | AQ88: 41 | AR88: 50 | AS88: 91 | AT88: 0.5494505495 | AU88: 1 | AV88: 79 | AW88: 79 | AX88: Polymorphism
A89: ESP6500, 1000 Genomes, dbSNP, ClinVar, prediction, many samples, VAF | B89: UPN_Te5_010 | C89: 1 | D89: 25291010 | E89: A | F89: T | G89: RUNX3,RUNX3 | H89: ENST00000338888,ENST00000399916 | I89: missense_variant,missense_variant | J89: aTc/aAc|p.Ile18Asn/c.53T>A,aTc/aAc|p.Ile18Asn/c.53T>A | K89: 71 | L89: 63 | M89: 134 | N89: 0.4701492537 | O89: 1 | P89: 1 | Q89: 1 | R89: 1 | S89: 1 | T89: 1 | U89: 1 | V89: 1 | W89: 8 | X89: 48.3953 | Y89: 0.5209 | Z89: COSM3751117 | AA89: thyroid | AB89: 1 | AC89: rs6672420 | AD89: rs6672420 | AE89: NO | AF89: 0.543 | AG89: NO | AH89: YES | AI89: -2.02 | AJ89: Tolerated | AK89: 37.79 | AL89: 36.92 | AM89: 20 | AN89: 20 | AO89: 40 | AP89: 0.5 | AQ89: 51 | AR89: 43 | AS89: 94 | AT89: 0.4574468085 | AU89: 0.7072612945 | AV89: 79 | AW89: 79 | AX89: Polymorphism
A90: ESP6500, 1000 Genomes, dbSNP, ClinVar, prediction, many samples, VAF | B90: UPN_Te5_011 | C90: 1 | D90: 25291010 | E90: A | F90: T | G90: RUNX3,RUNX3 | H90: ENST00000338888,ENST00000399916 | I90: missense_variant,missense_variant | J90: aTc/aAc|p.Ile18Asn/c.53T>A,aTc/aAc|p.Ile18Asn/c.53T>A | K90: 181 | L90: 237 | M90: 418 | N90: 0.5669856459 | O90: 1 | P90: 1 | Q90: 1 | R90: 1 | S90: 1 | T90: 1 | U90: 1 | V90: 1 | W90: 8 | X90: 48.3953 | Y90: 0.5209 | Z90: COSM3751117 | AA90: thyroid | AB90: 1 | AC90: rs6672420 | AD90: rs6672420 | AE90: NO | AF90: 0.543 | AG90: NO | AH90: YES | AI90: -2.02 | AJ90: Tolerated | AK90: 35.95 | AL90: 34.68 | AM90: 92 | AN90: 120 | AO90: 212 | AP90: 0.5660377358 | AQ90: 89 | AR90: 117 | AS90: 206 | AT90: 0.567961165 | AU90: 1 | AV90: 79 | AW90: 79 | AX90: Polymorphism
A91: ESP6500, 1000 Genomes, dbSNP, ClinVar, prediction, many samples, VAF | B91: UPN_Te5_012 | C91: 1 | D91: 25291010 | E91: A | F91: T | G91: RUNX3,RUNX3 | H91: ENST00000338888,ENST00000399916 | I91: missense_variant,missense_variant | J91: aTc/aAc|p.Ile18Asn/c.53T>A,aTc/aAc|p.Ile18Asn/c.53T>A | K91: 143 | L91: 149 | M91: 292 | N91: 0.5102739726 | O91: 1 | P91: 1 | Q91: 1 | R91: 1 | S91: 1 | T91: 1 | U91: 1 | V91: 1 | W91: 8 | X91: 48.3953 | Y91: 0.5209 | Z91: COSM3751117 | AA91: thyroid | AB91: 1 | AC91: rs6672420 | AD91: rs6672420 | AE91: NO | AF91: 0.543 | AG91: NO | AH91: YES | AI91: -2.02 | AJ91: Tolerated | AK91: 36.28 | AL91: 34.62 | AM91: 72 | AN91: 75 | AO91: 147 | AP91: 0.5102040816 | AQ91: 71 | AR91: 74 | AS91: 145 | AT91: 0.5103448276 | AU91: 1 | AV91: 79 | AW91: 79 | AX91: Polymorphism
A92: ESP6500, 1000 Genomes, dbSNP, ClinVar, prediction, many samples, VAF | B92: UPN_Te5_013 | C92: 1 | D92: 25291010 | E92: A | F92: T | G92: RUNX3,RUNX3 | H92: ENST00000338888,ENST00000399916 | I92: missense_variant,missense_variant | J92: aTc/aAc|p.Ile18Asn/c.53T>A,aTc/aAc|p.Ile18Asn/c.53T>A | K92: 0 | L92: 232 | M92: 232 | N92: 1 | O92: 1 | P92: 1 | Q92: 0 | R92: 1 | S92: 1 | T92: 1 | U92: 1 | V92: 1 | W92: 7 | X92: 48.3953 | Y92: 0.5209 | Z92: COSM3751117 | AA92: thyroid | AB92: 1 | AC92: rs6672420 | AD92: rs6672420 | AE92: NO | AF92: 0.543 | AG92: NO | AH92: YES | AI92: -2.02 | AJ92: Tolerated | AK92: 0 | AL92: 32.15 | AM92: 0 | AN92: 157 | AO92: 157 | AP92: 1 | AQ92: 0 | AR92: 75 | AS92: 75 | AT92: 1 | AU92: 1 | AV92: 79 | AW92: 79 | AX92: Polymorphism
A93: ESP6500, 1000 Genomes, dbSNP, ClinVar, prediction, many samples, VAF | B93: UPN_Te5_014 | C93: 1 | D93: 25291010 | E93: A | F93: T | G93: RUNX3,RUNX3 | H93: ENST00000338888,ENST00000399916 | I93: missense_variant,missense_variant | J93: aTc/aAc|p.Ile18Asn/c.53T>A,aTc/aAc|p.Ile18Asn/c.53T>A | K93: 0 | L93: 266 | M93: 266 | N93: 1 | O93: 1 | P93: 1 | Q93: 1 | R93: 1 | S93: 1 | T93: 1 | U93: 1 | V93: 1 | W93: 8 | X93: 48.3953 | Y93: 0.5209 | Z93: COSM3751117 | AA93: thyroid | AB93: 1 | AC93: rs6672420 | AD93: rs6672420 | AE93: NO | AF93: 0.543 | AG93: NO | AH93: YES | AI93: -2.02 | AJ93: Tolerated | AK93: 0 | AL93: 35.45 | AM93: 0 | AN93: 123 | AO93: 123 | AP93: 1 | AQ93: 0 | AR93: 143 | AS93: 143 | AT93: 1 | AU93: 1 | AV93: 79 | AW93: 79 | AX93: Polymorphism
A94: ESP6500, 1000 Genomes, dbSNP, ClinVar, prediction, many samples, VAF | B94: UPN_Te5_015 | C94: 1 | D94: 25291010 | E94: A | F94: T | G94: RUNX3,RUNX3 | H94: ENST00000338888,ENST00000399916 | I94: missense_variant,missense_variant | J94: aTc/aAc|p.Ile18Asn/c.53T>A,aTc/aAc|p.Ile18Asn/c.53T>A | K94: 109 | L94: 98 | M94: 207 | N94: 0.4734299517 | O94: 1 | P94: 1 | Q94: 1 | R94: 1 | S94: 1 | T94: 1 | U94: 1 | V94: 1 | W94: 8 | X94: 48.3953 | Y94: 0.5209 | Z94: COSM3751117 | AA94: thyroid | AB94: 1 | AC94: rs6672420 | AD94: rs6672420 | AE94: NO | AF94: 0.543 | AG94: NO | AH94: YES | AI94: -2.02 | AJ94: Tolerated | AK94: 32.53 | AL94: 33.08 | AM94: 76 | AN94: 62 | AO94: 138 | AP94: 0.4492753623 | AQ94: 33 | AR94: 36 | AS94: 69 | AT94: 0.5217391304 | AU94: 0.3762736283 | AV94: 79 | AW94: 79 | AX94: Polymorphism
A95: ESP6500, 1000 Genomes, dbSNP, ClinVar, prediction, many samples, VAF | B95: UPN_Te5_016 | C95: 1 | D95: 25291010 | E95: A | F95: T | G95: RUNX3,RUNX3 | H95: ENST00000338888,ENST00000399916 | I95: missense_variant,missense_variant | J95: aTc/aAc|p.Ile18Asn/c.53T>A,aTc/aAc|p.Ile18Asn/c.53T>A | K95: 85 | L95: 76 | M95: 161 | N95: 0.4720496894 | O95: 1 | P95: 1 | Q95: 1 | R95: 1 | S95: 1 | T95: 1 | U95: 1 | V95: 1 | W95: 8 | X95: 48.3953 | Y95: 0.5209 | Z95: COSM3751117 | AA95: thyroid | AB95: 1 | AC95: rs6672420 | AD95: rs6672420 | AE95: NO | AF95: 0.543 | AG95: NO | AH95: YES | AI95: -2.02 | AJ95: Tolerated | AK95: 36.66 | AL95: 36.47 | AM95: 27 | AN95: 24 | AO95: 51 | AP95: 0.4705882353 | AQ95: 58 | AR95: 52 | AS95: 110 | AT95: 0.4727272727 | AU95: 1 | AV95: 79 | AW95: 79 | AX95: Polymorphism
A96: ESP6500, 1000 Genomes, dbSNP, ClinVar, prediction, many samples, VAF | B96: UPN_Te5_018 | C96: 1 | D96: 25291010 | E96: A | F96: T | G96: RUNX3,RUNX3 | H96: ENST00000338888,ENST00000399916 | I96: missense_variant,missense_variant | J96: aTc/aAc|p.Ile18Asn/c.53T>A,aTc/aAc|p.Ile18Asn/c.53T>A | K96: 0 | L96: 188 | M96: 190 | N96: 0.9894736842 | O96: 1 | P96: 1 | Q96: 0 | R96: 1 | S96: 1 | T96: 1 | U96: 1 | V96: 1 | W96: 7 | X96: 48.3953 | Y96: 0.5209 | Z96: COSM3751117 | AA96: thyroid | AB96: 1 | AC96: rs6672420 | AD96: rs6672420 | AE96: NO | AF96: 0.543 | AG96: NO | AH96: YES | AI96: -2.02 | AJ96: Tolerated | AK96: 0 | AL96: 33.2 | AM96: 0 | AN96: 125 | AO96: 127 | AP96: 0.9842519685 | AQ96: 0 | AR96: 63 | AS96: 63 | AT96: 1 | AU96: 1 | AV96: 79 | AW96: 79 | AX96: Polymorphism
A97: ESP6500, 1000 Genomes, dbSNP, ClinVar, prediction, many samples, VAF | B97: UPN_Te5_019 | C97: 1 | D97: 25291010 | E97: A | F97: T | G97: RUNX3,RUNX3 | H97: ENST00000338888,ENST00000399916 | I97: missense_variant,missense_variant | J97: aTc/aAc|p.Ile18Asn/c.53T>A,aTc/aAc|p.Ile18Asn/c.53T>A | K97: 88 | L97: 124 | M97: 212 | N97: 0.5849056604 | O97: 1 | P97: 1 | Q97: 1 | R97: 1 | S97: 1 | T97: 1 | U97: 1 | V97: 1 | W97: 8 | X97: 48.3953 | Y97: 0.5209 | Z97: COSM3751117 | AA97: thyroid | AB97: 1 | AC97: rs6672420 | AD97: rs6672420 | AE97: NO | AF97: 0.543 | AG97: NO | AH97: YES | AI97: -2.02 | AJ97: Tolerated | AK97: 37.24 | AL97: 37.16 | AM97: 29 | AN97: 39 | AO97: 68 | AP97: 0.5735294118 | AQ97: 59 | AR97: 85 | AS97: 144 | AT97: 0.5902777778 | AU97: 0.881587553 | AV97: 79 | AW97: 79 | AX97: Polymorphism
A98: ESP6500, 1000 Genomes, dbSNP, ClinVar, prediction, many samples, VAF | B98: UPN_Te5_022 | C98: 1 | D98: 25291010 | E98: A | F98: T | G98: RUNX3,RUNX3 | H98: ENST00000338888,ENST00000399916 | I98: missense_variant,missense_variant | J98: aTc/aAc|p.Ile18Asn/c.53T>A,aTc/aAc|p.Ile18Asn/c.53T>A | K98: 0 | L98: 72 | M98: 72 | N98: 1 | O98: 1 | P98: 1 | Q98: 0 | R98: 1 | S98: 1 | T98: 1 | U98: 1 | V98: 1 | W98: 7 | X98: 48.3953 | Y98: 0.5209 | Z98: COSM3751117 | AA98: thyroid | AB98: 1 | AC98: rs6672420 | AD98: rs6672420 | AE98: NO | AF98: 0.543 | AG98: NO | AH98: YES | AI98: -2.02 | AJ98: Tolerated | AK98: 0 | AL98: 34.51 | AM98: 0 | AN98: 49 | AO98: 49 | AP98: 1 | AQ98: 0 | AR98: 23 | AS98: 23 | AT98: 1 | AU98: 1 | AV98: 79 | AW98: 79 | AX98: Polymorphism
A99: ESP6500, 1000 Genomes, dbSNP, ClinVar, prediction, many samples, VAF | B99: UPN_Te5_023 | C99: 1 | D99: 25291010 | E99: A | F99: T | G99: RUNX3,RUNX3 | H99: ENST00000338888,ENST00000399916 | I99: missense_variant,missense_variant | J99: aTc/aAc|p.Ile18Asn/c.53T>A,aTc/aAc|p.Ile18Asn/c.53T>A | K99: 150 | L99: 111 | M99: 262 | N99: 0.4236641221 | O99: 1 | P99: 1 | Q99: 1 | R99: 1 | S99: 1 | T99: 1 | U99: 1 | V99: 1 | W99: 8 | X99: 48.3953 | Y99: 0.5209 | Z99: COSM3751117 | AA99: thyroid | AB99: 1 | AC99: rs6672420 | AD99: rs6672420 | AE99: NO | AF99: 0.543 | AG99: NO | AH99: YES | AI99: -2.02 | AJ99: Tolerated | AK99: 33.43 | AL99: 32.64 | AM99: 89 | AN99: 68 | AO99: 158 | AP99: 0.4303797468 | AQ99: 61 | AR99: 43 | AS99: 104 | AT99: 0.4134615385 | AU99: 0.7987545849 | AV99: 79 | AW99: 79 | AX99: Polymorphism
A100: ESP6500, 1000 Genomes, dbSNP, ClinVar, prediction, many samples, VAF | B100: UPN_Te5_024 | C100: 1 | D100: 25291010 | E100: A | F100: T | G100: RUNX3,RUNX3 | H100: ENST00000338888,ENST00000399916 | I100: missense_variant,missense_variant | J100: aTc/aAc|p.Ile18Asn/c.53T>A,aTc/aAc|p.Ile18Asn/c.53T>A | K100: 290 | L100: 283 | M100: 573 | N100: 0.4938917976 | O100: 1 | P100: 1 | Q100: 1 | R100: 1 | S100: 1 | T100: 1 | U100: 1 | V100: 1 | W100: 8 | X100: 48.3953 | Y100: 0.5209 | Z100: COSM3751117 | AA100: thyroid | AB100: 1 | AC100: rs6672420 | AD100: rs6672420 | AE100: NO | AF100: 0.543 | AG100: NO | AH100: YES | AI100: -2.02 | AJ100: Tolerated | AK100: 38.61 | AL100: 38.36 | AM100: 38 | AN100: 47 | AO100: 85 | AP100: 0.5529411765 | AQ100: 252 | AR100: 236 | AS100: 488 | AT100: 0.4836065574 | AU100: 0.2426754746 | AV100: 79 | AW100: 79 | AX100: Polymorphism
A101: ESP6500, 1000 Genomes, dbSNP, ClinVar, prediction, many samples, VAF | B101: UPN_Te5_026 | C101: 1 | D101: 25291010 | E101: A | F101: T | G101: RUNX3,RUNX3 | H101: ENST00000338888,ENST00000399916 | I101: missense_variant,missense_variant | J101: aTc/aAc|p.Ile18Asn/c.53T>A,aTc/aAc|p.Ile18Asn/c.53T>A | K101: 0 | L101: 337 | M101: 339 | N101: 0.994100295 | O101: 1 | P101: 1 | Q101: 1 | R101: 1 | S101: 1 | T101: 1 | U101: 1 | V101: 1 | W101: 8 | X101: 48.3953 | Y101: 0.5209 | Z101: COSM3751117 | AA101: thyroid | AB101: 1 | AC101: rs6672420 | AD101: rs6672420 | AE101: NO | AF101: 0.543 | AG101: NO | AH101: YES | AI101: -2.02 | AJ101: Tolerated | AK101: 0 | AL101: 32.87 | AM101: 0 | AN101: 192 | AO101: 194 | AP101: 0.9896907216 | AQ101: 0 | AR101: 145 | AS101: 145 | AT101: 1 | AU101: 1 | AV101: 79 | AW101: 79 | AX101: Polymorphism
A102: ESP6500, 1000 Genomes, dbSNP, ClinVar, prediction, many samples, VAF | B102: UPN_Te5_027 | C102: 1 | D102: 25291010 | E102: A | F102: T | G102: RUNX3,RUNX3 | H102: ENST00000338888,ENST00000399916 | I102: missense_variant,missense_variant | J102: aTc/aAc|p.Ile18Asn/c.53T>A,aTc/aAc|p.Ile18Asn/c.53T>A | K102: 66 | L102: 70 | M102: 137 | N102: 0.5109489051 | O102: 1 | P102: 1 | Q102: 1 | R102: 1 | S102: 1 | T102: 1 | U102: 1 | V102: 1 | W102: 8 | X102: 48.3953 | Y102: 0.5209 | Z102: COSM3751117 | AA102: thyroid | AB102: 1 | AC102: rs6672420 | AD102: rs6672420 | AE102: NO | AF102: 0.543 | AG102: NO | AH102: YES | AI102: -2.02 | AJ102: Tolerated | AK102: 33.73 | AL102: 33.56 | AM102: 34 | AN102: 37 | AO102: 71 | AP102: 0.5211267606 | AQ102: 32 | AR102: 33 | AS102: 66 | AT102: 0.5 | AU102: 1 | AV102: 79 | AW102: 79 | AX102: Polymorphism
A103: ESP6500, 1000 Genomes, dbSNP, ClinVar, prediction, many samples, VAF | B103: UPN_Te5_030 | C103: 1 | D103: 25291010 | E103: A | F103: T | G103: RUNX3,RUNX3 | H103: ENST00000338888,ENST00000399916 | I103: missense_variant,missense_variant | J103: aTc/aAc|p.Ile18Asn/c.53T>A,aTc/aAc|p.Ile18Asn/c.53T>A | K103: 182 | L103: 153 | M103: 336 | N103: 0.4553571429 | O103: 1 | P103: 1 | Q103: 1 | R103: 1 | S103: 1 | T103: 1 | U103: 1 | V103: 1 | W103: 8 | X103: 48.3953 | Y103: 0.5209 | Z103: COSM3751117 | AA103: thyroid | AB103: 1 | AC103: rs6672420 | AD103: rs6672420 | AE103: NO | AF103: 0.543 | AG103: NO | AH103: YES | AI103: -2.02 | AJ103: Tolerated | AK103: 34.19 | AL103: 33.32 | AM103: 81 | AN103: 81 | AO103: 163 | AP103: 0.4969325153 | AQ103: 101 | AR103: 72 | AS103: 173 | AT103: 0.4161849711 | AU103: 0.1264700488 | AV103: 79 | AW103: 79 | AX103: Polymorphism
A104: ESP6500, 1000 Genomes, dbSNP, ClinVar, prediction, many samples, VAF | B104: UPN_Te5_031 | C104: 1 | D104: 25291010 | E104: A | F104: T | G104: RUNX3,RUNX3 | H104: ENST00000338888,ENST00000399916 | I104: missense_variant,missense_variant | J104: aTc/aAc|p.Ile18Asn/c.53T>A,aTc/aAc|p.Ile18Asn/c.53T>A | K104: 224 | L104: 251 | M104: 476 | N104: 0.5273109244 | O104: 1 | P104: 1 | Q104: 1 | R104: 1 | S104: 1 | T104: 1 | U104: 1 | V104: 1 | W104: 8 | X104: 48.3953 | Y104: 0.5209 | Z104: COSM3751117 | AA104: thyroid | AB104: 1 | AC104: rs6672420 | AD104: rs6672420 | AE104: NO | AF104: 0.543 | AG104: NO | AH104: YES | AI104: -2.02 | AJ104: Tolerated | AK104: 34.28 | AL104: 34.26 | AM104: 114 | AN104: 115 | AO104: 229 | AP104: 0.5021834061 | AQ104: 110 | AR104: 136 | AS104: 247 | AT104: 0.5506072874 | AU104: 0.2716625955 | AV104: 79 | AW104: 79 | AX104: Polymorphism
A105: ESP6500, 1000 Genomes, dbSNP, ClinVar, prediction, many samples, VAF | B105: UPN_Te5_033 | C105: 1 | D105: 25291010 | E105: A | F105: T | G105: RUNX3,RUNX3 | H105: ENST00000338888,ENST00000399916 | I105: missense_variant,missense_variant | J105: aTc/aAc|p.Ile18Asn/c.53T>A,aTc/aAc|p.Ile18Asn/c.53T>A | K105: 70 | L105: 86 | M105: 156 | N105: 0.5512820513 | O105: 1 | P105: 1 | Q105: 1 | R105: 1 | S105: 1 | T105: 1 | U105: 1 | V105: 1 | W105: 8 | X105: 48.3953 | Y105: 0.5209 | Z105: COSM3751117 | AA105: thyroid | AB105: 1 | AC105: rs6672420 | AD105: rs6672420 | AE105: NO | AF105: 0.543 | AG105: NO | AH105: YES | AI105: -2.02 | AJ105: Tolerated | AK105: 35.61 | AL105: 34.09 | AM105: 46 | AN105: 51 | AO105: 97 | AP105: 0.5257731959 | AQ105: 24 | AR105: 35 | AS105: 59 | AT105: 0.593220339 | AU105: 0.5069573847 | AV105: 79 | AW105: 79 | AX105: Polymorphism
A106: ESP6500, 1000 Genomes, dbSNP, ClinVar, prediction, many samples, VAF | B106: UPN_Te5_034 | C106: 1 | D106: 25291010 | E106: A | F106: T | G106: RUNX3,RUNX3 | H106: ENST00000338888,ENST00000399916 | I106: missense_variant,missense_variant | J106: aTc/aAc|p.Ile18Asn/c.53T>A,aTc/aAc|p.Ile18Asn/c.53T>A | K106: 8 | L106: 78 | M106: 86 | N106: 0.9069767442 | O106: 1 | P106: 1 | Q106: 1 | R106: 1 | S106: 1 | T106: 1 | U106: 1 | V106: 1 | W106: 8 | X106: 48.3953 | Y106: 0.5209 | Z106: COSM3751117 | AA106: thyroid | AB106: 1 | AC106: rs6672420 | AD106: rs6672420 | AE106: NO | AF106: 0.543 | AG106: NO | AH106: YES | AI106: -2.02 | AJ106: Tolerated | AK106: 33.5 | AL106: 33.23 | AM106: 4 | AN106: 53 | AO106: 57 | AP106: 0.9298245614 | AQ106: 4 | AR106: 25 | AS106: 29 | AT106: 0.8620689655 | AU106: 0.4339895851 | AV106: 79 | AW106: 79 | AX106: Polymorphism
A107: ESP6500, 1000 Genomes, dbSNP, ClinVar, prediction, many samples, VAF | B107: UPN_Te5_035 | C107: 1 | D107: 25291010 | E107: A | F107: T | G107: RUNX3,RUNX3 | H107: ENST00000338888,ENST00000399916 | I107: missense_variant,missense_variant | J107: aTc/aAc|p.Ile18Asn/c.53T>A,aTc/aAc|p.Ile18Asn/c.53T>A | K107: 0 | L107: 436 | M107: 438 | N107: 0.99543379 | O107: 1 | P107: 1 | Q107: 1 | R107: 1 | S107: 1 | T107: 1 | U107: 1 | V107: 1 | W107: 8 | X107: 48.3953 | Y107: 0.5209 | Z107: COSM3751117 | AA107: thyroid | AB107: 1 | AC107: rs6672420 | AD107: rs6672420 | AE107: NO | AF107: 0.543 | AG107: NO | AH107: YES | AI107: -2.02 | AJ107: Tolerated | AK107: 0 | AL107: 35.44 | AM107: 0 | AN107: 82 | AO107: 82 | AP107: 1 | AQ107: 0 | AR107: 354 | AS107: 356 | AT107: 0.9943820225 | AU107: 1 | AV107: 79 | AW107: 79 | AX107: Polymorphism
A108: ESP6500, 1000 Genomes, dbSNP, ClinVar, prediction, many samples, VAF | B108: UPN_Te5_036 | C108: 1 | D108: 25291010 | E108: A | F108: T | G108: RUNX3,RUNX3 | H108: ENST00000338888,ENST00000399916 | I108: missense_variant,missense_variant | J108: aTc/aAc|p.Ile18Asn/c.53T>A,aTc/aAc|p.Ile18Asn/c.53T>A | K108: 0 | L108: 414 | M108: 415 | N108: 0.9975903614 | O108: 1 | P108: 1 | Q108: 1 | R108: 1 | S108: 1 | T108: 1 | U108: 1 | V108: 1 | W108: 8 | X108: 48.3953 | Y108: 0.5209 | Z108: COSM3751117 | AA108: thyroid | AB108: 1 | AC108: rs6672420 | AD108: rs6672420 | AE108: NO | AF108: 0.543 | AG108: NO | AH108: YES | AI108: -2.02 | AJ108: Tolerated | AK108: 0 | AL108: 34.15 | AM108: 0 | AN108: 190 | AO108: 190 | AP108: 1 | AQ108: 0 | AR108: 224 | AS108: 225 | AT108: 0.9955555556 | AU108: 1 | AV108: 79 | AW108: 79 | AX108: Polymorphism
A109: ESP6500, 1000 Genomes, dbSNP, ClinVar, prediction, many samples, VAF | B109: UPN_Te5_037 | C109: 1 | D109: 25291010 | E109: A | F109: T | G109: RUNX3,RUNX3 | H109: ENST00000338888,ENST00000399916 | I109: missense_variant,missense_variant | J109: aTc/aAc|p.Ile18Asn/c.53T>A,aTc/aAc|p.Ile18Asn/c.53T>A | K109: 271 | L109: 296 | M109: 569 | N109: 0.5202108963 | O109: 1 | P109: 1 | Q109: 1 | R109: 1 | S109: 1 | T109: 1 | U109: 1 | V109: 1 | W109: 8 | X109: 48.3953 | Y109: 0.5209 | Z109: COSM3751117 | AA109: thyroid | AB109: 1 | AC109: rs6672420 | AD109: rs6672420 | AE109: NO | AF109: 0.543 | AG109: NO | AH109: YES | AI109: -2.02 | AJ109: Tolerated | AK109: 34.65 | AL109: 34.5 | AM109: 93 | AN109: 118 | AO109: 213 | AP109: 0.5539906103 | AQ109: 178 | AR109: 178 | AS109: 356 | AT109: 0.5 | AU109: 0.1921697883 | AV109: 79 | AW109: 79 | AX109: Polymorphism
A110: ESP6500, 1000 Genomes, dbSNP, ClinVar, prediction, many samples, VAF | B110: UPN_Te5_039 | C110: 1 | D110: 25291010 | E110: A | F110: T | G110: RUNX3,RUNX3 | H110: ENST00000338888,ENST00000399916 | I110: missense_variant,missense_variant | J110: aTc/aAc|p.Ile18Asn/c.53T>A,aTc/aAc|p.Ile18Asn/c.53T>A | K110: 242 | L110: 266 | M110: 510 | N110: 0.5215686275 | O110: 1 | P110: 1 | Q110: 1 | R110: 1 | S110: 1 | T110: 1 | U110: 1 | V110: 1 | W110: 8 | X110: 48.3953 | Y110: 0.5209 | Z110: COSM3751117 | AA110: thyroid | AB110: 1 | AC110: rs6672420 | AD110: rs6672420 | AE110: NO | AF110: 0.543 | AG110: NO | AH110: YES | AI110: -2.02 | AJ110: Tolerated | AK110: 35.69 | AL110: 35.82 | AM110: 87 | AN110: 73 | AO110: 161 | AP110: 0.4534161491 | AQ110: 155 | AR110: 193 | AS110: 349 | AT110: 0.553008596 | AU110: 0.04465248135 | AV110: 79 | AW110: 79 | AX110: Polymorphism
A111: ESP6500, 1000 Genomes, dbSNP, ClinVar, prediction, many samples, VAF | B111: UPN_Te5_040 | C111: 1 | D111: 25291010 | E111: A | F111: T | G111: RUNX3,RUNX3 | H111: ENST00000338888,ENST00000399916 | I111: missense_variant,missense_variant | J111: aTc/aAc|p.Ile18Asn/c.53T>A,aTc/aAc|p.Ile18Asn/c.53T>A | K111: 145 | L111: 140 | M111: 285 | N111: 0.4912280702 | O111: 1 | P111: 1 | Q111: 1 | R111: 1 | S111: 1 | T111: 1 | U111: 1 | V111: 1 | W111: 8 | X111: 48.3953 | Y111: 0.5209 | Z111: COSM3751117 | AA111: thyroid | AB111: 1 | AC111: rs6672420 | AD111: rs6672420 | AE111: NO | AF111: 0.543 | AG111: NO | AH111: YES | AI111: -2.02 | AJ111: Tolerated | AK111: 36.09 | AL111: 36.69 | AM111: 62 | AN111: 53 | AO111: 115 | AP111: 0.4608695652 | AQ111: 83 | AR111: 87 | AS111: 170 | AT111: 0.5117647059 | AU111: 0.4688060627 | AV111: 79 | AW111: 79 | AX111: Polymorphism
A112: ESP6500, 1000 Genomes, dbSNP, ClinVar, prediction, many samples, VAF | B112: UPN_Te5_041 | C112: 1 | D112: 25291010 | E112: A | F112: T | G112: RUNX3,RUNX3 | H112: ENST00000338888,ENST00000399916 | I112: missense_variant,missense_variant | J112: aTc/aAc|p.Ile18Asn/c.53T>A,aTc/aAc|p.Ile18Asn/c.53T>A | K112: 0 | L112: 361 | M112: 361 | N112: 1 | O112: 1 | P112: 1 | Q112: 1 | R112: 1 | S112: 1 | T112: 1 | U112: 1 | V112: 1 | W112: 8 | X112: 48.3953 | Y112: 0.5209 | Z112: COSM3751117 | AA112: thyroid | AB112: 1 | AC112: rs6672420 | AD112: rs6672420 | AE112: NO | AF112: 0.543 | AG112: NO | AH112: YES | AI112: -2.02 | AJ112: Tolerated | AK112: 0 | AL112: 36.12 | AM112: 0 | AN112: 149 | AO112: 149 | AP112: 1 | AQ112: 0 | AR112: 212 | AS112: 212 | AT112: 1 | AU112: 1 | AV112: 79 | AW112: 79 | AX112: Polymorphism
A113: ESP6500, 1000 Genomes, dbSNP, ClinVar, prediction, many samples, VAF | B113: UPN_Te5_042 | C113: 1 | D113: 25291010 | E113: A | F113: T | G113: RUNX3,RUNX3 | H113: ENST00000338888,ENST00000399916 | I113: missense_variant,missense_variant | J113: aTc/aAc|p.Ile18Asn/c.53T>A,aTc/aAc|p.Ile18Asn/c.53T>A | K113: 175 | L113: 177 | M113: 352 | N113: 0.5028409091 | O113: 1 | P113: 1 | Q113: 1 | R113: 1 | S113: 1 | T113: 1 | U113: 1 | V113: 1 | W113: 8 | X113: 48.3953 | Y113: 0.5209 | Z113: COSM3751117 | AA113: thyroid | AB113: 1 | AC113: rs6672420 | AD113: rs6672420 | AE113: NO | AF113: 0.543 | AG113: NO | AH113: YES | AI113: -2.02 | AJ113: Tolerated | AK113: 34.79 | AL113: 34.46 | AM113: 88 | AN113: 87 | AO113: 175 | AP113: 0.4971428571 | AQ113: 87 | AR113: 90 | AS113: 177 | AT113: 0.5084745763 | AU113: 0.9151235414 | AV113: 79 | AW113: 79 | AX113: Polymorphism
A114: ESP6500, 1000 Genomes, dbSNP, ClinVar, prediction, many samples, VAF | B114: UPN_Te5_043 | C114: 1 | D114: 25291010 | E114: A | F114: T | G114: RUNX3,RUNX3 | H114: ENST00000338888,ENST00000399916 | I114: missense_variant,missense_variant | J114: aTc/aAc|p.Ile18Asn/c.53T>A,aTc/aAc|p.Ile18Asn/c.53T>A | K114: 30 | L114: 48 | M114: 78 | N114: 0.6153846154 | O114: 1 | P114: 1 | Q114: 1 | R114: 1 | S114: 1 | T114: 1 | U114: 1 | V114: 1 | W114: 8 | X114: 48.3953 | Y114: 0.5209 | Z114: COSM3751117 | AA114: thyroid | AB114: 1 | AC114: rs6672420 | AD114: rs6672420 | AE114: NO | AF114: 0.543 | AG114: NO | AH114: YES | AI114: -2.02 | AJ114: Tolerated | AK114: 34.27 | AL114: 35 | AM114: 20 | AN114: 30 | AO114: 50 | AP114: 0.6 | AQ114: 10 | AR114: 18 | AS114: 28 | AT114: 0.6428571429 | AU114: 0.8101400814 | AV114: 79 | AW114: 79 | AX114: Polymorphism
A115: ESP6500, 1000 Genomes, dbSNP, ClinVar, prediction, many samples, VAF | B115: UPN_Te5_044 | C115: 1 | D115: 25291010 | E115: A | F115: T | G115: RUNX3,RUNX3 | H115: ENST00000338888,ENST00000399916 | I115: missense_variant,missense_variant | J115: aTc/aAc|p.Ile18Asn/c.53T>A,aTc/aAc|p.Ile18Asn/c.53T>A | K115: 83 | L115: 50 | M115: 133 | N115: 0.3759398496 | O115: 1 | P115: 1 | Q115: 1 | R115: 1 | S115: 1 | T115: 1 | U115: 1 | V115: 1 | W115: 8 | X115: 48.3953 | Y115: 0.5209 | Z115: COSM3751117 | AA115: thyroid | AB115: 1 | AC115: rs6672420 | AD115: rs6672420 | AE115: NO | AF115: 0.543 | AG115: NO | AH115: YES | AI115: -2.02 | AJ115: Tolerated | AK115: 35.07 | AL115: 35.02 | AM115: 50 | AN115: 31 | AO115: 81 | AP115: 0.3827160494 | AQ115: 33 | AR115: 19 | AS115: 52 | AT115: 0.3653846154 | AU115: 0.8567649906 | AV115: 79 | AW115: 79 | AX115: Polymorphism
A116: ESP6500, 1000 Genomes, dbSNP, ClinVar, prediction, many samples, VAF | B116: UPN_Te5_046 | C116: 1 | D116: 25291010 | E116: A | F116: T | G116: RUNX3,RUNX3 | H116: ENST00000338888,ENST00000399916 | I116: missense_variant,missense_variant | J116: aTc/aAc|p.Ile18Asn/c.53T>A,aTc/aAc|p.Ile18Asn/c.53T>A | K116: 68 | L116: 67 | M116: 135 | N116: 0.4962962963 | O116: 1 | P116: 1 | Q116: 1 | R116: 1 | S116: 1 | T116: 1 | U116: 1 | V116: 1 | W116: 8 | X116: 48.3953 | Y116: 0.5209 | Z116: COSM3751117 | AA116: thyroid | AB116: 1 | AC116: rs6672420 | AD116: rs6672420 | AE116: NO | AF116: 0.543 | AG116: NO | AH116: YES | AI116: -2.02 | AJ116: Tolerated | AK116: 35.35 | AL116: 33.76 | AM116: 42 | AN116: 49 | AO116: 91 | AP116: 0.5384615385 | AQ116: 26 | AR116: 18 | AS116: 44 | AT116: 0.4090909091 | AU116: 0.1992132942 | AV116: 79 | AW116: 79 | AX116: Polymorphism
A117: ESP6500, 1000 Genomes, dbSNP, ClinVar, prediction, many samples, VAF | B117: UPN_Te5_047 | C117: 1 | D117: 25291010 | E117: A | F117: T | G117: RUNX3,RUNX3 | H117: ENST00000338888,ENST00000399916 | I117: missense_variant,missense_variant | J117: aTc/aAc|p.Ile18Asn/c.53T>A,aTc/aAc|p.Ile18Asn/c.53T>A | K117: 0 | L117: 108 | M117: 108 | N117: 1 | O117: 1 | P117: 1 | Q117: 0 | R117: 1 | S117: 1 | T117: 1 | U117: 1 | V117: 1 | W117: 7 | X117: 48.3953 | Y117: 0.5209 | Z117: COSM3751117 | AA117: thyroid | AB117: 1 | AC117: rs6672420 | AD117: rs6672420 | AE117: NO | AF117: 0.543 | AG117: NO | AH117: YES | AI117: -2.02 | AJ117: Tolerated | AK117: 0 | AL117: 34.72 | AM117: 0 | AN117: 69 | AO117: 69 | AP117: 1 | AQ117: 0 | AR117: 39 | AS117: 39 | AT117: 1 | AU117: 1 | AV117: 79 | AW117: 79 | AX117: Polymorphism
A118: ESP6500, 1000 Genomes, dbSNP, ClinVar, prediction, many samples, VAF | B118: UPN_Te5_049 | C118: 1 | D118: 25291010 | E118: A | F118: T | G118: RUNX3,RUNX3 | H118: ENST00000338888,ENST00000399916 | I118: missense_variant,missense_variant | J118: aTc/aAc|p.Ile18Asn/c.53T>A,aTc/aAc|p.Ile18Asn/c.53T>A | K118: 41 | L118: 34 | M118: 75 | N118: 0.4533333333 | O118: 1 | P118: 1 | Q118: 1 | R118: 1 | S118: 1 | T118: 1 | U118: 1 | V118: 1 | W118: 8 | X118: 48.3953 | Y118: 0.5209 | Z118: COSM3751117 | AA118: thyroid | AB118: 1 | AC118: rs6672420 | AD118: rs6672420 | AE118: NO | AF118: 0.543 | AG118: NO | AH118: YES | AI118: -2.02 | AJ118: Tolerated | AK118: 32.15 | AL118: 32.09 | AM118: 41 | AN118: 31 | AO118: 72 | AP118: 0.4305555556 | AQ118: 0 | AR118: 3 | AS118: 3 | AT118: 1 | AU118: 0.08861902999 | AV118: 79 | AW118: 79 | AX118: Polymorphism
A119: ESP6500, 1000 Genomes, dbSNP, ClinVar, prediction, many samples, VAF | B119: UPN_Te5_052 | C119: 1 | D119: 25291010 | E119: A | F119: T | G119: RUNX3,RUNX3 | H119: ENST00000338888,ENST00000399916 | I119: missense_variant,missense_variant | J119: aTc/aAc|p.Ile18Asn/c.53T>A,aTc/aAc|p.Ile18Asn/c.53T>A | K119: 1 | L119: 621 | M119: 623 | N119: 0.9967897271 | O119: 1 | P119: 1 | Q119: 1 | R119: 1 | S119: 1 | T119: 1 | U119: 1 | V119: 1 | W119: 8 | X119: 48.3953 | Y119: 0.5209 | Z119: COSM3751117 | AA119: thyroid | AB119: 1 | AC119: rs6672420 | AD119: rs6672420 | AE119: NO | AF119: 0.543 | AG119: NO | AH119: YES | AI119: -2.02 | AJ119: Tolerated | AK119: 8 | AL119: 35.41 | AM119: 1 | AN119: 184 | AO119: 186 | AP119: 0.9892473118 | AQ119: 0 | AR119: 437 | AS119: 437 | AT119: 1 | AU119: 0.2974276527 | AV119: 79 | AW119: 79 | AX119: Polymorphism
A120: ESP6500, 1000 Genomes, dbSNP, ClinVar, prediction, many samples, VAF | B120: UPN_Te5_053 | C120: 1 | D120: 25291010 | E120: A | F120: T | G120: RUNX3,RUNX3 | H120: ENST00000338888,ENST00000399916 | I120: missense_variant,missense_variant | J120: aTc/aAc|p.Ile18Asn/c.53T>A,aTc/aAc|p.Ile18Asn/c.53T>A | K120: 0 | L120: 264 | M120: 264 | N120: 1 | O120: 1 | P120: 1 | Q120: 1 | R120: 1 | S120: 1 | T120: 1 | U120: 1 | V120: 1 | W120: 8 | X120: 48.3953 | Y120: 0.5209 | Z120: COSM3751117 | AA120: thyroid | AB120: 1 | AC120: rs6672420 | AD120: rs6672420 | AE120: NO | AF120: 0.543 | AG120: NO | AH120: YES | AI120: -2.02 | AJ120: Tolerated | AK120: 0 | AL120: 36.26 | AM120: 0 | AN120: 103 | AO120: 103 | AP120: 1 | AQ120: 0 | AR120: 161 | AS120: 161 | AT120: 1 | AU120: 1 | AV120: 79 | AW120: 79 | AX120: Polymorphism
A121: ESP6500, 1000 Genomes, dbSNP, ClinVar, prediction, many samples, VAF | B121: UPN_Te5_054 | C121: 1 | D121: 25291010 | E121: A | F121: T | G121: RUNX3,RUNX3 | H121: ENST00000338888,ENST00000399916 | I121: missense_variant,missense_variant | J121: aTc/aAc|p.Ile18Asn/c.53T>A,aTc/aAc|p.Ile18Asn/c.53T>A | K121: 0 | L121: 58 | M121: 58 | N121: 1 | O121: 1 | P121: 1 | Q121: 0 | R121: 1 | S121: 1 | T121: 1 | U121: 1 | V121: 1 | W121: 7 | X121: 48.3953 | Y121: 0.5209 | Z121: COSM3751117 | AA121: thyroid | AB121: 1 | AC121: rs6672420 | AD121: rs6672420 | AE121: NO | AF121: 0.543 | AG121: NO | AH121: YES | AI121: -2.02 | AJ121: Tolerated | AK121: 0 | AL121: 33.76 | AM121: 0 | AN121: 40 | AO121: 40 | AP121: 1 | AQ121: 0 | AR121: 18 | AS121: 18 | AT121: 1 | AU121: 1 | AV121: 79 | AW121: 79 | AX121: Polymorphism
A122: ESP6500, 1000 Genomes, dbSNP, ClinVar, prediction, many samples, VAF | B122: UPN_Te5_055 | C122: 1 | D122: 25291010 | E122: A | F122: T | G122: RUNX3,RUNX3 | H122: ENST00000338888,ENST00000399916 | I122: missense_variant,missense_variant | J122: aTc/aAc|p.Ile18Asn/c.53T>A,aTc/aAc|p.Ile18Asn/c.53T>A | K122: 144 | L122: 116 | M122: 261 | N122: 0.4444444444 | O122: 1 | P122: 1 | Q122: 1 | R122: 1 | S122: 1 | T122: 1 | U122: 1 | V122: 1 | W122: 8 | X122: 48.3953 | Y122: 0.5209 | Z122: COSM3751117 | AA122: thyroid | AB122: 1 | AC122: rs6672420 | AD122: rs6672420 | AE122: NO | AF122: 0.543 | AG122: NO | AH122: YES | AI122: -2.02 | AJ122: Tolerated | AK122: 32.6 | AL122: 32.72 | AM122: 97 | AN122: 83 | AO122: 181 | AP122: 0.4585635359 | AQ122: 47 | AR122: 33 | AS122: 80 | AT122: 0.4125 | AU122: 0.5009615345 | AV122: 79 | AW122: 79 | AX122: Polymorphism
A123: ESP6500, 1000 Genomes, dbSNP, ClinVar, prediction, many samples, VAF | B123: UPN_Te5_056 | C123: 1 | D123: 25291010 | E123: A | F123: T | G123: RUNX3,RUNX3 | H123: ENST00000338888,ENST00000399916 | I123: missense_variant,missense_variant | J123: aTc/aAc|p.Ile18Asn/c.53T>A,aTc/aAc|p.Ile18Asn/c.53T>A | K123: 0 | L123: 235 | M123: 236 | N123: 0.9957627119 | O123: 1 | P123: 1 | Q123: 0 | R123: 1 | S123: 1 | T123: 1 | U123: 1 | V123: 1 | W123: 7 | X123: 48.3953 | Y123: 0.5209 | Z123: COSM3751117 | AA123: thyroid | AB123: 1 | AC123: rs6672420 | AD123: rs6672420 | AE123: NO | AF123: 0.543 | AG123: NO | AH123: YES | AI123: -2.02 | AJ123: Tolerated | AK123: 0 | AL123: 32.33 | AM123: 0 | AN123: 157 | AO123: 157 | AP123: 1 | AQ123: 0 | AR123: 78 | AS123: 79 | AT123: 0.9873417722 | AU123: 1 | AV123: 79 | AW123: 79 | AX123: Polymorphism
A124: ESP6500, 1000 Genomes, dbSNP, ClinVar, prediction, many samples, VAF | B124: UPN_Te5_058 | C124: 1 | D124: 25291010 | E124: A | F124: T | G124: RUNX3,RUNX3 | H124: ENST00000338888,ENST00000399916 | I124: missense_variant,missense_variant | J124: aTc/aAc|p.Ile18Asn/c.53T>A,aTc/aAc|p.Ile18Asn/c.53T>A | K124: 103 | L124: 79 | M124: 183 | N124: 0.4316939891 | O124: 1 | P124: 1 | Q124: 1 | R124: 1 | S124: 1 | T124: 1 | U124: 1 | V124: 1 | W124: 8 | X124: 48.3953 | Y124: 0.5209 | Z124: COSM3751117 | AA124: thyroid | AB124: 1 | AC124: rs6672420 | AD124: rs6672420 | AE124: NO | AF124: 0.543 | AG124: NO | AH124: YES | AI124: -2.02 | AJ124: Tolerated | AK124: 33.17 | AL124: 33.19 | AM124: 74 | AN124: 54 | AO124: 129 | AP124: 0.4186046512 | AQ124: 29 | AR124: 25 | AS124: 54 | AT124: 0.462962963 | AU124: 0.626759572 | AV124: 79 | AW124: 79 | AX124: Polymorphism
A125: ESP6500, 1000 Genomes, dbSNP, ClinVar, prediction, many samples, VAF | B125: UPN_Te5_062 | C125: 1 | D125: 25291010 | E125: A | F125: T | G125: RUNX3,RUNX3 | H125: ENST00000338888,ENST00000399916 | I125: missense_variant,missense_variant | J125: aTc/aAc|p.Ile18Asn/c.53T>A,aTc/aAc|p.Ile18Asn/c.53T>A | K125: 304 | L125: 228 | M125: 533 | N125: 0.4277673546 | O125: 1 | P125: 1 | Q125: 1 | R125: 1 | S125: 1 | T125: 1 | U125: 1 | V125: 1 | W125: 8 | X125: 48.3953 | Y125: 0.5209 | Z125: COSM3751117 | AA125: thyroid | AB125: 1 | AC125: rs6672420 | AD125: rs6672420 | AE125: NO | AF125: 0.543 | AG125: NO | AH125: YES | AI125: -2.02 | AJ125: Tolerated | AK125: 35.98 | AL125: 35.99 | AM125: 70 | AN125: 49 | AO125: 120 | AP125: 0.4083333333 | AQ125: 234 | AR125: 179 | AS125: 413 | AT125: 0.4334140436 | AU125: 0.7525887435 | AV125: 79 | AW125: 79 | AX125: Polymorphism
A126: ESP6500, 1000 Genomes, dbSNP, ClinVar, prediction, many samples, VAF | B126: UPN_Te5_064 | C126: 1 | D126: 25291010 | E126: A | F126: T | G126: RUNX3,RUNX3 | H126: ENST00000338888,ENST00000399916 | I126: missense_variant,missense_variant | J126: aTc/aAc|p.Ile18Asn/c.53T>A,aTc/aAc|p.Ile18Asn/c.53T>A | K126: 73 | L126: 105 | M126: 178 | N126: 0.5898876404 | O126: 1 | P126: 1 | Q126: 1 | R126: 1 | S126: 1 | T126: 1 | U126: 1 | V126: 1 | W126: 8 | X126: 48.3953 | Y126: 0.5209 | Z126: COSM3751117 | AA126: thyroid | AB126: 1 | AC126: rs6672420 | AD126: rs6672420 | AE126: NO | AF126: 0.543 | AG126: NO | AH126: YES | AI126: -2.02 | AJ126: Tolerated | AK126: 32.3 | AL126: 32.6 | AM126: 40 | AN126: 54 | AO126: 94 | AP126: 0.5744680851 | AQ126: 33 | AR126: 51 | AS126: 84 | AT126: 0.6071428571 | AU126: 0.7603192686 | AV126: 79 | AW126: 79 | AX126: Polymorphism
A127: ESP6500, 1000 Genomes, dbSNP, ClinVar, prediction, many samples, VAF | B127: UPN_Te5_065 | C127: 1 | D127: 25291010 | E127: A | F127: T | G127: RUNX3,RUNX3 | H127: ENST00000338888,ENST00000399916 | I127: missense_variant,missense_variant | J127: aTc/aAc|p.Ile18Asn/c.53T>A,aTc/aAc|p.Ile18Asn/c.53T>A | K127: 107 | L127: 146 | M127: 253 | N127: 0.5770750988 | O127: 1 | P127: 1 | Q127: 1 | R127: 1 | S127: 1 | T127: 1 | U127: 1 | V127: 1 | W127: 8 | X127: 48.3953 | Y127: 0.5209 | Z127: COSM3751117 | AA127: thyroid | AB127: 1 | AC127: rs6672420 | AD127: rs6672420 | AE127: NO | AF127: 0.543 | AG127: NO | AH127: YES | AI127: -2.02 | AJ127: Tolerated | AK127: 34 | AL127: 34.9 | AM127: 55 | AN127: 61 | AO127: 116 | AP127: 0.525862069 | AQ127: 52 | AR127: 85 | AS127: 137 | AT127: 0.6204379562 | AU127: 0.1600054488 | AV127: 79 | AW127: 79 | AX127: Polymorphism
A128: ESP6500, 1000 Genomes, dbSNP, ClinVar, prediction, many samples, VAF | B128: UPN_Te5_067 | C128: 1 | D128: 25291010 | E128: A | F128: T | G128: RUNX3,RUNX3 | H128: ENST00000338888,ENST00000399916 | I128: missense_variant,missense_variant | J128: aTc/aAc|p.Ile18Asn/c.53T>A,aTc/aAc|p.Ile18Asn/c.53T>A | K128: 274 | L128: 215 | M128: 491 | N128: 0.4378818737 | O128: 1 | P128: 1 | Q128: 1 | R128: 1 | S128: 1 | T128: 1 | U128: 1 | V128: 1 | W128: 8 | X128: 48.3953 | Y128: 0.5209 | Z128: COSM3751117 | AA128: thyroid | AB128: 1 | AC128: rs6672420 | AD128: rs6672420 | AE128: NO | AF128: 0.543 | AG128: NO | AH128: YES | AI128: -2.02 | AJ128: Tolerated | AK128: 36.49 | AL128: 36.87 | AM128: 72 | AN128: 36 | AO128: 108 | AP128: 0.3333333333 | AQ128: 202 | AR128: 179 | AS128: 383 | AT128: 0.4673629243 | AU128: 0.01177957962 | AV128: 79 | AW128: 79 | AX128: Polymorphism
A129: ESP6500, 1000 Genomes, dbSNP, ClinVar, prediction, many samples, VAF | B129: UPN_Te5_068 | C129: 1 | D129: 25291010 | E129: A | F129: T | G129: RUNX3,RUNX3 | H129: ENST00000338888,ENST00000399916 | I129: missense_variant,missense_variant | J129: aTc/aAc|p.Ile18Asn/c.53T>A,aTc/aAc|p.Ile18Asn/c.53T>A | K129: 105 | L129: 66 | M129: 171 | N129: 0.3859649123 | O129: 1 | P129: 1 | Q129: 1 | R129: 1 | S129: 1 | T129: 1 | U129: 1 | V129: 1 | W129: 8 | X129: 48.3953 | Y129: 0.5209 | Z129: COSM3751117 | AA129: thyroid | AB129: 1 | AC129: rs6672420 | AD129: rs6672420 | AE129: NO | AF129: 0.543 | AG129: NO | AH129: YES | AI129: -2.02 | AJ129: Tolerated | AK129: 36.89 | AL129: 36.03 | AM129: 27 | AN129: 18 | AO129: 45 | AP129: 0.4 | AQ129: 78 | AR129: 48 | AS129: 126 | AT129: 0.380952381 | AU129: 0.8594570178 | AV129: 79 | AW129: 79 | AX129: Polymorphism
A130: ESP6500, 1000 Genomes, dbSNP, ClinVar, prediction, many samples, VAF | B130: UPN_Te5_069 | C130: 1 | D130: 25291010 | E130: A | F130: T | G130: RUNX3,RUNX3 | H130: ENST00000338888,ENST00000399916 | I130: missense_variant,missense_variant | J130: aTc/aAc|p.Ile18Asn/c.53T>A,aTc/aAc|p.Ile18Asn/c.53T>A | K130: 0 | L130: 257 | M130: 257 | N130: 1 | O130: 1 | P130: 1 | Q130: 1 | R130: 1 | S130: 1 | T130: 1 | U130: 1 | V130: 1 | W130: 8 | X130: 48.3953 | Y130: 0.5209 | Z130: COSM3751117 | AA130: thyroid | AB130: 1 | AC130: rs6672420 | AD130: rs6672420 | AE130: NO | AF130: 0.543 | AG130: NO | AH130: YES | AI130: -2.02 | AJ130: Tolerated | AK130: 0 | AL130: 36.77 | AM130: 0 | AN130: 90 | AO130: 90 | AP130: 1 | AQ130: 0 | AR130: 167 | AS130: 167 | AT130: 1 | AU130: 1 | AV130: 79 | AW130: 79 | AX130: Polymorphism
A131: ESP6500, 1000 Genomes, dbSNP, ClinVar, prediction, many samples, VAF | B131: UPN_Te5_071 | C131: 1 | D131: 25291010 | E131: A | F131: T | G131: RUNX3,RUNX3 | H131: ENST00000338888,ENST00000399916 | I131: missense_variant,missense_variant | J131: aTc/aAc|p.Ile18Asn/c.53T>A,aTc/aAc|p.Ile18Asn/c.53T>A | K131: 326 | L131: 344 | M131: 670 | N131: 0.5134328358 | O131: 1 | P131: 1 | Q131: 1 | R131: 1 | S131: 1 | T131: 1 | U131: 1 | V131: 1 | W131: 8 | X131: 48.3953 | Y131: 0.5209 | Z131: COSM3751117 | AA131: thyroid | AB131: 1 | AC131: rs6672420 | AD131: rs6672420 | AE131: NO | AF131: 0.543 | AG131: NO | AH131: YES | AI131: -2.02 | AJ131: Tolerated | AK131: 36.89 | AL131: 35.38 | AM131: 72 | AN131: 94 | AO131: 166 | AP131: 0.5662650602 | AQ131: 254 | AR131: 250 | AS131: 504 | AT131: 0.496031746 | AU131: 0.1282254654 | AV131: 79 | AW131: 79 | AX131: Polymorphism
A132: ESP6500, 1000 Genomes, dbSNP, ClinVar, prediction, many samples, VAF | B132: UPN_Te5_072 | C132: 1 | D132: 25291010 | E132: A | F132: T | G132: RUNX3,RUNX3 | H132: ENST00000338888,ENST00000399916 | I132: missense_variant,missense_variant | J132: aTc/aAc|p.Ile18Asn/c.53T>A,aTc/aAc|p.Ile18Asn/c.53T>A | K132: 0 | L132: 1163 | M132: 1165 | N132: 0.9982832618 | O132: 1 | P132: 1 | Q132: 1 | R132: 1 | S132: 1 | T132: 1 | U132: 1 | V132: 1 | W132: 8 | X132: 48.3953 | Y132: 0.5209 | Z132: COSM3751117 | AA132: thyroid | AB132: 1 | AC132: rs6672420 | AD132: rs6672420 | AE132: NO | AF132: 0.543 | AG132: NO | AH132: YES | AI132: -2.02 | AJ132: Tolerated | AK132: 0 | AL132: 35.66 | AM132: 0 | AN132: 320 | AO132: 320 | AP132: 1 | AQ132: 0 | AR132: 843 | AS132: 845 | AT132: 0.9976331361 | AU132: 1 | AV132: 79 | AW132: 79 | AX132: Polymorphism
A133: ESP6500, 1000 Genomes, dbSNP, ClinVar, prediction, many samples, VAF | B133: UPN_Te5_074 | C133: 1 | D133: 25291010 | E133: A | F133: T | G133: RUNX3,RUNX3 | H133: ENST00000338888,ENST00000399916 | I133: missense_variant,missense_variant | J133: aTc/aAc|p.Ile18Asn/c.53T>A,aTc/aAc|p.Ile18Asn/c.53T>A | K133: 171 | L133: 125 | M133: 296 | N133: 0.4222972973 | O133: 1 | P133: 1 | Q133: 1 | R133: 1 | S133: 1 | T133: 1 | U133: 1 | V133: 1 | W133: 8 | X133: 48.3953 | Y133: 0.5209 | Z133: COSM3751117 | AA133: thyroid | AB133: 1 | AC133: rs6672420 | AD133: rs6672420 | AE133: NO | AF133: 0.543 | AG133: NO | AH133: YES | AI133: -2.02 | AJ133: Tolerated | AK133: 34.42 | AL133: 35.18 | AM133: 85 | AN133: 63 | AO133: 148 | AP133: 0.4256756757 | AQ133: 86 | AR133: 62 | AS133: 148 | AT133: 0.4189189189 | AU133: 1 | AV133: 79 | AW133: 79 | AX133: Polymorphism
A134: ESP6500, 1000 Genomes, dbSNP, ClinVar, prediction, many samples, VAF | B134: UPN_Te5_075 | C134: 1 | D134: 25291010 | E134: A | F134: T | G134: RUNX3,RUNX3 | H134: ENST00000338888,ENST00000399916 | I134: missense_variant,missense_variant | J134: aTc/aAc|p.Ile18Asn/c.53T>A,aTc/aAc|p.Ile18Asn/c.53T>A | K134: 230 | L134: 241 | M134: 471 | N134: 0.5116772824 | O134: 1 | P134: 1 | Q134: 1 | R134: 1 | S134: 1 | T134: 1 | U134: 1 | V134: 1 | W134: 8 | X134: 48.3953 | Y134: 0.5209 | Z134: COSM3751117 | AA134: thyroid | AB134: 1 | AC134: rs6672420 | AD134: rs6672420 | AE134: NO | AF134: 0.543 | AG134: NO | AH134: YES | AI134: -2.02 | AJ134: Tolerated | AK134: 36.79 | AL134: 35.77 | AM134: 61 | AN134: 65 | AO134: 126 | AP134: 0.5158730159 | AQ134: 169 | AR134: 176 | AS134: 345 | AT134: 0.5101449275 | AU134: 0.9175099256 | AV134: 79 | AW134: 79 | AX134: Polymorphism
A135: ESP6500, 1000 Genomes, dbSNP, ClinVar, prediction, many samples, VAF | B135: UPN_Te5_077 | C135: 1 | D135: 25291010 | E135: A | F135: T | G135: RUNX3,RUNX3 | H135: ENST00000338888,ENST00000399916 | I135: missense_variant,missense_variant | J135: aTc/aAc|p.Ile18Asn/c.53T>A,aTc/aAc|p.Ile18Asn/c.53T>A | K135: 84 | L135: 71 | M135: 155 | N135: 0.4580645161 | O135: 1 | P135: 1 | Q135: 1 | R135: 1 | S135: 1 | T135: 1 | U135: 1 | V135: 1 | W135: 8 | X135: 48.3953 | Y135: 0.5209 | Z135: COSM3751117 | AA135: thyroid | AB135: 1 | AC135: rs6672420 | AD135: rs6672420 | AE135: NO | AF135: 0.543 | AG135: NO | AH135: YES | AI135: -2.02 | AJ135: Tolerated | AK135: 36.39 | AL135: 35.04 | AM135: 30 | AN135: 22 | AO135: 52 | AP135: 0.4230769231 | AQ135: 54 | AR135: 49 | AS135: 103 | AT135: 0.4757281553 | AU135: 0.609546744 | AV135: 79 | AW135: 79 | AX135: Polymorphism
